Workbook

Sheet Dashboard
A1: Month: | B1: Dec | C1: PRM: | D1: =INDEX(PRM[Planning Reserve Margin],MONTH(Month&" 1, 2000")) -> 0.2354839406
C2: Capacity (MW)
B3: Unit Category | C3: HE 1 | D3: HE 2 | E3: HE 3 | F3: HE 4 | G3: HE 5 | H3: HE 6 | I3: HE 7 | J3: HE 8 | K3: HE 9 | L3: HE 10 | M3: HE 11 | N3: HE 12 | O3: HE 13 | P3: HE 14 | Q3: HE 15 | R3: HE 16 | S3: HE 17 | T3: HE 18 | U3: HE 19 | V3: HE 20 | W3: HE 21 | X3: HE 22 | Y3: HE 23 | Z3: HE 24
B4: Biogas | C4: =INDEX(Supply[Supply],MATCH(1,(Supply[Month]=MONTH(Month&" 1, 2000"))*(Supply[Unit Category]=Dashboard!$B4)*(Supply[Hour Ending]=INT(INDEX(_xlfn.TEXTSPLIT(Dashboard!C$3," "),2))),0)) -> 216.816954 | D4: =INDEX(NQC[NQC MW],MATCH(1,(NQC[Month]=MONTH(Month&" 1, 2000"))*(NQC[Unit Category]=Dashboard!$B4),0))*INDEX(Profiles[],MATCH(1,(Profiles[Month]=MONTH(Month&" 1, 2000"))*(Profiles[Hour Ending]=INT(INDEX(_xlfn.TEXTSPLIT(Dashboard!D$3,," "),2))),0),MATCH(Dashboard!$B4,Profiles[#Headers],0)) -> 216.816954 | E4: =INDEX(NQC[NQC MW],MATCH(1,(NQC[Month]=MONTH(Month&" 1, 2000"))*(NQC[Unit Category]=Dashboard!$B4),0))*INDEX(Profiles[],MATCH(1,(Profiles[Month]=MONTH(Month&" 1, 2000"))*(Profiles[Hour Ending]=INT(INDEX(_xlfn.TEXTSPLIT(Dashboard!E$3,," "),2))),0),MATCH(Dashboard!$B4,Profiles[#Headers],0)) -> 216.816954 | F4: =INDEX(NQC[NQC MW],MATCH(1,(NQC[Month]=MONTH(Month&" 1, 2000"))*(NQC[Unit Category]=Dashboard!$B4),0))*INDEX(Profiles[],MATCH(1,(Profiles[Month]=MONTH(Month&" 1, 2000"))*(Profiles[Hour Ending]=INT(INDEX(_xlfn.TEXTSPLIT(Dashboard!F$3,," "),2))),0),MATCH(Dashboard!$B4,Profiles[#Headers],0)) -> 216.816954 | G4: =INDEX(NQC[NQC MW],MATCH(1,(NQC[Month]=MONTH(Month&" 1, 2000"))*(NQC[Unit Category]=Dashboard!$B4),0))*INDEX(Profiles[],MATCH(1,(Profiles[Month]=MONTH(Month&" 1, 2000"))*(Profiles[Hour Ending]=INT(INDEX(_xlfn.TEXTSPLIT(Dashboard!G$3,," "),2))),0),MATCH(Dashboard!$B4,Profiles[#Headers],0)) -> 216.816954 | H4: =INDEX(NQC[NQC MW],MATCH(1,(NQC[Month]=MONTH(Month&" 1, 2000"))*(NQC[Unit Category]=Dashboard!$B4),0))*INDEX(Profiles[],MATCH(1,(Profiles[Month]=MONTH(Month&" 1, 2000"))*(Profiles[Hour Ending]=INT(INDEX(_xlfn.TEXTSPLIT(Dashboard!H$3,," "),2))),0),MATCH(Dashboard!$B4,Profiles[#Headers],0)) -> 216.816954 | I4: =INDEX(NQC[NQC MW],MATCH(1,(NQC[Month]=MONTH(Month&" 1, 2000"))*(NQC[Unit Category]=Dashboard!$B4),0))*INDEX(Profiles[],MATCH(1,(Profiles[Month]=MONTH(Month&" 1, 2000"))*(Profiles[Hour Ending]=INT(INDEX(_xlfn.TEXTSPLIT(Dashboard!I$3,," "),2))),0),MATCH(Dashboard!$B4,Profiles[#Headers],0)) -> 216.816954 | J4: =INDEX(NQC[NQC MW],MATCH(1,(NQC[Month]=MONTH(Month&" 1, 2000"))*(NQC[Unit Category]=Dashboard!$B4),0))*INDEX(Profiles[],MATCH(1,(Profiles[Month]=MONTH(Month&" 1, 2000"))*(Profiles[Hour Ending]=INT(INDEX(_xlfn.TEXTSPLIT(Dashboard!J$3,," "),2))),0),MATCH(Dashboard!$B4,Profiles[#Headers],0)) -> 216.816954 | K4: =INDEX(NQC[NQC MW],MATCH(1,(NQC[Month]=MONTH(Month&" 1, 2000"))*(NQC[Unit Category]=Dashboard!$B4),0))*INDEX(Profiles[],MATCH(1,(Profiles[Month]=MONTH(Month&" 1, 2000"))*(Profiles[Hour Ending]=INT(INDEX(_xlfn.TEXTSPLIT(Dashboard!K$3,," "),2))),0),MATCH(Dashboard!$B4,Profiles[#Headers],0)) -> 216.816954 | L4: =INDEX(NQC[NQC MW],MATCH(1,(NQC[Month]=MONTH(Month&" 1, 2000"))*(NQC[Unit Category]=Dashboard!$B4),0))*INDEX(Profiles[],MATCH(1,(Profiles[Month]=MONTH(Month&" 1, 2000"))*(Profiles[Hour Ending]=INT(INDEX(_xlfn.TEXTSPLIT(Dashboard!L$3,," "),2))),0),MATCH(Dashboard!$B4,Profiles[#Headers],0)) -> 216.816954 | M4: =INDEX(NQC[NQC MW],MATCH(1,(NQC[Month]=MONTH(Month&" 1, 2000"))*(NQC[Unit Category]=Dashboard!$B4),0))*INDEX(Profiles[],MATCH(1,(Profiles[Month]=MONTH(Month&" 1, 2000"))*(Profiles[Hour Ending]=INT(INDEX(_xlfn.TEXTSPLIT(Dashboard!M$3,," "),2))),0),MATCH(Dashboard!$B4,Profiles[#Headers],0)) -> 216.816954 | N4: =INDEX(NQC[NQC MW],MATCH(1,(NQC[Month]=MONTH(Month&" 1, 2000"))*(NQC[Unit Category]=Dashboard!$B4),0))*INDEX(Profiles[],MATCH(1,(Profiles[Month]=MONTH(Month&" 1, 2000"))*(Profiles[Hour Ending]=INT(INDEX(_xlfn.TEXTSPLIT(Dashboard!N$3,," "),2))),0),MATCH(Dashboard!$B4,Profiles[#Headers],0)) -> 216.816954 | O4: =INDEX(NQC[NQC MW],MATCH(1,(NQC[Month]=MONTH(Month&" 1, 2000"))*(NQC[Unit Category]=Dashboard!$B4),0))*INDEX(Profiles[],MATCH(1,(Profiles[Month]=MONTH(Month&" 1, 2000"))*(Profiles[Hour Ending]=INT(INDEX(_xlfn.TEXTSPLIT(Dashboard!O$3,," "),2))),0),MATCH(Dashboard!$B4,Profiles[#Headers],0)) -> 216.816954 | P4: =INDEX(NQC[NQC MW],MATCH(1,(NQC[Month]=MONTH(Month&" 1, 2000"))*(NQC[Unit Category]=Dashboard!$B4),0))*INDEX(Profiles[],MATCH(1,(Profiles[Month]=MONTH(Month&" 1, 2000"))*(Profiles[Hour Ending]=INT(INDEX(_xlfn.TEXTSPLIT(Dashboard!P$3,," "),2))),0),MATCH(Dashboard!$B4,Profiles[#Headers],0)) -> 216.816954 | Q4: =INDEX(NQC[NQC MW],MATCH(1,(NQC[Month]=MONTH(Month&" 1, 2000"))*(NQC[Unit Category]=Dashboard!$B4),0))*INDEX(Profiles[],MATCH(1,(Profiles[Month]=MONTH(Month&" 1, 2000"))*(Profiles[Hour Ending]=INT(INDEX(_xlfn.TEXTSPLIT(Dashboard!Q$3,," "),2))),0),MATCH(Dashboard!$B4,Profiles[#Headers],0)) -> 216.816954 | R4: =INDEX(NQC[NQC MW],MATCH(1,(NQC[Month]=MONTH(Month&" 1, 2000"))*(NQC[Unit Category]=Dashboard!$B4),0))*INDEX(Profiles[],MATCH(1,(Profiles[Month]=MONTH(Month&" 1, 2000"))*(Profiles[Hour Ending]=INT(INDEX(_xlfn.TEXTSPLIT(Dashboard!R$3,," "),2))),0),MATCH(Dashboard!$B4,Profiles[#Headers],0)) -> 216.816954 | S4: =INDEX(NQC[NQC MW],MATCH(1,(NQC[Month]=MONTH(Month&" 1, 2000"))*(NQC[Unit Category]=Dashboard!$B4),0))*INDEX(Profiles[],MATCH(1,(Profiles[Month]=MONTH(Month&" 1, 2000"))*(Profiles[Hour Ending]=INT(INDEX(_xlfn.TEXTSPLIT(Dashboard!S$3,," "),2))),0),MATCH(Dashboard!$B4,Profiles[#Headers],0)) -> 216.816954 | T4: =INDEX(NQC[NQC MW],MATCH(1,(NQC[Month]=MONTH(Month&" 1, 2000"))*(NQC[Unit Category]=Dashboard!$B4),0))*INDEX(Profiles[],MATCH(1,(Profiles[Month]=MONTH(Month&" 1, 2000"))*(Profiles[Hour Ending]=INT(INDEX(_xlfn.TEXTSPLIT(Dashboard!T$3,," "),2))),0),MATCH(Dashboard!$B4,Profiles[#Headers],0)) -> 216.816954 | U4: =INDEX(NQC[NQC MW],MATCH(1,(NQC[Month]=MONTH(Month&" 1, 2000"))*(NQC[Unit Category]=Dashboard!$B4),0))*INDEX(Profiles[],MATCH(1,(Profiles[Month]=MONTH(Month&" 1, 2000"))*(Profiles[Hour Ending]=INT(INDEX(_xlfn.TEXTSPLIT(Dashboard!U$3,," "),2))),0),MATCH(Dashboard!$B4,Profiles[#Headers],0)) -> 216.816954 | V4: =INDEX(NQC[NQC MW],MATCH(1,(NQC[Month]=MONTH(Month&" 1, 2000"))*(NQC[Unit Category]=Dashboard!$B4),0))*INDEX(Profiles[],MATCH(1,(Profiles[Month]=MONTH(Month&" 1, 2000"))*(Profiles[Hour Ending]=INT(INDEX(_xlfn.TEXTSPLIT(Dashboard!V$3,," "),2))),0),MATCH(Dashboard!$B4,Profiles[#Headers],0)) -> 216.816954 | W4: =INDEX(NQC[NQC MW],MATCH(1,(NQC[Month]=MONTH(Month&" 1, 2000"))*(NQC[Unit Category]=Dashboard!$B4),0))*INDEX(Profiles[],MATCH(1,(Profiles[Month]=MONTH(Month&" 1, 2000"))*(Profiles[Hour Ending]=INT(INDEX(_xlfn.TEXTSPLIT(Dashboard!W$3,," "),2))),0),MATCH(Dashboard!$B4,Profiles[#Headers],0)) -> 216.816954 | X4: =INDEX(NQC[NQC MW],MATCH(1,(NQC[Month]=MONTH(Month&" 1, 2000"))*(NQC[Unit Category]=Dashboard!$B4),0))*INDEX(Profiles[],MATCH(1,(Profiles[Month]=MONTH(Month&" 1, 2000"))*(Profiles[Hour Ending]=INT(INDEX(_xlfn.TEXTSPLIT(Dashboard!X$3,," "),2))),0),MATCH(Dashboard!$B4,Profiles[#Headers],0)) -> 216.816954 | Y4: =INDEX(NQC[NQC MW],MATCH(1,(NQC[Month]=MONTH(Month&" 1, 2000"))*(NQC[Unit Category]=Dashboard!$B4),0))*INDEX(Profiles[],MATCH(1,(Profiles[Month]=MONTH(Month&" 1, 2000"))*(Profiles[Hour Ending]=INT(INDEX(_xlfn.TEXTSPLIT(Dashboard!Y$3,," "),2))),0),MATCH(Dashboard!$B4,Profiles[#Headers],0)) -> 216.816954 | Z4: =INDEX(NQC[NQC MW],MATCH(1,(NQC[Month]=MONTH(Month&" 1, 2000"))*(NQC[Unit Category]=Dashboard!$B4),0))*INDEX(Profiles[],MATCH(1,(Profiles[Month]=MONTH(Month&" 1, 2000"))*(Profiles[Hour Ending]=INT(INDEX(_xlfn.TEXTSPLIT(Dashboard!Z$3,," "),2))),0),MATCH(Dashboard!$B4,Profiles[#Headers],0)) -> 216.816954
B5: Biomass/Wood | C5: =INDEX(Supply[Supply],MATCH(1,(Supply[Month]=MONTH(Month&" 1, 2000"))*(Supply[Unit Category]=Dashboard!$B5)*(Supply[Hour Ending]=INT(INDEX(_xlfn.TEXTSPLIT(Dashboard!C$3," "),2))),0)) -> 387.295377 | D5: =INDEX(NQC[NQC MW],MATCH(1,(NQC[Month]=MONTH(Month&" 1, 2000"))*(NQC[Unit Category]=Dashboard!$B5),0))*INDEX(Profiles[],MATCH(1,(Profiles[Month]=MONTH(Month&" 1, 2000"))*(Profiles[Hour Ending]=INT(INDEX(_xlfn.TEXTSPLIT(Dashboard!D$3,," "),2))),0),MATCH(Dashboard!$B5,Profiles[#Headers],0)) -> 387.295377 | E5: =INDEX(NQC[NQC MW],MATCH(1,(NQC[Month]=MONTH(Month&" 1, 2000"))*(NQC[Unit Category]=Dashboard!$B5),0))*INDEX(Profiles[],MATCH(1,(Profiles[Month]=MONTH(Month&" 1, 2000"))*(Profiles[Hour Ending]=INT(INDEX(_xlfn.TEXTSPLIT(Dashboard!E$3,," "),2))),0),MATCH(Dashboard!$B5,Profiles[#Headers],0)) -> 387.295377 | F5: =INDEX(NQC[NQC MW],MATCH(1,(NQC[Month]=MONTH(Month&" 1, 2000"))*(NQC[Unit Category]=Dashboard!$B5),0))*INDEX(Profiles[],MATCH(1,(Profiles[Month]=MONTH(Month&" 1, 2000"))*(Profiles[Hour Ending]=INT(INDEX(_xlfn.TEXTSPLIT(Dashboard!F$3,," "),2))),0),MATCH(Dashboard!$B5,Profiles[#Headers],0)) -> 387.295377 | G5: =INDEX(NQC[NQC MW],MATCH(1,(NQC[Month]=MONTH(Month&" 1, 2000"))*(NQC[Unit Category]=Dashboard!$B5),0))*INDEX(Profiles[],MATCH(1,(Profiles[Month]=MONTH(Month&" 1, 2000"))*(Profiles[Hour Ending]=INT(INDEX(_xlfn.TEXTSPLIT(Dashboard!G$3,," "),2))),0),MATCH(Dashboard!$B5,Profiles[#Headers],0)) -> 387.295377 | H5: =INDEX(NQC[NQC MW],MATCH(1,(NQC[Month]=MONTH(Month&" 1, 2000"))*(NQC[Unit Category]=Dashboard!$B5),0))*INDEX(Profiles[],MATCH(1,(Profiles[Month]=MONTH(Month&" 1, 2000"))*(Profiles[Hour Ending]=INT(INDEX(_xlfn.TEXTSPLIT(Dashboard!H$3,," "),2))),0),MATCH(Dashboard!$B5,Profiles[#Headers],0)) -> 387.295377 | I5: =INDEX(NQC[NQC MW],MATCH(1,(NQC[Month]=MONTH(Month&" 1, 2000"))*(NQC[Unit Category]=Dashboard!$B5),0))*INDEX(Profiles[],MATCH(1,(Profiles[Month]=MONTH(Month&" 1, 2000"))*(Profiles[Hour Ending]=INT(INDEX(_xlfn.TEXTSPLIT(Dashboard!I$3,," "),2))),0),MATCH(Dashboard!$B5,Profiles[#Headers],0)) -> 387.295377 | J5: =INDEX(NQC[NQC MW],MATCH(1,(NQC[Month]=MONTH(Month&" 1, 2000"))*(NQC[Unit Category]=Dashboard!$B5),0))*INDEX(Profiles[],MATCH(1,(Profiles[Month]=MONTH(Month&" 1, 2000"))*(Profiles[Hour Ending]=INT(INDEX(_xlfn.TEXTSPLIT(Dashboard!J$3,," "),2))),0),MATCH(Dashboard!$B5,Profiles[#Headers],0)) -> 387.295377 | K5: =INDEX(NQC[NQC MW],MATCH(1,(NQC[Month]=MONTH(Month&" 1, 2000"))*(NQC[Unit Category]=Dashboard!$B5),0))*INDEX(Profiles[],MATCH(1,(Profiles[Month]=MONTH(Month&" 1, 2000"))*(Profiles[Hour Ending]=INT(INDEX(_xlfn.TEXTSPLIT(Dashboard!K$3,," "),2))),0),MATCH(Dashboard!$B5,Profiles[#Headers],0)) -> 387.295377 | L5: =INDEX(NQC[NQC MW],MATCH(1,(NQC[Month]=MONTH(Month&" 1, 2000"))*(NQC[Unit Category]=Dashboard!$B5),0))*INDEX(Profiles[],MATCH(1,(Profiles[Month]=MONTH(Month&" 1, 2000"))*(Profiles[Hour Ending]=INT(INDEX(_xlfn.TEXTSPLIT(Dashboard!L$3,," "),2))),0),MATCH(Dashboard!$B5,Profiles[#Headers],0)) -> 387.295377 | M5: =INDEX(NQC[NQC MW],MATCH(1,(NQC[Month]=MONTH(Month&" 1, 2000"))*(NQC[Unit Category]=Dashboard!$B5),0))*INDEX(Profiles[],MATCH(1,(Profiles[Month]=MONTH(Month&" 1, 2000"))*(Profiles[Hour Ending]=INT(INDEX(_xlfn.TEXTSPLIT(Dashboard!M$3,," "),2))),0),MATCH(Dashboard!$B5,Profiles[#Headers],0)) -> 387.295377 | N5: =INDEX(NQC[NQC MW],MATCH(1,(NQC[Month]=MONTH(Month&" 1, 2000"))*(NQC[Unit Category]=Dashboard!$B5),0))*INDEX(Profiles[],MATCH(1,(Profiles[Month]=MONTH(Month&" 1, 2000"))*(Profiles[Hour Ending]=INT(INDEX(_xlfn.TEXTSPLIT(Dashboard!N$3,," "),2))),0),MATCH(Dashboard!$B5,Profiles[#Headers],0)) -> 387.295377 | O5: =INDEX(NQC[NQC MW],MATCH(1,(NQC[Month]=MONTH(Month&" 1, 2000"))*(NQC[Unit Category]=Dashboard!$B5),0))*INDEX(Profiles[],MATCH(1,(Profiles[Month]=MONTH(Month&" 1, 2000"))*(Profiles[Hour Ending]=INT(INDEX(_xlfn.TEXTSPLIT(Dashboard!O$3,," "),2))),0),MATCH(Dashboard!$B5,Profiles[#Headers],0)) -> 387.295377 | P5: =INDEX(NQC[NQC MW],MATCH(1,(NQC[Month]=MONTH(Month&" 1, 2000"))*(NQC[Unit Category]=Dashboard!$B5),0))*INDEX(Profiles[],MATCH(1,(Profiles[Month]=MONTH(Month&" 1, 2000"))*(Profiles[Hour Ending]=INT(INDEX(_xlfn.TEXTSPLIT(Dashboard!P$3,," "),2))),0),MATCH(Dashboard!$B5,Profiles[#Headers],0)) -> 387.295377 | Q5: =INDEX(NQC[NQC MW],MATCH(1,(NQC[Month]=MONTH(Month&" 1, 2000"))*(NQC[Unit Category]=Dashboard!$B5),0))*INDEX(Profiles[],MATCH(1,(Profiles[Month]=MONTH(Month&" 1, 2000"))*(Profiles[Hour Ending]=INT(INDEX(_xlfn.TEXTSPLIT(Dashboard!Q$3,," "),2))),0),MATCH(Dashboard!$B5,Profiles[#Headers],0)) -> 387.295377 | R5: =INDEX(NQC[NQC MW],MATCH(1,(NQC[Month]=MONTH(Month&" 1, 2000"))*(NQC[Unit Category]=Dashboard!$B5),0))*INDEX(Profiles[],MATCH(1,(Profiles[Month]=MONTH(Month&" 1, 2000"))*(Profiles[Hour Ending]=INT(INDEX(_xlfn.TEXTSPLIT(Dashboard!R$3,," "),2))),0),MATCH(Dashboard!$B5,Profiles[#Headers],0)) -> 387.295377 | S5: =INDEX(NQC[NQC MW],MATCH(1,(NQC[Month]=MONTH(Month&" 1, 2000"))*(NQC[Unit Category]=Dashboard!$B5),0))*INDEX(Profiles[],MATCH(1,(Profiles[Month]=MONTH(Month&" 1, 2000"))*(Profiles[Hour Ending]=INT(INDEX(_xlfn.TEXTSPLIT(Dashboard!S$3,," "),2))),0),MATCH(Dashboard!$B5,Profiles[#Headers],0)) -> 387.295377 | T5: =INDEX(NQC[NQC MW],MATCH(1,(NQC[Month]=MONTH(Month&" 1, 2000"))*(NQC[Unit Category]=Dashboard!$B5),0))*INDEX(Profiles[],MATCH(1,(Profiles[Month]=MONTH(Month&" 1, 2000"))*(Profiles[Hour Ending]=INT(INDEX(_xlfn.TEXTSPLIT(Dashboard!T$3,," "),2))),0),MATCH(Dashboard!$B5,Profiles[#Headers],0)) -> 387.295377 | U5: =INDEX(NQC[NQC MW],MATCH(1,(NQC[Month]=MONTH(Month&" 1, 2000"))*(NQC[Unit Category]=Dashboard!$B5),0))*INDEX(Profiles[],MATCH(1,(Profiles[Month]=MONTH(Month&" 1, 2000"))*(Profiles[Hour Ending]=INT(INDEX(_xlfn.TEXTSPLIT(Dashboard!U$3,," "),2))),0),MATCH(Dashboard!$B5,Profiles[#Headers],0)) -> 387.295377 | V5: =INDEX(NQC[NQC MW],MATCH(1,(NQC[Month]=MONTH(Month&" 1, 2000"))*(NQC[Unit Category]=Dashboard!$B5),0))*INDEX(Profiles[],MATCH(1,(Profiles[Month]=MONTH(Month&" 1, 2000"))*(Profiles[Hour Ending]=INT(INDEX(_xlfn.TEXTSPLIT(Dashboard!V$3,," "),2))),0),MATCH(Dashboard!$B5,Profiles[#Headers],0)) -> 387.295377 | W5: =INDEX(NQC[NQC MW],MATCH(1,(NQC[Month]=MONTH(Month&" 1, 2000"))*(NQC[Unit Category]=Dashboard!$B5),0))*INDEX(Profiles[],MATCH(1,(Profiles[Month]=MONTH(Month&" 1, 2000"))*(Profiles[Hour Ending]=INT(INDEX(_xlfn.TEXTSPLIT(Dashboard!W$3,," "),2))),0),MATCH(Dashboard!$B5,Profiles[#Headers],0)) -> 387.295377 | X5: =INDEX(NQC[NQC MW],MATCH(1,(NQC[Month]=MONTH(Month&" 1, 2000"))*(NQC[Unit Category]=Dashboard!$B5),0))*INDEX(Profiles[],MATCH(1,(Profiles[Month]=MONTH(Month&" 1, 2000"))*(Profiles[Hour Ending]=INT(INDEX(_xlfn.TEXTSPLIT(Dashboard!X$3,," "),2))),0),MATCH(Dashboard!$B5,Profiles[#Headers],0)) -> 387.295377 | Y5: =INDEX(NQC[NQC MW],MATCH(1,(NQC[Month]=MONTH(Month&" 1, 2000"))*(NQC[Unit Category]=Dashboard!$B5),0))*INDEX(Profiles[],MATCH(1,(Profiles[Month]=MONTH(Month&" 1, 2000"))*(Profiles[Hour Ending]=INT(INDEX(_xlfn.TEXTSPLIT(Dashboard!Y$3,," "),2))),0),MATCH(Dashboard!$B5,Profiles[#Headers],0)) -> 387.295377 | Z5: =INDEX(NQC[NQC MW],MATCH(1,(NQC[Month]=MONTH(Month&" 1, 2000"))*(NQC[Unit Category]=Dashboard!$B5),0))*INDEX(Profiles[],MATCH(1,(Profiles[Month]=MONTH(Month&" 1, 2000"))*(Profiles[Hour Ending]=INT(INDEX(_xlfn.TEXTSPLIT(Dashboard!Z$3,," "),2))),0),MATCH(Dashboard!$B5,Profiles[#Headers],0)) -> 387.295377
B6: CC | C6: =INDEX(Supply[Supply],MATCH(1,(Supply[Month]=MONTH(Month&" 1, 2000"))*(Supply[Unit Category]=Dashboard!$B6)*(Supply[Hour Ending]=INT(INDEX(_xlfn.TEXTSPLIT(Dashboard!C$3," "),2))),0)) -> 17252.4 | D6: =INDEX(NQC[NQC MW],MATCH(1,(NQC[Month]=MONTH(Month&" 1, 2000"))*(NQC[Unit Category]=Dashboard!$B6),0))*INDEX(Profiles[],MATCH(1,(Profiles[Month]=MONTH(Month&" 1, 2000"))*(Profiles[Hour Ending]=INT(INDEX(_xlfn.TEXTSPLIT(Dashboard!D$3,," "),2))),0),MATCH(Dashboard!$B6,Profiles[#Headers],0)) -> 17252.4 | E6: =INDEX(NQC[NQC MW],MATCH(1,(NQC[Month]=MONTH(Month&" 1, 2000"))*(NQC[Unit Category]=Dashboard!$B6),0))*INDEX(Profiles[],MATCH(1,(Profiles[Month]=MONTH(Month&" 1, 2000"))*(Profiles[Hour Ending]=INT(INDEX(_xlfn.TEXTSPLIT(Dashboard!E$3,," "),2))),0),MATCH(Dashboard!$B6,Profiles[#Headers],0)) -> 17252.4 | F6: =INDEX(NQC[NQC MW],MATCH(1,(NQC[Month]=MONTH(Month&" 1, 2000"))*(NQC[Unit Category]=Dashboard!$B6),0))*INDEX(Profiles[],MATCH(1,(Profiles[Month]=MONTH(Month&" 1, 2000"))*(Profiles[Hour Ending]=INT(INDEX(_xlfn.TEXTSPLIT(Dashboard!F$3,," "),2))),0),MATCH(Dashboard!$B6,Profiles[#Headers],0)) -> 17252.4 | G6: =INDEX(NQC[NQC MW],MATCH(1,(NQC[Month]=MONTH(Month&" 1, 2000"))*(NQC[Unit Category]=Dashboard!$B6),0))*INDEX(Profiles[],MATCH(1,(Profiles[Month]=MONTH(Month&" 1, 2000"))*(Profiles[Hour Ending]=INT(INDEX(_xlfn.TEXTSPLIT(Dashboard!G$3,," "),2))),0),MATCH(Dashboard!$B6,Profiles[#Headers],0)) -> 17252.4 | H6: =INDEX(NQC[NQC MW],MATCH(1,(NQC[Month]=MONTH(Month&" 1, 2000"))*(NQC[Unit Category]=Dashboard!$B6),0))*INDEX(Profiles[],MATCH(1,(Profiles[Month]=MONTH(Month&" 1, 2000"))*(Profiles[Hour Ending]=INT(INDEX(_xlfn.TEXTSPLIT(Dashboard!H$3,," "),2))),0),MATCH(Dashboard!$B6,Profiles[#Headers],0)) -> 17252.4 | I6: =INDEX(NQC[NQC MW],MATCH(1,(NQC[Month]=MONTH(Month&" 1, 2000"))*(NQC[Unit Category]=Dashboard!$B6),0))*INDEX(Profiles[],MATCH(1,(Profiles[Month]=MONTH(Month&" 1, 2000"))*(Profiles[Hour Ending]=INT(INDEX(_xlfn.TEXTSPLIT(Dashboard!I$3,," "),2))),0),MATCH(Dashboard!$B6,Profiles[#Headers],0)) -> 17252.4 | J6: =INDEX(NQC[NQC MW],MATCH(1,(NQC[Month]=MONTH(Month&" 1, 2000"))*(NQC[Unit Category]=Dashboard!$B6),0))*INDEX(Profiles[],MATCH(1,(Profiles[Month]=MONTH(Month&" 1, 2000"))*(Profiles[Hour Ending]=INT(INDEX(_xlfn.TEXTSPLIT(Dashboard!J$3,," "),2))),0),MATCH(Dashboard!$B6,Profiles[#Headers],0)) -> 17252.4 | K6: =INDEX(NQC[NQC MW],MATCH(1,(NQC[Month]=MONTH(Month&" 1, 2000"))*(NQC[Unit Category]=Dashboard!$B6),0))*INDEX(Profiles[],MATCH(1,(Profiles[Month]=MONTH(Month&" 1, 2000"))*(Profiles[Hour Ending]=INT(INDEX(_xlfn.TEXTSPLIT(Dashboard!K$3,," "),2))),0),MATCH(Dashboard!$B6,Profiles[#Headers],0)) -> 17252.4 | L6: =INDEX(NQC[NQC MW],MATCH(1,(NQC[Month]=MONTH(Month&" 1, 2000"))*(NQC[Unit Category]=Dashboard!$B6),0))*INDEX(Profiles[],MATCH(1,(Profiles[Month]=MONTH(Month&" 1, 2000"))*(Profiles[Hour Ending]=INT(INDEX(_xlfn.TEXTSPLIT(Dashboard!L$3,," "),2))),0),MATCH(Dashboard!$B6,Profiles[#Headers],0)) -> 17252.4 | M6: =INDEX(NQC[NQC MW],MATCH(1,(NQC[Month]=MONTH(Month&" 1, 2000"))*(NQC[Unit Category]=Dashboard!$B6),0))*INDEX(Profiles[],MATCH(1,(Profiles[Month]=MONTH(Month&" 1, 2000"))*(Profiles[Hour Ending]=INT(INDEX(_xlfn.TEXTSPLIT(Dashboard!M$3,," "),2))),0),MATCH(Dashboard!$B6,Profiles[#Headers],0)) -> 17252.4 | N6: =INDEX(NQC[NQC MW],MATCH(1,(NQC[Month]=MONTH(Month&" 1, 2000"))*(NQC[Unit Category]=Dashboard!$B6),0))*INDEX(Profiles[],MATCH(1,(Profiles[Month]=MONTH(Month&" 1, 2000"))*(Profiles[Hour Ending]=INT(INDEX(_xlfn.TEXTSPLIT(Dashboard!N$3,," "),2))),0),MATCH(Dashboard!$B6,Profiles[#Headers],0)) -> 17252.4 | O6: =INDEX(NQC[NQC MW],MATCH(1,(NQC[Month]=MONTH(Month&" 1, 2000"))*(NQC[Unit Category]=Dashboard!$B6),0))*INDEX(Profiles[],MATCH(1,(Profiles[Month]=MONTH(Month&" 1, 2000"))*(Profiles[Hour Ending]=INT(INDEX(_xlfn.TEXTSPLIT(Dashboard!O$3,," "),2))),0),MATCH(Dashboard!$B6,Profiles[#Headers],0)) -> 17252.4 | P6: =INDEX(NQC[NQC MW],MATCH(1,(NQC[Month]=MONTH(Month&" 1, 2000"))*(NQC[Unit Category]=Dashboard!$B6),0))*INDEX(Profiles[],MATCH(1,(Profiles[Month]=MONTH(Month&" 1, 2000"))*(Profiles[Hour Ending]=INT(INDEX(_xlfn.TEXTSPLIT(Dashboard!P$3,," "),2))),0),MATCH(Dashboard!$B6,Profiles[#Headers],0)) -> 17252.4 | Q6: =INDEX(NQC[NQC MW],MATCH(1,(NQC[Month]=MONTH(Month&" 1, 2000"))*(NQC[Unit Category]=Dashboard!$B6),0))*INDEX(Profiles[],MATCH(1,(Profiles[Month]=MONTH(Month&" 1, 2000"))*(Profiles[Hour Ending]=INT(INDEX(_xlfn.TEXTSPLIT(Dashboard!Q$3,," "),2))),0),MATCH(Dashboard!$B6,Profiles[#Headers],0)) -> 17252.4 | R6: =INDEX(NQC[NQC MW],MATCH(1,(NQC[Month]=MONTH(Month&" 1, 2000"))*(NQC[Unit Category]=Dashboard!$B6),0))*INDEX(Profiles[],MATCH(1,(Profiles[Month]=MONTH(Month&" 1, 2000"))*(Profiles[Hour Ending]=INT(INDEX(_xlfn.TEXTSPLIT(Dashboard!R$3,," "),2))),0),MATCH(Dashboard!$B6,Profiles[#Headers],0)) -> 17252.4 | S6: =INDEX(NQC[NQC MW],MATCH(1,(NQC[Month]=MONTH(Month&" 1, 2000"))*(NQC[Unit Category]=Dashboard!$B6),0))*INDEX(Profiles[],MATCH(1,(Profiles[Month]=MONTH(Month&" 1, 2000"))*(Profiles[Hour Ending]=INT(INDEX(_xlfn.TEXTSPLIT(Dashboard!S$3,," "),2))),0),MATCH(Dashboard!$B6,Profiles[#Headers],0)) -> 17252.4 | T6: =INDEX(NQC[NQC MW],MATCH(1,(NQC[Month]=MONTH(Month&" 1, 2000"))*(NQC[Unit Category]=Dashboard!$B6),0))*INDEX(Profiles[],MATCH(1,(Profiles[Month]=MONTH(Month&" 1, 2000"))*(Profiles[Hour Ending]=INT(INDEX(_xlfn.TEXTSPLIT(Dashboard!T$3,," "),2))),0),MATCH(Dashboard!$B6,Profiles[#Headers],0)) -> 17252.4 | U6: =INDEX(NQC[NQC MW],MATCH(1,(NQC[Month]=MONTH(Month&" 1, 2000"))*(NQC[Unit Category]=Dashboard!$B6),0))*INDEX(Profiles[],MATCH(1,(Profiles[Month]=MONTH(Month&" 1, 2000"))*(Profiles[Hour Ending]=INT(INDEX(_xlfn.TEXTSPLIT(Dashboard!U$3,," "),2))),0),MATCH(Dashboard!$B6,Profiles[#Headers],0)) -> 17252.4 | V6: =INDEX(NQC[NQC MW],MATCH(1,(NQC[Month]=MONTH(Month&" 1, 2000"))*(NQC[Unit Category]=Dashboard!$B6),0))*INDEX(Profiles[],MATCH(1,(Profiles[Month]=MONTH(Month&" 1, 2000"))*(Profiles[Hour Ending]=INT(INDEX(_xlfn.TEXTSPLIT(Dashboard!V$3,," "),2))),0),MATCH(Dashboard!$B6,Profiles[#Headers],0)) -> 17252.4 | W6: =INDEX(NQC[NQC MW],MATCH(1,(NQC[Month]=MONTH(Month&" 1, 2000"))*(NQC[Unit Category]=Dashboard!$B6),0))*INDEX(Profiles[],MATCH(1,(Profiles[Month]=MONTH(Month&" 1, 2000"))*(Profiles[Hour Ending]=INT(INDEX(_xlfn.TEXTSPLIT(Dashboard!W$3,," "),2))),0),MATCH(Dashboard!$B6,Profiles[#Headers],0)) -> 17252.4 | X6: =INDEX(NQC[NQC MW],MATCH(1,(NQC[Month]=MONTH(Month&" 1, 2000"))*(NQC[Unit Category]=Dashboard!$B6),0))*INDEX(Profiles[],MATCH(1,(Profiles[Month]=MONTH(Month&" 1, 2000"))*(Profiles[Hour Ending]=INT(INDEX(_xlfn.TEXTSPLIT(Dashboard!X$3,," "),2))),0),MATCH(Dashboard!$B6,Profiles[#Headers],0)) -> 17252.4 | Y6: =INDEX(NQC[NQC MW],MATCH(1,(NQC[Month]=MONTH(Month&" 1, 2000"))*(NQC[Unit Category]=Dashboard!$B6),0))*INDEX(Profiles[],MATCH(1,(Profiles[Month]=MONTH(Month&" 1, 2000"))*(Profiles[Hour Ending]=INT(INDEX(_xlfn.TEXTSPLIT(Dashboard!Y$3,," "),2))),0),MATCH(Dashboard!$B6,Profiles[#Headers],0)) -> 17252.4 | Z6: =INDEX(NQC[NQC MW],MATCH(1,(NQC[Month]=MONTH(Month&" 1, 2000"))*(NQC[Unit Category]=Dashboard!$B6),0))*INDEX(Profiles[],MATCH(1,(Profiles[Month]=MONTH(Month&" 1, 2000"))*(Profiles[Hour Ending]=INT(INDEX(_xlfn.TEXTSPLIT(Dashboard!Z$3,," "),2))),0),MATCH(Dashboard!$B6,Profiles[#Headers],0)) -> 17252.4
B7: Coal | C7: =INDEX(Supply[Supply],MATCH(1,(Supply[Month]=MONTH(Month&" 1, 2000"))*(Supply[Unit Category]=Dashboard!$B7)*(Supply[Hour Ending]=INT(INDEX(_xlfn.TEXTSPLIT(Dashboard!C$3," "),2))),0)) -> 0 | D7: =INDEX(NQC[NQC MW],MATCH(1,(NQC[Month]=MONTH(Month&" 1, 2000"))*(NQC[Unit Category]=Dashboard!$B7),0))*INDEX(Profiles[],MATCH(1,(Profiles[Month]=MONTH(Month&" 1, 2000"))*(Profiles[Hour Ending]=INT(INDEX(_xlfn.TEXTSPLIT(Dashboard!D$3,," "),2))),0),MATCH(Dashboard!$B7,Profiles[#Headers],0)) -> 0 | E7: =INDEX(NQC[NQC MW],MATCH(1,(NQC[Month]=MONTH(Month&" 1, 2000"))*(NQC[Unit Category]=Dashboard!$B7),0))*INDEX(Profiles[],MATCH(1,(Profiles[Month]=MONTH(Month&" 1, 2000"))*(Profiles[Hour Ending]=INT(INDEX(_xlfn.TEXTSPLIT(Dashboard!E$3,," "),2))),0),MATCH(Dashboard!$B7,Profiles[#Headers],0)) -> 0 | F7: =INDEX(NQC[NQC MW],MATCH(1,(NQC[Month]=MONTH(Month&" 1, 2000"))*(NQC[Unit Category]=Dashboard!$B7),0))*INDEX(Profiles[],MATCH(1,(Profiles[Month]=MONTH(Month&" 1, 2000"))*(Profiles[Hour Ending]=INT(INDEX(_xlfn.TEXTSPLIT(Dashboard!F$3,," "),2))),0),MATCH(Dashboard!$B7,Profiles[#Headers],0)) -> 0 | G7: =INDEX(NQC[NQC MW],MATCH(1,(NQC[Month]=MONTH(Month&" 1, 2000"))*(NQC[Unit Category]=Dashboard!$B7),0))*INDEX(Profiles[],MATCH(1,(Profiles[Month]=MONTH(Month&" 1, 2000"))*(Profiles[Hour Ending]=INT(INDEX(_xlfn.TEXTSPLIT(Dashboard!G$3,," "),2))),0),MATCH(Dashboard!$B7,Profiles[#Headers],0)) -> 0 | H7: =INDEX(NQC[NQC MW],MATCH(1,(NQC[Month]=MONTH(Month&" 1, 2000"))*(NQC[Unit Category]=Dashboard!$B7),0))*INDEX(Profiles[],MATCH(1,(Profiles[Month]=MONTH(Month&" 1, 2000"))*(Profiles[Hour Ending]=INT(INDEX(_xlfn.TEXTSPLIT(Dashboard!H$3,," "),2))),0),MATCH(Dashboard!$B7,Profiles[#Headers],0)) -> 0 | I7: =INDEX(NQC[NQC MW],MATCH(1,(NQC[Month]=MONTH(Month&" 1, 2000"))*(NQC[Unit Category]=Dashboard!$B7),0))*INDEX(Profiles[],MATCH(1,(Profiles[Month]=MONTH(Month&" 1, 2000"))*(Profiles[Hour Ending]=INT(INDEX(_xlfn.TEXTSPLIT(Dashboard!I$3,," "),2))),0),MATCH(Dashboard!$B7,Profiles[#Headers],0)) -> 0 | J7: =INDEX(NQC[NQC MW],MATCH(1,(NQC[Month]=MONTH(Month&" 1, 2000"))*(NQC[Unit Category]=Dashboard!$B7),0))*INDEX(Profiles[],MATCH(1,(Profiles[Month]=MONTH(Month&" 1, 2000"))*(Profiles[Hour Ending]=INT(INDEX(_xlfn.TEXTSPLIT(Dashboard!J$3,," "),2))),0),MATCH(Dashboard!$B7,Profiles[#Headers],0)) -> 0 | K7: =INDEX(NQC[NQC MW],MATCH(1,(NQC[Month]=MONTH(Month&" 1, 2000"))*(NQC[Unit Category]=Dashboard!$B7),0))*INDEX(Profiles[],MATCH(1,(Profiles[Month]=MONTH(Month&" 1, 2000"))*(Profiles[Hour Ending]=INT(INDEX(_xlfn.TEXTSPLIT(Dashboard!K$3,," "),2))),0),MATCH(Dashboard!$B7,Profiles[#Headers],0)) -> 0 | L7: =INDEX(NQC[NQC MW],MATCH(1,(NQC[Month]=MONTH(Month&" 1, 2000"))*(NQC[Unit Category]=Dashboard!$B7),0))*INDEX(Profiles[],MATCH(1,(Profiles[Month]=MONTH(Month&" 1, 2000"))*(Profiles[Hour Ending]=INT(INDEX(_xlfn.TEXTSPLIT(Dashboard!L$3,," "),2))),0),MATCH(Dashboard!$B7,Profiles[#Headers],0)) -> 0 | M7: =INDEX(NQC[NQC MW],MATCH(1,(NQC[Month]=MONTH(Month&" 1, 2000"))*(NQC[Unit Category]=Dashboard!$B7),0))*INDEX(Profiles[],MATCH(1,(Profiles[Month]=MONTH(Month&" 1, 2000"))*(Profiles[Hour Ending]=INT(INDEX(_xlfn.TEXTSPLIT(Dashboard!M$3,," "),2))),0),MATCH(Dashboard!$B7,Profiles[#Headers],0)) -> 0 | N7: =INDEX(NQC[NQC MW],MATCH(1,(NQC[Month]=MONTH(Month&" 1, 2000"))*(NQC[Unit Category]=Dashboard!$B7),0))*INDEX(Profiles[],MATCH(1,(Profiles[Month]=MONTH(Month&" 1, 2000"))*(Profiles[Hour Ending]=INT(INDEX(_xlfn.TEXTSPLIT(Dashboard!N$3,," "),2))),0),MATCH(Dashboard!$B7,Profiles[#Headers],0)) -> 0 | O7: =INDEX(NQC[NQC MW],MATCH(1,(NQC[Month]=MONTH(Month&" 1, 2000"))*(NQC[Unit Category]=Dashboard!$B7),0))*INDEX(Profiles[],MATCH(1,(Profiles[Month]=MONTH(Month&" 1, 2000"))*(Profiles[Hour Ending]=INT(INDEX(_xlfn.TEXTSPLIT(Dashboard!O$3,," "),2))),0),MATCH(Dashboard!$B7,Profiles[#Headers],0)) -> 0 | P7: =INDEX(NQC[NQC MW],MATCH(1,(NQC[Month]=MONTH(Month&" 1, 2000"))*(NQC[Unit Category]=Dashboard!$B7),0))*INDEX(Profiles[],MATCH(1,(Profiles[Month]=MONTH(Month&" 1, 2000"))*(Profiles[Hour Ending]=INT(INDEX(_xlfn.TEXTSPLIT(Dashboard!P$3,," "),2))),0),MATCH(Dashboard!$B7,Profiles[#Headers],0)) -> 0 | Q7: =INDEX(NQC[NQC MW],MATCH(1,(NQC[Month]=MONTH(Month&" 1, 2000"))*(NQC[Unit Category]=Dashboard!$B7),0))*INDEX(Profiles[],MATCH(1,(Profiles[Month]=MONTH(Month&" 1, 2000"))*(Profiles[Hour Ending]=INT(INDEX(_xlfn.TEXTSPLIT(Dashboard!Q$3,," "),2))),0),MATCH(Dashboard!$B7,Profiles[#Headers],0)) -> 0 | R7: =INDEX(NQC[NQC MW],MATCH(1,(NQC[Month]=MONTH(Month&" 1, 2000"))*(NQC[Unit Category]=Dashboard!$B7),0))*INDEX(Profiles[],MATCH(1,(Profiles[Month]=MONTH(Month&" 1, 2000"))*(Profiles[Hour Ending]=INT(INDEX(_xlfn.TEXTSPLIT(Dashboard!R$3,," "),2))),0),MATCH(Dashboard!$B7,Profiles[#Headers],0)) -> 0 | S7: =INDEX(NQC[NQC MW],MATCH(1,(NQC[Month]=MONTH(Month&" 1, 2000"))*(NQC[Unit Category]=Dashboard!$B7),0))*INDEX(Profiles[],MATCH(1,(Profiles[Month]=MONTH(Month&" 1, 2000"))*(Profiles[Hour Ending]=INT(INDEX(_xlfn.TEXTSPLIT(Dashboard!S$3,," "),2))),0),MATCH(Dashboard!$B7,Profiles[#Headers],0)) -> 0 | T7: =INDEX(NQC[NQC MW],MATCH(1,(NQC[Month]=MONTH(Month&" 1, 2000"))*(NQC[Unit Category]=Dashboard!$B7),0))*INDEX(Profiles[],MATCH(1,(Profiles[Month]=MONTH(Month&" 1, 2000"))*(Profiles[Hour Ending]=INT(INDEX(_xlfn.TEXTSPLIT(Dashboard!T$3,," "),2))),0),MATCH(Dashboard!$B7,Profiles[#Headers],0)) -> 0 | U7: =INDEX(NQC[NQC MW],MATCH(1,(NQC[Month]=MONTH(Month&" 1, 2000"))*(NQC[Unit Category]=Dashboard!$B7),0))*INDEX(Profiles[],MATCH(1,(Profiles[Month]=MONTH(Month&" 1, 2000"))*(Profiles[Hour Ending]=INT(INDEX(_xlfn.TEXTSPLIT(Dashboard!U$3,," "),2))),0),MATCH(Dashboard!$B7,Profiles[#Headers],0)) -> 0 | V7: =INDEX(NQC[NQC MW],MATCH(1,(NQC[Month]=MONTH(Month&" 1, 2000"))*(NQC[Unit Category]=Dashboard!$B7),0))*INDEX(Profiles[],MATCH(1,(Profiles[Month]=MONTH(Month&" 1, 2000"))*(Profiles[Hour Ending]=INT(INDEX(_xlfn.TEXTSPLIT(Dashboard!V$3,," "),2))),0),MATCH(Dashboard!$B7,Profiles[#Headers],0)) -> 0 | W7: =INDEX(NQC[NQC MW],MATCH(1,(NQC[Month]=MONTH(Month&" 1, 2000"))*(NQC[Unit Category]=Dashboard!$B7),0))*INDEX(Profiles[],MATCH(1,(Profiles[Month]=MONTH(Month&" 1, 2000"))*(Profiles[Hour Ending]=INT(INDEX(_xlfn.TEXTSPLIT(Dashboard!W$3,," "),2))),0),MATCH(Dashboard!$B7,Profiles[#Headers],0)) -> 0 | X7: =INDEX(NQC[NQC MW],MATCH(1,(NQC[Month]=MONTH(Month&" 1, 2000"))*(NQC[Unit Category]=Dashboard!$B7),0))*INDEX(Profiles[],MATCH(1,(Profiles[Month]=MONTH(Month&" 1, 2000"))*(Profiles[Hour Ending]=INT(INDEX(_xlfn.TEXTSPLIT(Dashboard!X$3,," "),2))),0),MATCH(Dashboard!$B7,Profiles[#Headers],0)) -> 0 | Y7: =INDEX(NQC[NQC MW],MATCH(1,(NQC[Month]=MONTH(Month&" 1, 2000"))*(NQC[Unit Category]=Dashboard!$B7),0))*INDEX(Profiles[],MATCH(1,(Profiles[Month]=MONTH(Month&" 1, 2000"))*(Profiles[Hour Ending]=INT(INDEX(_xlfn.TEXTSPLIT(Dashboard!Y$3,," "),2))),0),MATCH(Dashboard!$B7,Profiles[#Headers],0)) -> 0 | Z7: =INDEX(NQC[NQC MW],MATCH(1,(NQC[Month]=MONTH(Month&" 1, 2000"))*(NQC[Unit Category]=Dashboard!$B7),0))*INDEX(Profiles[],MATCH(1,(Profiles[Month]=MONTH(Month&" 1, 2000"))*(Profiles[Hour Ending]=INT(INDEX(_xlfn.TEXTSPLIT(Dashboard!Z$3,," "),2))),0),MATCH(Dashboard!$B7,Profiles[#Headers],0)) -> 0
B8: Cogen | C8: =INDEX(Supply[Supply],MATCH(1,(Supply[Month]=MONTH(Month&" 1, 2000"))*(Supply[Unit Category]=Dashboard!$B8)*(Supply[Hour Ending]=INT(INDEX(_xlfn.TEXTSPLIT(Dashboard!C$3," "),2))),0)) -> 1867.586346 | D8: =INDEX(NQC[NQC MW],MATCH(1,(NQC[Month]=MONTH(Month&" 1, 2000"))*(NQC[Unit Category]=Dashboard!$B8),0))*INDEX(Profiles[],MATCH(1,(Profiles[Month]=MONTH(Month&" 1, 2000"))*(Profiles[Hour Ending]=INT(INDEX(_xlfn.TEXTSPLIT(Dashboard!D$3,," "),2))),0),MATCH(Dashboard!$B8,Profiles[#Headers],0)) -> 1867.586346 | E8: =INDEX(NQC[NQC MW],MATCH(1,(NQC[Month]=MONTH(Month&" 1, 2000"))*(NQC[Unit Category]=Dashboard!$B8),0))*INDEX(Profiles[],MATCH(1,(Profiles[Month]=MONTH(Month&" 1, 2000"))*(Profiles[Hour Ending]=INT(INDEX(_xlfn.TEXTSPLIT(Dashboard!E$3,," "),2))),0),MATCH(Dashboard!$B8,Profiles[#Headers],0)) -> 1867.586346 | F8: =INDEX(NQC[NQC MW],MATCH(1,(NQC[Month]=MONTH(Month&" 1, 2000"))*(NQC[Unit Category]=Dashboard!$B8),0))*INDEX(Profiles[],MATCH(1,(Profiles[Month]=MONTH(Month&" 1, 2000"))*(Profiles[Hour Ending]=INT(INDEX(_xlfn.TEXTSPLIT(Dashboard!F$3,," "),2))),0),MATCH(Dashboard!$B8,Profiles[#Headers],0)) -> 1867.586346 | G8: =INDEX(NQC[NQC MW],MATCH(1,(NQC[Month]=MONTH(Month&" 1, 2000"))*(NQC[Unit Category]=Dashboard!$B8),0))*INDEX(Profiles[],MATCH(1,(Profiles[Month]=MONTH(Month&" 1, 2000"))*(Profiles[Hour Ending]=INT(INDEX(_xlfn.TEXTSPLIT(Dashboard!G$3,," "),2))),0),MATCH(Dashboard!$B8,Profiles[#Headers],0)) -> 1867.586346 | H8: =INDEX(NQC[NQC MW],MATCH(1,(NQC[Month]=MONTH(Month&" 1, 2000"))*(NQC[Unit Category]=Dashboard!$B8),0))*INDEX(Profiles[],MATCH(1,(Profiles[Month]=MONTH(Month&" 1, 2000"))*(Profiles[Hour Ending]=INT(INDEX(_xlfn.TEXTSPLIT(Dashboard!H$3,," "),2))),0),MATCH(Dashboard!$B8,Profiles[#Headers],0)) -> 1867.586346 | I8: =INDEX(NQC[NQC MW],MATCH(1,(NQC[Month]=MONTH(Month&" 1, 2000"))*(NQC[Unit Category]=Dashboard!$B8),0))*INDEX(Profiles[],MATCH(1,(Profiles[Month]=MONTH(Month&" 1, 2000"))*(Profiles[Hour Ending]=INT(INDEX(_xlfn.TEXTSPLIT(Dashboard!I$3,," "),2))),0),MATCH(Dashboard!$B8,Profiles[#Headers],0)) -> 1867.586346 | J8: =INDEX(NQC[NQC MW],MATCH(1,(NQC[Month]=MONTH(Month&" 1, 2000"))*(NQC[Unit Category]=Dashboard!$B8),0))*INDEX(Profiles[],MATCH(1,(Profiles[Month]=MONTH(Month&" 1, 2000"))*(Profiles[Hour Ending]=INT(INDEX(_xlfn.TEXTSPLIT(Dashboard!J$3,," "),2))),0),MATCH(Dashboard!$B8,Profiles[#Headers],0)) -> 1867.586346 | K8: =INDEX(NQC[NQC MW],MATCH(1,(NQC[Month]=MONTH(Month&" 1, 2000"))*(NQC[Unit Category]=Dashboard!$B8),0))*INDEX(Profiles[],MATCH(1,(Profiles[Month]=MONTH(Month&" 1, 2000"))*(Profiles[Hour Ending]=INT(INDEX(_xlfn.TEXTSPLIT(Dashboard!K$3,," "),2))),0),MATCH(Dashboard!$B8,Profiles[#Headers],0)) -> 1867.586346 | L8: =INDEX(NQC[NQC MW],MATCH(1,(NQC[Month]=MONTH(Month&" 1, 2000"))*(NQC[Unit Category]=Dashboard!$B8),0))*INDEX(Profiles[],MATCH(1,(Profiles[Month]=MONTH(Month&" 1, 2000"))*(Profiles[Hour Ending]=INT(INDEX(_xlfn.TEXTSPLIT(Dashboard!L$3,," "),2))),0),MATCH(Dashboard!$B8,Profiles[#Headers],0)) -> 1867.586346 | M8: =INDEX(NQC[NQC MW],MATCH(1,(NQC[Month]=MONTH(Month&" 1, 2000"))*(NQC[Unit Category]=Dashboard!$B8),0))*INDEX(Profiles[],MATCH(1,(Profiles[Month]=MONTH(Month&" 1, 2000"))*(Profiles[Hour Ending]=INT(INDEX(_xlfn.TEXTSPLIT(Dashboard!M$3,," "),2))),0),MATCH(Dashboard!$B8,Profiles[#Headers],0)) -> 1867.586346 | N8: =INDEX(NQC[NQC MW],MATCH(1,(NQC[Month]=MONTH(Month&" 1, 2000"))*(NQC[Unit Category]=Dashboard!$B8),0))*INDEX(Profiles[],MATCH(1,(Profiles[Month]=MONTH(Month&" 1, 2000"))*(Profiles[Hour Ending]=INT(INDEX(_xlfn.TEXTSPLIT(Dashboard!N$3,," "),2))),0),MATCH(Dashboard!$B8,Profiles[#Headers],0)) -> 1867.586346 | O8: =INDEX(NQC[NQC MW],MATCH(1,(NQC[Month]=MONTH(Month&" 1, 2000"))*(NQC[Unit Category]=Dashboard!$B8),0))*INDEX(Profiles[],MATCH(1,(Profiles[Month]=MONTH(Month&" 1, 2000"))*(Profiles[Hour Ending]=INT(INDEX(_xlfn.TEXTSPLIT(Dashboard!O$3,," "),2))),0),MATCH(Dashboard!$B8,Profiles[#Headers],0)) -> 1867.586346 | P8: =INDEX(NQC[NQC MW],MATCH(1,(NQC[Month]=MONTH(Month&" 1, 2000"))*(NQC[Unit Category]=Dashboard!$B8),0))*INDEX(Profiles[],MATCH(1,(Profiles[Month]=MONTH(Month&" 1, 2000"))*(Profiles[Hour Ending]=INT(INDEX(_xlfn.TEXTSPLIT(Dashboard!P$3,," "),2))),0),MATCH(Dashboard!$B8,Profiles[#Headers],0)) -> 1867.586346 | Q8: =INDEX(NQC[NQC MW],MATCH(1,(NQC[Month]=MONTH(Month&" 1, 2000"))*(NQC[Unit Category]=Dashboard!$B8),0))*INDEX(Profiles[],MATCH(1,(Profiles[Month]=MONTH(Month&" 1, 2000"))*(Profiles[Hour Ending]=INT(INDEX(_xlfn.TEXTSPLIT(Dashboard!Q$3,," "),2))),0),MATCH(Dashboard!$B8,Profiles[#Headers],0)) -> 1867.586346 | R8: =INDEX(NQC[NQC MW],MATCH(1,(NQC[Month]=MONTH(Month&" 1, 2000"))*(NQC[Unit Category]=Dashboard!$B8),0))*INDEX(Profiles[],MATCH(1,(Profiles[Month]=MONTH(Month&" 1, 2000"))*(Profiles[Hour Ending]=INT(INDEX(_xlfn.TEXTSPLIT(Dashboard!R$3,," "),2))),0),MATCH(Dashboard!$B8,Profiles[#Headers],0)) -> 1867.586346 | S8: =INDEX(NQC[NQC MW],MATCH(1,(NQC[Month]=MONTH(Month&" 1, 2000"))*(NQC[Unit Category]=Dashboard!$B8),0))*INDEX(Profiles[],MATCH(1,(Profiles[Month]=MONTH(Month&" 1, 2000"))*(Profiles[Hour Ending]=INT(INDEX(_xlfn.TEXTSPLIT(Dashboard!S$3,," "),2))),0),MATCH(Dashboard!$B8,Profiles[#Headers],0)) -> 1867.586346 | T8: =INDEX(NQC[NQC MW],MATCH(1,(NQC[Month]=MONTH(Month&" 1, 2000"))*(NQC[Unit Category]=Dashboard!$B8),0))*INDEX(Profiles[],MATCH(1,(Profiles[Month]=MONTH(Month&" 1, 2000"))*(Profiles[Hour Ending]=INT(INDEX(_xlfn.TEXTSPLIT(Dashboard!T$3,," "),2))),0),MATCH(Dashboard!$B8,Profiles[#Headers],0)) -> 1867.586346 | U8: =INDEX(NQC[NQC MW],MATCH(1,(NQC[Month]=MONTH(Month&" 1, 2000"))*(NQC[Unit Category]=Dashboard!$B8),0))*INDEX(Profiles[],MATCH(1,(Profiles[Month]=MONTH(Month&" 1, 2000"))*(Profiles[Hour Ending]=INT(INDEX(_xlfn.TEXTSPLIT(Dashboard!U$3,," "),2))),0),MATCH(Dashboard!$B8,Profiles[#Headers],0)) -> 1867.586346 | V8: =INDEX(NQC[NQC MW],MATCH(1,(NQC[Month]=MONTH(Month&" 1, 2000"))*(NQC[Unit Category]=Dashboard!$B8),0))*INDEX(Profiles[],MATCH(1,(Profiles[Month]=MONTH(Month&" 1, 2000"))*(Profiles[Hour Ending]=INT(INDEX(_xlfn.TEXTSPLIT(Dashboard!V$3,," "),2))),0),MATCH(Dashboard!$B8,Profiles[#Headers],0)) -> 1867.586346 | W8: =INDEX(NQC[NQC MW],MATCH(1,(NQC[Month]=MONTH(Month&" 1, 2000"))*(NQC[Unit Category]=Dashboard!$B8),0))*INDEX(Profiles[],MATCH(1,(Profiles[Month]=MONTH(Month&" 1, 2000"))*(Profiles[Hour Ending]=INT(INDEX(_xlfn.TEXTSPLIT(Dashboard!W$3,," "),2))),0),MATCH(Dashboard!$B8,Profiles[#Headers],0)) -> 1867.586346 | X8: =INDEX(NQC[NQC MW],MATCH(1,(NQC[Month]=MONTH(Month&" 1, 2000"))*(NQC[Unit Category]=Dashboard!$B8),0))*INDEX(Profiles[],MATCH(1,(Profiles[Month]=MONTH(Month&" 1, 2000"))*(Profiles[Hour Ending]=INT(INDEX(_xlfn.TEXTSPLIT(Dashboard!X$3,," "),2))),0),MATCH(Dashboard!$B8,Profiles[#Headers],0)) -> 1867.586346 | Y8: =INDEX(NQC[NQC MW],MATCH(1,(NQC[Month]=MONTH(Month&" 1, 2000"))*(NQC[Unit Category]=Dashboard!$B8),0))*INDEX(Profiles[],MATCH(1,(Profiles[Month]=MONTH(Month&" 1, 2000"))*(Profiles[Hour Ending]=INT(INDEX(_xlfn.TEXTSPLIT(Dashboard!Y$3,," "),2))),0),MATCH(Dashboard!$B8,Profiles[#Headers],0)) -> 1867.586346 | Z8: =INDEX(NQC[NQC MW],MATCH(1,(NQC[Month]=MONTH(Month&" 1, 2000"))*(NQC[Unit Category]=Dashboard!$B8),0))*INDEX(Profiles[],MATCH(1,(Profiles[Month]=MONTH(Month&" 1, 2000"))*(Profiles[Hour Ending]=INT(INDEX(_xlfn.TEXTSPLIT(Dashboard!Z$3,," "),2))),0),MATCH(Dashboard!$B8,Profiles[#Headers],0)) -> 1867.586346
B9: CT | C9: =INDEX(Supply[Supply],MATCH(1,(Supply[Month]=MONTH(Month&" 1, 2000"))*(Supply[Unit Category]=Dashboard!$B9)*(Supply[Hour Ending]=INT(INDEX(_xlfn.TEXTSPLIT(Dashboard!C$3," "),2))),0)) -> 8058.13 | D9: =INDEX(NQC[NQC MW],MATCH(1,(NQC[Month]=MONTH(Month&" 1, 2000"))*(NQC[Unit Category]=Dashboard!$B9),0))*INDEX(Profiles[],MATCH(1,(Profiles[Month]=MONTH(Month&" 1, 2000"))*(Profiles[Hour Ending]=INT(INDEX(_xlfn.TEXTSPLIT(Dashboard!D$3,," "),2))),0),MATCH(Dashboard!$B9,Profiles[#Headers],0)) -> 8058.13 | E9: =INDEX(NQC[NQC MW],MATCH(1,(NQC[Month]=MONTH(Month&" 1, 2000"))*(NQC[Unit Category]=Dashboard!$B9),0))*INDEX(Profiles[],MATCH(1,(Profiles[Month]=MONTH(Month&" 1, 2000"))*(Profiles[Hour Ending]=INT(INDEX(_xlfn.TEXTSPLIT(Dashboard!E$3,," "),2))),0),MATCH(Dashboard!$B9,Profiles[#Headers],0)) -> 8058.13 | F9: =INDEX(NQC[NQC MW],MATCH(1,(NQC[Month]=MONTH(Month&" 1, 2000"))*(NQC[Unit Category]=Dashboard!$B9),0))*INDEX(Profiles[],MATCH(1,(Profiles[Month]=MONTH(Month&" 1, 2000"))*(Profiles[Hour Ending]=INT(INDEX(_xlfn.TEXTSPLIT(Dashboard!F$3,," "),2))),0),MATCH(Dashboard!$B9,Profiles[#Headers],0)) -> 8058.13 | G9: =INDEX(NQC[NQC MW],MATCH(1,(NQC[Month]=MONTH(Month&" 1, 2000"))*(NQC[Unit Category]=Dashboard!$B9),0))*INDEX(Profiles[],MATCH(1,(Profiles[Month]=MONTH(Month&" 1, 2000"))*(Profiles[Hour Ending]=INT(INDEX(_xlfn.TEXTSPLIT(Dashboard!G$3,," "),2))),0),MATCH(Dashboard!$B9,Profiles[#Headers],0)) -> 8058.13 | H9: =INDEX(NQC[NQC MW],MATCH(1,(NQC[Month]=MONTH(Month&" 1, 2000"))*(NQC[Unit Category]=Dashboard!$B9),0))*INDEX(Profiles[],MATCH(1,(Profiles[Month]=MONTH(Month&" 1, 2000"))*(Profiles[Hour Ending]=INT(INDEX(_xlfn.TEXTSPLIT(Dashboard!H$3,," "),2))),0),MATCH(Dashboard!$B9,Profiles[#Headers],0)) -> 8058.13 | I9: =INDEX(NQC[NQC MW],MATCH(1,(NQC[Month]=MONTH(Month&" 1, 2000"))*(NQC[Unit Category]=Dashboard!$B9),0))*INDEX(Profiles[],MATCH(1,(Profiles[Month]=MONTH(Month&" 1, 2000"))*(Profiles[Hour Ending]=INT(INDEX(_xlfn.TEXTSPLIT(Dashboard!I$3,," "),2))),0),MATCH(Dashboard!$B9,Profiles[#Headers],0)) -> 8058.13 | J9: =INDEX(NQC[NQC MW],MATCH(1,(NQC[Month]=MONTH(Month&" 1, 2000"))*(NQC[Unit Category]=Dashboard!$B9),0))*INDEX(Profiles[],MATCH(1,(Profiles[Month]=MONTH(Month&" 1, 2000"))*(Profiles[Hour Ending]=INT(INDEX(_xlfn.TEXTSPLIT(Dashboard!J$3,," "),2))),0),MATCH(Dashboard!$B9,Profiles[#Headers],0)) -> 8058.13 | K9: =INDEX(NQC[NQC MW],MATCH(1,(NQC[Month]=MONTH(Month&" 1, 2000"))*(NQC[Unit Category]=Dashboard!$B9),0))*INDEX(Profiles[],MATCH(1,(Profiles[Month]=MONTH(Month&" 1, 2000"))*(Profiles[Hour Ending]=INT(INDEX(_xlfn.TEXTSPLIT(Dashboard!K$3,," "),2))),0),MATCH(Dashboard!$B9,Profiles[#Headers],0)) -> 8058.13 | L9: =INDEX(NQC[NQC MW],MATCH(1,(NQC[Month]=MONTH(Month&" 1, 2000"))*(NQC[Unit Category]=Dashboard!$B9),0))*INDEX(Profiles[],MATCH(1,(Profiles[Month]=MONTH(Month&" 1, 2000"))*(Profiles[Hour Ending]=INT(INDEX(_xlfn.TEXTSPLIT(Dashboard!L$3,," "),2))),0),MATCH(Dashboard!$B9,Profiles[#Headers],0)) -> 8058.13 | M9: =INDEX(NQC[NQC MW],MATCH(1,(NQC[Month]=MONTH(Month&" 1, 2000"))*(NQC[Unit Category]=Dashboard!$B9),0))*INDEX(Profiles[],MATCH(1,(Profiles[Month]=MONTH(Month&" 1, 2000"))*(Profiles[Hour Ending]=INT(INDEX(_xlfn.TEXTSPLIT(Dashboard!M$3,," "),2))),0),MATCH(Dashboard!$B9,Profiles[#Headers],0)) -> 8058.13 | N9: =INDEX(NQC[NQC MW],MATCH(1,(NQC[Month]=MONTH(Month&" 1, 2000"))*(NQC[Unit Category]=Dashboard!$B9),0))*INDEX(Profiles[],MATCH(1,(Profiles[Month]=MONTH(Month&" 1, 2000"))*(Profiles[Hour Ending]=INT(INDEX(_xlfn.TEXTSPLIT(Dashboard!N$3,," "),2))),0),MATCH(Dashboard!$B9,Profiles[#Headers],0)) -> 8058.13 | O9: =INDEX(NQC[NQC MW],MATCH(1,(NQC[Month]=MONTH(Month&" 1, 2000"))*(NQC[Unit Category]=Dashboard!$B9),0))*INDEX(Profiles[],MATCH(1,(Profiles[Month]=MONTH(Month&" 1, 2000"))*(Profiles[Hour Ending]=INT(INDEX(_xlfn.TEXTSPLIT(Dashboard!O$3,," "),2))),0),MATCH(Dashboard!$B9,Profiles[#Headers],0)) -> 8058.13 | P9: =INDEX(NQC[NQC MW],MATCH(1,(NQC[Month]=MONTH(Month&" 1, 2000"))*(NQC[Unit Category]=Dashboard!$B9),0))*INDEX(Profiles[],MATCH(1,(Profiles[Month]=MONTH(Month&" 1, 2000"))*(Profiles[Hour Ending]=INT(INDEX(_xlfn.TEXTSPLIT(Dashboard!P$3,," "),2))),0),MATCH(Dashboard!$B9,Profiles[#Headers],0)) -> 8058.13 | Q9: =INDEX(NQC[NQC MW],MATCH(1,(NQC[Month]=MONTH(Month&" 1, 2000"))*(NQC[Unit Category]=Dashboard!$B9),0))*INDEX(Profiles[],MATCH(1,(Profiles[Month]=MONTH(Month&" 1, 2000"))*(Profiles[Hour Ending]=INT(INDEX(_xlfn.TEXTSPLIT(Dashboard!Q$3,," "),2))),0),MATCH(Dashboard!$B9,Profiles[#Headers],0)) -> 8058.13 | R9: =INDEX(NQC[NQC MW],MATCH(1,(NQC[Month]=MONTH(Month&" 1, 2000"))*(NQC[Unit Category]=Dashboard!$B9),0))*INDEX(Profiles[],MATCH(1,(Profiles[Month]=MONTH(Month&" 1, 2000"))*(Profiles[Hour Ending]=INT(INDEX(_xlfn.TEXTSPLIT(Dashboard!R$3,," "),2))),0),MATCH(Dashboard!$B9,Profiles[#Headers],0)) -> 8058.13 | S9: =INDEX(NQC[NQC MW],MATCH(1,(NQC[Month]=MONTH(Month&" 1, 2000"))*(NQC[Unit Category]=Dashboard!$B9),0))*INDEX(Profiles[],MATCH(1,(Profiles[Month]=MONTH(Month&" 1, 2000"))*(Profiles[Hour Ending]=INT(INDEX(_xlfn.TEXTSPLIT(Dashboard!S$3,," "),2))),0),MATCH(Dashboard!$B9,Profiles[#Headers],0)) -> 8058.13 | T9: =INDEX(NQC[NQC MW],MATCH(1,(NQC[Month]=MONTH(Month&" 1, 2000"))*(NQC[Unit Category]=Dashboard!$B9),0))*INDEX(Profiles[],MATCH(1,(Profiles[Month]=MONTH(Month&" 1, 2000"))*(Profiles[Hour Ending]=INT(INDEX(_xlfn.TEXTSPLIT(Dashboard!T$3,," "),2))),0),MATCH(Dashboard!$B9,Profiles[#Headers],0)) -> 8058.13 | U9: =INDEX(NQC[NQC MW],MATCH(1,(NQC[Month]=MONTH(Month&" 1, 2000"))*(NQC[Unit Category]=Dashboard!$B9),0))*INDEX(Profiles[],MATCH(1,(Profiles[Month]=MONTH(Month&" 1, 2000"))*(Profiles[Hour Ending]=INT(INDEX(_xlfn.TEXTSPLIT(Dashboard!U$3,," "),2))),0),MATCH(Dashboard!$B9,Profiles[#Headers],0)) -> 8058.13 | V9: =INDEX(NQC[NQC MW],MATCH(1,(NQC[Month]=MONTH(Month&" 1, 2000"))*(NQC[Unit Category]=Dashboard!$B9),0))*INDEX(Profiles[],MATCH(1,(Profiles[Month]=MONTH(Month&" 1, 2000"))*(Profiles[Hour Ending]=INT(INDEX(_xlfn.TEXTSPLIT(Dashboard!V$3,," "),2))),0),MATCH(Dashboard!$B9,Profiles[#Headers],0)) -> 8058.13 | W9: =INDEX(NQC[NQC MW],MATCH(1,(NQC[Month]=MONTH(Month&" 1, 2000"))*(NQC[Unit Category]=Dashboard!$B9),0))*INDEX(Profiles[],MATCH(1,(Profiles[Month]=MONTH(Month&" 1, 2000"))*(Profiles[Hour Ending]=INT(INDEX(_xlfn.TEXTSPLIT(Dashboard!W$3,," "),2))),0),MATCH(Dashboard!$B9,Profiles[#Headers],0)) -> 8058.13 | X9: =INDEX(NQC[NQC MW],MATCH(1,(NQC[Month]=MONTH(Month&" 1, 2000"))*(NQC[Unit Category]=Dashboard!$B9),0))*INDEX(Profiles[],MATCH(1,(Profiles[Month]=MONTH(Month&" 1, 2000"))*(Profiles[Hour Ending]=INT(INDEX(_xlfn.TEXTSPLIT(Dashboard!X$3,," "),2))),0),MATCH(Dashboard!$B9,Profiles[#Headers],0)) -> 8058.13 | Y9: =INDEX(NQC[NQC MW],MATCH(1,(NQC[Month]=MONTH(Month&" 1, 2000"))*(NQC[Unit Category]=Dashboard!$B9),0))*INDEX(Profiles[],MATCH(1,(Profiles[Month]=MONTH(Month&" 1, 2000"))*(Profiles[Hour Ending]=INT(INDEX(_xlfn.TEXTSPLIT(Dashboard!Y$3,," "),2))),0),MATCH(Dashboard!$B9,Profiles[#Headers],0)) -> 8058.13 | Z9: =INDEX(NQC[NQC MW],MATCH(1,(NQC[Month]=MONTH(Month&" 1, 2000"))*(NQC[Unit Category]=Dashboard!$B9),0))*INDEX(Profiles[],MATCH(1,(Profiles[Month]=MONTH(Month&" 1, 2000"))*(Profiles[Hour Ending]=INT(INDEX(_xlfn.TEXTSPLIT(Dashboard!Z$3,," "),2))),0),MATCH(Dashboard!$B9,Profiles[#Headers],0)) -> 8058.13
B10: DR | C10: =INDEX(Supply[Supply],MATCH(1,(Supply[Month]=MONTH(Month&" 1, 2000"))*(Supply[Unit Category]=Dashboard!$B10)*(Supply[Hour Ending]=INT(INDEX(_xlfn.TEXTSPLIT(Dashboard!C$3," "),2))),0)) -> 0 | D10: =INDEX(NQC[NQC MW],MATCH(1,(NQC[Month]=MONTH(Month&" 1, 2000"))*(NQC[Unit Category]=Dashboard!$B10),0))*INDEX(Profiles[],MATCH(1,(Profiles[Month]=MONTH(Month&" 1, 2000"))*(Profiles[Hour Ending]=INT(INDEX(_xlfn.TEXTSPLIT(Dashboard!D$3,," "),2))),0),MATCH(Dashboard!$B10,Profiles[#Headers],0)) -> 0 | E10: =INDEX(NQC[NQC MW],MATCH(1,(NQC[Month]=MONTH(Month&" 1, 2000"))*(NQC[Unit Category]=Dashboard!$B10),0))*INDEX(Profiles[],MATCH(1,(Profiles[Month]=MONTH(Month&" 1, 2000"))*(Profiles[Hour Ending]=INT(INDEX(_xlfn.TEXTSPLIT(Dashboard!E$3,," "),2))),0),MATCH(Dashboard!$B10,Profiles[#Headers],0)) -> 0 | F10: =INDEX(NQC[NQC MW],MATCH(1,(NQC[Month]=MONTH(Month&" 1, 2000"))*(NQC[Unit Category]=Dashboard!$B10),0))*INDEX(Profiles[],MATCH(1,(Profiles[Month]=MONTH(Month&" 1, 2000"))*(Profiles[Hour Ending]=INT(INDEX(_xlfn.TEXTSPLIT(Dashboard!F$3,," "),2))),0),MATCH(Dashboard!$B10,Profiles[#Headers],0)) -> 0 | G10: =INDEX(NQC[NQC MW],MATCH(1,(NQC[Month]=MONTH(Month&" 1, 2000"))*(NQC[Unit Category]=Dashboard!$B10),0))*INDEX(Profiles[],MATCH(1,(Profiles[Month]=MONTH(Month&" 1, 2000"))*(Profiles[Hour Ending]=INT(INDEX(_xlfn.TEXTSPLIT(Dashboard!G$3,," "),2))),0),MATCH(Dashboard!$B10,Profiles[#Headers],0)) -> 0 | H10: =INDEX(NQC[NQC MW],MATCH(1,(NQC[Month]=MONTH(Month&" 1, 2000"))*(NQC[Unit Category]=Dashboard!$B10),0))*INDEX(Profiles[],MATCH(1,(Profiles[Month]=MONTH(Month&" 1, 2000"))*(Profiles[Hour Ending]=INT(INDEX(_xlfn.TEXTSPLIT(Dashboard!H$3,," "),2))),0),MATCH(Dashboard!$B10,Profiles[#Headers],0)) -> 0 | I10: =INDEX(NQC[NQC MW],MATCH(1,(NQC[Month]=MONTH(Month&" 1, 2000"))*(NQC[Unit Category]=Dashboard!$B10),0))*INDEX(Profiles[],MATCH(1,(Profiles[Month]=MONTH(Month&" 1, 2000"))*(Profiles[Hour Ending]=INT(INDEX(_xlfn.TEXTSPLIT(Dashboard!I$3,," "),2))),0),MATCH(Dashboard!$B10,Profiles[#Headers],0)) -> 0 | J10: =INDEX(NQC[NQC MW],MATCH(1,(NQC[Month]=MONTH(Month&" 1, 2000"))*(NQC[Unit Category]=Dashboard!$B10),0))*INDEX(Profiles[],MATCH(1,(Profiles[Month]=MONTH(Month&" 1, 2000"))*(Profiles[Hour Ending]=INT(INDEX(_xlfn.TEXTSPLIT(Dashboard!J$3,," "),2))),0),MATCH(Dashboard!$B10,Profiles[#Headers],0)) -> 0 | K10: =INDEX(NQC[NQC MW],MATCH(1,(NQC[Month]=MONTH(Month&" 1, 2000"))*(NQC[Unit Category]=Dashboard!$B10),0))*INDEX(Profiles[],MATCH(1,(Profiles[Month]=MONTH(Month&" 1, 2000"))*(Profiles[Hour Ending]=INT(INDEX(_xlfn.TEXTSPLIT(Dashboard!K$3,," "),2))),0),MATCH(Dashboard!$B10,Profiles[#Headers],0)) -> 0 | L10: =INDEX(NQC[NQC MW],MATCH(1,(NQC[Month]=MONTH(Month&" 1, 2000"))*(NQC[Unit Category]=Dashboard!$B10),0))*INDEX(Profiles[],MATCH(1,(Profiles[Month]=MONTH(Month&" 1, 2000"))*(Profiles[Hour Ending]=INT(INDEX(_xlfn.TEXTSPLIT(Dashboard!L$3,," "),2))),0),MATCH(Dashboard!$B10,Profiles[#Headers],0)) -> 0 | M10: =INDEX(NQC[NQC MW],MATCH(1,(NQC[Month]=MONTH(Month&" 1, 2000"))*(NQC[Unit Category]=Dashboard!$B10),0))*INDEX(Profiles[],MATCH(1,(Profiles[Month]=MONTH(Month&" 1, 2000"))*(Profiles[Hour Ending]=INT(INDEX(_xlfn.TEXTSPLIT(Dashboard!M$3,," "),2))),0),MATCH(Dashboard!$B10,Profiles[#Headers],0)) -> 0 | N10: =INDEX(NQC[NQC MW],MATCH(1,(NQC[Month]=MONTH(Month&" 1, 2000"))*(NQC[Unit Category]=Dashboard!$B10),0))*INDEX(Profiles[],MATCH(1,(Profiles[Month]=MONTH(Month&" 1, 2000"))*(Profiles[Hour Ending]=INT(INDEX(_xlfn.TEXTSPLIT(Dashboard!N$3,," "),2))),0),MATCH(Dashboard!$B10,Profiles[#Headers],0)) -> 0 | O10: =INDEX(NQC[NQC MW],MATCH(1,(NQC[Month]=MONTH(Month&" 1, 2000"))*(NQC[Unit Category]=Dashboard!$B10),0))*INDEX(Profiles[],MATCH(1,(Profiles[Month]=MONTH(Month&" 1, 2000"))*(Profiles[Hour Ending]=INT(INDEX(_xlfn.TEXTSPLIT(Dashboard!O$3,," "),2))),0),MATCH(Dashboard!$B10,Profiles[#Headers],0)) -> 0 | P10: =INDEX(NQC[NQC MW],MATCH(1,(NQC[Month]=MONTH(Month&" 1, 2000"))*(NQC[Unit Category]=Dashboard!$B10),0))*INDEX(Profiles[],MATCH(1,(Profiles[Month]=MONTH(Month&" 1, 2000"))*(Profiles[Hour Ending]=INT(INDEX(_xlfn.TEXTSPLIT(Dashboard!P$3,," "),2))),0),MATCH(Dashboard!$B10,Profiles[#Headers],0)) -> 0 | Q10: =INDEX(NQC[NQC MW],MATCH(1,(NQC[Month]=MONTH(Month&" 1, 2000"))*(NQC[Unit Category]=Dashboard!$B10),0))*INDEX(Profiles[],MATCH(1,(Profiles[Month]=MONTH(Month&" 1, 2000"))*(Profiles[Hour Ending]=INT(INDEX(_xlfn.TEXTSPLIT(Dashboard!Q$3,," "),2))),0),MATCH(Dashboard!$B10,Profiles[#Headers],0)) -> 0 | R10: =INDEX(NQC[NQC MW],MATCH(1,(NQC[Month]=MONTH(Month&" 1, 2000"))*(NQC[Unit Category]=Dashboard!$B10),0))*INDEX(Profiles[],MATCH(1,(Profiles[Month]=MONTH(Month&" 1, 2000"))*(Profiles[Hour Ending]=INT(INDEX(_xlfn.TEXTSPLIT(Dashboard!R$3,," "),2))),0),MATCH(Dashboard!$B10,Profiles[#Headers],0)) -> 0 | S10: =INDEX(NQC[NQC MW],MATCH(1,(NQC[Month]=MONTH(Month&" 1, 2000"))*(NQC[Unit Category]=Dashboard!$B10),0))*INDEX(Profiles[],MATCH(1,(Profiles[Month]=MONTH(Month&" 1, 2000"))*(Profiles[Hour Ending]=INT(INDEX(_xlfn.TEXTSPLIT(Dashboard!S$3,," "),2))),0),MATCH(Dashboard!$B10,Profiles[#Headers],0)) -> 2510.506351 | T10: =INDEX(NQC[NQC MW],MATCH(1,(NQC[Month]=MONTH(Month&" 1, 2000"))*(NQC[Unit Category]=Dashboard!$B10),0))*INDEX(Profiles[],MATCH(1,(Profiles[Month]=MONTH(Month&" 1, 2000"))*(Profiles[Hour Ending]=INT(INDEX(_xlfn.TEXTSPLIT(Dashboard!T$3,," "),2))),0),MATCH(Dashboard!$B10,Profiles[#Headers],0)) -> 2498.474763 | U10: =INDEX(NQC[NQC MW],MATCH(1,(NQC[Month]=MONTH(Month&" 1, 2000"))*(NQC[Unit Category]=Dashboard!$B10),0))*INDEX(Profiles[],MATCH(1,(Profiles[Month]=MONTH(Month&" 1, 2000"))*(Profiles[Hour Ending]=INT(INDEX(_xlfn.TEXTSPLIT(Dashboard!U$3,," "),2))),0),MATCH(Dashboard!$B10,Profiles[#Headers],0)) -> 2376.71 | V10: =INDEX(NQC[NQC MW],MATCH(1,(NQC[Month]=MONTH(Month&" 1, 2000"))*(NQC[Unit Category]=Dashboard!$B10),0))*INDEX(Profiles[],MATCH(1,(Profiles[Month]=MONTH(Month&" 1, 2000"))*(Profiles[Hour Ending]=INT(INDEX(_xlfn.TEXTSPLIT(Dashboard!V$3,," "),2))),0),MATCH(Dashboard!$B10,Profiles[#Headers],0)) -> 2299.323029 | W10: =INDEX(NQC[NQC MW],MATCH(1,(NQC[Month]=MONTH(Month&" 1, 2000"))*(NQC[Unit Category]=Dashboard!$B10),0))*INDEX(Profiles[],MATCH(1,(Profiles[Month]=MONTH(Month&" 1, 2000"))*(Profiles[Hour Ending]=INT(INDEX(_xlfn.TEXTSPLIT(Dashboard!W$3,," "),2))),0),MATCH(Dashboard!$B10,Profiles[#Headers],0)) -> 2146.388206 | X10: =INDEX(NQC[NQC MW],MATCH(1,(NQC[Month]=MONTH(Month&" 1, 2000"))*(NQC[Unit Category]=Dashboard!$B10),0))*INDEX(Profiles[],MATCH(1,(Profiles[Month]=MONTH(Month&" 1, 2000"))*(Profiles[Hour Ending]=INT(INDEX(_xlfn.TEXTSPLIT(Dashboard!X$3,," "),2))),0),MATCH(Dashboard!$B10,Profiles[#Headers],0)) -> 193.7082613 | Y10: =INDEX(NQC[NQC MW],MATCH(1,(NQC[Month]=MONTH(Month&" 1, 2000"))*(NQC[Unit Category]=Dashboard!$B10),0))*INDEX(Profiles[],MATCH(1,(Profiles[Month]=MONTH(Month&" 1, 2000"))*(Profiles[Hour Ending]=INT(INDEX(_xlfn.TEXTSPLIT(Dashboard!Y$3,," "),2))),0),MATCH(Dashboard!$B10,Profiles[#Headers],0)) -> 0 | Z10: =INDEX(NQC[NQC MW],MATCH(1,(NQC[Month]=MONTH(Month&" 1, 2000"))*(NQC[Unit Category]=Dashboard!$B10),0))*INDEX(Profiles[],MATCH(1,(Profiles[Month]=MONTH(Month&" 1, 2000"))*(Profiles[Hour Ending]=INT(INDEX(_xlfn.TEXTSPLIT(Dashboard!Z$3,," "),2))),0),MATCH(Dashboard!$B10,Profiles[#Headers],0)) -> 0
B11: ICE | C11: =INDEX(Supply[Supply],MATCH(1,(Supply[Month]=MONTH(Month&" 1, 2000"))*(Supply[Unit Category]=Dashboard!$B11)*(Supply[Hour Ending]=INT(INDEX(_xlfn.TEXTSPLIT(Dashboard!C$3," "),2))),0)) -> 254.7 | D11: =INDEX(NQC[NQC MW],MATCH(1,(NQC[Month]=MONTH(Month&" 1, 2000"))*(NQC[Unit Category]=Dashboard!$B11),0))*INDEX(Profiles[],MATCH(1,(Profiles[Month]=MONTH(Month&" 1, 2000"))*(Profiles[Hour Ending]=INT(INDEX(_xlfn.TEXTSPLIT(Dashboard!D$3,," "),2))),0),MATCH(Dashboard!$B11,Profiles[#Headers],0)) -> 254.7 | E11: =INDEX(NQC[NQC MW],MATCH(1,(NQC[Month]=MONTH(Month&" 1, 2000"))*(NQC[Unit Category]=Dashboard!$B11),0))*INDEX(Profiles[],MATCH(1,(Profiles[Month]=MONTH(Month&" 1, 2000"))*(Profiles[Hour Ending]=INT(INDEX(_xlfn.TEXTSPLIT(Dashboard!E$3,," "),2))),0),MATCH(Dashboard!$B11,Profiles[#Headers],0)) -> 254.7 | F11: =INDEX(NQC[NQC MW],MATCH(1,(NQC[Month]=MONTH(Month&" 1, 2000"))*(NQC[Unit Category]=Dashboard!$B11),0))*INDEX(Profiles[],MATCH(1,(Profiles[Month]=MONTH(Month&" 1, 2000"))*(Profiles[Hour Ending]=INT(INDEX(_xlfn.TEXTSPLIT(Dashboard!F$3,," "),2))),0),MATCH(Dashboard!$B11,Profiles[#Headers],0)) -> 254.7 | G11: =INDEX(NQC[NQC MW],MATCH(1,(NQC[Month]=MONTH(Month&" 1, 2000"))*(NQC[Unit Category]=Dashboard!$B11),0))*INDEX(Profiles[],MATCH(1,(Profiles[Month]=MONTH(Month&" 1, 2000"))*(Profiles[Hour Ending]=INT(INDEX(_xlfn.TEXTSPLIT(Dashboard!G$3,," "),2))),0),MATCH(Dashboard!$B11,Profiles[#Headers],0)) -> 254.7 | H11: =INDEX(NQC[NQC MW],MATCH(1,(NQC[Month]=MONTH(Month&" 1, 2000"))*(NQC[Unit Category]=Dashboard!$B11),0))*INDEX(Profiles[],MATCH(1,(Profiles[Month]=MONTH(Month&" 1, 2000"))*(Profiles[Hour Ending]=INT(INDEX(_xlfn.TEXTSPLIT(Dashboard!H$3,," "),2))),0),MATCH(Dashboard!$B11,Profiles[#Headers],0)) -> 254.7 | I11: =INDEX(NQC[NQC MW],MATCH(1,(NQC[Month]=MONTH(Month&" 1, 2000"))*(NQC[Unit Category]=Dashboard!$B11),0))*INDEX(Profiles[],MATCH(1,(Profiles[Month]=MONTH(Month&" 1, 2000"))*(Profiles[Hour Ending]=INT(INDEX(_xlfn.TEXTSPLIT(Dashboard!I$3,," "),2))),0),MATCH(Dashboard!$B11,Profiles[#Headers],0)) -> 254.7 | J11: =INDEX(NQC[NQC MW],MATCH(1,(NQC[Month]=MONTH(Month&" 1, 2000"))*(NQC[Unit Category]=Dashboard!$B11),0))*INDEX(Profiles[],MATCH(1,(Profiles[Month]=MONTH(Month&" 1, 2000"))*(Profiles[Hour Ending]=INT(INDEX(_xlfn.TEXTSPLIT(Dashboard!J$3,," "),2))),0),MATCH(Dashboard!$B11,Profiles[#Headers],0)) -> 254.7 | K11: =INDEX(NQC[NQC MW],MATCH(1,(NQC[Month]=MONTH(Month&" 1, 2000"))*(NQC[Unit Category]=Dashboard!$B11),0))*INDEX(Profiles[],MATCH(1,(Profiles[Month]=MONTH(Month&" 1, 2000"))*(Profiles[Hour Ending]=INT(INDEX(_xlfn.TEXTSPLIT(Dashboard!K$3,," "),2))),0),MATCH(Dashboard!$B11,Profiles[#Headers],0)) -> 254.7 | L11: =INDEX(NQC[NQC MW],MATCH(1,(NQC[Month]=MONTH(Month&" 1, 2000"))*(NQC[Unit Category]=Dashboard!$B11),0))*INDEX(Profiles[],MATCH(1,(Profiles[Month]=MONTH(Month&" 1, 2000"))*(Profiles[Hour Ending]=INT(INDEX(_xlfn.TEXTSPLIT(Dashboard!L$3,," "),2))),0),MATCH(Dashboard!$B11,Profiles[#Headers],0)) -> 254.7 | M11: =INDEX(NQC[NQC MW],MATCH(1,(NQC[Month]=MONTH(Month&" 1, 2000"))*(NQC[Unit Category]=Dashboard!$B11),0))*INDEX(Profiles[],MATCH(1,(Profiles[Month]=MONTH(Month&" 1, 2000"))*(Profiles[Hour Ending]=INT(INDEX(_xlfn.TEXTSPLIT(Dashboard!M$3,," "),2))),0),MATCH(Dashboard!$B11,Profiles[#Headers],0)) -> 254.7 | N11: =INDEX(NQC[NQC MW],MATCH(1,(NQC[Month]=MONTH(Month&" 1, 2000"))*(NQC[Unit Category]=Dashboard!$B11),0))*INDEX(Profiles[],MATCH(1,(Profiles[Month]=MONTH(Month&" 1, 2000"))*(Profiles[Hour Ending]=INT(INDEX(_xlfn.TEXTSPLIT(Dashboard!N$3,," "),2))),0),MATCH(Dashboard!$B11,Profiles[#Headers],0)) -> 254.7 | O11: =INDEX(NQC[NQC MW],MATCH(1,(NQC[Month]=MONTH(Month&" 1, 2000"))*(NQC[Unit Category]=Dashboard!$B11),0))*INDEX(Profiles[],MATCH(1,(Profiles[Month]=MONTH(Month&" 1, 2000"))*(Profiles[Hour Ending]=INT(INDEX(_xlfn.TEXTSPLIT(Dashboard!O$3,," "),2))),0),MATCH(Dashboard!$B11,Profiles[#Headers],0)) -> 254.7 | P11: =INDEX(NQC[NQC MW],MATCH(1,(NQC[Month]=MONTH(Month&" 1, 2000"))*(NQC[Unit Category]=Dashboard!$B11),0))*INDEX(Profiles[],MATCH(1,(Profiles[Month]=MONTH(Month&" 1, 2000"))*(Profiles[Hour Ending]=INT(INDEX(_xlfn.TEXTSPLIT(Dashboard!P$3,," "),2))),0),MATCH(Dashboard!$B11,Profiles[#Headers],0)) -> 254.7 | Q11: =INDEX(NQC[NQC MW],MATCH(1,(NQC[Month]=MONTH(Month&" 1, 2000"))*(NQC[Unit Category]=Dashboard!$B11),0))*INDEX(Profiles[],MATCH(1,(Profiles[Month]=MONTH(Month&" 1, 2000"))*(Profiles[Hour Ending]=INT(INDEX(_xlfn.TEXTSPLIT(Dashboard!Q$3,," "),2))),0),MATCH(Dashboard!$B11,Profiles[#Headers],0)) -> 254.7 | R11: =INDEX(NQC[NQC MW],MATCH(1,(NQC[Month]=MONTH(Month&" 1, 2000"))*(NQC[Unit Category]=Dashboard!$B11),0))*INDEX(Profiles[],MATCH(1,(Profiles[Month]=MONTH(Month&" 1, 2000"))*(Profiles[Hour Ending]=INT(INDEX(_xlfn.TEXTSPLIT(Dashboard!R$3,," "),2))),0),MATCH(Dashboard!$B11,Profiles[#Headers],0)) -> 254.7 | S11: =INDEX(NQC[NQC MW],MATCH(1,(NQC[Month]=MONTH(Month&" 1, 2000"))*(NQC[Unit Category]=Dashboard!$B11),0))*INDEX(Profiles[],MATCH(1,(Profiles[Month]=MONTH(Month&" 1, 2000"))*(Profiles[Hour Ending]=INT(INDEX(_xlfn.TEXTSPLIT(Dashboard!S$3,," "),2))),0),MATCH(Dashboard!$B11,Profiles[#Headers],0)) -> 254.7 | T11: =INDEX(NQC[NQC MW],MATCH(1,(NQC[Month]=MONTH(Month&" 1, 2000"))*(NQC[Unit Category]=Dashboard!$B11),0))*INDEX(Profiles[],MATCH(1,(Profiles[Month]=MONTH(Month&" 1, 2000"))*(Profiles[Hour Ending]=INT(INDEX(_xlfn.TEXTSPLIT(Dashboard!T$3,," "),2))),0),MATCH(Dashboard!$B11,Profiles[#Headers],0)) -> 254.7 | U11: =INDEX(NQC[NQC MW],MATCH(1,(NQC[Month]=MONTH(Month&" 1, 2000"))*(NQC[Unit Category]=Dashboard!$B11),0))*INDEX(Profiles[],MATCH(1,(Profiles[Month]=MONTH(Month&" 1, 2000"))*(Profiles[Hour Ending]=INT(INDEX(_xlfn.TEXTSPLIT(Dashboard!U$3,," "),2))),0),MATCH(Dashboard!$B11,Profiles[#Headers],0)) -> 254.7 | V11: =INDEX(NQC[NQC MW],MATCH(1,(NQC[Month]=MONTH(Month&" 1, 2000"))*(NQC[Unit Category]=Dashboard!$B11),0))*INDEX(Profiles[],MATCH(1,(Profiles[Month]=MONTH(Month&" 1, 2000"))*(Profiles[Hour Ending]=INT(INDEX(_xlfn.TEXTSPLIT(Dashboard!V$3,," "),2))),0),MATCH(Dashboard!$B11,Profiles[#Headers],0)) -> 254.7 | W11: =INDEX(NQC[NQC MW],MATCH(1,(NQC[Month]=MONTH(Month&" 1, 2000"))*(NQC[Unit Category]=Dashboard!$B11),0))*INDEX(Profiles[],MATCH(1,(Profiles[Month]=MONTH(Month&" 1, 2000"))*(Profiles[Hour Ending]=INT(INDEX(_xlfn.TEXTSPLIT(Dashboard!W$3,," "),2))),0),MATCH(Dashboard!$B11,Profiles[#Headers],0)) -> 254.7 | X11: =INDEX(NQC[NQC MW],MATCH(1,(NQC[Month]=MONTH(Month&" 1, 2000"))*(NQC[Unit Category]=Dashboard!$B11),0))*INDEX(Profiles[],MATCH(1,(Profiles[Month]=MONTH(Month&" 1, 2000"))*(Profiles[Hour Ending]=INT(INDEX(_xlfn.TEXTSPLIT(Dashboard!X$3,," "),2))),0),MATCH(Dashboard!$B11,Profiles[#Headers],0)) -> 254.7 | Y11: =INDEX(NQC[NQC MW],MATCH(1,(NQC[Month]=MONTH(Month&" 1, 2000"))*(NQC[Unit Category]=Dashboard!$B11),0))*INDEX(Profiles[],MATCH(1,(Profiles[Month]=MONTH(Month&" 1, 2000"))*(Profiles[Hour Ending]=INT(INDEX(_xlfn.TEXTSPLIT(Dashboard!Y$3,," "),2))),0),MATCH(Dashboard!$B11,Profiles[#Headers],0)) -> 254.7 | Z11: =INDEX(NQC[NQC MW],MATCH(1,(NQC[Month]=MONTH(Month&" 1, 2000"))*(NQC[Unit Category]=Dashboard!$B11),0))*INDEX(Profiles[],MATCH(1,(Profiles[Month]=MONTH(Month&" 1, 2000"))*(Profiles[Hour Ending]=INT(INDEX(_xlfn.TEXTSPLIT(Dashboard!Z$3,," "),2))),0),MATCH(Dashboard!$B11,Profiles[#Headers],0)) -> 254.7
B12: Geothermal | C12: =INDEX(Supply[Supply],MATCH(1,(Supply[Month]=MONTH(Month&" 1, 2000"))*(Supply[Unit Category]=Dashboard!$B12)*(Supply[Hour Ending]=INT(INDEX(_xlfn.TEXTSPLIT(Dashboard!C$3," "),2))),0)) -> 1323.479115 | D12: =INDEX(NQC[NQC MW],MATCH(1,(NQC[Month]=MONTH(Month&" 1, 2000"))*(NQC[Unit Category]=Dashboard!$B12),0))*INDEX(Profiles[],MATCH(1,(Profiles[Month]=MONTH(Month&" 1, 2000"))*(Profiles[Hour Ending]=INT(INDEX(_xlfn.TEXTSPLIT(Dashboard!D$3,," "),2))),0),MATCH(Dashboard!$B12,Profiles[#Headers],0)) -> 1323.479115 | E12: =INDEX(NQC[NQC MW],MATCH(1,(NQC[Month]=MONTH(Month&" 1, 2000"))*(NQC[Unit Category]=Dashboard!$B12),0))*INDEX(Profiles[],MATCH(1,(Profiles[Month]=MONTH(Month&" 1, 2000"))*(Profiles[Hour Ending]=INT(INDEX(_xlfn.TEXTSPLIT(Dashboard!E$3,," "),2))),0),MATCH(Dashboard!$B12,Profiles[#Headers],0)) -> 1323.479115 | F12: =INDEX(NQC[NQC MW],MATCH(1,(NQC[Month]=MONTH(Month&" 1, 2000"))*(NQC[Unit Category]=Dashboard!$B12),0))*INDEX(Profiles[],MATCH(1,(Profiles[Month]=MONTH(Month&" 1, 2000"))*(Profiles[Hour Ending]=INT(INDEX(_xlfn.TEXTSPLIT(Dashboard!F$3,," "),2))),0),MATCH(Dashboard!$B12,Profiles[#Headers],0)) -> 1323.479115 | G12: =INDEX(NQC[NQC MW],MATCH(1,(NQC[Month]=MONTH(Month&" 1, 2000"))*(NQC[Unit Category]=Dashboard!$B12),0))*INDEX(Profiles[],MATCH(1,(Profiles[Month]=MONTH(Month&" 1, 2000"))*(Profiles[Hour Ending]=INT(INDEX(_xlfn.TEXTSPLIT(Dashboard!G$3,," "),2))),0),MATCH(Dashboard!$B12,Profiles[#Headers],0)) -> 1323.479115 | H12: =INDEX(NQC[NQC MW],MATCH(1,(NQC[Month]=MONTH(Month&" 1, 2000"))*(NQC[Unit Category]=Dashboard!$B12),0))*INDEX(Profiles[],MATCH(1,(Profiles[Month]=MONTH(Month&" 1, 2000"))*(Profiles[Hour Ending]=INT(INDEX(_xlfn.TEXTSPLIT(Dashboard!H$3,," "),2))),0),MATCH(Dashboard!$B12,Profiles[#Headers],0)) -> 1323.479115 | I12: =INDEX(NQC[NQC MW],MATCH(1,(NQC[Month]=MONTH(Month&" 1, 2000"))*(NQC[Unit Category]=Dashboard!$B12),0))*INDEX(Profiles[],MATCH(1,(Profiles[Month]=MONTH(Month&" 1, 2000"))*(Profiles[Hour Ending]=INT(INDEX(_xlfn.TEXTSPLIT(Dashboard!I$3,," "),2))),0),MATCH(Dashboard!$B12,Profiles[#Headers],0)) -> 1323.479115 | J12: =INDEX(NQC[NQC MW],MATCH(1,(NQC[Month]=MONTH(Month&" 1, 2000"))*(NQC[Unit Category]=Dashboard!$B12),0))*INDEX(Profiles[],MATCH(1,(Profiles[Month]=MONTH(Month&" 1, 2000"))*(Profiles[Hour Ending]=INT(INDEX(_xlfn.TEXTSPLIT(Dashboard!J$3,," "),2))),0),MATCH(Dashboard!$B12,Profiles[#Headers],0)) -> 1323.479115 | K12: =INDEX(NQC[NQC MW],MATCH(1,(NQC[Month]=MONTH(Month&" 1, 2000"))*(NQC[Unit Category]=Dashboard!$B12),0))*INDEX(Profiles[],MATCH(1,(Profiles[Month]=MONTH(Month&" 1, 2000"))*(Profiles[Hour Ending]=INT(INDEX(_xlfn.TEXTSPLIT(Dashboard!K$3,," "),2))),0),MATCH(Dashboard!$B12,Profiles[#Headers],0)) -> 1323.479115 | L12: =INDEX(NQC[NQC MW],MATCH(1,(NQC[Month]=MONTH(Month&" 1, 2000"))*(NQC[Unit Category]=Dashboard!$B12),0))*INDEX(Profiles[],MATCH(1,(Profiles[Month]=MONTH(Month&" 1, 2000"))*(Profiles[Hour Ending]=INT(INDEX(_xlfn.TEXTSPLIT(Dashboard!L$3,," "),2))),0),MATCH(Dashboard!$B12,Profiles[#Headers],0)) -> 1323.479115 | M12: =INDEX(NQC[NQC MW],MATCH(1,(NQC[Month]=MONTH(Month&" 1, 2000"))*(NQC[Unit Category]=Dashboard!$B12),0))*INDEX(Profiles[],MATCH(1,(Profiles[Month]=MONTH(Month&" 1, 2000"))*(Profiles[Hour Ending]=INT(INDEX(_xlfn.TEXTSPLIT(Dashboard!M$3,," "),2))),0),MATCH(Dashboard!$B12,Profiles[#Headers],0)) -> 1323.479115 | N12: =INDEX(NQC[NQC MW],MATCH(1,(NQC[Month]=MONTH(Month&" 1, 2000"))*(NQC[Unit Category]=Dashboard!$B12),0))*INDEX(Profiles[],MATCH(1,(Profiles[Month]=MONTH(Month&" 1, 2000"))*(Profiles[Hour Ending]=INT(INDEX(_xlfn.TEXTSPLIT(Dashboard!N$3,," "),2))),0),MATCH(Dashboard!$B12,Profiles[#Headers],0)) -> 1323.479115 | O12: =INDEX(NQC[NQC MW],MATCH(1,(NQC[Month]=MONTH(Month&" 1, 2000"))*(NQC[Unit Category]=Dashboard!$B12),0))*INDEX(Profiles[],MATCH(1,(Profiles[Month]=MONTH(Month&" 1, 2000"))*(Profiles[Hour Ending]=INT(INDEX(_xlfn.TEXTSPLIT(Dashboard!O$3,," "),2))),0),MATCH(Dashboard!$B12,Profiles[#Headers],0)) -> 1323.479115 | P12: =INDEX(NQC[NQC MW],MATCH(1,(NQC[Month]=MONTH(Month&" 1, 2000"))*(NQC[Unit Category]=Dashboard!$B12),0))*INDEX(Profiles[],MATCH(1,(Profiles[Month]=MONTH(Month&" 1, 2000"))*(Profiles[Hour Ending]=INT(INDEX(_xlfn.TEXTSPLIT(Dashboard!P$3,," "),2))),0),MATCH(Dashboard!$B12,Profiles[#Headers],0)) -> 1323.479115 | Q12: =INDEX(NQC[NQC MW],MATCH(1,(NQC[Month]=MONTH(Month&" 1, 2000"))*(NQC[Unit Category]=Dashboard!$B12),0))*INDEX(Profiles[],MATCH(1,(Profiles[Month]=MONTH(Month&" 1, 2000"))*(Profiles[Hour Ending]=INT(INDEX(_xlfn.TEXTSPLIT(Dashboard!Q$3,," "),2))),0),MATCH(Dashboard!$B12,Profiles[#Headers],0)) -> 1323.479115 | R12: =INDEX(NQC[NQC MW],MATCH(1,(NQC[Month]=MONTH(Month&" 1, 2000"))*(NQC[Unit Category]=Dashboard!$B12),0))*INDEX(Profiles[],MATCH(1,(Profiles[Month]=MONTH(Month&" 1, 2000"))*(Profiles[Hour Ending]=INT(INDEX(_xlfn.TEXTSPLIT(Dashboard!R$3,," "),2))),0),MATCH(Dashboard!$B12,Profiles[#Headers],0)) -> 1323.479115 | S12: =INDEX(NQC[NQC MW],MATCH(1,(NQC[Month]=MONTH(Month&" 1, 2000"))*(NQC[Unit Category]=Dashboard!$B12),0))*INDEX(Profiles[],MATCH(1,(Profiles[Month]=MONTH(Month&" 1, 2000"))*(Profiles[Hour Ending]=INT(INDEX(_xlfn.TEXTSPLIT(Dashboard!S$3,," "),2))),0),MATCH(Dashboard!$B12,Profiles[#Headers],0)) -> 1323.479115 | T12: =INDEX(NQC[NQC MW],MATCH(1,(NQC[Month]=MONTH(Month&" 1, 2000"))*(NQC[Unit Category]=Dashboard!$B12),0))*INDEX(Profiles[],MATCH(1,(Profiles[Month]=MONTH(Month&" 1, 2000"))*(Profiles[Hour Ending]=INT(INDEX(_xlfn.TEXTSPLIT(Dashboard!T$3,," "),2))),0),MATCH(Dashboard!$B12,Profiles[#Headers],0)) -> 1323.479115 | U12: =INDEX(NQC[NQC MW],MATCH(1,(NQC[Month]=MONTH(Month&" 1, 2000"))*(NQC[Unit Category]=Dashboard!$B12),0))*INDEX(Profiles[],MATCH(1,(Profiles[Month]=MONTH(Month&" 1, 2000"))*(Profiles[Hour Ending]=INT(INDEX(_xlfn.TEXTSPLIT(Dashboard!U$3,," "),2))),0),MATCH(Dashboard!$B12,Profiles[#Headers],0)) -> 1323.479115 | V12: =INDEX(NQC[NQC MW],MATCH(1,(NQC[Month]=MONTH(Month&" 1, 2000"))*(NQC[Unit Category]=Dashboard!$B12),0))*INDEX(Profiles[],MATCH(1,(Profiles[Month]=MONTH(Month&" 1, 2000"))*(Profiles[Hour Ending]=INT(INDEX(_xlfn.TEXTSPLIT(Dashboard!V$3,," "),2))),0),MATCH(Dashboard!$B12,Profiles[#Headers],0)) -> 1323.479115 | W12: =INDEX(NQC[NQC MW],MATCH(1,(NQC[Month]=MONTH(Month&" 1, 2000"))*(NQC[Unit Category]=Dashboard!$B12),0))*INDEX(Profiles[],MATCH(1,(Profiles[Month]=MONTH(Month&" 1, 2000"))*(Profiles[Hour Ending]=INT(INDEX(_xlfn.TEXTSPLIT(Dashboard!W$3,," "),2))),0),MATCH(Dashboard!$B12,Profiles[#Headers],0)) -> 1323.479115 | X12: =INDEX(NQC[NQC MW],MATCH(1,(NQC[Month]=MONTH(Month&" 1, 2000"))*(NQC[Unit Category]=Dashboard!$B12),0))*INDEX(Profiles[],MATCH(1,(Profiles[Month]=MONTH(Month&" 1, 2000"))*(Profiles[Hour Ending]=INT(INDEX(_xlfn.TEXTSPLIT(Dashboard!X$3,," "),2))),0),MATCH(Dashboard!$B12,Profiles[#Headers],0)) -> 1323.479115 | Y12: =INDEX(NQC[NQC MW],MATCH(1,(NQC[Month]=MONTH(Month&" 1, 2000"))*(NQC[Unit Category]=Dashboard!$B12),0))*INDEX(Profiles[],MATCH(1,(Profiles[Month]=MONTH(Month&" 1, 2000"))*(Profiles[Hour Ending]=INT(INDEX(_xlfn.TEXTSPLIT(Dashboard!Y$3,," "),2))),0),MATCH(Dashboard!$B12,Profiles[#Headers],0)) -> 1323.479115 | Z12: =INDEX(NQC[NQC MW],MATCH(1,(NQC[Month]=MONTH(Month&" 1, 2000"))*(NQC[Unit Category]=Dashboard!$B12),0))*INDEX(Profiles[],MATCH(1,(Profiles[Month]=MONTH(Month&" 1, 2000"))*(Profiles[Hour Ending]=INT(INDEX(_xlfn.TEXTSPLIT(Dashboard!Z$3,," "),2))),0),MATCH(Dashboard!$B12,Profiles[#Headers],0)) -> 1323.479115
B13: Hydro | C13: =INDEX(Supply[Supply],MATCH(1,(Supply[Month]=MONTH(Month&" 1, 2000"))*(Supply[Unit Category]=Dashboard!$B13)*(Supply[Hour Ending]=INT(INDEX(_xlfn.TEXTSPLIT(Dashboard!C$3," "),2))),0)) -> 1789.0122 | D13: =INDEX(NQC[NQC MW],MATCH(1,(NQC[Month]=MONTH(Month&" 1, 2000"))*(NQC[Unit Category]=Dashboard!$B13),0))*INDEX(Profiles[],MATCH(1,(Profiles[Month]=MONTH(Month&" 1, 2000"))*(Profiles[Hour Ending]=INT(INDEX(_xlfn.TEXTSPLIT(Dashboard!D$3,," "),2))),0),MATCH(Dashboard!$B13,Profiles[#Headers],0)) -> 1789.0122 | E13: =INDEX(NQC[NQC MW],MATCH(1,(NQC[Month]=MONTH(Month&" 1, 2000"))*(NQC[Unit Category]=Dashboard!$B13),0))*INDEX(Profiles[],MATCH(1,(Profiles[Month]=MONTH(Month&" 1, 2000"))*(Profiles[Hour Ending]=INT(INDEX(_xlfn.TEXTSPLIT(Dashboard!E$3,," "),2))),0),MATCH(Dashboard!$B13,Profiles[#Headers],0)) -> 1789.0122 | F13: =INDEX(NQC[NQC MW],MATCH(1,(NQC[Month]=MONTH(Month&" 1, 2000"))*(NQC[Unit Category]=Dashboard!$B13),0))*INDEX(Profiles[],MATCH(1,(Profiles[Month]=MONTH(Month&" 1, 2000"))*(Profiles[Hour Ending]=INT(INDEX(_xlfn.TEXTSPLIT(Dashboard!F$3,," "),2))),0),MATCH(Dashboard!$B13,Profiles[#Headers],0)) -> 1789.0122 | G13: =INDEX(NQC[NQC MW],MATCH(1,(NQC[Month]=MONTH(Month&" 1, 2000"))*(NQC[Unit Category]=Dashboard!$B13),0))*INDEX(Profiles[],MATCH(1,(Profiles[Month]=MONTH(Month&" 1, 2000"))*(Profiles[Hour Ending]=INT(INDEX(_xlfn.TEXTSPLIT(Dashboard!G$3,," "),2))),0),MATCH(Dashboard!$B13,Profiles[#Headers],0)) -> 1789.0122 | H13: =INDEX(NQC[NQC MW],MATCH(1,(NQC[Month]=MONTH(Month&" 1, 2000"))*(NQC[Unit Category]=Dashboard!$B13),0))*INDEX(Profiles[],MATCH(1,(Profiles[Month]=MONTH(Month&" 1, 2000"))*(Profiles[Hour Ending]=INT(INDEX(_xlfn.TEXTSPLIT(Dashboard!H$3,," "),2))),0),MATCH(Dashboard!$B13,Profiles[#Headers],0)) -> 1789.0122 | I13: =INDEX(NQC[NQC MW],MATCH(1,(NQC[Month]=MONTH(Month&" 1, 2000"))*(NQC[Unit Category]=Dashboard!$B13),0))*INDEX(Profiles[],MATCH(1,(Profiles[Month]=MONTH(Month&" 1, 2000"))*(Profiles[Hour Ending]=INT(INDEX(_xlfn.TEXTSPLIT(Dashboard!I$3,," "),2))),0),MATCH(Dashboard!$B13,Profiles[#Headers],0)) -> 1789.0122 | J13: =INDEX(NQC[NQC MW],MATCH(1,(NQC[Month]=MONTH(Month&" 1, 2000"))*(NQC[Unit Category]=Dashboard!$B13),0))*INDEX(Profiles[],MATCH(1,(Profiles[Month]=MONTH(Month&" 1, 2000"))*(Profiles[Hour Ending]=INT(INDEX(_xlfn.TEXTSPLIT(Dashboard!J$3,," "),2))),0),MATCH(Dashboard!$B13,Profiles[#Headers],0)) -> 1789.0122 | K13: =INDEX(NQC[NQC MW],MATCH(1,(NQC[Month]=MONTH(Month&" 1, 2000"))*(NQC[Unit Category]=Dashboard!$B13),0))*INDEX(Profiles[],MATCH(1,(Profiles[Month]=MONTH(Month&" 1, 2000"))*(Profiles[Hour Ending]=INT(INDEX(_xlfn.TEXTSPLIT(Dashboard!K$3,," "),2))),0),MATCH(Dashboard!$B13,Profiles[#Headers],0)) -> 1789.0122 | L13: =INDEX(NQC[NQC MW],MATCH(1,(NQC[Month]=MONTH(Month&" 1, 2000"))*(NQC[Unit Category]=Dashboard!$B13),0))*INDEX(Profiles[],MATCH(1,(Profiles[Month]=MONTH(Month&" 1, 2000"))*(Profiles[Hour Ending]=INT(INDEX(_xlfn.TEXTSPLIT(Dashboard!L$3,," "),2))),0),MATCH(Dashboard!$B13,Profiles[#Headers],0)) -> 1789.0122 | M13: =INDEX(NQC[NQC MW],MATCH(1,(NQC[Month]=MONTH(Month&" 1, 2000"))*(NQC[Unit Category]=Dashboard!$B13),0))*INDEX(Profiles[],MATCH(1,(Profiles[Month]=MONTH(Month&" 1, 2000"))*(Profiles[Hour Ending]=INT(INDEX(_xlfn.TEXTSPLIT(Dashboard!M$3,," "),2))),0),MATCH(Dashboard!$B13,Profiles[#Headers],0)) -> 1789.0122 | N13: =INDEX(NQC[NQC MW],MATCH(1,(NQC[Month]=MONTH(Month&" 1, 2000"))*(NQC[Unit Category]=Dashboard!$B13),0))*INDEX(Profiles[],MATCH(1,(Profiles[Month]=MONTH(Month&" 1, 2000"))*(Profiles[Hour Ending]=INT(INDEX(_xlfn.TEXTSPLIT(Dashboard!N$3,," "),2))),0),MATCH(Dashboard!$B13,Profiles[#Headers],0)) -> 1789.0122 | O13: =INDEX(NQC[NQC MW],MATCH(1,(NQC[Month]=MONTH(Month&" 1, 2000"))*(NQC[Unit Category]=Dashboard!$B13),0))*INDEX(Profiles[],MATCH(1,(Profiles[Month]=MONTH(Month&" 1, 2000"))*(Profiles[Hour Ending]=INT(INDEX(_xlfn.TEXTSPLIT(Dashboard!O$3,," "),2))),0),MATCH(Dashboard!$B13,Profiles[#Headers],0)) -> 1789.0122 | P13: =INDEX(NQC[NQC MW],MATCH(1,(NQC[Month]=MONTH(Month&" 1, 2000"))*(NQC[Unit Category]=Dashboard!$B13),0))*INDEX(Profiles[],MATCH(1,(Profiles[Month]=MONTH(Month&" 1, 2000"))*(Profiles[Hour Ending]=INT(INDEX(_xlfn.TEXTSPLIT(Dashboard!P$3,," "),2))),0),MATCH(Dashboard!$B13,Profiles[#Headers],0)) -> 1789.0122 | Q13: =INDEX(NQC[NQC MW],MATCH(1,(NQC[Month]=MONTH(Month&" 1, 2000"))*(NQC[Unit Category]=Dashboard!$B13),0))*INDEX(Profiles[],MATCH(1,(Profiles[Month]=MONTH(Month&" 1, 2000"))*(Profiles[Hour Ending]=INT(INDEX(_xlfn.TEXTSPLIT(Dashboard!Q$3,," "),2))),0),MATCH(Dashboard!$B13,Profiles[#Headers],0)) -> 1789.0122 | R13: =INDEX(NQC[NQC MW],MATCH(1,(NQC[Month]=MONTH(Month&" 1, 2000"))*(NQC[Unit Category]=Dashboard!$B13),0))*INDEX(Profiles[],MATCH(1,(Profiles[Month]=MONTH(Month&" 1, 2000"))*(Profiles[Hour Ending]=INT(INDEX(_xlfn.TEXTSPLIT(Dashboard!R$3,," "),2))),0),MATCH(Dashboard!$B13,Profiles[#Headers],0)) -> 1789.0122 | S13: =INDEX(NQC[NQC MW],MATCH(1,(NQC[Month]=MONTH(Month&" 1, 2000"))*(NQC[Unit Category]=Dashboard!$B13),0))*INDEX(Profiles[],MATCH(1,(Profiles[Month]=MONTH(Month&" 1, 2000"))*(Profiles[Hour Ending]=INT(INDEX(_xlfn.TEXTSPLIT(Dashboard!S$3,," "),2))),0),MATCH(Dashboard!$B13,Profiles[#Headers],0)) -> 1789.0122 | T13: =INDEX(NQC[NQC MW],MATCH(1,(NQC[Month]=MONTH(Month&" 1, 2000"))*(NQC[Unit Category]=Dashboard!$B13),0))*INDEX(Profiles[],MATCH(1,(Profiles[Month]=MONTH(Month&" 1, 2000"))*(Profiles[Hour Ending]=INT(INDEX(_xlfn.TEXTSPLIT(Dashboard!T$3,," "),2))),0),MATCH(Dashboard!$B13,Profiles[#Headers],0)) -> 1789.0122 | U13: =INDEX(NQC[NQC MW],MATCH(1,(NQC[Month]=MONTH(Month&" 1, 2000"))*(NQC[Unit Category]=Dashboard!$B13),0))*INDEX(Profiles[],MATCH(1,(Profiles[Month]=MONTH(Month&" 1, 2000"))*(Profiles[Hour Ending]=INT(INDEX(_xlfn.TEXTSPLIT(Dashboard!U$3,," "),2))),0),MATCH(Dashboard!$B13,Profiles[#Headers],0)) -> 1789.0122 | V13: =INDEX(NQC[NQC MW],MATCH(1,(NQC[Month]=MONTH(Month&" 1, 2000"))*(NQC[Unit Category]=Dashboard!$B13),0))*INDEX(Profiles[],MATCH(1,(Profiles[Month]=MONTH(Month&" 1, 2000"))*(Profiles[Hour Ending]=INT(INDEX(_xlfn.TEXTSPLIT(Dashboard!V$3,," "),2))),0),MATCH(Dashboard!$B13,Profiles[#Headers],0)) -> 1789.0122 | W13: =INDEX(NQC[NQC MW],MATCH(1,(NQC[Month]=MONTH(Month&" 1, 2000"))*(NQC[Unit Category]=Dashboard!$B13),0))*INDEX(Profiles[],MATCH(1,(Profiles[Month]=MONTH(Month&" 1, 2000"))*(Profiles[Hour Ending]=INT(INDEX(_xlfn.TEXTSPLIT(Dashboard!W$3,," "),2))),0),MATCH(Dashboard!$B13,Profiles[#Headers],0)) -> 1789.0122 | X13: =INDEX(NQC[NQC MW],MATCH(1,(NQC[Month]=MONTH(Month&" 1, 2000"))*(NQC[Unit Category]=Dashboard!$B13),0))*INDEX(Profiles[],MATCH(1,(Profiles[Month]=MONTH(Month&" 1, 2000"))*(Profiles[Hour Ending]=INT(INDEX(_xlfn.TEXTSPLIT(Dashboard!X$3,," "),2))),0),MATCH(Dashboard!$B13,Profiles[#Headers],0)) -> 1789.0122 | Y13: =INDEX(NQC[NQC MW],MATCH(1,(NQC[Month]=MONTH(Month&" 1, 2000"))*(NQC[Unit Category]=Dashboard!$B13),0))*INDEX(Profiles[],MATCH(1,(Profiles[Month]=MONTH(Month&" 1, 2000"))*(Profiles[Hour Ending]=INT(INDEX(_xlfn.TEXTSPLIT(Dashboard!Y$3,," "),2))),0),MATCH(Dashboard!$B13,Profiles[#Headers],0)) -> 1789.0122 | Z13: =INDEX(NQC[NQC MW],MATCH(1,(NQC[Month]=MONTH(Month&" 1, 2000"))*(NQC[Unit Category]=Dashboard!$B13),0))*INDEX(Profiles[],MATCH(1,(Profiles[Month]=MONTH(Month&" 1, 2000"))*(Profiles[Hour Ending]=INT(INDEX(_xlfn.TEXTSPLIT(Dashboard!Z$3,," "),2))),0),MATCH(Dashboard!$B13,Profiles[#Headers],0)) -> 1789.0122
B14: Interchange | C14: =INDEX(Supply[Supply],MATCH(1,(Supply[Month]=MONTH(Month&" 1, 2000"))*(Supply[Unit Category]=Dashboard!$B14)*(Supply[Hour Ending]=INT(INDEX(_xlfn.TEXTSPLIT(Dashboard!C$3," "),2))),0)) -> 2500 | D14: =INDEX(NQC[NQC MW],MATCH(1,(NQC[Month]=MONTH(Month&" 1, 2000"))*(NQC[Unit Category]=Dashboard!$B14),0))*INDEX(Profiles[],MATCH(1,(Profiles[Month]=MONTH(Month&" 1, 2000"))*(Profiles[Hour Ending]=INT(INDEX(_xlfn.TEXTSPLIT(Dashboard!D$3,," "),2))),0),MATCH(Dashboard!$B14,Profiles[#Headers],0)) -> 2500 | E14: =INDEX(NQC[NQC MW],MATCH(1,(NQC[Month]=MONTH(Month&" 1, 2000"))*(NQC[Unit Category]=Dashboard!$B14),0))*INDEX(Profiles[],MATCH(1,(Profiles[Month]=MONTH(Month&" 1, 2000"))*(Profiles[Hour Ending]=INT(INDEX(_xlfn.TEXTSPLIT(Dashboard!E$3,," "),2))),0),MATCH(Dashboard!$B14,Profiles[#Headers],0)) -> 2500 | F14: =INDEX(NQC[NQC MW],MATCH(1,(NQC[Month]=MONTH(Month&" 1, 2000"))*(NQC[Unit Category]=Dashboard!$B14),0))*INDEX(Profiles[],MATCH(1,(Profiles[Month]=MONTH(Month&" 1, 2000"))*(Profiles[Hour Ending]=INT(INDEX(_xlfn.TEXTSPLIT(Dashboard!F$3,," "),2))),0),MATCH(Dashboard!$B14,Profiles[#Headers],0)) -> 2500 | G14: =INDEX(NQC[NQC MW],MATCH(1,(NQC[Month]=MONTH(Month&" 1, 2000"))*(NQC[Unit Category]=Dashboard!$B14),0))*INDEX(Profiles[],MATCH(1,(Profiles[Month]=MONTH(Month&" 1, 2000"))*(Profiles[Hour Ending]=INT(INDEX(_xlfn.TEXTSPLIT(Dashboard!G$3,," "),2))),0),MATCH(Dashboard!$B14,Profiles[#Headers],0)) -> 2500 | H14: =INDEX(NQC[NQC MW],MATCH(1,(NQC[Month]=MONTH(Month&" 1, 2000"))*(NQC[Unit Category]=Dashboard!$B14),0))*INDEX(Profiles[],MATCH(1,(Profiles[Month]=MONTH(Month&" 1, 2000"))*(Profiles[Hour Ending]=INT(INDEX(_xlfn.TEXTSPLIT(Dashboard!H$3,," "),2))),0),MATCH(Dashboard!$B14,Profiles[#Headers],0)) -> 2500 | I14: =INDEX(NQC[NQC MW],MATCH(1,(NQC[Month]=MONTH(Month&" 1, 2000"))*(NQC[Unit Category]=Dashboard!$B14),0))*INDEX(Profiles[],MATCH(1,(Profiles[Month]=MONTH(Month&" 1, 2000"))*(Profiles[Hour Ending]=INT(INDEX(_xlfn.TEXTSPLIT(Dashboard!I$3,," "),2))),0),MATCH(Dashboard!$B14,Profiles[#Headers],0)) -> 2500 | J14: =INDEX(NQC[NQC MW],MATCH(1,(NQC[Month]=MONTH(Month&" 1, 2000"))*(NQC[Unit Category]=Dashboard!$B14),0))*INDEX(Profiles[],MATCH(1,(Profiles[Month]=MONTH(Month&" 1, 2000"))*(Profiles[Hour Ending]=INT(INDEX(_xlfn.TEXTSPLIT(Dashboard!J$3,," "),2))),0),MATCH(Dashboard!$B14,Profiles[#Headers],0)) -> 2500 | K14: =INDEX(NQC[NQC MW],MATCH(1,(NQC[Month]=MONTH(Month&" 1, 2000"))*(NQC[Unit Category]=Dashboard!$B14),0))*INDEX(Profiles[],MATCH(1,(Profiles[Month]=MONTH(Month&" 1, 2000"))*(Profiles[Hour Ending]=INT(INDEX(_xlfn.TEXTSPLIT(Dashboard!K$3,," "),2))),0),MATCH(Dashboard!$B14,Profiles[#Headers],0)) -> 2500 | L14: =INDEX(NQC[NQC MW],MATCH(1,(NQC[Month]=MONTH(Month&" 1, 2000"))*(NQC[Unit Category]=Dashboard!$B14),0))*INDEX(Profiles[],MATCH(1,(Profiles[Month]=MONTH(Month&" 1, 2000"))*(Profiles[Hour Ending]=INT(INDEX(_xlfn.TEXTSPLIT(Dashboard!L$3,," "),2))),0),MATCH(Dashboard!$B14,Profiles[#Headers],0)) -> 2500 | M14: =INDEX(NQC[NQC MW],MATCH(1,(NQC[Month]=MONTH(Month&" 1, 2000"))*(NQC[Unit Category]=Dashboard!$B14),0))*INDEX(Profiles[],MATCH(1,(Profiles[Month]=MONTH(Month&" 1, 2000"))*(Profiles[Hour Ending]=INT(INDEX(_xlfn.TEXTSPLIT(Dashboard!M$3,," "),2))),0),MATCH(Dashboard!$B14,Profiles[#Headers],0)) -> 2500 | N14: =INDEX(NQC[NQC MW],MATCH(1,(NQC[Month]=MONTH(Month&" 1, 2000"))*(NQC[Unit Category]=Dashboard!$B14),0))*INDEX(Profiles[],MATCH(1,(Profiles[Month]=MONTH(Month&" 1, 2000"))*(Profiles[Hour Ending]=INT(INDEX(_xlfn.TEXTSPLIT(Dashboard!N$3,," "),2))),0),MATCH(Dashboard!$B14,Profiles[#Headers],0)) -> 2500 | O14: =INDEX(NQC[NQC MW],MATCH(1,(NQC[Month]=MONTH(Month&" 1, 2000"))*(NQC[Unit Category]=Dashboard!$B14),0))*INDEX(Profiles[],MATCH(1,(Profiles[Month]=MONTH(Month&" 1, 2000"))*(Profiles[Hour Ending]=INT(INDEX(_xlfn.TEXTSPLIT(Dashboard!O$3,," "),2))),0),MATCH(Dashboard!$B14,Profiles[#Headers],0)) -> 2500 | P14: =INDEX(NQC[NQC MW],MATCH(1,(NQC[Month]=MONTH(Month&" 1, 2000"))*(NQC[Unit Category]=Dashboard!$B14),0))*INDEX(Profiles[],MATCH(1,(Profiles[Month]=MONTH(Month&" 1, 2000"))*(Profiles[Hour Ending]=INT(INDEX(_xlfn.TEXTSPLIT(Dashboard!P$3,," "),2))),0),MATCH(Dashboard!$B14,Profiles[#Headers],0)) -> 2500 | Q14: =INDEX(NQC[NQC MW],MATCH(1,(NQC[Month]=MONTH(Month&" 1, 2000"))*(NQC[Unit Category]=Dashboard!$B14),0))*INDEX(Profiles[],MATCH(1,(Profiles[Month]=MONTH(Month&" 1, 2000"))*(Profiles[Hour Ending]=INT(INDEX(_xlfn.TEXTSPLIT(Dashboard!Q$3,," "),2))),0),MATCH(Dashboard!$B14,Profiles[#Headers],0)) -> 2500 | R14: =INDEX(NQC[NQC MW],MATCH(1,(NQC[Month]=MONTH(Month&" 1, 2000"))*(NQC[Unit Category]=Dashboard!$B14),0))*INDEX(Profiles[],MATCH(1,(Profiles[Month]=MONTH(Month&" 1, 2000"))*(Profiles[Hour Ending]=INT(INDEX(_xlfn.TEXTSPLIT(Dashboard!R$3,," "),2))),0),MATCH(Dashboard!$B14,Profiles[#Headers],0)) -> 2500 | S14: =INDEX(NQC[NQC MW],MATCH(1,(NQC[Month]=MONTH(Month&" 1, 2000"))*(NQC[Unit Category]=Dashboard!$B14),0))*INDEX(Profiles[],MATCH(1,(Profiles[Month]=MONTH(Month&" 1, 2000"))*(Profiles[Hour Ending]=INT(INDEX(_xlfn.TEXTSPLIT(Dashboard!S$3,," "),2))),0),MATCH(Dashboard!$B14,Profiles[#Headers],0)) -> 2500 | T14: =INDEX(NQC[NQC MW],MATCH(1,(NQC[Month]=MONTH(Month&" 1, 2000"))*(NQC[Unit Category]=Dashboard!$B14),0))*INDEX(Profiles[],MATCH(1,(Profiles[Month]=MONTH(Month&" 1, 2000"))*(Profiles[Hour Ending]=INT(INDEX(_xlfn.TEXTSPLIT(Dashboard!T$3,," "),2))),0),MATCH(Dashboard!$B14,Profiles[#Headers],0)) -> 2500 | U14: =INDEX(NQC[NQC MW],MATCH(1,(NQC[Month]=MONTH(Month&" 1, 2000"))*(NQC[Unit Category]=Dashboard!$B14),0))*INDEX(Profiles[],MATCH(1,(Profiles[Month]=MONTH(Month&" 1, 2000"))*(Profiles[Hour Ending]=INT(INDEX(_xlfn.TEXTSPLIT(Dashboard!U$3,," "),2))),0),MATCH(Dashboard!$B14,Profiles[#Headers],0)) -> 2500 | V14: =INDEX(NQC[NQC MW],MATCH(1,(NQC[Month]=MONTH(Month&" 1, 2000"))*(NQC[Unit Category]=Dashboard!$B14),0))*INDEX(Profiles[],MATCH(1,(Profiles[Month]=MONTH(Month&" 1, 2000"))*(Profiles[Hour Ending]=INT(INDEX(_xlfn.TEXTSPLIT(Dashboard!V$3,," "),2))),0),MATCH(Dashboard!$B14,Profiles[#Headers],0)) -> 2500 | W14: =INDEX(NQC[NQC MW],MATCH(1,(NQC[Month]=MONTH(Month&" 1, 2000"))*(NQC[Unit Category]=Dashboard!$B14),0))*INDEX(Profiles[],MATCH(1,(Profiles[Month]=MONTH(Month&" 1, 2000"))*(Profiles[Hour Ending]=INT(INDEX(_xlfn.TEXTSPLIT(Dashboard!W$3,," "),2))),0),MATCH(Dashboard!$B14,Profiles[#Headers],0)) -> 2500 | X14: =INDEX(NQC[NQC MW],MATCH(1,(NQC[Month]=MONTH(Month&" 1, 2000"))*(NQC[Unit Category]=Dashboard!$B14),0))*INDEX(Profiles[],MATCH(1,(Profiles[Month]=MONTH(Month&" 1, 2000"))*(Profiles[Hour Ending]=INT(INDEX(_xlfn.TEXTSPLIT(Dashboard!X$3,," "),2))),0),MATCH(Dashboard!$B14,Profiles[#Headers],0)) -> 2500 | Y14: =INDEX(NQC[NQC MW],MATCH(1,(NQC[Month]=MONTH(Month&" 1, 2000"))*(NQC[Unit Category]=Dashboard!$B14),0))*INDEX(Profiles[],MATCH(1,(Profiles[Month]=MONTH(Month&" 1, 2000"))*(Profiles[Hour Ending]=INT(INDEX(_xlfn.TEXTSPLIT(Dashboard!Y$3,," "),2))),0),MATCH(Dashboard!$B14,Profiles[#Headers],0)) -> 2500 | Z14: =INDEX(NQC[NQC MW],MATCH(1,(NQC[Month]=MONTH(Month&" 1, 2000"))*(NQC[Unit Category]=Dashboard!$B14),0))*INDEX(Profiles[],MATCH(1,(Profiles[Month]=MONTH(Month&" 1, 2000"))*(Profiles[Hour Ending]=INT(INDEX(_xlfn.TEXTSPLIT(Dashboard!Z$3,," "),2))),0),MATCH(Dashboard!$B14,Profiles[#Headers],0)) -> 2500
B15: Nuclear | C15: =INDEX(Supply[Supply],MATCH(1,(Supply[Month]=MONTH(Month&" 1, 2000"))*(Supply[Unit Category]=Dashboard!$B15)*(Supply[Hour Ending]=INT(INDEX(_xlfn.TEXTSPLIT(Dashboard!C$3," "),2))),0)) -> 2280 | D15: =INDEX(NQC[NQC MW],MATCH(1,(NQC[Month]=MONTH(Month&" 1, 2000"))*(NQC[Unit Category]=Dashboard!$B15),0))*INDEX(Profiles[],MATCH(1,(Profiles[Month]=MONTH(Month&" 1, 2000"))*(Profiles[Hour Ending]=INT(INDEX(_xlfn.TEXTSPLIT(Dashboard!D$3,," "),2))),0),MATCH(Dashboard!$B15,Profiles[#Headers],0)) -> 2280 | E15: =INDEX(NQC[NQC MW],MATCH(1,(NQC[Month]=MONTH(Month&" 1, 2000"))*(NQC[Unit Category]=Dashboard!$B15),0))*INDEX(Profiles[],MATCH(1,(Profiles[Month]=MONTH(Month&" 1, 2000"))*(Profiles[Hour Ending]=INT(INDEX(_xlfn.TEXTSPLIT(Dashboard!E$3,," "),2))),0),MATCH(Dashboard!$B15,Profiles[#Headers],0)) -> 2280 | F15: =INDEX(NQC[NQC MW],MATCH(1,(NQC[Month]=MONTH(Month&" 1, 2000"))*(NQC[Unit Category]=Dashboard!$B15),0))*INDEX(Profiles[],MATCH(1,(Profiles[Month]=MONTH(Month&" 1, 2000"))*(Profiles[Hour Ending]=INT(INDEX(_xlfn.TEXTSPLIT(Dashboard!F$3,," "),2))),0),MATCH(Dashboard!$B15,Profiles[#Headers],0)) -> 2280 | G15: =INDEX(NQC[NQC MW],MATCH(1,(NQC[Month]=MONTH(Month&" 1, 2000"))*(NQC[Unit Category]=Dashboard!$B15),0))*INDEX(Profiles[],MATCH(1,(Profiles[Month]=MONTH(Month&" 1, 2000"))*(Profiles[Hour Ending]=INT(INDEX(_xlfn.TEXTSPLIT(Dashboard!G$3,," "),2))),0),MATCH(Dashboard!$B15,Profiles[#Headers],0)) -> 2280 | H15: =INDEX(NQC[NQC MW],MATCH(1,(NQC[Month]=MONTH(Month&" 1, 2000"))*(NQC[Unit Category]=Dashboard!$B15),0))*INDEX(Profiles[],MATCH(1,(Profiles[Month]=MONTH(Month&" 1, 2000"))*(Profiles[Hour Ending]=INT(INDEX(_xlfn.TEXTSPLIT(Dashboard!H$3,," "),2))),0),MATCH(Dashboard!$B15,Profiles[#Headers],0)) -> 2280 | I15: =INDEX(NQC[NQC MW],MATCH(1,(NQC[Month]=MONTH(Month&" 1, 2000"))*(NQC[Unit Category]=Dashboard!$B15),0))*INDEX(Profiles[],MATCH(1,(Profiles[Month]=MONTH(Month&" 1, 2000"))*(Profiles[Hour Ending]=INT(INDEX(_xlfn.TEXTSPLIT(Dashboard!I$3,," "),2))),0),MATCH(Dashboard!$B15,Profiles[#Headers],0)) -> 2280 | J15: =INDEX(NQC[NQC MW],MATCH(1,(NQC[Month]=MONTH(Month&" 1, 2000"))*(NQC[Unit Category]=Dashboard!$B15),0))*INDEX(Profiles[],MATCH(1,(Profiles[Month]=MONTH(Month&" 1, 2000"))*(Profiles[Hour Ending]=INT(INDEX(_xlfn.TEXTSPLIT(Dashboard!J$3,," "),2))),0),MATCH(Dashboard!$B15,Profiles[#Headers],0)) -> 2280 | K15: =INDEX(NQC[NQC MW],MATCH(1,(NQC[Month]=MONTH(Month&" 1, 2000"))*(NQC[Unit Category]=Dashboard!$B15),0))*INDEX(Profiles[],MATCH(1,(Profiles[Month]=MONTH(Month&" 1, 2000"))*(Profiles[Hour Ending]=INT(INDEX(_xlfn.TEXTSPLIT(Dashboard!K$3,," "),2))),0),MATCH(Dashboard!$B15,Profiles[#Headers],0)) -> 2280 | L15: =INDEX(NQC[NQC MW],MATCH(1,(NQC[Month]=MONTH(Month&" 1, 2000"))*(NQC[Unit Category]=Dashboard!$B15),0))*INDEX(Profiles[],MATCH(1,(Profiles[Month]=MONTH(Month&" 1, 2000"))*(Profiles[Hour Ending]=INT(INDEX(_xlfn.TEXTSPLIT(Dashboard!L$3,," "),2))),0),MATCH(Dashboard!$B15,Profiles[#Headers],0)) -> 2280 | M15: =INDEX(NQC[NQC MW],MATCH(1,(NQC[Month]=MONTH(Month&" 1, 2000"))*(NQC[Unit Category]=Dashboard!$B15),0))*INDEX(Profiles[],MATCH(1,(Profiles[Month]=MONTH(Month&" 1, 2000"))*(Profiles[Hour Ending]=INT(INDEX(_xlfn.TEXTSPLIT(Dashboard!M$3,," "),2))),0),MATCH(Dashboard!$B15,Profiles[#Headers],0)) -> 2280 | N15: =INDEX(NQC[NQC MW],MATCH(1,(NQC[Month]=MONTH(Month&" 1, 2000"))*(NQC[Unit Category]=Dashboard!$B15),0))*INDEX(Profiles[],MATCH(1,(Profiles[Month]=MONTH(Month&" 1, 2000"))*(Profiles[Hour Ending]=INT(INDEX(_xlfn.TEXTSPLIT(Dashboard!N$3,," "),2))),0),MATCH(Dashboard!$B15,Profiles[#Headers],0)) -> 2280 | O15: =INDEX(NQC[NQC MW],MATCH(1,(NQC[Month]=MONTH(Month&" 1, 2000"))*(NQC[Unit Category]=Dashboard!$B15),0))*INDEX(Profiles[],MATCH(1,(Profiles[Month]=MONTH(Month&" 1, 2000"))*(Profiles[Hour Ending]=INT(INDEX(_xlfn.TEXTSPLIT(Dashboard!O$3,," "),2))),0),MATCH(Dashboard!$B15,Profiles[#Headers],0)) -> 2280 | P15: =INDEX(NQC[NQC MW],MATCH(1,(NQC[Month]=MONTH(Month&" 1, 2000"))*(NQC[Unit Category]=Dashboard!$B15),0))*INDEX(Profiles[],MATCH(1,(Profiles[Month]=MONTH(Month&" 1, 2000"))*(Profiles[Hour Ending]=INT(INDEX(_xlfn.TEXTSPLIT(Dashboard!P$3,," "),2))),0),MATCH(Dashboard!$B15,Profiles[#Headers],0)) -> 2280 | Q15: =INDEX(NQC[NQC MW],MATCH(1,(NQC[Month]=MONTH(Month&" 1, 2000"))*(NQC[Unit Category]=Dashboard!$B15),0))*INDEX(Profiles[],MATCH(1,(Profiles[Month]=MONTH(Month&" 1, 2000"))*(Profiles[Hour Ending]=INT(INDEX(_xlfn.TEXTSPLIT(Dashboard!Q$3,," "),2))),0),MATCH(Dashboard!$B15,Profiles[#Headers],0)) -> 2280 | R15: =INDEX(NQC[NQC MW],MATCH(1,(NQC[Month]=MONTH(Month&" 1, 2000"))*(NQC[Unit Category]=Dashboard!$B15),0))*INDEX(Profiles[],MATCH(1,(Profiles[Month]=MONTH(Month&" 1, 2000"))*(Profiles[Hour Ending]=INT(INDEX(_xlfn.TEXTSPLIT(Dashboard!R$3,," "),2))),0),MATCH(Dashboard!$B15,Profiles[#Headers],0)) -> 2280 | S15: =INDEX(NQC[NQC MW],MATCH(1,(NQC[Month]=MONTH(Month&" 1, 2000"))*(NQC[Unit Category]=Dashboard!$B15),0))*INDEX(Profiles[],MATCH(1,(Profiles[Month]=MONTH(Month&" 1, 2000"))*(Profiles[Hour Ending]=INT(INDEX(_xlfn.TEXTSPLIT(Dashboard!S$3,," "),2))),0),MATCH(Dashboard!$B15,Profiles[#Headers],0)) -> 2280 | T15: =INDEX(NQC[NQC MW],MATCH(1,(NQC[Month]=MONTH(Month&" 1, 2000"))*(NQC[Unit Category]=Dashboard!$B15),0))*INDEX(Profiles[],MATCH(1,(Profiles[Month]=MONTH(Month&" 1, 2000"))*(Profiles[Hour Ending]=INT(INDEX(_xlfn.TEXTSPLIT(Dashboard!T$3,," "),2))),0),MATCH(Dashboard!$B15,Profiles[#Headers],0)) -> 2280 | U15: =INDEX(NQC[NQC MW],MATCH(1,(NQC[Month]=MONTH(Month&" 1, 2000"))*(NQC[Unit Category]=Dashboard!$B15),0))*INDEX(Profiles[],MATCH(1,(Profiles[Month]=MONTH(Month&" 1, 2000"))*(Profiles[Hour Ending]=INT(INDEX(_xlfn.TEXTSPLIT(Dashboard!U$3,," "),2))),0),MATCH(Dashboard!$B15,Profiles[#Headers],0)) -> 2280 | V15: =INDEX(NQC[NQC MW],MATCH(1,(NQC[Month]=MONTH(Month&" 1, 2000"))*(NQC[Unit Category]=Dashboard!$B15),0))*INDEX(Profiles[],MATCH(1,(Profiles[Month]=MONTH(Month&" 1, 2000"))*(Profiles[Hour Ending]=INT(INDEX(_xlfn.TEXTSPLIT(Dashboard!V$3,," "),2))),0),MATCH(Dashboard!$B15,Profiles[#Headers],0)) -> 2280 | W15: =INDEX(NQC[NQC MW],MATCH(1,(NQC[Month]=MONTH(Month&" 1, 2000"))*(NQC[Unit Category]=Dashboard!$B15),0))*INDEX(Profiles[],MATCH(1,(Profiles[Month]=MONTH(Month&" 1, 2000"))*(Profiles[Hour Ending]=INT(INDEX(_xlfn.TEXTSPLIT(Dashboard!W$3,," "),2))),0),MATCH(Dashboard!$B15,Profiles[#Headers],0)) -> 2280 | X15: =INDEX(NQC[NQC MW],MATCH(1,(NQC[Month]=MONTH(Month&" 1, 2000"))*(NQC[Unit Category]=Dashboard!$B15),0))*INDEX(Profiles[],MATCH(1,(Profiles[Month]=MONTH(Month&" 1, 2000"))*(Profiles[Hour Ending]=INT(INDEX(_xlfn.TEXTSPLIT(Dashboard!X$3,," "),2))),0),MATCH(Dashboard!$B15,Profiles[#Headers],0)) -> 2280 | Y15: =INDEX(NQC[NQC MW],MATCH(1,(NQC[Month]=MONTH(Month&" 1, 2000"))*(NQC[Unit Category]=Dashboard!$B15),0))*INDEX(Profiles[],MATCH(1,(Profiles[Month]=MONTH(Month&" 1, 2000"))*(Profiles[Hour Ending]=INT(INDEX(_xlfn.TEXTSPLIT(Dashboard!Y$3,," "),2))),0),MATCH(Dashboard!$B15,Profiles[#Headers],0)) -> 2280 | Z15: =INDEX(NQC[NQC MW],MATCH(1,(NQC[Month]=MONTH(Month&" 1, 2000"))*(NQC[Unit Category]=Dashboard!$B15),0))*INDEX(Profiles[],MATCH(1,(Profiles[Month]=MONTH(Month&" 1, 2000"))*(Profiles[Hour Ending]=INT(INDEX(_xlfn.TEXTSPLIT(Dashboard!Z$3,," "),2))),0),MATCH(Dashboard!$B15,Profiles[#Headers],0)) -> 2280
B16: PSH | C16: =INDEX(Supply[Supply],MATCH(1,(Supply[Month]=MONTH(Month&" 1, 2000"))*(Supply[Unit Category]=Dashboard!$B16)*(Supply[Hour Ending]=INT(INDEX(_xlfn.TEXTSPLIT(Dashboard!C$3," "),2))),0)) -> 1457 | D16: =INDEX(NQC[NQC MW],MATCH(1,(NQC[Month]=MONTH(Month&" 1, 2000"))*(NQC[Unit Category]=Dashboard!$B16),0))*INDEX(Profiles[],MATCH(1,(Profiles[Month]=MONTH(Month&" 1, 2000"))*(Profiles[Hour Ending]=INT(INDEX(_xlfn.TEXTSPLIT(Dashboard!D$3,," "),2))),0),MATCH(Dashboard!$B16,Profiles[#Headers],0)) -> 1457 | E16: =INDEX(NQC[NQC MW],MATCH(1,(NQC[Month]=MONTH(Month&" 1, 2000"))*(NQC[Unit Category]=Dashboard!$B16),0))*INDEX(Profiles[],MATCH(1,(Profiles[Month]=MONTH(Month&" 1, 2000"))*(Profiles[Hour Ending]=INT(INDEX(_xlfn.TEXTSPLIT(Dashboard!E$3,," "),2))),0),MATCH(Dashboard!$B16,Profiles[#Headers],0)) -> 1457 | F16: =INDEX(NQC[NQC MW],MATCH(1,(NQC[Month]=MONTH(Month&" 1, 2000"))*(NQC[Unit Category]=Dashboard!$B16),0))*INDEX(Profiles[],MATCH(1,(Profiles[Month]=MONTH(Month&" 1, 2000"))*(Profiles[Hour Ending]=INT(INDEX(_xlfn.TEXTSPLIT(Dashboard!F$3,," "),2))),0),MATCH(Dashboard!$B16,Profiles[#Headers],0)) -> 1457 | G16: =INDEX(NQC[NQC MW],MATCH(1,(NQC[Month]=MONTH(Month&" 1, 2000"))*(NQC[Unit Category]=Dashboard!$B16),0))*INDEX(Profiles[],MATCH(1,(Profiles[Month]=MONTH(Month&" 1, 2000"))*(Profiles[Hour Ending]=INT(INDEX(_xlfn.TEXTSPLIT(Dashboard!G$3,," "),2))),0),MATCH(Dashboard!$B16,Profiles[#Headers],0)) -> 1457 | H16: =INDEX(NQC[NQC MW],MATCH(1,(NQC[Month]=MONTH(Month&" 1, 2000"))*(NQC[Unit Category]=Dashboard!$B16),0))*INDEX(Profiles[],MATCH(1,(Profiles[Month]=MONTH(Month&" 1, 2000"))*(Profiles[Hour Ending]=INT(INDEX(_xlfn.TEXTSPLIT(Dashboard!H$3,," "),2))),0),MATCH(Dashboard!$B16,Profiles[#Headers],0)) -> 1457 | I16: =INDEX(NQC[NQC MW],MATCH(1,(NQC[Month]=MONTH(Month&" 1, 2000"))*(NQC[Unit Category]=Dashboard!$B16),0))*INDEX(Profiles[],MATCH(1,(Profiles[Month]=MONTH(Month&" 1, 2000"))*(Profiles[Hour Ending]=INT(INDEX(_xlfn.TEXTSPLIT(Dashboard!I$3,," "),2))),0),MATCH(Dashboard!$B16,Profiles[#Headers],0)) -> 1457 | J16: =INDEX(NQC[NQC MW],MATCH(1,(NQC[Month]=MONTH(Month&" 1, 2000"))*(NQC[Unit Category]=Dashboard!$B16),0))*INDEX(Profiles[],MATCH(1,(Profiles[Month]=MONTH(Month&" 1, 2000"))*(Profiles[Hour Ending]=INT(INDEX(_xlfn.TEXTSPLIT(Dashboard!J$3,," "),2))),0),MATCH(Dashboard!$B16,Profiles[#Headers],0)) -> 1457 | K16: =INDEX(NQC[NQC MW],MATCH(1,(NQC[Month]=MONTH(Month&" 1, 2000"))*(NQC[Unit Category]=Dashboard!$B16),0))*INDEX(Profiles[],MATCH(1,(Profiles[Month]=MONTH(Month&" 1, 2000"))*(Profiles[Hour Ending]=INT(INDEX(_xlfn.TEXTSPLIT(Dashboard!K$3,," "),2))),0),MATCH(Dashboard!$B16,Profiles[#Headers],0)) -> 1457 | L16: =INDEX(NQC[NQC MW],MATCH(1,(NQC[Month]=MONTH(Month&" 1, 2000"))*(NQC[Unit Category]=Dashboard!$B16),0))*INDEX(Profiles[],MATCH(1,(Profiles[Month]=MONTH(Month&" 1, 2000"))*(Profiles[Hour Ending]=INT(INDEX(_xlfn.TEXTSPLIT(Dashboard!L$3,," "),2))),0),MATCH(Dashboard!$B16,Profiles[#Headers],0)) -> 1457 | M16: =INDEX(NQC[NQC MW],MATCH(1,(NQC[Month]=MONTH(Month&" 1, 2000"))*(NQC[Unit Category]=Dashboard!$B16),0))*INDEX(Profiles[],MATCH(1,(Profiles[Month]=MONTH(Month&" 1, 2000"))*(Profiles[Hour Ending]=INT(INDEX(_xlfn.TEXTSPLIT(Dashboard!M$3,," "),2))),0),MATCH(Dashboard!$B16,Profiles[#Headers],0)) -> 1457 | N16: =INDEX(NQC[NQC MW],MATCH(1,(NQC[Month]=MONTH(Month&" 1, 2000"))*(NQC[Unit Category]=Dashboard!$B16),0))*INDEX(Profiles[],MATCH(1,(Profiles[Month]=MONTH(Month&" 1, 2000"))*(Profiles[Hour Ending]=INT(INDEX(_xlfn.TEXTSPLIT(Dashboard!N$3,," "),2))),0),MATCH(Dashboard!$B16,Profiles[#Headers],0)) -> 1457 | O16: =INDEX(NQC[NQC MW],MATCH(1,(NQC[Month]=MONTH(Month&" 1, 2000"))*(NQC[Unit Category]=Dashboard!$B16),0))*INDEX(Profiles[],MATCH(1,(Profiles[Month]=MONTH(Month&" 1, 2000"))*(Profiles[Hour Ending]=INT(INDEX(_xlfn.TEXTSPLIT(Dashboard!O$3,," "),2))),0),MATCH(Dashboard!$B16,Profiles[#Headers],0)) -> 1457 | P16: =INDEX(NQC[NQC MW],MATCH(1,(NQC[Month]=MONTH(Month&" 1, 2000"))*(NQC[Unit Category]=Dashboard!$B16),0))*INDEX(Profiles[],MATCH(1,(Profiles[Month]=MONTH(Month&" 1, 2000"))*(Profiles[Hour Ending]=INT(INDEX(_xlfn.TEXTSPLIT(Dashboard!P$3,," "),2))),0),MATCH(Dashboard!$B16,Profiles[#Headers],0)) -> 1457 | Q16: =INDEX(NQC[NQC MW],MATCH(1,(NQC[Month]=MONTH(Month&" 1, 2000"))*(NQC[Unit Category]=Dashboard!$B16),0))*INDEX(Profiles[],MATCH(1,(Profiles[Month]=MONTH(Month&" 1, 2000"))*(Profiles[Hour Ending]=INT(INDEX(_xlfn.TEXTSPLIT(Dashboard!Q$3,," "),2))),0),MATCH(Dashboard!$B16,Profiles[#Headers],0)) -> 1457 | R16: =INDEX(NQC[NQC MW],MATCH(1,(NQC[Month]=MONTH(Month&" 1, 2000"))*(NQC[Unit Category]=Dashboard!$B16),0))*INDEX(Profiles[],MATCH(1,(Profiles[Month]=MONTH(Month&" 1, 2000"))*(Profiles[Hour Ending]=INT(INDEX(_xlfn.TEXTSPLIT(Dashboard!R$3,," "),2))),0),MATCH(Dashboard!$B16,Profiles[#Headers],0)) -> 1457 | S16: =INDEX(NQC[NQC MW],MATCH(1,(NQC[Month]=MONTH(Month&" 1, 2000"))*(NQC[Unit Category]=Dashboard!$B16),0))*INDEX(Profiles[],MATCH(1,(Profiles[Month]=MONTH(Month&" 1, 2000"))*(Profiles[Hour Ending]=INT(INDEX(_xlfn.TEXTSPLIT(Dashboard!S$3,," "),2))),0),MATCH(Dashboard!$B16,Profiles[#Headers],0)) -> 1457 | T16: =INDEX(NQC[NQC MW],MATCH(1,(NQC[Month]=MONTH(Month&" 1, 2000"))*(NQC[Unit Category]=Dashboard!$B16),0))*INDEX(Profiles[],MATCH(1,(Profiles[Month]=MONTH(Month&" 1, 2000"))*(Profiles[Hour Ending]=INT(INDEX(_xlfn.TEXTSPLIT(Dashboard!T$3,," "),2))),0),MATCH(Dashboard!$B16,Profiles[#Headers],0)) -> 1457 | U16: =INDEX(NQC[NQC MW],MATCH(1,(NQC[Month]=MONTH(Month&" 1, 2000"))*(NQC[Unit Category]=Dashboard!$B16),0))*INDEX(Profiles[],MATCH(1,(Profiles[Month]=MONTH(Month&" 1, 2000"))*(Profiles[Hour Ending]=INT(INDEX(_xlfn.TEXTSPLIT(Dashboard!U$3,," "),2))),0),MATCH(Dashboard!$B16,Profiles[#Headers],0)) -> 1457 | V16: =INDEX(NQC[NQC MW],MATCH(1,(NQC[Month]=MONTH(Month&" 1, 2000"))*(NQC[Unit Category]=Dashboard!$B16),0))*INDEX(Profiles[],MATCH(1,(Profiles[Month]=MONTH(Month&" 1, 2000"))*(Profiles[Hour Ending]=INT(INDEX(_xlfn.TEXTSPLIT(Dashboard!V$3,," "),2))),0),MATCH(Dashboard!$B16,Profiles[#Headers],0)) -> 1457 | W16: =INDEX(NQC[NQC MW],MATCH(1,(NQC[Month]=MONTH(Month&" 1, 2000"))*(NQC[Unit Category]=Dashboard!$B16),0))*INDEX(Profiles[],MATCH(1,(Profiles[Month]=MONTH(Month&" 1, 2000"))*(Profiles[Hour Ending]=INT(INDEX(_xlfn.TEXTSPLIT(Dashboard!W$3,," "),2))),0),MATCH(Dashboard!$B16,Profiles[#Headers],0)) -> 1457 | X16: =INDEX(NQC[NQC MW],MATCH(1,(NQC[Month]=MONTH(Month&" 1, 2000"))*(NQC[Unit Category]=Dashboard!$B16),0))*INDEX(Profiles[],MATCH(1,(Profiles[Month]=MONTH(Month&" 1, 2000"))*(Profiles[Hour Ending]=INT(INDEX(_xlfn.TEXTSPLIT(Dashboard!X$3,," "),2))),0),MATCH(Dashboard!$B16,Profiles[#Headers],0)) -> 1457 | Y16: =INDEX(NQC[NQC MW],MATCH(1,(NQC[Month]=MONTH(Month&" 1, 2000"))*(NQC[Unit Category]=Dashboard!$B16),0))*INDEX(Profiles[],MATCH(1,(Profiles[Month]=MONTH(Month&" 1, 2000"))*(Profiles[Hour Ending]=INT(INDEX(_xlfn.TEXTSPLIT(Dashboard!Y$3,," "),2))),0),MATCH(Dashboard!$B16,Profiles[#Headers],0)) -> 1457 | Z16: =INDEX(NQC[NQC MW],MATCH(1,(NQC[Month]=MONTH(Month&" 1, 2000"))*(NQC[Unit Category]=Dashboard!$B16),0))*INDEX(Profiles[],MATCH(1,(Profiles[Month]=MONTH(Month&" 1, 2000"))*(Profiles[Hour Ending]=INT(INDEX(_xlfn.TEXTSPLIT(Dashboard!Z$3,," "),2))),0),MATCH(Dashboard!$B16,Profiles[#Headers],0)) -> 1457
B17: Storage | C17: =INDEX(StorageAllocation[Storage (MW)],MATCH(1,(StorageAllocation[Month]=MONTH(Month&" 1, 2000"))*(StorageAllocation[Hour Ending]=INT(INDEX(_xlfn.TEXTSPLIT(Dashboard!C$3," "),2))),0)) -> 2221.139069 | D17: =INDEX(StorageAllocation[Storage (MW)],MATCH(1,(StorageAllocation[Month]=MONTH(Month&" 1, 2000"))*(StorageAllocation[Hour Ending]=INT(INDEX(_xlfn.TEXTSPLIT(Dashboard!D$3," "),2))),0)) -> 653.9144282 | E17: =INDEX(StorageAllocation[Storage (MW)],MATCH(1,(StorageAllocation[Month]=MONTH(Month&" 1, 2000"))*(StorageAllocation[Hour Ending]=INT(INDEX(_xlfn.TEXTSPLIT(Dashboard!E$3," "),2))),0)) -> 0 | F17: =INDEX(StorageAllocation[Storage (MW)],MATCH(1,(StorageAllocation[Month]=MONTH(Month&" 1, 2000"))*(StorageAllocation[Hour Ending]=INT(INDEX(_xlfn.TEXTSPLIT(Dashboard!F$3," "),2))),0)) -> 0 | G17: =INDEX(StorageAllocation[Storage (MW)],MATCH(1,(StorageAllocation[Month]=MONTH(Month&" 1, 2000"))*(StorageAllocation[Hour Ending]=INT(INDEX(_xlfn.TEXTSPLIT(Dashboard!G$3," "),2))),0)) -> 0 | H17: =INDEX(StorageAllocation[Storage (MW)],MATCH(1,(StorageAllocation[Month]=MONTH(Month&" 1, 2000"))*(StorageAllocation[Hour Ending]=INT(INDEX(_xlfn.TEXTSPLIT(Dashboard!H$3," "),2))),0)) -> 1147.26872 | I17: =INDEX(StorageAllocation[Storage (MW)],MATCH(1,(StorageAllocation[Month]=MONTH(Month&" 1, 2000"))*(StorageAllocation[Hour Ending]=INT(INDEX(_xlfn.TEXTSPLIT(Dashboard!I$3," "),2))),0)) -> 4194.145009 | J17: =INDEX(StorageAllocation[Storage (MW)],MATCH(1,(StorageAllocation[Month]=MONTH(Month&" 1, 2000"))*(StorageAllocation[Hour Ending]=INT(INDEX(_xlfn.TEXTSPLIT(Dashboard!J$3," "),2))),0)) -> 4145.083318 | K17: =INDEX(StorageAllocation[Storage (MW)],MATCH(1,(StorageAllocation[Month]=MONTH(Month&" 1, 2000"))*(StorageAllocation[Hour Ending]=INT(INDEX(_xlfn.TEXTSPLIT(Dashboard!K$3," "),2))),0)) -> 0 | L17: =INDEX(StorageAllocation[Storage (MW)],MATCH(1,(StorageAllocation[Month]=MONTH(Month&" 1, 2000"))*(StorageAllocation[Hour Ending]=INT(INDEX(_xlfn.TEXTSPLIT(Dashboard!L$3," "),2))),0)) -> 0 | M17: =INDEX(StorageAllocation[Storage (MW)],MATCH(1,(StorageAllocation[Month]=MONTH(Month&" 1, 2000"))*(StorageAllocation[Hour Ending]=INT(INDEX(_xlfn.TEXTSPLIT(Dashboard!M$3," "),2))),0)) -> 0 | N17: =INDEX(StorageAllocation[Storage (MW)],MATCH(1,(StorageAllocation[Month]=MONTH(Month&" 1, 2000"))*(StorageAllocation[Hour Ending]=INT(INDEX(_xlfn.TEXTSPLIT(Dashboard!N$3," "),2))),0)) -> 0 | O17: =INDEX(StorageAllocation[Storage (MW)],MATCH(1,(StorageAllocation[Month]=MONTH(Month&" 1, 2000"))*(StorageAllocation[Hour Ending]=INT(INDEX(_xlfn.TEXTSPLIT(Dashboard!O$3," "),2))),0)) -> 0 | P17: =INDEX(StorageAllocation[Storage (MW)],MATCH(1,(StorageAllocation[Month]=MONTH(Month&" 1, 2000"))*(StorageAllocation[Hour Ending]=INT(INDEX(_xlfn.TEXTSPLIT(Dashboard!P$3," "),2))),0)) -> 0 | Q17: =INDEX(StorageAllocation[Storage (MW)],MATCH(1,(StorageAllocation[Month]=MONTH(Month&" 1, 2000"))*(StorageAllocation[Hour Ending]=INT(INDEX(_xlfn.TEXTSPLIT(Dashboard!Q$3," "),2))),0)) -> 0 | R17: =INDEX(StorageAllocation[Storage (MW)],MATCH(1,(StorageAllocation[Month]=MONTH(Month&" 1, 2000"))*(StorageAllocation[Hour Ending]=INT(INDEX(_xlfn.TEXTSPLIT(Dashboard!R$3," "),2))),0)) -> 0 | S17: =INDEX(StorageAllocation[Storage (MW)],MATCH(1,(StorageAllocation[Month]=MONTH(Month&" 1, 2000"))*(StorageAllocation[Hour Ending]=INT(INDEX(_xlfn.TEXTSPLIT(Dashboard!S$3," "),2))),0)) -> 2775.953257 | T17: =INDEX(StorageAllocation[Storage (MW)],MATCH(1,(StorageAllocation[Month]=MONTH(Month&" 1, 2000"))*(StorageAllocation[Hour Ending]=INT(INDEX(_xlfn.TEXTSPLIT(Dashboard!T$3," "),2))),0)) -> 5761.195234 | U17: =INDEX(StorageAllocation[Storage (MW)],MATCH(1,(StorageAllocation[Month]=MONTH(Month&" 1, 2000"))*(StorageAllocation[Hour Ending]=INT(INDEX(_xlfn.TEXTSPLIT(Dashboard!U$3," "),2))),0)) -> 5886.236487 | V17: =INDEX(StorageAllocation[Storage (MW)],MATCH(1,(StorageAllocation[Month]=MONTH(Month&" 1, 2000"))*(StorageAllocation[Hour Ending]=INT(INDEX(_xlfn.TEXTSPLIT(Dashboard!V$3," "),2))),0)) -> 5774.523648 | W17: =INDEX(StorageAllocation[Storage (MW)],MATCH(1,(StorageAllocation[Month]=MONTH(Month&" 1, 2000"))*(StorageAllocation[Hour Ending]=INT(INDEX(_xlfn.TEXTSPLIT(Dashboard!W$3," "),2))),0)) -> 5113.507654 | X17: =INDEX(StorageAllocation[Storage (MW)],MATCH(1,(StorageAllocation[Month]=MONTH(Month&" 1, 2000"))*(StorageAllocation[Hour Ending]=INT(INDEX(_xlfn.TEXTSPLIT(Dashboard!X$3," "),2))),0)) -> 6095.948168 | Y17: =INDEX(StorageAllocation[Storage (MW)],MATCH(1,(StorageAllocation[Month]=MONTH(Month&" 1, 2000"))*(StorageAllocation[Hour Ending]=INT(INDEX(_xlfn.TEXTSPLIT(Dashboard!Y$3," "),2))),0)) -> 4832.600549 | Z17: =INDEX(StorageAllocation[Storage (MW)],MATCH(1,(StorageAllocation[Month]=MONTH(Month&" 1, 2000"))*(StorageAllocation[Hour Ending]=INT(INDEX(_xlfn.TEXTSPLIT(Dashboard!Z$3," "),2))),0)) -> 3869.295986
B18: Solar Fixed_Norcal | C18: =INDEX(Supply[Supply],MATCH(1,(Supply[Month]=MONTH(Month&" 1, 2000"))*(Supply[Unit Category]=Dashboard!$B18)*(Supply[Hour Ending]=INT(INDEX(_xlfn.TEXTSPLIT(Dashboard!C$3," "),2))),0)) -> 0 | D18: =INDEX(NQC[NQC MW],MATCH(1,(NQC[Month]=MONTH(Month&" 1, 2000"))*(NQC[Unit Category]=Dashboard!$B18),0))*INDEX(Profiles[],MATCH(1,(Profiles[Month]=MONTH(Month&" 1, 2000"))*(Profiles[Hour Ending]=INT(INDEX(_xlfn.TEXTSPLIT(Dashboard!D$3,," "),2))),0),MATCH(Dashboard!$B18,Profiles[#Headers],0)) -> 0 | E18: =INDEX(NQC[NQC MW],MATCH(1,(NQC[Month]=MONTH(Month&" 1, 2000"))*(NQC[Unit Category]=Dashboard!$B18),0))*INDEX(Profiles[],MATCH(1,(Profiles[Month]=MONTH(Month&" 1, 2000"))*(Profiles[Hour Ending]=INT(INDEX(_xlfn.TEXTSPLIT(Dashboard!E$3,," "),2))),0),MATCH(Dashboard!$B18,Profiles[#Headers],0)) -> 0 | F18: =INDEX(NQC[NQC MW],MATCH(1,(NQC[Month]=MONTH(Month&" 1, 2000"))*(NQC[Unit Category]=Dashboard!$B18),0))*INDEX(Profiles[],MATCH(1,(Profiles[Month]=MONTH(Month&" 1, 2000"))*(Profiles[Hour Ending]=INT(INDEX(_xlfn.TEXTSPLIT(Dashboard!F$3,," "),2))),0),MATCH(Dashboard!$B18,Profiles[#Headers],0)) -> 0 | G18: =INDEX(NQC[NQC MW],MATCH(1,(NQC[Month]=MONTH(Month&" 1, 2000"))*(NQC[Unit Category]=Dashboard!$B18),0))*INDEX(Profiles[],MATCH(1,(Profiles[Month]=MONTH(Month&" 1, 2000"))*(Profiles[Hour Ending]=INT(INDEX(_xlfn.TEXTSPLIT(Dashboard!G$3,," "),2))),0),MATCH(Dashboard!$B18,Profiles[#Headers],0)) -> 0 | H18: =INDEX(NQC[NQC MW],MATCH(1,(NQC[Month]=MONTH(Month&" 1, 2000"))*(NQC[Unit Category]=Dashboard!$B18),0))*INDEX(Profiles[],MATCH(1,(Profiles[Month]=MONTH(Month&" 1, 2000"))*(Profiles[Hour Ending]=INT(INDEX(_xlfn.TEXTSPLIT(Dashboard!H$3,," "),2))),0),MATCH(Dashboard!$B18,Profiles[#Headers],0)) -> 0 | I18: =INDEX(NQC[NQC MW],MATCH(1,(NQC[Month]=MONTH(Month&" 1, 2000"))*(NQC[Unit Category]=Dashboard!$B18),0))*INDEX(Profiles[],MATCH(1,(Profiles[Month]=MONTH(Month&" 1, 2000"))*(Profiles[Hour Ending]=INT(INDEX(_xlfn.TEXTSPLIT(Dashboard!I$3,," "),2))),0),MATCH(Dashboard!$B18,Profiles[#Headers],0)) -> 0 | J18: =INDEX(NQC[NQC MW],MATCH(1,(NQC[Month]=MONTH(Month&" 1, 2000"))*(NQC[Unit Category]=Dashboard!$B18),0))*INDEX(Profiles[],MATCH(1,(Profiles[Month]=MONTH(Month&" 1, 2000"))*(Profiles[Hour Ending]=INT(INDEX(_xlfn.TEXTSPLIT(Dashboard!J$3,," "),2))),0),MATCH(Dashboard!$B18,Profiles[#Headers],0)) -> 68.98101206 | K18: =INDEX(NQC[NQC MW],MATCH(1,(NQC[Month]=MONTH(Month&" 1, 2000"))*(NQC[Unit Category]=Dashboard!$B18),0))*INDEX(Profiles[],MATCH(1,(Profiles[Month]=MONTH(Month&" 1, 2000"))*(Profiles[Hour Ending]=INT(INDEX(_xlfn.TEXTSPLIT(Dashboard!K$3,," "),2))),0),MATCH(Dashboard!$B18,Profiles[#Headers],0)) -> 358.554612 | L18: =INDEX(NQC[NQC MW],MATCH(1,(NQC[Month]=MONTH(Month&" 1, 2000"))*(NQC[Unit Category]=Dashboard!$B18),0))*INDEX(Profiles[],MATCH(1,(Profiles[Month]=MONTH(Month&" 1, 2000"))*(Profiles[Hour Ending]=INT(INDEX(_xlfn.TEXTSPLIT(Dashboard!L$3,," "),2))),0),MATCH(Dashboard!$B18,Profiles[#Headers],0)) -> 695.8283258 | M18: =INDEX(NQC[NQC MW],MATCH(1,(NQC[Month]=MONTH(Month&" 1, 2000"))*(NQC[Unit Category]=Dashboard!$B18),0))*INDEX(Profiles[],MATCH(1,(Profiles[Month]=MONTH(Month&" 1, 2000"))*(Profiles[Hour Ending]=INT(INDEX(_xlfn.TEXTSPLIT(Dashboard!M$3,," "),2))),0),MATCH(Dashboard!$B18,Profiles[#Headers],0)) -> 881.5068889 | N18: =INDEX(NQC[NQC MW],MATCH(1,(NQC[Month]=MONTH(Month&" 1, 2000"))*(NQC[Unit Category]=Dashboard!$B18),0))*INDEX(Profiles[],MATCH(1,(Profiles[Month]=MONTH(Month&" 1, 2000"))*(Profiles[Hour Ending]=INT(INDEX(_xlfn.TEXTSPLIT(Dashboard!N$3,," "),2))),0),MATCH(Dashboard!$B18,Profiles[#Headers],0)) -> 965.5152617 | O18: =INDEX(NQC[NQC MW],MATCH(1,(NQC[Month]=MONTH(Month&" 1, 2000"))*(NQC[Unit Category]=Dashboard!$B18),0))*INDEX(Profiles[],MATCH(1,(Profiles[Month]=MONTH(Month&" 1, 2000"))*(Profiles[Hour Ending]=INT(INDEX(_xlfn.TEXTSPLIT(Dashboard!O$3,," "),2))),0),MATCH(Dashboard!$B18,Profiles[#Headers],0)) -> 941.3472326 | P18: =INDEX(NQC[NQC MW],MATCH(1,(NQC[Month]=MONTH(Month&" 1, 2000"))*(NQC[Unit Category]=Dashboard!$B18),0))*INDEX(Profiles[],MATCH(1,(Profiles[Month]=MONTH(Month&" 1, 2000"))*(Profiles[Hour Ending]=INT(INDEX(_xlfn.TEXTSPLIT(Dashboard!P$3,," "),2))),0),MATCH(Dashboard!$B18,Profiles[#Headers],0)) -> 869.2784556 | Q18: =INDEX(NQC[NQC MW],MATCH(1,(NQC[Month]=MONTH(Month&" 1, 2000"))*(NQC[Unit Category]=Dashboard!$B18),0))*INDEX(Profiles[],MATCH(1,(Profiles[Month]=MONTH(Month&" 1, 2000"))*(Profiles[Hour Ending]=INT(INDEX(_xlfn.TEXTSPLIT(Dashboard!Q$3,," "),2))),0),MATCH(Dashboard!$B18,Profiles[#Headers],0)) -> 750.0343194 | R18: =INDEX(NQC[NQC MW],MATCH(1,(NQC[Month]=MONTH(Month&" 1, 2000"))*(NQC[Unit Category]=Dashboard!$B18),0))*INDEX(Profiles[],MATCH(1,(Profiles[Month]=MONTH(Month&" 1, 2000"))*(Profiles[Hour Ending]=INT(INDEX(_xlfn.TEXTSPLIT(Dashboard!R$3,," "),2))),0),MATCH(Dashboard!$B18,Profiles[#Headers],0)) -> 423.3818797 | S18: =INDEX(NQC[NQC MW],MATCH(1,(NQC[Month]=MONTH(Month&" 1, 2000"))*(NQC[Unit Category]=Dashboard!$B18),0))*INDEX(Profiles[],MATCH(1,(Profiles[Month]=MONTH(Month&" 1, 2000"))*(Profiles[Hour Ending]=INT(INDEX(_xlfn.TEXTSPLIT(Dashboard!S$3,," "),2))),0),MATCH(Dashboard!$B18,Profiles[#Headers],0)) -> 53.87037051 | T18: =INDEX(NQC[NQC MW],MATCH(1,(NQC[Month]=MONTH(Month&" 1, 2000"))*(NQC[Unit Category]=Dashboard!$B18),0))*INDEX(Profiles[],MATCH(1,(Profiles[Month]=MONTH(Month&" 1, 2000"))*(Profiles[Hour Ending]=INT(INDEX(_xlfn.TEXTSPLIT(Dashboard!T$3,," "),2))),0),MATCH(Dashboard!$B18,Profiles[#Headers],0)) -> 0 | U18: =INDEX(NQC[NQC MW],MATCH(1,(NQC[Month]=MONTH(Month&" 1, 2000"))*(NQC[Unit Category]=Dashboard!$B18),0))*INDEX(Profiles[],MATCH(1,(Profiles[Month]=MONTH(Month&" 1, 2000"))*(Profiles[Hour Ending]=INT(INDEX(_xlfn.TEXTSPLIT(Dashboard!U$3,," "),2))),0),MATCH(Dashboard!$B18,Profiles[#Headers],0)) -> 0 | V18: =INDEX(NQC[NQC MW],MATCH(1,(NQC[Month]=MONTH(Month&" 1, 2000"))*(NQC[Unit Category]=Dashboard!$B18),0))*INDEX(Profiles[],MATCH(1,(Profiles[Month]=MONTH(Month&" 1, 2000"))*(Profiles[Hour Ending]=INT(INDEX(_xlfn.TEXTSPLIT(Dashboard!V$3,," "),2))),0),MATCH(Dashboard!$B18,Profiles[#Headers],0)) -> 0 | W18: =INDEX(NQC[NQC MW],MATCH(1,(NQC[Month]=MONTH(Month&" 1, 2000"))*(NQC[Unit Category]=Dashboard!$B18),0))*INDEX(Profiles[],MATCH(1,(Profiles[Month]=MONTH(Month&" 1, 2000"))*(Profiles[Hour Ending]=INT(INDEX(_xlfn.TEXTSPLIT(Dashboard!W$3,," "),2))),0),MATCH(Dashboard!$B18,Profiles[#Headers],0)) -> 0 | X18: =INDEX(NQC[NQC MW],MATCH(1,(NQC[Month]=MONTH(Month&" 1, 2000"))*(NQC[Unit Category]=Dashboard!$B18),0))*INDEX(Profiles[],MATCH(1,(Profiles[Month]=MONTH(Month&" 1, 2000"))*(Profiles[Hour Ending]=INT(INDEX(_xlfn.TEXTSPLIT(Dashboard!X$3,," "),2))),0),MATCH(Dashboard!$B18,Profiles[#Headers],0)) -> 0 | Y18: =INDEX(NQC[NQC MW],MATCH(1,(NQC[Month]=MONTH(Month&" 1, 2000"))*(NQC[Unit Category]=Dashboard!$B18),0))*INDEX(Profiles[],MATCH(1,(Profiles[Month]=MONTH(Month&" 1, 2000"))*(Profiles[Hour Ending]=INT(INDEX(_xlfn.TEXTSPLIT(Dashboard!Y$3,," "),2))),0),MATCH(Dashboard!$B18,Profiles[#Headers],0)) -> 0 | Z18: =INDEX(NQC[NQC MW],MATCH(1,(NQC[Month]=MONTH(Month&" 1, 2000"))*(NQC[Unit Category]=Dashboard!$B18),0))*INDEX(Profiles[],MATCH(1,(Profiles[Month]=MONTH(Month&" 1, 2000"))*(Profiles[Hour Ending]=INT(INDEX(_xlfn.TEXTSPLIT(Dashboard!Z$3,," "),2))),0),MATCH(Dashboard!$B18,Profiles[#Headers],0)) -> 0
B19: Solar Fixed_Socal | C19: =INDEX(Supply[Supply],MATCH(1,(Supply[Month]=MONTH(Month&" 1, 2000"))*(Supply[Unit Category]=Dashboard!$B19)*(Supply[Hour Ending]=INT(INDEX(_xlfn.TEXTSPLIT(Dashboard!C$3," "),2))),0)) -> 0.002491268618 | D19: =INDEX(NQC[NQC MW],MATCH(1,(NQC[Month]=MONTH(Month&" 1, 2000"))*(NQC[Unit Category]=Dashboard!$B19),0))*INDEX(Profiles[],MATCH(1,(Profiles[Month]=MONTH(Month&" 1, 2000"))*(Profiles[Hour Ending]=INT(INDEX(_xlfn.TEXTSPLIT(Dashboard!D$3,," "),2))),0),MATCH(Dashboard!$B19,Profiles[#Headers],0)) -> -0.0001717945627 | E19: =INDEX(NQC[NQC MW],MATCH(1,(NQC[Month]=MONTH(Month&" 1, 2000"))*(NQC[Unit Category]=Dashboard!$B19),0))*INDEX(Profiles[],MATCH(1,(Profiles[Month]=MONTH(Month&" 1, 2000"))*(Profiles[Hour Ending]=INT(INDEX(_xlfn.TEXTSPLIT(Dashboard!E$3,," "),2))),0),MATCH(Dashboard!$B19,Profiles[#Headers],0)) -> -0.002673812919 | F19: =INDEX(NQC[NQC MW],MATCH(1,(NQC[Month]=MONTH(Month&" 1, 2000"))*(NQC[Unit Category]=Dashboard!$B19),0))*INDEX(Profiles[],MATCH(1,(Profiles[Month]=MONTH(Month&" 1, 2000"))*(Profiles[Hour Ending]=INT(INDEX(_xlfn.TEXTSPLIT(Dashboard!F$3,," "),2))),0),MATCH(Dashboard!$B19,Profiles[#Headers],0)) -> -0.003289622112 | G19: =INDEX(NQC[NQC MW],MATCH(1,(NQC[Month]=MONTH(Month&" 1, 2000"))*(NQC[Unit Category]=Dashboard!$B19),0))*INDEX(Profiles[],MATCH(1,(Profiles[Month]=MONTH(Month&" 1, 2000"))*(Profiles[Hour Ending]=INT(INDEX(_xlfn.TEXTSPLIT(Dashboard!G$3,," "),2))),0),MATCH(Dashboard!$B19,Profiles[#Headers],0)) -> -0.001867190659 | H19: =INDEX(NQC[NQC MW],MATCH(1,(NQC[Month]=MONTH(Month&" 1, 2000"))*(NQC[Unit Category]=Dashboard!$B19),0))*INDEX(Profiles[],MATCH(1,(Profiles[Month]=MONTH(Month&" 1, 2000"))*(Profiles[Hour Ending]=INT(INDEX(_xlfn.TEXTSPLIT(Dashboard!H$3,," "),2))),0),MATCH(Dashboard!$B19,Profiles[#Headers],0)) -> -0.0009584664882 | I19: =INDEX(NQC[NQC MW],MATCH(1,(NQC[Month]=MONTH(Month&" 1, 2000"))*(NQC[Unit Category]=Dashboard!$B19),0))*INDEX(Profiles[],MATCH(1,(Profiles[Month]=MONTH(Month&" 1, 2000"))*(Profiles[Hour Ending]=INT(INDEX(_xlfn.TEXTSPLIT(Dashboard!I$3,," "),2))),0),MATCH(Dashboard!$B19,Profiles[#Headers],0)) -> 15.61693302 | J19: =INDEX(NQC[NQC MW],MATCH(1,(NQC[Month]=MONTH(Month&" 1, 2000"))*(NQC[Unit Category]=Dashboard!$B19),0))*INDEX(Profiles[],MATCH(1,(Profiles[Month]=MONTH(Month&" 1, 2000"))*(Profiles[Hour Ending]=INT(INDEX(_xlfn.TEXTSPLIT(Dashboard!J$3,," "),2))),0),MATCH(Dashboard!$B19,Profiles[#Headers],0)) -> 561.0110258 | K19: =INDEX(NQC[NQC MW],MATCH(1,(NQC[Month]=MONTH(Month&" 1, 2000"))*(NQC[Unit Category]=Dashboard!$B19),0))*INDEX(Profiles[],MATCH(1,(Profiles[Month]=MONTH(Month&" 1, 2000"))*(Profiles[Hour Ending]=INT(INDEX(_xlfn.TEXTSPLIT(Dashboard!K$3,," "),2))),0),MATCH(Dashboard!$B19,Profiles[#Headers],0)) -> 1633.713322 | L19: =INDEX(NQC[NQC MW],MATCH(1,(NQC[Month]=MONTH(Month&" 1, 2000"))*(NQC[Unit Category]=Dashboard!$B19),0))*INDEX(Profiles[],MATCH(1,(Profiles[Month]=MONTH(Month&" 1, 2000"))*(Profiles[Hour Ending]=INT(INDEX(_xlfn.TEXTSPLIT(Dashboard!L$3,," "),2))),0),MATCH(Dashboard!$B19,Profiles[#Headers],0)) -> 2207.968999 | M19: =INDEX(NQC[NQC MW],MATCH(1,(NQC[Month]=MONTH(Month&" 1, 2000"))*(NQC[Unit Category]=Dashboard!$B19),0))*INDEX(Profiles[],MATCH(1,(Profiles[Month]=MONTH(Month&" 1, 2000"))*(Profiles[Hour Ending]=INT(INDEX(_xlfn.TEXTSPLIT(Dashboard!M$3,," "),2))),0),MATCH(Dashboard!$B19,Profiles[#Headers],0)) -> 2403.72476 | N19: =INDEX(NQC[NQC MW],MATCH(1,(NQC[Month]=MONTH(Month&" 1, 2000"))*(NQC[Unit Category]=Dashboard!$B19),0))*INDEX(Profiles[],MATCH(1,(Profiles[Month]=MONTH(Month&" 1, 2000"))*(Profiles[Hour Ending]=INT(INDEX(_xlfn.TEXTSPLIT(Dashboard!N$3,," "),2))),0),MATCH(Dashboard!$B19,Profiles[#Headers],0)) -> 2534.797758 | O19: =INDEX(NQC[NQC MW],MATCH(1,(NQC[Month]=MONTH(Month&" 1, 2000"))*(NQC[Unit Category]=Dashboard!$B19),0))*INDEX(Profiles[],MATCH(1,(Profiles[Month]=MONTH(Month&" 1, 2000"))*(Profiles[Hour Ending]=INT(INDEX(_xlfn.TEXTSPLIT(Dashboard!O$3,," "),2))),0),MATCH(Dashboard!$B19,Profiles[#Headers],0)) -> 2506.627081 | P19: =INDEX(NQC[NQC MW],MATCH(1,(NQC[Month]=MONTH(Month&" 1, 2000"))*(NQC[Unit Category]=Dashboard!$B19),0))*INDEX(Profiles[],MATCH(1,(Profiles[Month]=MONTH(Month&" 1, 2000"))*(Profiles[Hour Ending]=INT(INDEX(_xlfn.TEXTSPLIT(Dashboard!P$3,," "),2))),0),MATCH(Dashboard!$B19,Profiles[#Headers],0)) -> 2294.328728 | Q19: =INDEX(NQC[NQC MW],MATCH(1,(NQC[Month]=MONTH(Month&" 1, 2000"))*(NQC[Unit Category]=Dashboard!$B19),0))*INDEX(Profiles[],MATCH(1,(Profiles[Month]=MONTH(Month&" 1, 2000"))*(Profiles[Hour Ending]=INT(INDEX(_xlfn.TEXTSPLIT(Dashboard!Q$3,," "),2))),0),MATCH(Dashboard!$B19,Profiles[#Headers],0)) -> 1801.257241 | R19: =INDEX(NQC[NQC MW],MATCH(1,(NQC[Month]=MONTH(Month&" 1, 2000"))*(NQC[Unit Category]=Dashboard!$B19),0))*INDEX(Profiles[],MATCH(1,(Profiles[Month]=MONTH(Month&" 1, 2000"))*(Profiles[Hour Ending]=INT(INDEX(_xlfn.TEXTSPLIT(Dashboard!R$3,," "),2))),0),MATCH(Dashboard!$B19,Profiles[#Headers],0)) -> 830.8768353 | S19: =INDEX(NQC[NQC MW],MATCH(1,(NQC[Month]=MONTH(Month&" 1, 2000"))*(NQC[Unit Category]=Dashboard!$B19),0))*INDEX(Profiles[],MATCH(1,(Profiles[Month]=MONTH(Month&" 1, 2000"))*(Profiles[Hour Ending]=INT(INDEX(_xlfn.TEXTSPLIT(Dashboard!S$3,," "),2))),0),MATCH(Dashboard!$B19,Profiles[#Headers],0)) -> 52.62365772 | T19: =INDEX(NQC[NQC MW],MATCH(1,(NQC[Month]=MONTH(Month&" 1, 2000"))*(NQC[Unit Category]=Dashboard!$B19),0))*INDEX(Profiles[],MATCH(1,(Profiles[Month]=MONTH(Month&" 1, 2000"))*(Profiles[Hour Ending]=INT(INDEX(_xlfn.TEXTSPLIT(Dashboard!T$3,," "),2))),0),MATCH(Dashboard!$B19,Profiles[#Headers],0)) -> 0.02706224843 | U19: =INDEX(NQC[NQC MW],MATCH(1,(NQC[Month]=MONTH(Month&" 1, 2000"))*(NQC[Unit Category]=Dashboard!$B19),0))*INDEX(Profiles[],MATCH(1,(Profiles[Month]=MONTH(Month&" 1, 2000"))*(Profiles[Hour Ending]=INT(INDEX(_xlfn.TEXTSPLIT(Dashboard!U$3,," "),2))),0),MATCH(Dashboard!$B19,Profiles[#Headers],0)) -> 0.02490585623 | V19: =INDEX(NQC[NQC MW],MATCH(1,(NQC[Month]=MONTH(Month&" 1, 2000"))*(NQC[Unit Category]=Dashboard!$B19),0))*INDEX(Profiles[],MATCH(1,(Profiles[Month]=MONTH(Month&" 1, 2000"))*(Profiles[Hour Ending]=INT(INDEX(_xlfn.TEXTSPLIT(Dashboard!V$3,," "),2))),0),MATCH(Dashboard!$B19,Profiles[#Headers],0)) -> 0.02690270919 | W19: =INDEX(NQC[NQC MW],MATCH(1,(NQC[Month]=MONTH(Month&" 1, 2000"))*(NQC[Unit Category]=Dashboard!$B19),0))*INDEX(Profiles[],MATCH(1,(Profiles[Month]=MONTH(Month&" 1, 2000"))*(Profiles[Hour Ending]=INT(INDEX(_xlfn.TEXTSPLIT(Dashboard!W$3,," "),2))),0),MATCH(Dashboard!$B19,Profiles[#Headers],0)) -> 0.0250676492 | X19: =INDEX(NQC[NQC MW],MATCH(1,(NQC[Month]=MONTH(Month&" 1, 2000"))*(NQC[Unit Category]=Dashboard!$B19),0))*INDEX(Profiles[],MATCH(1,(Profiles[Month]=MONTH(Month&" 1, 2000"))*(Profiles[Hour Ending]=INT(INDEX(_xlfn.TEXTSPLIT(Dashboard!X$3,," "),2))),0),MATCH(Dashboard!$B19,Profiles[#Headers],0)) -> 0.02179594545 | Y19: =INDEX(NQC[NQC MW],MATCH(1,(NQC[Month]=MONTH(Month&" 1, 2000"))*(NQC[Unit Category]=Dashboard!$B19),0))*INDEX(Profiles[],MATCH(1,(Profiles[Month]=MONTH(Month&" 1, 2000"))*(Profiles[Hour Ending]=INT(INDEX(_xlfn.TEXTSPLIT(Dashboard!Y$3,," "),2))),0),MATCH(Dashboard!$B19,Profiles[#Headers],0)) -> 0.0147502471 | Z19: =INDEX(NQC[NQC MW],MATCH(1,(NQC[Month]=MONTH(Month&" 1, 2000"))*(NQC[Unit Category]=Dashboard!$B19),0))*INDEX(Profiles[],MATCH(1,(Profiles[Month]=MONTH(Month&" 1, 2000"))*(Profiles[Hour Ending]=INT(INDEX(_xlfn.TEXTSPLIT(Dashboard!Z$3,," "),2))),0),MATCH(Dashboard!$B19,Profiles[#Headers],0)) -> 0.008140742195
B20: Solar Thermal_Norcal | C20: =INDEX(Supply[Supply],MATCH(1,(Supply[Month]=MONTH(Month&" 1, 2000"))*(Supply[Unit Category]=Dashboard!$B20)*(Supply[Hour Ending]=INT(INDEX(_xlfn.TEXTSPLIT(Dashboard!C$3," "),2))),0)) -> 0 | D20: =INDEX(NQC[NQC MW],MATCH(1,(NQC[Month]=MONTH(Month&" 1, 2000"))*(NQC[Unit Category]=Dashboard!$B20),0))*INDEX(Profiles[],MATCH(1,(Profiles[Month]=MONTH(Month&" 1, 2000"))*(Profiles[Hour Ending]=INT(INDEX(_xlfn.TEXTSPLIT(Dashboard!D$3,," "),2))),0),MATCH(Dashboard!$B20,Profiles[#Headers],0)) -> 0 | E20: =INDEX(NQC[NQC MW],MATCH(1,(NQC[Month]=MONTH(Month&" 1, 2000"))*(NQC[Unit Category]=Dashboard!$B20),0))*INDEX(Profiles[],MATCH(1,(Profiles[Month]=MONTH(Month&" 1, 2000"))*(Profiles[Hour Ending]=INT(INDEX(_xlfn.TEXTSPLIT(Dashboard!E$3,," "),2))),0),MATCH(Dashboard!$B20,Profiles[#Headers],0)) -> 0 | F20: =INDEX(NQC[NQC MW],MATCH(1,(NQC[Month]=MONTH(Month&" 1, 2000"))*(NQC[Unit Category]=Dashboard!$B20),0))*INDEX(Profiles[],MATCH(1,(Profiles[Month]=MONTH(Month&" 1, 2000"))*(Profiles[Hour Ending]=INT(INDEX(_xlfn.TEXTSPLIT(Dashboard!F$3,," "),2))),0),MATCH(Dashboard!$B20,Profiles[#Headers],0)) -> 0 | G20: =INDEX(NQC[NQC MW],MATCH(1,(NQC[Month]=MONTH(Month&" 1, 2000"))*(NQC[Unit Category]=Dashboard!$B20),0))*INDEX(Profiles[],MATCH(1,(Profiles[Month]=MONTH(Month&" 1, 2000"))*(Profiles[Hour Ending]=INT(INDEX(_xlfn.TEXTSPLIT(Dashboard!G$3,," "),2))),0),MATCH(Dashboard!$B20,Profiles[#Headers],0)) -> 0 | H20: =INDEX(NQC[NQC MW],MATCH(1,(NQC[Month]=MONTH(Month&" 1, 2000"))*(NQC[Unit Category]=Dashboard!$B20),0))*INDEX(Profiles[],MATCH(1,(Profiles[Month]=MONTH(Month&" 1, 2000"))*(Profiles[Hour Ending]=INT(INDEX(_xlfn.TEXTSPLIT(Dashboard!H$3,," "),2))),0),MATCH(Dashboard!$B20,Profiles[#Headers],0)) -> 0 | I20: =INDEX(NQC[NQC MW],MATCH(1,(NQC[Month]=MONTH(Month&" 1, 2000"))*(NQC[Unit Category]=Dashboard!$B20),0))*INDEX(Profiles[],MATCH(1,(Profiles[Month]=MONTH(Month&" 1, 2000"))*(Profiles[Hour Ending]=INT(INDEX(_xlfn.TEXTSPLIT(Dashboard!I$3,," "),2))),0),MATCH(Dashboard!$B20,Profiles[#Headers],0)) -> 0 | J20: =INDEX(NQC[NQC MW],MATCH(1,(NQC[Month]=MONTH(Month&" 1, 2000"))*(NQC[Unit Category]=Dashboard!$B20),0))*INDEX(Profiles[],MATCH(1,(Profiles[Month]=MONTH(Month&" 1, 2000"))*(Profiles[Hour Ending]=INT(INDEX(_xlfn.TEXTSPLIT(Dashboard!J$3,," "),2))),0),MATCH(Dashboard!$B20,Profiles[#Headers],0)) -> 0 | K20: =INDEX(NQC[NQC MW],MATCH(1,(NQC[Month]=MONTH(Month&" 1, 2000"))*(NQC[Unit Category]=Dashboard!$B20),0))*INDEX(Profiles[],MATCH(1,(Profiles[Month]=MONTH(Month&" 1, 2000"))*(Profiles[Hour Ending]=INT(INDEX(_xlfn.TEXTSPLIT(Dashboard!K$3,," "),2))),0),MATCH(Dashboard!$B20,Profiles[#Headers],0)) -> 0 | L20: =INDEX(NQC[NQC MW],MATCH(1,(NQC[Month]=MONTH(Month&" 1, 2000"))*(NQC[Unit Category]=Dashboard!$B20),0))*INDEX(Profiles[],MATCH(1,(Profiles[Month]=MONTH(Month&" 1, 2000"))*(Profiles[Hour Ending]=INT(INDEX(_xlfn.TEXTSPLIT(Dashboard!L$3,," "),2))),0),MATCH(Dashboard!$B20,Profiles[#Headers],0)) -> 0 | M20: =INDEX(NQC[NQC MW],MATCH(1,(NQC[Month]=MONTH(Month&" 1, 2000"))*(NQC[Unit Category]=Dashboard!$B20),0))*INDEX(Profiles[],MATCH(1,(Profiles[Month]=MONTH(Month&" 1, 2000"))*(Profiles[Hour Ending]=INT(INDEX(_xlfn.TEXTSPLIT(Dashboard!M$3,," "),2))),0),MATCH(Dashboard!$B20,Profiles[#Headers],0)) -> 0 | N20: =INDEX(NQC[NQC MW],MATCH(1,(NQC[Month]=MONTH(Month&" 1, 2000"))*(NQC[Unit Category]=Dashboard!$B20),0))*INDEX(Profiles[],MATCH(1,(Profiles[Month]=MONTH(Month&" 1, 2000"))*(Profiles[Hour Ending]=INT(INDEX(_xlfn.TEXTSPLIT(Dashboard!N$3,," "),2))),0),MATCH(Dashboard!$B20,Profiles[#Headers],0)) -> 0 | O20: =INDEX(NQC[NQC MW],MATCH(1,(NQC[Month]=MONTH(Month&" 1, 2000"))*(NQC[Unit Category]=Dashboard!$B20),0))*INDEX(Profiles[],MATCH(1,(Profiles[Month]=MONTH(Month&" 1, 2000"))*(Profiles[Hour Ending]=INT(INDEX(_xlfn.TEXTSPLIT(Dashboard!O$3,," "),2))),0),MATCH(Dashboard!$B20,Profiles[#Headers],0)) -> 0 | P20: =INDEX(NQC[NQC MW],MATCH(1,(NQC[Month]=MONTH(Month&" 1, 2000"))*(NQC[Unit Category]=Dashboard!$B20),0))*INDEX(Profiles[],MATCH(1,(Profiles[Month]=MONTH(Month&" 1, 2000"))*(Profiles[Hour Ending]=INT(INDEX(_xlfn.TEXTSPLIT(Dashboard!P$3,," "),2))),0),MATCH(Dashboard!$B20,Profiles[#Headers],0)) -> 0 | Q20: =INDEX(NQC[NQC MW],MATCH(1,(NQC[Month]=MONTH(Month&" 1, 2000"))*(NQC[Unit Category]=Dashboard!$B20),0))*INDEX(Profiles[],MATCH(1,(Profiles[Month]=MONTH(Month&" 1, 2000"))*(Profiles[Hour Ending]=INT(INDEX(_xlfn.TEXTSPLIT(Dashboard!Q$3,," "),2))),0),MATCH(Dashboard!$B20,Profiles[#Headers],0)) -> 0 | R20: =INDEX(NQC[NQC MW],MATCH(1,(NQC[Month]=MONTH(Month&" 1, 2000"))*(NQC[Unit Category]=Dashboard!$B20),0))*INDEX(Profiles[],MATCH(1,(Profiles[Month]=MONTH(Month&" 1, 2000"))*(Profiles[Hour Ending]=INT(INDEX(_xlfn.TEXTSPLIT(Dashboard!R$3,," "),2))),0),MATCH(Dashboard!$B20,Profiles[#Headers],0)) -> 0 | S20: =INDEX(NQC[NQC MW],MATCH(1,(NQC[Month]=MONTH(Month&" 1, 2000"))*(NQC[Unit Category]=Dashboard!$B20),0))*INDEX(Profiles[],MATCH(1,(Profiles[Month]=MONTH(Month&" 1, 2000"))*(Profiles[Hour Ending]=INT(INDEX(_xlfn.TEXTSPLIT(Dashboard!S$3,," "),2))),0),MATCH(Dashboard!$B20,Profiles[#Headers],0)) -> 0 | T20: =INDEX(NQC[NQC MW],MATCH(1,(NQC[Month]=MONTH(Month&" 1, 2000"))*(NQC[Unit Category]=Dashboard!$B20),0))*INDEX(Profiles[],MATCH(1,(Profiles[Month]=MONTH(Month&" 1, 2000"))*(Profiles[Hour Ending]=INT(INDEX(_xlfn.TEXTSPLIT(Dashboard!T$3,," "),2))),0),MATCH(Dashboard!$B20,Profiles[#Headers],0)) -> 0 | U20: =INDEX(NQC[NQC MW],MATCH(1,(NQC[Month]=MONTH(Month&" 1, 2000"))*(NQC[Unit Category]=Dashboard!$B20),0))*INDEX(Profiles[],MATCH(1,(Profiles[Month]=MONTH(Month&" 1, 2000"))*(Profiles[Hour Ending]=INT(INDEX(_xlfn.TEXTSPLIT(Dashboard!U$3,," "),2))),0),MATCH(Dashboard!$B20,Profiles[#Headers],0)) -> 0 | V20: =INDEX(NQC[NQC MW],MATCH(1,(NQC[Month]=MONTH(Month&" 1, 2000"))*(NQC[Unit Category]=Dashboard!$B20),0))*INDEX(Profiles[],MATCH(1,(Profiles[Month]=MONTH(Month&" 1, 2000"))*(Profiles[Hour Ending]=INT(INDEX(_xlfn.TEXTSPLIT(Dashboard!V$3,," "),2))),0),MATCH(Dashboard!$B20,Profiles[#Headers],0)) -> 0 | W20: =INDEX(NQC[NQC MW],MATCH(1,(NQC[Month]=MONTH(Month&" 1, 2000"))*(NQC[Unit Category]=Dashboard!$B20),0))*INDEX(Profiles[],MATCH(1,(Profiles[Month]=MONTH(Month&" 1, 2000"))*(Profiles[Hour Ending]=INT(INDEX(_xlfn.TEXTSPLIT(Dashboard!W$3,," "),2))),0),MATCH(Dashboard!$B20,Profiles[#Headers],0)) -> 0 | X20: =INDEX(NQC[NQC MW],MATCH(1,(NQC[Month]=MONTH(Month&" 1, 2000"))*(NQC[Unit Category]=Dashboard!$B20),0))*INDEX(Profiles[],MATCH(1,(Profiles[Month]=MONTH(Month&" 1, 2000"))*(Profiles[Hour Ending]=INT(INDEX(_xlfn.TEXTSPLIT(Dashboard!X$3,," "),2))),0),MATCH(Dashboard!$B20,Profiles[#Headers],0)) -> 0 | Y20: =INDEX(NQC[NQC MW],MATCH(1,(NQC[Month]=MONTH(Month&" 1, 2000"))*(NQC[Unit Category]=Dashboard!$B20),0))*INDEX(Profiles[],MATCH(1,(Profiles[Month]=MONTH(Month&" 1, 2000"))*(Profiles[Hour Ending]=INT(INDEX(_xlfn.TEXTSPLIT(Dashboard!Y$3,," "),2))),0),MATCH(Dashboard!$B20,Profiles[#Headers],0)) -> 0 | Z20: =INDEX(NQC[NQC MW],MATCH(1,(NQC[Month]=MONTH(Month&" 1, 2000"))*(NQC[Unit Category]=Dashboard!$B20),0))*INDEX(Profiles[],MATCH(1,(Profiles[Month]=MONTH(Month&" 1, 2000"))*(Profiles[Hour Ending]=INT(INDEX(_xlfn.TEXTSPLIT(Dashboard!Z$3,," "),2))),0),MATCH(Dashboard!$B20,Profiles[#Headers],0)) -> 0
B21: Solar Thermal_Socal | C21: =INDEX(Supply[Supply],MATCH(1,(Supply[Month]=MONTH(Month&" 1, 2000"))*(Supply[Unit Category]=Dashboard!$B21)*(Supply[Hour Ending]=INT(INDEX(_xlfn.TEXTSPLIT(Dashboard!C$3," "),2))),0)) -> 0 | D21: =INDEX(NQC[NQC MW],MATCH(1,(NQC[Month]=MONTH(Month&" 1, 2000"))*(NQC[Unit Category]=Dashboard!$B21),0))*INDEX(Profiles[],MATCH(1,(Profiles[Month]=MONTH(Month&" 1, 2000"))*(Profiles[Hour Ending]=INT(INDEX(_xlfn.TEXTSPLIT(Dashboard!D$3,," "),2))),0),MATCH(Dashboard!$B21,Profiles[#Headers],0)) -> 0 | E21: =INDEX(NQC[NQC MW],MATCH(1,(NQC[Month]=MONTH(Month&" 1, 2000"))*(NQC[Unit Category]=Dashboard!$B21),0))*INDEX(Profiles[],MATCH(1,(Profiles[Month]=MONTH(Month&" 1, 2000"))*(Profiles[Hour Ending]=INT(INDEX(_xlfn.TEXTSPLIT(Dashboard!E$3,," "),2))),0),MATCH(Dashboard!$B21,Profiles[#Headers],0)) -> 0 | F21: =INDEX(NQC[NQC MW],MATCH(1,(NQC[Month]=MONTH(Month&" 1, 2000"))*(NQC[Unit Category]=Dashboard!$B21),0))*INDEX(Profiles[],MATCH(1,(Profiles[Month]=MONTH(Month&" 1, 2000"))*(Profiles[Hour Ending]=INT(INDEX(_xlfn.TEXTSPLIT(Dashboard!F$3,," "),2))),0),MATCH(Dashboard!$B21,Profiles[#Headers],0)) -> 0 | G21: =INDEX(NQC[NQC MW],MATCH(1,(NQC[Month]=MONTH(Month&" 1, 2000"))*(NQC[Unit Category]=Dashboard!$B21),0))*INDEX(Profiles[],MATCH(1,(Profiles[Month]=MONTH(Month&" 1, 2000"))*(Profiles[Hour Ending]=INT(INDEX(_xlfn.TEXTSPLIT(Dashboard!G$3,," "),2))),0),MATCH(Dashboard!$B21,Profiles[#Headers],0)) -> 0 | H21: =INDEX(NQC[NQC MW],MATCH(1,(NQC[Month]=MONTH(Month&" 1, 2000"))*(NQC[Unit Category]=Dashboard!$B21),0))*INDEX(Profiles[],MATCH(1,(Profiles[Month]=MONTH(Month&" 1, 2000"))*(Profiles[Hour Ending]=INT(INDEX(_xlfn.TEXTSPLIT(Dashboard!H$3,," "),2))),0),MATCH(Dashboard!$B21,Profiles[#Headers],0)) -> 0 | I21: =INDEX(NQC[NQC MW],MATCH(1,(NQC[Month]=MONTH(Month&" 1, 2000"))*(NQC[Unit Category]=Dashboard!$B21),0))*INDEX(Profiles[],MATCH(1,(Profiles[Month]=MONTH(Month&" 1, 2000"))*(Profiles[Hour Ending]=INT(INDEX(_xlfn.TEXTSPLIT(Dashboard!I$3,," "),2))),0),MATCH(Dashboard!$B21,Profiles[#Headers],0)) -> 0 | J21: =INDEX(NQC[NQC MW],MATCH(1,(NQC[Month]=MONTH(Month&" 1, 2000"))*(NQC[Unit Category]=Dashboard!$B21),0))*INDEX(Profiles[],MATCH(1,(Profiles[Month]=MONTH(Month&" 1, 2000"))*(Profiles[Hour Ending]=INT(INDEX(_xlfn.TEXTSPLIT(Dashboard!J$3,," "),2))),0),MATCH(Dashboard!$B21,Profiles[#Headers],0)) -> 0 | K21: =INDEX(NQC[NQC MW],MATCH(1,(NQC[Month]=MONTH(Month&" 1, 2000"))*(NQC[Unit Category]=Dashboard!$B21),0))*INDEX(Profiles[],MATCH(1,(Profiles[Month]=MONTH(Month&" 1, 2000"))*(Profiles[Hour Ending]=INT(INDEX(_xlfn.TEXTSPLIT(Dashboard!K$3,," "),2))),0),MATCH(Dashboard!$B21,Profiles[#Headers],0)) -> 41.06411799 | L21: =INDEX(NQC[NQC MW],MATCH(1,(NQC[Month]=MONTH(Month&" 1, 2000"))*(NQC[Unit Category]=Dashboard!$B21),0))*INDEX(Profiles[],MATCH(1,(Profiles[Month]=MONTH(Month&" 1, 2000"))*(Profiles[Hour Ending]=INT(INDEX(_xlfn.TEXTSPLIT(Dashboard!L$3,," "),2))),0),MATCH(Dashboard!$B21,Profiles[#Headers],0)) -> 170.4889964 | M21: =INDEX(NQC[NQC MW],MATCH(1,(NQC[Month]=MONTH(Month&" 1, 2000"))*(NQC[Unit Category]=Dashboard!$B21),0))*INDEX(Profiles[],MATCH(1,(Profiles[Month]=MONTH(Month&" 1, 2000"))*(Profiles[Hour Ending]=INT(INDEX(_xlfn.TEXTSPLIT(Dashboard!M$3,," "),2))),0),MATCH(Dashboard!$B21,Profiles[#Headers],0)) -> 247.9885884 | N21: =INDEX(NQC[NQC MW],MATCH(1,(NQC[Month]=MONTH(Month&" 1, 2000"))*(NQC[Unit Category]=Dashboard!$B21),0))*INDEX(Profiles[],MATCH(1,(Profiles[Month]=MONTH(Month&" 1, 2000"))*(Profiles[Hour Ending]=INT(INDEX(_xlfn.TEXTSPLIT(Dashboard!N$3,," "),2))),0),MATCH(Dashboard!$B21,Profiles[#Headers],0)) -> 260.3315252 | O21: =INDEX(NQC[NQC MW],MATCH(1,(NQC[Month]=MONTH(Month&" 1, 2000"))*(NQC[Unit Category]=Dashboard!$B21),0))*INDEX(Profiles[],MATCH(1,(Profiles[Month]=MONTH(Month&" 1, 2000"))*(Profiles[Hour Ending]=INT(INDEX(_xlfn.TEXTSPLIT(Dashboard!O$3,," "),2))),0),MATCH(Dashboard!$B21,Profiles[#Headers],0)) -> 285.5367547 | P21: =INDEX(NQC[NQC MW],MATCH(1,(NQC[Month]=MONTH(Month&" 1, 2000"))*(NQC[Unit Category]=Dashboard!$B21),0))*INDEX(Profiles[],MATCH(1,(Profiles[Month]=MONTH(Month&" 1, 2000"))*(Profiles[Hour Ending]=INT(INDEX(_xlfn.TEXTSPLIT(Dashboard!P$3,," "),2))),0),MATCH(Dashboard!$B21,Profiles[#Headers],0)) -> 294.0078132 | Q21: =INDEX(NQC[NQC MW],MATCH(1,(NQC[Month]=MONTH(Month&" 1, 2000"))*(NQC[Unit Category]=Dashboard!$B21),0))*INDEX(Profiles[],MATCH(1,(Profiles[Month]=MONTH(Month&" 1, 2000"))*(Profiles[Hour Ending]=INT(INDEX(_xlfn.TEXTSPLIT(Dashboard!Q$3,," "),2))),0),MATCH(Dashboard!$B21,Profiles[#Headers],0)) -> 258.3900256 | R21: =INDEX(NQC[NQC MW],MATCH(1,(NQC[Month]=MONTH(Month&" 1, 2000"))*(NQC[Unit Category]=Dashboard!$B21),0))*INDEX(Profiles[],MATCH(1,(Profiles[Month]=MONTH(Month&" 1, 2000"))*(Profiles[Hour Ending]=INT(INDEX(_xlfn.TEXTSPLIT(Dashboard!R$3,," "),2))),0),MATCH(Dashboard!$B21,Profiles[#Headers],0)) -> 189.5373611 | S21: =INDEX(NQC[NQC MW],MATCH(1,(NQC[Month]=MONTH(Month&" 1, 2000"))*(NQC[Unit Category]=Dashboard!$B21),0))*INDEX(Profiles[],MATCH(1,(Profiles[Month]=MONTH(Month&" 1, 2000"))*(Profiles[Hour Ending]=INT(INDEX(_xlfn.TEXTSPLIT(Dashboard!S$3,," "),2))),0),MATCH(Dashboard!$B21,Profiles[#Headers],0)) -> 40.60546703 | T21: =INDEX(NQC[NQC MW],MATCH(1,(NQC[Month]=MONTH(Month&" 1, 2000"))*(NQC[Unit Category]=Dashboard!$B21),0))*INDEX(Profiles[],MATCH(1,(Profiles[Month]=MONTH(Month&" 1, 2000"))*(Profiles[Hour Ending]=INT(INDEX(_xlfn.TEXTSPLIT(Dashboard!T$3,," "),2))),0),MATCH(Dashboard!$B21,Profiles[#Headers],0)) -> 0 | U21: =INDEX(NQC[NQC MW],MATCH(1,(NQC[Month]=MONTH(Month&" 1, 2000"))*(NQC[Unit Category]=Dashboard!$B21),0))*INDEX(Profiles[],MATCH(1,(Profiles[Month]=MONTH(Month&" 1, 2000"))*(Profiles[Hour Ending]=INT(INDEX(_xlfn.TEXTSPLIT(Dashboard!U$3,," "),2))),0),MATCH(Dashboard!$B21,Profiles[#Headers],0)) -> 0 | V21: =INDEX(NQC[NQC MW],MATCH(1,(NQC[Month]=MONTH(Month&" 1, 2000"))*(NQC[Unit Category]=Dashboard!$B21),0))*INDEX(Profiles[],MATCH(1,(Profiles[Month]=MONTH(Month&" 1, 2000"))*(Profiles[Hour Ending]=INT(INDEX(_xlfn.TEXTSPLIT(Dashboard!V$3,," "),2))),0),MATCH(Dashboard!$B21,Profiles[#Headers],0)) -> 0 | W21: =INDEX(NQC[NQC MW],MATCH(1,(NQC[Month]=MONTH(Month&" 1, 2000"))*(NQC[Unit Category]=Dashboard!$B21),0))*INDEX(Profiles[],MATCH(1,(Profiles[Month]=MONTH(Month&" 1, 2000"))*(Profiles[Hour Ending]=INT(INDEX(_xlfn.TEXTSPLIT(Dashboard!W$3,," "),2))),0),MATCH(Dashboard!$B21,Profiles[#Headers],0)) -> 0 | X21: =INDEX(NQC[NQC MW],MATCH(1,(NQC[Month]=MONTH(Month&" 1, 2000"))*(NQC[Unit Category]=Dashboard!$B21),0))*INDEX(Profiles[],MATCH(1,(Profiles[Month]=MONTH(Month&" 1, 2000"))*(Profiles[Hour Ending]=INT(INDEX(_xlfn.TEXTSPLIT(Dashboard!X$3,," "),2))),0),MATCH(Dashboard!$B21,Profiles[#Headers],0)) -> 0 | Y21: =INDEX(NQC[NQC MW],MATCH(1,(NQC[Month]=MONTH(Month&" 1, 2000"))*(NQC[Unit Category]=Dashboard!$B21),0))*INDEX(Profiles[],MATCH(1,(Profiles[Month]=MONTH(Month&" 1, 2000"))*(Profiles[Hour Ending]=INT(INDEX(_xlfn.TEXTSPLIT(Dashboard!Y$3,," "),2))),0),MATCH(Dashboard!$B21,Profiles[#Headers],0)) -> 0 | Z21: =INDEX(NQC[NQC MW],MATCH(1,(NQC[Month]=MONTH(Month&" 1, 2000"))*(NQC[Unit Category]=Dashboard!$B21),0))*INDEX(Profiles[],MATCH(1,(Profiles[Month]=MONTH(Month&" 1, 2000"))*(Profiles[Hour Ending]=INT(INDEX(_xlfn.TEXTSPLIT(Dashboard!Z$3,," "),2))),0),MATCH(Dashboard!$B21,Profiles[#Headers],0)) -> 0
B22: Solar Tracking_Norcal | C22: =INDEX(Supply[Supply],MATCH(1,(Supply[Month]=MONTH(Month&" 1, 2000"))*(Supply[Unit Category]=Dashboard!$B22)*(Supply[Hour Ending]=INT(INDEX(_xlfn.TEXTSPLIT(Dashboard!C$3," "),2))),0)) -> 0 | D22: =INDEX(NQC[NQC MW],MATCH(1,(NQC[Month]=MONTH(Month&" 1, 2000"))*(NQC[Unit Category]=Dashboard!$B22),0))*INDEX(Profiles[],MATCH(1,(Profiles[Month]=MONTH(Month&" 1, 2000"))*(Profiles[Hour Ending]=INT(INDEX(_xlfn.TEXTSPLIT(Dashboard!D$3,," "),2))),0),MATCH(Dashboard!$B22,Profiles[#Headers],0)) -> 0 | E22: =INDEX(NQC[NQC MW],MATCH(1,(NQC[Month]=MONTH(Month&" 1, 2000"))*(NQC[Unit Category]=Dashboard!$B22),0))*INDEX(Profiles[],MATCH(1,(Profiles[Month]=MONTH(Month&" 1, 2000"))*(Profiles[Hour Ending]=INT(INDEX(_xlfn.TEXTSPLIT(Dashboard!E$3,," "),2))),0),MATCH(Dashboard!$B22,Profiles[#Headers],0)) -> 0 | F22: =INDEX(NQC[NQC MW],MATCH(1,(NQC[Month]=MONTH(Month&" 1, 2000"))*(NQC[Unit Category]=Dashboard!$B22),0))*INDEX(Profiles[],MATCH(1,(Profiles[Month]=MONTH(Month&" 1, 2000"))*(Profiles[Hour Ending]=INT(INDEX(_xlfn.TEXTSPLIT(Dashboard!F$3,," "),2))),0),MATCH(Dashboard!$B22,Profiles[#Headers],0)) -> 0 | G22: =INDEX(NQC[NQC MW],MATCH(1,(NQC[Month]=MONTH(Month&" 1, 2000"))*(NQC[Unit Category]=Dashboard!$B22),0))*INDEX(Profiles[],MATCH(1,(Profiles[Month]=MONTH(Month&" 1, 2000"))*(Profiles[Hour Ending]=INT(INDEX(_xlfn.TEXTSPLIT(Dashboard!G$3,," "),2))),0),MATCH(Dashboard!$B22,Profiles[#Headers],0)) -> 0 | H22: =INDEX(NQC[NQC MW],MATCH(1,(NQC[Month]=MONTH(Month&" 1, 2000"))*(NQC[Unit Category]=Dashboard!$B22),0))*INDEX(Profiles[],MATCH(1,(Profiles[Month]=MONTH(Month&" 1, 2000"))*(Profiles[Hour Ending]=INT(INDEX(_xlfn.TEXTSPLIT(Dashboard!H$3,," "),2))),0),MATCH(Dashboard!$B22,Profiles[#Headers],0)) -> 0.008072029397 | I22: =INDEX(NQC[NQC MW],MATCH(1,(NQC[Month]=MONTH(Month&" 1, 2000"))*(NQC[Unit Category]=Dashboard!$B22),0))*INDEX(Profiles[],MATCH(1,(Profiles[Month]=MONTH(Month&" 1, 2000"))*(Profiles[Hour Ending]=INT(INDEX(_xlfn.TEXTSPLIT(Dashboard!I$3,," "),2))),0),MATCH(Dashboard!$B22,Profiles[#Headers],0)) -> 0.03695589542 | J22: =INDEX(NQC[NQC MW],MATCH(1,(NQC[Month]=MONTH(Month&" 1, 2000"))*(NQC[Unit Category]=Dashboard!$B22),0))*INDEX(Profiles[],MATCH(1,(Profiles[Month]=MONTH(Month&" 1, 2000"))*(Profiles[Hour Ending]=INT(INDEX(_xlfn.TEXTSPLIT(Dashboard!J$3,," "),2))),0),MATCH(Dashboard!$B22,Profiles[#Headers],0)) -> 152.7481991 | K22: =INDEX(NQC[NQC MW],MATCH(1,(NQC[Month]=MONTH(Month&" 1, 2000"))*(NQC[Unit Category]=Dashboard!$B22),0))*INDEX(Profiles[],MATCH(1,(Profiles[Month]=MONTH(Month&" 1, 2000"))*(Profiles[Hour Ending]=INT(INDEX(_xlfn.TEXTSPLIT(Dashboard!K$3,," "),2))),0),MATCH(Dashboard!$B22,Profiles[#Headers],0)) -> 1046.29207 | L22: =INDEX(NQC[NQC MW],MATCH(1,(NQC[Month]=MONTH(Month&" 1, 2000"))*(NQC[Unit Category]=Dashboard!$B22),0))*INDEX(Profiles[],MATCH(1,(Profiles[Month]=MONTH(Month&" 1, 2000"))*(Profiles[Hour Ending]=INT(INDEX(_xlfn.TEXTSPLIT(Dashboard!L$3,," "),2))),0),MATCH(Dashboard!$B22,Profiles[#Headers],0)) -> 1717.337242 | M22: =INDEX(NQC[NQC MW],MATCH(1,(NQC[Month]=MONTH(Month&" 1, 2000"))*(NQC[Unit Category]=Dashboard!$B22),0))*INDEX(Profiles[],MATCH(1,(Profiles[Month]=MONTH(Month&" 1, 2000"))*(Profiles[Hour Ending]=INT(INDEX(_xlfn.TEXTSPLIT(Dashboard!M$3,," "),2))),0),MATCH(Dashboard!$B22,Profiles[#Headers],0)) -> 2087.249328 | N22: =INDEX(NQC[NQC MW],MATCH(1,(NQC[Month]=MONTH(Month&" 1, 2000"))*(NQC[Unit Category]=Dashboard!$B22),0))*INDEX(Profiles[],MATCH(1,(Profiles[Month]=MONTH(Month&" 1, 2000"))*(Profiles[Hour Ending]=INT(INDEX(_xlfn.TEXTSPLIT(Dashboard!N$3,," "),2))),0),MATCH(Dashboard!$B22,Profiles[#Headers],0)) -> 2192.356793 | O22: =INDEX(NQC[NQC MW],MATCH(1,(NQC[Month]=MONTH(Month&" 1, 2000"))*(NQC[Unit Category]=Dashboard!$B22),0))*INDEX(Profiles[],MATCH(1,(Profiles[Month]=MONTH(Month&" 1, 2000"))*(Profiles[Hour Ending]=INT(INDEX(_xlfn.TEXTSPLIT(Dashboard!O$3,," "),2))),0),MATCH(Dashboard!$B22,Profiles[#Headers],0)) -> 2134.601872 | P22: =INDEX(NQC[NQC MW],MATCH(1,(NQC[Month]=MONTH(Month&" 1, 2000"))*(NQC[Unit Category]=Dashboard!$B22),0))*INDEX(Profiles[],MATCH(1,(Profiles[Month]=MONTH(Month&" 1, 2000"))*(Profiles[Hour Ending]=INT(INDEX(_xlfn.TEXTSPLIT(Dashboard!P$3,," "),2))),0),MATCH(Dashboard!$B22,Profiles[#Headers],0)) -> 2066.929804 | Q22: =INDEX(NQC[NQC MW],MATCH(1,(NQC[Month]=MONTH(Month&" 1, 2000"))*(NQC[Unit Category]=Dashboard!$B22),0))*INDEX(Profiles[],MATCH(1,(Profiles[Month]=MONTH(Month&" 1, 2000"))*(Profiles[Hour Ending]=INT(INDEX(_xlfn.TEXTSPLIT(Dashboard!Q$3,," "),2))),0),MATCH(Dashboard!$B22,Profiles[#Headers],0)) -> 1911.595349 | R22: =INDEX(NQC[NQC MW],MATCH(1,(NQC[Month]=MONTH(Month&" 1, 2000"))*(NQC[Unit Category]=Dashboard!$B22),0))*INDEX(Profiles[],MATCH(1,(Profiles[Month]=MONTH(Month&" 1, 2000"))*(Profiles[Hour Ending]=INT(INDEX(_xlfn.TEXTSPLIT(Dashboard!R$3,," "),2))),0),MATCH(Dashboard!$B22,Profiles[#Headers],0)) -> 1068.988015 | S22: =INDEX(NQC[NQC MW],MATCH(1,(NQC[Month]=MONTH(Month&" 1, 2000"))*(NQC[Unit Category]=Dashboard!$B22),0))*INDEX(Profiles[],MATCH(1,(Profiles[Month]=MONTH(Month&" 1, 2000"))*(Profiles[Hour Ending]=INT(INDEX(_xlfn.TEXTSPLIT(Dashboard!S$3,," "),2))),0),MATCH(Dashboard!$B22,Profiles[#Headers],0)) -> 114.9927639 | T22: =INDEX(NQC[NQC MW],MATCH(1,(NQC[Month]=MONTH(Month&" 1, 2000"))*(NQC[Unit Category]=Dashboard!$B22),0))*INDEX(Profiles[],MATCH(1,(Profiles[Month]=MONTH(Month&" 1, 2000"))*(Profiles[Hour Ending]=INT(INDEX(_xlfn.TEXTSPLIT(Dashboard!T$3,," "),2))),0),MATCH(Dashboard!$B22,Profiles[#Headers],0)) -> 0 | U22: =INDEX(NQC[NQC MW],MATCH(1,(NQC[Month]=MONTH(Month&" 1, 2000"))*(NQC[Unit Category]=Dashboard!$B22),0))*INDEX(Profiles[],MATCH(1,(Profiles[Month]=MONTH(Month&" 1, 2000"))*(Profiles[Hour Ending]=INT(INDEX(_xlfn.TEXTSPLIT(Dashboard!U$3,," "),2))),0),MATCH(Dashboard!$B22,Profiles[#Headers],0)) -> 0 | V22: =INDEX(NQC[NQC MW],MATCH(1,(NQC[Month]=MONTH(Month&" 1, 2000"))*(NQC[Unit Category]=Dashboard!$B22),0))*INDEX(Profiles[],MATCH(1,(Profiles[Month]=MONTH(Month&" 1, 2000"))*(Profiles[Hour Ending]=INT(INDEX(_xlfn.TEXTSPLIT(Dashboard!V$3,," "),2))),0),MATCH(Dashboard!$B22,Profiles[#Headers],0)) -> 0 | W22: =INDEX(NQC[NQC MW],MATCH(1,(NQC[Month]=MONTH(Month&" 1, 2000"))*(NQC[Unit Category]=Dashboard!$B22),0))*INDEX(Profiles[],MATCH(1,(Profiles[Month]=MONTH(Month&" 1, 2000"))*(Profiles[Hour Ending]=INT(INDEX(_xlfn.TEXTSPLIT(Dashboard!W$3,," "),2))),0),MATCH(Dashboard!$B22,Profiles[#Headers],0)) -> 0 | X22: =INDEX(NQC[NQC MW],MATCH(1,(NQC[Month]=MONTH(Month&" 1, 2000"))*(NQC[Unit Category]=Dashboard!$B22),0))*INDEX(Profiles[],MATCH(1,(Profiles[Month]=MONTH(Month&" 1, 2000"))*(Profiles[Hour Ending]=INT(INDEX(_xlfn.TEXTSPLIT(Dashboard!X$3,," "),2))),0),MATCH(Dashboard!$B22,Profiles[#Headers],0)) -> 0 | Y22: =INDEX(NQC[NQC MW],MATCH(1,(NQC[Month]=MONTH(Month&" 1, 2000"))*(NQC[Unit Category]=Dashboard!$B22),0))*INDEX(Profiles[],MATCH(1,(Profiles[Month]=MONTH(Month&" 1, 2000"))*(Profiles[Hour Ending]=INT(INDEX(_xlfn.TEXTSPLIT(Dashboard!Y$3,," "),2))),0),MATCH(Dashboard!$B22,Profiles[#Headers],0)) -> 0 | Z22: =INDEX(NQC[NQC MW],MATCH(1,(NQC[Month]=MONTH(Month&" 1, 2000"))*(NQC[Unit Category]=Dashboard!$B22),0))*INDEX(Profiles[],MATCH(1,(Profiles[Month]=MONTH(Month&" 1, 2000"))*(Profiles[Hour Ending]=INT(INDEX(_xlfn.TEXTSPLIT(Dashboard!Z$3,," "),2))),0),MATCH(Dashboard!$B22,Profiles[#Headers],0)) -> 0
B23: Solar Tracking_Socal | C23: =INDEX(Supply[Supply],MATCH(1,(Supply[Month]=MONTH(Month&" 1, 2000"))*(Supply[Unit Category]=Dashboard!$B23)*(Supply[Hour Ending]=INT(INDEX(_xlfn.TEXTSPLIT(Dashboard!C$3," "),2))),0)) -> 0 | D23: =INDEX(NQC[NQC MW],MATCH(1,(NQC[Month]=MONTH(Month&" 1, 2000"))*(NQC[Unit Category]=Dashboard!$B23),0))*INDEX(Profiles[],MATCH(1,(Profiles[Month]=MONTH(Month&" 1, 2000"))*(Profiles[Hour Ending]=INT(INDEX(_xlfn.TEXTSPLIT(Dashboard!D$3,," "),2))),0),MATCH(Dashboard!$B23,Profiles[#Headers],0)) -> 0 | E23: =INDEX(NQC[NQC MW],MATCH(1,(NQC[Month]=MONTH(Month&" 1, 2000"))*(NQC[Unit Category]=Dashboard!$B23),0))*INDEX(Profiles[],MATCH(1,(Profiles[Month]=MONTH(Month&" 1, 2000"))*(Profiles[Hour Ending]=INT(INDEX(_xlfn.TEXTSPLIT(Dashboard!E$3,," "),2))),0),MATCH(Dashboard!$B23,Profiles[#Headers],0)) -> 0 | F23: =INDEX(NQC[NQC MW],MATCH(1,(NQC[Month]=MONTH(Month&" 1, 2000"))*(NQC[Unit Category]=Dashboard!$B23),0))*INDEX(Profiles[],MATCH(1,(Profiles[Month]=MONTH(Month&" 1, 2000"))*(Profiles[Hour Ending]=INT(INDEX(_xlfn.TEXTSPLIT(Dashboard!F$3,," "),2))),0),MATCH(Dashboard!$B23,Profiles[#Headers],0)) -> 0 | G23: =INDEX(NQC[NQC MW],MATCH(1,(NQC[Month]=MONTH(Month&" 1, 2000"))*(NQC[Unit Category]=Dashboard!$B23),0))*INDEX(Profiles[],MATCH(1,(Profiles[Month]=MONTH(Month&" 1, 2000"))*(Profiles[Hour Ending]=INT(INDEX(_xlfn.TEXTSPLIT(Dashboard!G$3,," "),2))),0),MATCH(Dashboard!$B23,Profiles[#Headers],0)) -> 0 | H23: =INDEX(NQC[NQC MW],MATCH(1,(NQC[Month]=MONTH(Month&" 1, 2000"))*(NQC[Unit Category]=Dashboard!$B23),0))*INDEX(Profiles[],MATCH(1,(Profiles[Month]=MONTH(Month&" 1, 2000"))*(Profiles[Hour Ending]=INT(INDEX(_xlfn.TEXTSPLIT(Dashboard!H$3,," "),2))),0),MATCH(Dashboard!$B23,Profiles[#Headers],0)) -> 0 | I23: =INDEX(NQC[NQC MW],MATCH(1,(NQC[Month]=MONTH(Month&" 1, 2000"))*(NQC[Unit Category]=Dashboard!$B23),0))*INDEX(Profiles[],MATCH(1,(Profiles[Month]=MONTH(Month&" 1, 2000"))*(Profiles[Hour Ending]=INT(INDEX(_xlfn.TEXTSPLIT(Dashboard!I$3,," "),2))),0),MATCH(Dashboard!$B23,Profiles[#Headers],0)) -> 13.03040795 | J23: =INDEX(NQC[NQC MW],MATCH(1,(NQC[Month]=MONTH(Month&" 1, 2000"))*(NQC[Unit Category]=Dashboard!$B23),0))*INDEX(Profiles[],MATCH(1,(Profiles[Month]=MONTH(Month&" 1, 2000"))*(Profiles[Hour Ending]=INT(INDEX(_xlfn.TEXTSPLIT(Dashboard!J$3,," "),2))),0),MATCH(Dashboard!$B23,Profiles[#Headers],0)) -> 1323.767174 | K23: =INDEX(NQC[NQC MW],MATCH(1,(NQC[Month]=MONTH(Month&" 1, 2000"))*(NQC[Unit Category]=Dashboard!$B23),0))*INDEX(Profiles[],MATCH(1,(Profiles[Month]=MONTH(Month&" 1, 2000"))*(Profiles[Hour Ending]=INT(INDEX(_xlfn.TEXTSPLIT(Dashboard!K$3,," "),2))),0),MATCH(Dashboard!$B23,Profiles[#Headers],0)) -> 4208.559107 | L23: =INDEX(NQC[NQC MW],MATCH(1,(NQC[Month]=MONTH(Month&" 1, 2000"))*(NQC[Unit Category]=Dashboard!$B23),0))*INDEX(Profiles[],MATCH(1,(Profiles[Month]=MONTH(Month&" 1, 2000"))*(Profiles[Hour Ending]=INT(INDEX(_xlfn.TEXTSPLIT(Dashboard!L$3,," "),2))),0),MATCH(Dashboard!$B23,Profiles[#Headers],0)) -> 5060.815638 | M23: =INDEX(NQC[NQC MW],MATCH(1,(NQC[Month]=MONTH(Month&" 1, 2000"))*(NQC[Unit Category]=Dashboard!$B23),0))*INDEX(Profiles[],MATCH(1,(Profiles[Month]=MONTH(Month&" 1, 2000"))*(Profiles[Hour Ending]=INT(INDEX(_xlfn.TEXTSPLIT(Dashboard!M$3,," "),2))),0),MATCH(Dashboard!$B23,Profiles[#Headers],0)) -> 5331.686942 | N23: =INDEX(NQC[NQC MW],MATCH(1,(NQC[Month]=MONTH(Month&" 1, 2000"))*(NQC[Unit Category]=Dashboard!$B23),0))*INDEX(Profiles[],MATCH(1,(Profiles[Month]=MONTH(Month&" 1, 2000"))*(Profiles[Hour Ending]=INT(INDEX(_xlfn.TEXTSPLIT(Dashboard!N$3,," "),2))),0),MATCH(Dashboard!$B23,Profiles[#Headers],0)) -> 5226.741631 | O23: =INDEX(NQC[NQC MW],MATCH(1,(NQC[Month]=MONTH(Month&" 1, 2000"))*(NQC[Unit Category]=Dashboard!$B23),0))*INDEX(Profiles[],MATCH(1,(Profiles[Month]=MONTH(Month&" 1, 2000"))*(Profiles[Hour Ending]=INT(INDEX(_xlfn.TEXTSPLIT(Dashboard!O$3,," "),2))),0),MATCH(Dashboard!$B23,Profiles[#Headers],0)) -> 5396.884762 | P23: =INDEX(NQC[NQC MW],MATCH(1,(NQC[Month]=MONTH(Month&" 1, 2000"))*(NQC[Unit Category]=Dashboard!$B23),0))*INDEX(Profiles[],MATCH(1,(Profiles[Month]=MONTH(Month&" 1, 2000"))*(Profiles[Hour Ending]=INT(INDEX(_xlfn.TEXTSPLIT(Dashboard!P$3,," "),2))),0),MATCH(Dashboard!$B23,Profiles[#Headers],0)) -> 5101.276448 | Q23: =INDEX(NQC[NQC MW],MATCH(1,(NQC[Month]=MONTH(Month&" 1, 2000"))*(NQC[Unit Category]=Dashboard!$B23),0))*INDEX(Profiles[],MATCH(1,(Profiles[Month]=MONTH(Month&" 1, 2000"))*(Profiles[Hour Ending]=INT(INDEX(_xlfn.TEXTSPLIT(Dashboard!Q$3,," "),2))),0),MATCH(Dashboard!$B23,Profiles[#Headers],0)) -> 4657.184492 | R23: =INDEX(NQC[NQC MW],MATCH(1,(NQC[Month]=MONTH(Month&" 1, 2000"))*(NQC[Unit Category]=Dashboard!$B23),0))*INDEX(Profiles[],MATCH(1,(Profiles[Month]=MONTH(Month&" 1, 2000"))*(Profiles[Hour Ending]=INT(INDEX(_xlfn.TEXTSPLIT(Dashboard!R$3,," "),2))),0),MATCH(Dashboard!$B23,Profiles[#Headers],0)) -> 2646.386874 | S23: =INDEX(NQC[NQC MW],MATCH(1,(NQC[Month]=MONTH(Month&" 1, 2000"))*(NQC[Unit Category]=Dashboard!$B23),0))*INDEX(Profiles[],MATCH(1,(Profiles[Month]=MONTH(Month&" 1, 2000"))*(Profiles[Hour Ending]=INT(INDEX(_xlfn.TEXTSPLIT(Dashboard!S$3,," "),2))),0),MATCH(Dashboard!$B23,Profiles[#Headers],0)) -> 227.1886581 | T23: =INDEX(NQC[NQC MW],MATCH(1,(NQC[Month]=MONTH(Month&" 1, 2000"))*(NQC[Unit Category]=Dashboard!$B23),0))*INDEX(Profiles[],MATCH(1,(Profiles[Month]=MONTH(Month&" 1, 2000"))*(Profiles[Hour Ending]=INT(INDEX(_xlfn.TEXTSPLIT(Dashboard!T$3,," "),2))),0),MATCH(Dashboard!$B23,Profiles[#Headers],0)) -> 0 | U23: =INDEX(NQC[NQC MW],MATCH(1,(NQC[Month]=MONTH(Month&" 1, 2000"))*(NQC[Unit Category]=Dashboard!$B23),0))*INDEX(Profiles[],MATCH(1,(Profiles[Month]=MONTH(Month&" 1, 2000"))*(Profiles[Hour Ending]=INT(INDEX(_xlfn.TEXTSPLIT(Dashboard!U$3,," "),2))),0),MATCH(Dashboard!$B23,Profiles[#Headers],0)) -> 0 | V23: =INDEX(NQC[NQC MW],MATCH(1,(NQC[Month]=MONTH(Month&" 1, 2000"))*(NQC[Unit Category]=Dashboard!$B23),0))*INDEX(Profiles[],MATCH(1,(Profiles[Month]=MONTH(Month&" 1, 2000"))*(Profiles[Hour Ending]=INT(INDEX(_xlfn.TEXTSPLIT(Dashboard!V$3,," "),2))),0),MATCH(Dashboard!$B23,Profiles[#Headers],0)) -> 0 | W23: =INDEX(NQC[NQC MW],MATCH(1,(NQC[Month]=MONTH(Month&" 1, 2000"))*(NQC[Unit Category]=Dashboard!$B23),0))*INDEX(Profiles[],MATCH(1,(Profiles[Month]=MONTH(Month&" 1, 2000"))*(Profiles[Hour Ending]=INT(INDEX(_xlfn.TEXTSPLIT(Dashboard!W$3,," "),2))),0),MATCH(Dashboard!$B23,Profiles[#Headers],0)) -> 0 | X23: =INDEX(NQC[NQC MW],MATCH(1,(NQC[Month]=MONTH(Month&" 1, 2000"))*(NQC[Unit Category]=Dashboard!$B23),0))*INDEX(Profiles[],MATCH(1,(Profiles[Month]=MONTH(Month&" 1, 2000"))*(Profiles[Hour Ending]=INT(INDEX(_xlfn.TEXTSPLIT(Dashboard!X$3,," "),2))),0),MATCH(Dashboard!$B23,Profiles[#Headers],0)) -> 0 | Y23: =INDEX(NQC[NQC MW],MATCH(1,(NQC[Month]=MONTH(Month&" 1, 2000"))*(NQC[Unit Category]=Dashboard!$B23),0))*INDEX(Profiles[],MATCH(1,(Profiles[Month]=MONTH(Month&" 1, 2000"))*(Profiles[Hour Ending]=INT(INDEX(_xlfn.TEXTSPLIT(Dashboard!Y$3,," "),2))),0),MATCH(Dashboard!$B23,Profiles[#Headers],0)) -> 0 | Z23: =INDEX(NQC[NQC MW],MATCH(1,(NQC[Month]=MONTH(Month&" 1, 2000"))*(NQC[Unit Category]=Dashboard!$B23),0))*INDEX(Profiles[],MATCH(1,(Profiles[Month]=MONTH(Month&" 1, 2000"))*(Profiles[Hour Ending]=INT(INDEX(_xlfn.TEXTSPLIT(Dashboard!Z$3,," "),2))),0),MATCH(Dashboard!$B23,Profiles[#Headers],0)) -> 0
B24: Wind_Norcal | C24: =INDEX(Supply[Supply],MATCH(1,(Supply[Month]=MONTH(Month&" 1, 2000"))*(Supply[Unit Category]=Dashboard!$B24)*(Supply[Hour Ending]=INT(INDEX(_xlfn.TEXTSPLIT(Dashboard!C$3," "),2))),0)) -> 129.5743453 | D24: =INDEX(NQC[NQC MW],MATCH(1,(NQC[Month]=MONTH(Month&" 1, 2000"))*(NQC[Unit Category]=Dashboard!$B24),0))*INDEX(Profiles[],MATCH(1,(Profiles[Month]=MONTH(Month&" 1, 2000"))*(Profiles[Hour Ending]=INT(INDEX(_xlfn.TEXTSPLIT(Dashboard!D$3,," "),2))),0),MATCH(Dashboard!$B24,Profiles[#Headers],0)) -> 141.4747113 | E24: =INDEX(NQC[NQC MW],MATCH(1,(NQC[Month]=MONTH(Month&" 1, 2000"))*(NQC[Unit Category]=Dashboard!$B24),0))*INDEX(Profiles[],MATCH(1,(Profiles[Month]=MONTH(Month&" 1, 2000"))*(Profiles[Hour Ending]=INT(INDEX(_xlfn.TEXTSPLIT(Dashboard!E$3,," "),2))),0),MATCH(Dashboard!$B24,Profiles[#Headers],0)) -> 119.1160129 | F24: =INDEX(NQC[NQC MW],MATCH(1,(NQC[Month]=MONTH(Month&" 1, 2000"))*(NQC[Unit Category]=Dashboard!$B24),0))*INDEX(Profiles[],MATCH(1,(Profiles[Month]=MONTH(Month&" 1, 2000"))*(Profiles[Hour Ending]=INT(INDEX(_xlfn.TEXTSPLIT(Dashboard!F$3,," "),2))),0),MATCH(Dashboard!$B24,Profiles[#Headers],0)) -> 119.7406858 | G24: =INDEX(NQC[NQC MW],MATCH(1,(NQC[Month]=MONTH(Month&" 1, 2000"))*(NQC[Unit Category]=Dashboard!$B24),0))*INDEX(Profiles[],MATCH(1,(Profiles[Month]=MONTH(Month&" 1, 2000"))*(Profiles[Hour Ending]=INT(INDEX(_xlfn.TEXTSPLIT(Dashboard!G$3,," "),2))),0),MATCH(Dashboard!$B24,Profiles[#Headers],0)) -> 121.8228847 | H24: =INDEX(NQC[NQC MW],MATCH(1,(NQC[Month]=MONTH(Month&" 1, 2000"))*(NQC[Unit Category]=Dashboard!$B24),0))*INDEX(Profiles[],MATCH(1,(Profiles[Month]=MONTH(Month&" 1, 2000"))*(Profiles[Hour Ending]=INT(INDEX(_xlfn.TEXTSPLIT(Dashboard!H$3,," "),2))),0),MATCH(Dashboard!$B24,Profiles[#Headers],0)) -> 131.6658955 | I24: =INDEX(NQC[NQC MW],MATCH(1,(NQC[Month]=MONTH(Month&" 1, 2000"))*(NQC[Unit Category]=Dashboard!$B24),0))*INDEX(Profiles[],MATCH(1,(Profiles[Month]=MONTH(Month&" 1, 2000"))*(Profiles[Hour Ending]=INT(INDEX(_xlfn.TEXTSPLIT(Dashboard!I$3,," "),2))),0),MATCH(Dashboard!$B24,Profiles[#Headers],0)) -> 125.9987094 | J24: =INDEX(NQC[NQC MW],MATCH(1,(NQC[Month]=MONTH(Month&" 1, 2000"))*(NQC[Unit Category]=Dashboard!$B24),0))*INDEX(Profiles[],MATCH(1,(Profiles[Month]=MONTH(Month&" 1, 2000"))*(Profiles[Hour Ending]=INT(INDEX(_xlfn.TEXTSPLIT(Dashboard!J$3,," "),2))),0),MATCH(Dashboard!$B24,Profiles[#Headers],0)) -> 123.0380743 | K24: =INDEX(NQC[NQC MW],MATCH(1,(NQC[Month]=MONTH(Month&" 1, 2000"))*(NQC[Unit Category]=Dashboard!$B24),0))*INDEX(Profiles[],MATCH(1,(Profiles[Month]=MONTH(Month&" 1, 2000"))*(Profiles[Hour Ending]=INT(INDEX(_xlfn.TEXTSPLIT(Dashboard!K$3,," "),2))),0),MATCH(Dashboard!$B24,Profiles[#Headers],0)) -> 125.0035107 | L24: =INDEX(NQC[NQC MW],MATCH(1,(NQC[Month]=MONTH(Month&" 1, 2000"))*(NQC[Unit Category]=Dashboard!$B24),0))*INDEX(Profiles[],MATCH(1,(Profiles[Month]=MONTH(Month&" 1, 2000"))*(Profiles[Hour Ending]=INT(INDEX(_xlfn.TEXTSPLIT(Dashboard!L$3,," "),2))),0),MATCH(Dashboard!$B24,Profiles[#Headers],0)) -> 105.9549665 | M24: =INDEX(NQC[NQC MW],MATCH(1,(NQC[Month]=MONTH(Month&" 1, 2000"))*(NQC[Unit Category]=Dashboard!$B24),0))*INDEX(Profiles[],MATCH(1,(Profiles[Month]=MONTH(Month&" 1, 2000"))*(Profiles[Hour Ending]=INT(INDEX(_xlfn.TEXTSPLIT(Dashboard!M$3,," "),2))),0),MATCH(Dashboard!$B24,Profiles[#Headers],0)) -> 91.7984562 | N24: =INDEX(NQC[NQC MW],MATCH(1,(NQC[Month]=MONTH(Month&" 1, 2000"))*(NQC[Unit Category]=Dashboard!$B24),0))*INDEX(Profiles[],MATCH(1,(Profiles[Month]=MONTH(Month&" 1, 2000"))*(Profiles[Hour Ending]=INT(INDEX(_xlfn.TEXTSPLIT(Dashboard!N$3,," "),2))),0),MATCH(Dashboard!$B24,Profiles[#Headers],0)) -> 92.10281261 | O24: =INDEX(NQC[NQC MW],MATCH(1,(NQC[Month]=MONTH(Month&" 1, 2000"))*(NQC[Unit Category]=Dashboard!$B24),0))*INDEX(Profiles[],MATCH(1,(Profiles[Month]=MONTH(Month&" 1, 2000"))*(Profiles[Hour Ending]=INT(INDEX(_xlfn.TEXTSPLIT(Dashboard!O$3,," "),2))),0),MATCH(Dashboard!$B24,Profiles[#Headers],0)) -> 88.17309109 | P24: =INDEX(NQC[NQC MW],MATCH(1,(NQC[Month]=MONTH(Month&" 1, 2000"))*(NQC[Unit Category]=Dashboard!$B24),0))*INDEX(Profiles[],MATCH(1,(Profiles[Month]=MONTH(Month&" 1, 2000"))*(Profiles[Hour Ending]=INT(INDEX(_xlfn.TEXTSPLIT(Dashboard!P$3,," "),2))),0),MATCH(Dashboard!$B24,Profiles[#Headers],0)) -> 77.11941595 | Q24: =INDEX(NQC[NQC MW],MATCH(1,(NQC[Month]=MONTH(Month&" 1, 2000"))*(NQC[Unit Category]=Dashboard!$B24),0))*INDEX(Profiles[],MATCH(1,(Profiles[Month]=MONTH(Month&" 1, 2000"))*(Profiles[Hour Ending]=INT(INDEX(_xlfn.TEXTSPLIT(Dashboard!Q$3,," "),2))),0),MATCH(Dashboard!$B24,Profiles[#Headers],0)) -> 90.29515877 | R24: =INDEX(NQC[NQC MW],MATCH(1,(NQC[Month]=MONTH(Month&" 1, 2000"))*(NQC[Unit Category]=Dashboard!$B24),0))*INDEX(Profiles[],MATCH(1,(Profiles[Month]=MONTH(Month&" 1, 2000"))*(Profiles[Hour Ending]=INT(INDEX(_xlfn.TEXTSPLIT(Dashboard!R$3,," "),2))),0),MATCH(Dashboard!$B24,Profiles[#Headers],0)) -> 90.05031599 | S24: =INDEX(NQC[NQC MW],MATCH(1,(NQC[Month]=MONTH(Month&" 1, 2000"))*(NQC[Unit Category]=Dashboard!$B24),0))*INDEX(Profiles[],MATCH(1,(Profiles[Month]=MONTH(Month&" 1, 2000"))*(Profiles[Hour Ending]=INT(INDEX(_xlfn.TEXTSPLIT(Dashboard!S$3,," "),2))),0),MATCH(Dashboard!$B24,Profiles[#Headers],0)) -> 83.95071991 | T24: =INDEX(NQC[NQC MW],MATCH(1,(NQC[Month]=MONTH(Month&" 1, 2000"))*(NQC[Unit Category]=Dashboard!$B24),0))*INDEX(Profiles[],MATCH(1,(Profiles[Month]=MONTH(Month&" 1, 2000"))*(Profiles[Hour Ending]=INT(INDEX(_xlfn.TEXTSPLIT(Dashboard!T$3,," "),2))),0),MATCH(Dashboard!$B24,Profiles[#Headers],0)) -> 106.0222058 | U24: =INDEX(NQC[NQC MW],MATCH(1,(NQC[Month]=MONTH(Month&" 1, 2000"))*(NQC[Unit Category]=Dashboard!$B24),0))*INDEX(Profiles[],MATCH(1,(Profiles[Month]=MONTH(Month&" 1, 2000"))*(Profiles[Hour Ending]=INT(INDEX(_xlfn.TEXTSPLIT(Dashboard!U$3,," "),2))),0),MATCH(Dashboard!$B24,Profiles[#Headers],0)) -> 119.8354463 | V24: =INDEX(NQC[NQC MW],MATCH(1,(NQC[Month]=MONTH(Month&" 1, 2000"))*(NQC[Unit Category]=Dashboard!$B24),0))*INDEX(Profiles[],MATCH(1,(Profiles[Month]=MONTH(Month&" 1, 2000"))*(Profiles[Hour Ending]=INT(INDEX(_xlfn.TEXTSPLIT(Dashboard!V$3,," "),2))),0),MATCH(Dashboard!$B24,Profiles[#Headers],0)) -> 139.3167971 | W24: =INDEX(NQC[NQC MW],MATCH(1,(NQC[Month]=MONTH(Month&" 1, 2000"))*(NQC[Unit Category]=Dashboard!$B24),0))*INDEX(Profiles[],MATCH(1,(Profiles[Month]=MONTH(Month&" 1, 2000"))*(Profiles[Hour Ending]=INT(INDEX(_xlfn.TEXTSPLIT(Dashboard!W$3,," "),2))),0),MATCH(Dashboard!$B24,Profiles[#Headers],0)) -> 152.5528807 | X24: =INDEX(NQC[NQC MW],MATCH(1,(NQC[Month]=MONTH(Month&" 1, 2000"))*(NQC[Unit Category]=Dashboard!$B24),0))*INDEX(Profiles[],MATCH(1,(Profiles[Month]=MONTH(Month&" 1, 2000"))*(Profiles[Hour Ending]=INT(INDEX(_xlfn.TEXTSPLIT(Dashboard!X$3,," "),2))),0),MATCH(Dashboard!$B24,Profiles[#Headers],0)) -> 143.1408768 | Y24: =INDEX(NQC[NQC MW],MATCH(1,(NQC[Month]=MONTH(Month&" 1, 2000"))*(NQC[Unit Category]=Dashboard!$B24),0))*INDEX(Profiles[],MATCH(1,(Profiles[Month]=MONTH(Month&" 1, 2000"))*(Profiles[Hour Ending]=INT(INDEX(_xlfn.TEXTSPLIT(Dashboard!Y$3,," "),2))),0),MATCH(Dashboard!$B24,Profiles[#Headers],0)) -> 145.5261956 | Z24: =INDEX(NQC[NQC MW],MATCH(1,(NQC[Month]=MONTH(Month&" 1, 2000"))*(NQC[Unit Category]=Dashboard!$B24),0))*INDEX(Profiles[],MATCH(1,(Profiles[Month]=MONTH(Month&" 1, 2000"))*(Profiles[Hour Ending]=INT(INDEX(_xlfn.TEXTSPLIT(Dashboard!Z$3,," "),2))),0),MATCH(Dashboard!$B24,Profiles[#Headers],0)) -> 134.0044158
B25: Wind_Socal | C25: =INDEX(Supply[Supply],MATCH(1,(Supply[Month]=MONTH(Month&" 1, 2000"))*(Supply[Unit Category]=Dashboard!$B25)*(Supply[Hour Ending]=INT(INDEX(_xlfn.TEXTSPLIT(Dashboard!C$3," "),2))),0)) -> 381.4986222 | D25: =INDEX(NQC[NQC MW],MATCH(1,(NQC[Month]=MONTH(Month&" 1, 2000"))*(NQC[Unit Category]=Dashboard!$B25),0))*INDEX(Profiles[],MATCH(1,(Profiles[Month]=MONTH(Month&" 1, 2000"))*(Profiles[Hour Ending]=INT(INDEX(_xlfn.TEXTSPLIT(Dashboard!D$3,," "),2))),0),MATCH(Dashboard!$B25,Profiles[#Headers],0)) -> 389.9996662 | E25: =INDEX(NQC[NQC MW],MATCH(1,(NQC[Month]=MONTH(Month&" 1, 2000"))*(NQC[Unit Category]=Dashboard!$B25),0))*INDEX(Profiles[],MATCH(1,(Profiles[Month]=MONTH(Month&" 1, 2000"))*(Profiles[Hour Ending]=INT(INDEX(_xlfn.TEXTSPLIT(Dashboard!E$3,," "),2))),0),MATCH(Dashboard!$B25,Profiles[#Headers],0)) -> 413.1300264 | F25: =INDEX(NQC[NQC MW],MATCH(1,(NQC[Month]=MONTH(Month&" 1, 2000"))*(NQC[Unit Category]=Dashboard!$B25),0))*INDEX(Profiles[],MATCH(1,(Profiles[Month]=MONTH(Month&" 1, 2000"))*(Profiles[Hour Ending]=INT(INDEX(_xlfn.TEXTSPLIT(Dashboard!F$3,," "),2))),0),MATCH(Dashboard!$B25,Profiles[#Headers],0)) -> 392.3272184 | G25: =INDEX(NQC[NQC MW],MATCH(1,(NQC[Month]=MONTH(Month&" 1, 2000"))*(NQC[Unit Category]=Dashboard!$B25),0))*INDEX(Profiles[],MATCH(1,(Profiles[Month]=MONTH(Month&" 1, 2000"))*(Profiles[Hour Ending]=INT(INDEX(_xlfn.TEXTSPLIT(Dashboard!G$3,," "),2))),0),MATCH(Dashboard!$B25,Profiles[#Headers],0)) -> 412.1970509 | H25: =INDEX(NQC[NQC MW],MATCH(1,(NQC[Month]=MONTH(Month&" 1, 2000"))*(NQC[Unit Category]=Dashboard!$B25),0))*INDEX(Profiles[],MATCH(1,(Profiles[Month]=MONTH(Month&" 1, 2000"))*(Profiles[Hour Ending]=INT(INDEX(_xlfn.TEXTSPLIT(Dashboard!H$3,," "),2))),0),MATCH(Dashboard!$B25,Profiles[#Headers],0)) -> 390.7566096 | I25: =INDEX(NQC[NQC MW],MATCH(1,(NQC[Month]=MONTH(Month&" 1, 2000"))*(NQC[Unit Category]=Dashboard!$B25),0))*INDEX(Profiles[],MATCH(1,(Profiles[Month]=MONTH(Month&" 1, 2000"))*(Profiles[Hour Ending]=INT(INDEX(_xlfn.TEXTSPLIT(Dashboard!I$3,," "),2))),0),MATCH(Dashboard!$B25,Profiles[#Headers],0)) -> 345.3350096 | J25: =INDEX(NQC[NQC MW],MATCH(1,(NQC[Month]=MONTH(Month&" 1, 2000"))*(NQC[Unit Category]=Dashboard!$B25),0))*INDEX(Profiles[],MATCH(1,(Profiles[Month]=MONTH(Month&" 1, 2000"))*(Profiles[Hour Ending]=INT(INDEX(_xlfn.TEXTSPLIT(Dashboard!J$3,," "),2))),0),MATCH(Dashboard!$B25,Profiles[#Headers],0)) -> 414.9149855 | K25: =INDEX(NQC[NQC MW],MATCH(1,(NQC[Month]=MONTH(Month&" 1, 2000"))*(NQC[Unit Category]=Dashboard!$B25),0))*INDEX(Profiles[],MATCH(1,(Profiles[Month]=MONTH(Month&" 1, 2000"))*(Profiles[Hour Ending]=INT(INDEX(_xlfn.TEXTSPLIT(Dashboard!K$3,," "),2))),0),MATCH(Dashboard!$B25,Profiles[#Headers],0)) -> 386.0936299 | L25: =INDEX(NQC[NQC MW],MATCH(1,(NQC[Month]=MONTH(Month&" 1, 2000"))*(NQC[Unit Category]=Dashboard!$B25),0))*INDEX(Profiles[],MATCH(1,(Profiles[Month]=MONTH(Month&" 1, 2000"))*(Profiles[Hour Ending]=INT(INDEX(_xlfn.TEXTSPLIT(Dashboard!L$3,," "),2))),0),MATCH(Dashboard!$B25,Profiles[#Headers],0)) -> 347.7759475 | M25: =INDEX(NQC[NQC MW],MATCH(1,(NQC[Month]=MONTH(Month&" 1, 2000"))*(NQC[Unit Category]=Dashboard!$B25),0))*INDEX(Profiles[],MATCH(1,(Profiles[Month]=MONTH(Month&" 1, 2000"))*(Profiles[Hour Ending]=INT(INDEX(_xlfn.TEXTSPLIT(Dashboard!M$3,," "),2))),0),MATCH(Dashboard!$B25,Profiles[#Headers],0)) -> 343.2113094 | N25: =INDEX(NQC[NQC MW],MATCH(1,(NQC[Month]=MONTH(Month&" 1, 2000"))*(NQC[Unit Category]=Dashboard!$B25),0))*INDEX(Profiles[],MATCH(1,(Profiles[Month]=MONTH(Month&" 1, 2000"))*(Profiles[Hour Ending]=INT(INDEX(_xlfn.TEXTSPLIT(Dashboard!N$3,," "),2))),0),MATCH(Dashboard!$B25,Profiles[#Headers],0)) -> 364.340522 | O25: =INDEX(NQC[NQC MW],MATCH(1,(NQC[Month]=MONTH(Month&" 1, 2000"))*(NQC[Unit Category]=Dashboard!$B25),0))*INDEX(Profiles[],MATCH(1,(Profiles[Month]=MONTH(Month&" 1, 2000"))*(Profiles[Hour Ending]=INT(INDEX(_xlfn.TEXTSPLIT(Dashboard!O$3,," "),2))),0),MATCH(Dashboard!$B25,Profiles[#Headers],0)) -> 413.6777818 | P25: =INDEX(NQC[NQC MW],MATCH(1,(NQC[Month]=MONTH(Month&" 1, 2000"))*(NQC[Unit Category]=Dashboard!$B25),0))*INDEX(Profiles[],MATCH(1,(Profiles[Month]=MONTH(Month&" 1, 2000"))*(Profiles[Hour Ending]=INT(INDEX(_xlfn.TEXTSPLIT(Dashboard!P$3,," "),2))),0),MATCH(Dashboard!$B25,Profiles[#Headers],0)) -> 460.6200017 | Q25: =INDEX(NQC[NQC MW],MATCH(1,(NQC[Month]=MONTH(Month&" 1, 2000"))*(NQC[Unit Category]=Dashboard!$B25),0))*INDEX(Profiles[],MATCH(1,(Profiles[Month]=MONTH(Month&" 1, 2000"))*(Profiles[Hour Ending]=INT(INDEX(_xlfn.TEXTSPLIT(Dashboard!Q$3,," "),2))),0),MATCH(Dashboard!$B25,Profiles[#Headers],0)) -> 425.883907 | R25: =INDEX(NQC[NQC MW],MATCH(1,(NQC[Month]=MONTH(Month&" 1, 2000"))*(NQC[Unit Category]=Dashboard!$B25),0))*INDEX(Profiles[],MATCH(1,(Profiles[Month]=MONTH(Month&" 1, 2000"))*(Profiles[Hour Ending]=INT(INDEX(_xlfn.TEXTSPLIT(Dashboard!R$3,," "),2))),0),MATCH(Dashboard!$B25,Profiles[#Headers],0)) -> 360.8675162 | S25: =INDEX(NQC[NQC MW],MATCH(1,(NQC[Month]=MONTH(Month&" 1, 2000"))*(NQC[Unit Category]=Dashboard!$B25),0))*INDEX(Profiles[],MATCH(1,(Profiles[Month]=MONTH(Month&" 1, 2000"))*(Profiles[Hour Ending]=INT(INDEX(_xlfn.TEXTSPLIT(Dashboard!S$3,," "),2))),0),MATCH(Dashboard!$B25,Profiles[#Headers],0)) -> 370.1783179 | T25: =INDEX(NQC[NQC MW],MATCH(1,(NQC[Month]=MONTH(Month&" 1, 2000"))*(NQC[Unit Category]=Dashboard!$B25),0))*INDEX(Profiles[],MATCH(1,(Profiles[Month]=MONTH(Month&" 1, 2000"))*(Profiles[Hour Ending]=INT(INDEX(_xlfn.TEXTSPLIT(Dashboard!T$3,," "),2))),0),MATCH(Dashboard!$B25,Profiles[#Headers],0)) -> 375.8891496 | U25: =INDEX(NQC[NQC MW],MATCH(1,(NQC[Month]=MONTH(Month&" 1, 2000"))*(NQC[Unit Category]=Dashboard!$B25),0))*INDEX(Profiles[],MATCH(1,(Profiles[Month]=MONTH(Month&" 1, 2000"))*(Profiles[Hour Ending]=INT(INDEX(_xlfn.TEXTSPLIT(Dashboard!U$3,," "),2))),0),MATCH(Dashboard!$B25,Profiles[#Headers],0)) -> 390.9241577 | V25: =INDEX(NQC[NQC MW],MATCH(1,(NQC[Month]=MONTH(Month&" 1, 2000"))*(NQC[Unit Category]=Dashboard!$B25),0))*INDEX(Profiles[],MATCH(1,(Profiles[Month]=MONTH(Month&" 1, 2000"))*(Profiles[Hour Ending]=INT(INDEX(_xlfn.TEXTSPLIT(Dashboard!V$3,," "),2))),0),MATCH(Dashboard!$B25,Profiles[#Headers],0)) -> 380.159965 | W25: =INDEX(NQC[NQC MW],MATCH(1,(NQC[Month]=MONTH(Month&" 1, 2000"))*(NQC[Unit Category]=Dashboard!$B25),0))*INDEX(Profiles[],MATCH(1,(Profiles[Month]=MONTH(Month&" 1, 2000"))*(Profiles[Hour Ending]=INT(INDEX(_xlfn.TEXTSPLIT(Dashboard!W$3,," "),2))),0),MATCH(Dashboard!$B25,Profiles[#Headers],0)) -> 411.1700389 | X25: =INDEX(NQC[NQC MW],MATCH(1,(NQC[Month]=MONTH(Month&" 1, 2000"))*(NQC[Unit Category]=Dashboard!$B25),0))*INDEX(Profiles[],MATCH(1,(Profiles[Month]=MONTH(Month&" 1, 2000"))*(Profiles[Hour Ending]=INT(INDEX(_xlfn.TEXTSPLIT(Dashboard!X$3,," "),2))),0),MATCH(Dashboard!$B25,Profiles[#Headers],0)) -> 441.9730785 | Y25: =INDEX(NQC[NQC MW],MATCH(1,(NQC[Month]=MONTH(Month&" 1, 2000"))*(NQC[Unit Category]=Dashboard!$B25),0))*INDEX(Profiles[],MATCH(1,(Profiles[Month]=MONTH(Month&" 1, 2000"))*(Profiles[Hour Ending]=INT(INDEX(_xlfn.TEXTSPLIT(Dashboard!Y$3,," "),2))),0),MATCH(Dashboard!$B25,Profiles[#Headers],0)) -> 452.3699591 | Z25: =INDEX(NQC[NQC MW],MATCH(1,(NQC[Month]=MONTH(Month&" 1, 2000"))*(NQC[Unit Category]=Dashboard!$B25),0))*INDEX(Profiles[],MATCH(1,(Profiles[Month]=MONTH(Month&" 1, 2000"))*(Profiles[Hour Ending]=INT(INDEX(_xlfn.TEXTSPLIT(Dashboard!Z$3,," "),2))),0),MATCH(Dashboard!$B25,Profiles[#Headers],0)) -> 420.2834997
B26: Total Supply With Storage (MW) | C26: =SUM(C4:C25) -> 40118.63452 | D26: =SUM(D4:D25) -> 38571.80863 | E26: 37918.66336 | F26: 37898.48461 | G26: 37920.43806 | H26: 39056.11833 | I26: 42080.58302 | J26: 44175.96378 | K26: 45185.70036 | L26: 47692.59011 | M26: 48773.58626 | N26: 49022.6063 | O26: 49153.26857 | P26: 48549.98066 | Q26: 47281.06048 | R26: 42996.50879 | S26: 43616.28956 | T26: 46128.02841 | U26: 46160.15099 | V26: 45979.77033 | W26: 45210.06384 | X26: 44261.21217 | Y26: 42816.93145 | Z26: 41810.01203
B27: Total Supply Without Storage (MW) | C27: =SUM(C4:C16,C18:C25) -> 37897.49545 | D27: =SUM(D4:D16,D18:D25) -> 37917.8942 | E27: 37918.66336 | F27: 37898.48461 | G27: 37920.43806 | H27: 37908.84961 | I27: 37886.43801 | J27: 40030.88046 | K27: 45185.70036 | L27: 47692.59011 | M27: 48773.58626 | N27: 49022.6063 | O27: 49153.26857 | P27: 48549.98066 | Q27: 47281.06048 | R27: 42996.50879 | S27: 40840.3363 | T27: 40366.83317 | U27: 40273.9145 | V27: 40205.24669 | W27: 40096.55618 | X27: 38165.264 | Y27: 37984.3309 | Z27: 37940.71605
B28: Load | C28: =INDEX(ManagedLoad[Total],MATCH(1,(ManagedLoad[Month]=MONTH(Month&" 1, 2000"))*(ManagedLoad[Hour Ending]=INT(INDEX(_xlfn.TEXTSPLIT(Dashboard!C$3," "),2))),0)) -> 32472 | D28: =INDEX(ManagedLoad[Total],MATCH(1,(ManagedLoad[Month]=MONTH(Month&" 1, 2000"))*(ManagedLoad[Hour Ending]=INT(INDEX(_xlfn.TEXTSPLIT(Dashboard!D$3," "),2))),0)) -> 31220 | E28: =INDEX(ManagedLoad[Total],MATCH(1,(ManagedLoad[Month]=MONTH(Month&" 1, 2000"))*(ManagedLoad[Hour Ending]=INT(INDEX(_xlfn.TEXTSPLIT(Dashboard!E$3," "),2))),0)) -> 30251 | F28: =INDEX(ManagedLoad[Total],MATCH(1,(ManagedLoad[Month]=MONTH(Month&" 1, 2000"))*(ManagedLoad[Hour Ending]=INT(INDEX(_xlfn.TEXTSPLIT(Dashboard!F$3," "),2))),0)) -> 29835 | G28: =INDEX(ManagedLoad[Total],MATCH(1,(ManagedLoad[Month]=MONTH(Month&" 1, 2000"))*(ManagedLoad[Hour Ending]=INT(INDEX(_xlfn.TEXTSPLIT(Dashboard!G$3," "),2))),0)) -> 30096 | H28: =INDEX(ManagedLoad[Total],MATCH(1,(ManagedLoad[Month]=MONTH(Month&" 1, 2000"))*(ManagedLoad[Hour Ending]=INT(INDEX(_xlfn.TEXTSPLIT(Dashboard!H$3," "),2))),0)) -> 31612 | I28: =INDEX(ManagedLoad[Total],MATCH(1,(ManagedLoad[Month]=MONTH(Month&" 1, 2000"))*(ManagedLoad[Hour Ending]=INT(INDEX(_xlfn.TEXTSPLIT(Dashboard!I$3," "),2))),0)) -> 34060 | J28: =INDEX(ManagedLoad[Total],MATCH(1,(ManagedLoad[Month]=MONTH(Month&" 1, 2000"))*(ManagedLoad[Hour Ending]=INT(INDEX(_xlfn.TEXTSPLIT(Dashboard!J$3," "),2))),0)) -> 35756 | K28: =INDEX(ManagedLoad[Total],MATCH(1,(ManagedLoad[Month]=MONTH(Month&" 1, 2000"))*(ManagedLoad[Hour Ending]=INT(INDEX(_xlfn.TEXTSPLIT(Dashboard!K$3," "),2))),0)) -> 35480 | L28: =INDEX(ManagedLoad[Total],MATCH(1,(ManagedLoad[Month]=MONTH(Month&" 1, 2000"))*(ManagedLoad[Hour Ending]=INT(INDEX(_xlfn.TEXTSPLIT(Dashboard!L$3," "),2))),0)) -> 33958 | M28: =INDEX(ManagedLoad[Total],MATCH(1,(ManagedLoad[Month]=MONTH(Month&" 1, 2000"))*(ManagedLoad[Hour Ending]=INT(INDEX(_xlfn.TEXTSPLIT(Dashboard!M$3," "),2))),0)) -> 32362 | N28: =INDEX(ManagedLoad[Total],MATCH(1,(ManagedLoad[Month]=MONTH(Month&" 1, 2000"))*(ManagedLoad[Hour Ending]=INT(INDEX(_xlfn.TEXTSPLIT(Dashboard!N$3," "),2))),0)) -> 30797 | O28: =INDEX(ManagedLoad[Total],MATCH(1,(ManagedLoad[Month]=MONTH(Month&" 1, 2000"))*(ManagedLoad[Hour Ending]=INT(INDEX(_xlfn.TEXTSPLIT(Dashboard!O$3," "),2))),0)) -> 30298 | P28: =INDEX(ManagedLoad[Total],MATCH(1,(ManagedLoad[Month]=MONTH(Month&" 1, 2000"))*(ManagedLoad[Hour Ending]=INT(INDEX(_xlfn.TEXTSPLIT(Dashboard!P$3," "),2))),0)) -> 30565 | Q28: =INDEX(ManagedLoad[Total],MATCH(1,(ManagedLoad[Month]=MONTH(Month&" 1, 2000"))*(ManagedLoad[Hour Ending]=INT(INDEX(_xlfn.TEXTSPLIT(Dashboard!Q$3," "),2))),0)) -> 31593 | R28: =INDEX(ManagedLoad[Total],MATCH(1,(ManagedLoad[Month]=MONTH(Month&" 1, 2000"))*(ManagedLoad[Hour Ending]=INT(INDEX(_xlfn.TEXTSPLIT(Dashboard!R$3," "),2))),0)) -> 33343 | S28: =INDEX(ManagedLoad[Total],MATCH(1,(ManagedLoad[Month]=MONTH(Month&" 1, 2000"))*(ManagedLoad[Hour Ending]=INT(INDEX(_xlfn.TEXTSPLIT(Dashboard!S$3," "),2))),0)) -> 35303 | T28: =INDEX(ManagedLoad[Total],MATCH(1,(ManagedLoad[Month]=MONTH(Month&" 1, 2000"))*(ManagedLoad[Hour Ending]=INT(INDEX(_xlfn.TEXTSPLIT(Dashboard!T$3," "),2))),0)) -> 37336 | U28: =INDEX(ManagedLoad[Total],MATCH(1,(ManagedLoad[Month]=MONTH(Month&" 1, 2000"))*(ManagedLoad[Hour Ending]=INT(INDEX(_xlfn.TEXTSPLIT(Dashboard!U$3," "),2))),0)) -> 37362 | V28: =INDEX(ManagedLoad[Total],MATCH(1,(ManagedLoad[Month]=MONTH(Month&" 1, 2000"))*(ManagedLoad[Hour Ending]=INT(INDEX(_xlfn.TEXTSPLIT(Dashboard!V$3," "),2))),0)) -> 37216 | W28: =INDEX(ManagedLoad[Total],MATCH(1,(ManagedLoad[Month]=MONTH(Month&" 1, 2000"))*(ManagedLoad[Hour Ending]=INT(INDEX(_xlfn.TEXTSPLIT(Dashboard!W$3," "),2))),0)) -> 36593 | X28: =INDEX(ManagedLoad[Total],MATCH(1,(ManagedLoad[Month]=MONTH(Month&" 1, 2000"))*(ManagedLoad[Hour Ending]=INT(INDEX(_xlfn.TEXTSPLIT(Dashboard!X$3," "),2))),0)) -> 35825 | Y28: =INDEX(ManagedLoad[Total],MATCH(1,(ManagedLoad[Month]=MONTH(Month&" 1, 2000"))*(ManagedLoad[Hour Ending]=INT(INDEX(_xlfn.TEXTSPLIT(Dashboard!Y$3," "),2))),0)) -> 34656 | Z28: =INDEX(ManagedLoad[Total],MATCH(1,(ManagedLoad[Month]=MONTH(Month&" 1, 2000"))*(ManagedLoad[Hour Ending]=INT(INDEX(_xlfn.TEXTSPLIT(Dashboard!Z$3," "),2))),0)) -> 33841
B29: Requirement | C29: =C28*(1+_xlfn.XLOOKUP(MONTH(Month&" 1, 2000"),PRM[Month],PRM[Planning Reserve Margin],,0)) -> 40118.63452 | D29: =D28*(1+_xlfn.XLOOKUP(MONTH(Month&" 1, 2000"),PRM[Month],PRM[Planning Reserve Margin],,0)) -> 38571.80863 | E29: =E28*(1+_xlfn.XLOOKUP(MONTH(Month&" 1, 2000"),PRM[Month],PRM[Planning Reserve Margin],,0)) -> 37374.62469 | F29: =F28*(1+_xlfn.XLOOKUP(MONTH(Month&" 1, 2000"),PRM[Month],PRM[Planning Reserve Margin],,0)) -> 36860.66337 | G29: =G28*(1+_xlfn.XLOOKUP(MONTH(Month&" 1, 2000"),PRM[Month],PRM[Planning Reserve Margin],,0)) -> 37183.12468 | H29: =H28*(1+_xlfn.XLOOKUP(MONTH(Month&" 1, 2000"),PRM[Month],PRM[Planning Reserve Margin],,0)) -> 39056.11833 | I29: =I28*(1+_xlfn.XLOOKUP(MONTH(Month&" 1, 2000"),PRM[Month],PRM[Planning Reserve Margin],,0)) -> 42080.58302 | J29: =J28*(1+_xlfn.XLOOKUP(MONTH(Month&" 1, 2000"),PRM[Month],PRM[Planning Reserve Margin],,0)) -> 44175.96378 | K29: =K28*(1+_xlfn.XLOOKUP(MONTH(Month&" 1, 2000"),PRM[Month],PRM[Planning Reserve Margin],,0)) -> 43834.97021 | L29: =L28*(1+_xlfn.XLOOKUP(MONTH(Month&" 1, 2000"),PRM[Month],PRM[Planning Reserve Margin],,0)) -> 41954.56366 | M29: =M28*(1+_xlfn.XLOOKUP(MONTH(Month&" 1, 2000"),PRM[Month],PRM[Planning Reserve Margin],,0)) -> 39982.73129 | N29: =N28*(1+_xlfn.XLOOKUP(MONTH(Month&" 1, 2000"),PRM[Month],PRM[Planning Reserve Margin],,0)) -> 38049.19892 | O29: =O28*(1+_xlfn.XLOOKUP(MONTH(Month&" 1, 2000"),PRM[Month],PRM[Planning Reserve Margin],,0)) -> 37432.69243 | P29: =P28*(1+_xlfn.XLOOKUP(MONTH(Month&" 1, 2000"),PRM[Month],PRM[Planning Reserve Margin],,0)) -> 37762.56664 | Q29: =Q28*(1+_xlfn.XLOOKUP(MONTH(Month&" 1, 2000"),PRM[Month],PRM[Planning Reserve Margin],,0)) -> 39032.64414 | R29: =R28*(1+_xlfn.XLOOKUP(MONTH(Month&" 1, 2000"),PRM[Month],PRM[Planning Reserve Margin],,0)) -> 41194.74103 | S29: =S28*(1+_xlfn.XLOOKUP(MONTH(Month&" 1, 2000"),PRM[Month],PRM[Planning Reserve Margin],,0)) -> 43616.28956 | T29: =T28*(1+_xlfn.XLOOKUP(MONTH(Month&" 1, 2000"),PRM[Month],PRM[Planning Reserve Margin],,0)) -> 46128.02841 | U29: =U28*(1+_xlfn.XLOOKUP(MONTH(Month&" 1, 2000"),PRM[Month],PRM[Planning Reserve Margin],,0)) -> 46160.15099 | V29: =V28*(1+_xlfn.XLOOKUP(MONTH(Month&" 1, 2000"),PRM[Month],PRM[Planning Reserve Margin],,0)) -> 45979.77033 | W29: =W28*(1+_xlfn.XLOOKUP(MONTH(Month&" 1, 2000"),PRM[Month],PRM[Planning Reserve Margin],,0)) -> 45210.06384 | X29: =X28*(1+_xlfn.XLOOKUP(MONTH(Month&" 1, 2000"),PRM[Month],PRM[Planning Reserve Margin],,0)) -> 44261.21217 | Y29: =Y28*(1+_xlfn.XLOOKUP(MONTH(Month&" 1, 2000"),PRM[Month],PRM[Planning Reserve Margin],,0)) -> 42816.93145 | Z29: =Z28*(1+_xlfn.XLOOKUP(MONTH(Month&" 1, 2000"),PRM[Month],PRM[Planning Reserve Margin],,0)) -> 41810.01203
B31: Chart Label: | C31: ="Hourly Slice-of-Day Supply by Unit Category and Load for "&Month&" 2026" -> Hourly Slice-of-Day Supply by Unit Category and Load for Dec 2026

Sheet Monthly Constraints
A1: Month | B1: Jan | C1: Feb | D1: Mar | E1: Apr | F1: May | G1: Jun | H1: Jul | I1: Aug | J1: Sep | K1: Oct | L1: Nov | M1: Dec
B2: 1 | C2: 2 | D2: 3 | E2: 4 | F2: 5 | G2: 6 | H2: 7 | I2: 8 | J2: 9 | K2: 10 | L2: 11 | M2: 12
A3: Constraining Hour Ending | B3: =INDEX(PRM[Constraining Hour Ending],'Monthly Constraints'!B$2) -> 19 | C3: =INDEX(PRM[Constraining Hour Ending],'Monthly Constraints'!C$2) -> 19 | D3: =INDEX(PRM[Constraining Hour Ending],'Monthly Constraints'!D$2) -> 20 | E3: =INDEX(PRM[Constraining Hour Ending],'Monthly Constraints'!E$2) -> 19 | F3: =INDEX(PRM[Constraining Hour Ending],'Monthly Constraints'!F$2) -> 20 | G3: =INDEX(PRM[Constraining Hour Ending],'Monthly Constraints'!G$2) -> 19 | H3: =INDEX(PRM[Constraining Hour Ending],'Monthly Constraints'!H$2) -> 19 | I3: =INDEX(PRM[Constraining Hour Ending],'Monthly Constraints'!I$2) -> 19 | J3: =INDEX(PRM[Constraining Hour Ending],'Monthly Constraints'!J$2) -> 18 | K3: =INDEX(PRM[Constraining Hour Ending],'Monthly Constraints'!K$2) -> 18 | L3: =INDEX(PRM[Constraining Hour Ending],'Monthly Constraints'!L$2) -> 18 | M3: =INDEX(PRM[Constraining Hour Ending],'Monthly Constraints'!M$2) -> 22
A4: Biogas | B4: =INDEX(Supply[Supply],MATCH(1,(Supply[Unit Category]='Monthly Constraints'!$A4)*(Supply[Month]='Monthly Constraints'!B$2)*(Supply[Hour Ending]='Monthly Constraints'!B$3),0)) -> 206.430284 | C4: =INDEX(Supply[Supply],MATCH(1,(Supply[Unit Category]='Monthly Constraints'!$A4)*(Supply[Month]='Monthly Constraints'!C$2)*(Supply[Hour Ending]='Monthly Constraints'!C$3),0)) -> 207.818714 | D4: =INDEX(Supply[Supply],MATCH(1,(Supply[Unit Category]='Monthly Constraints'!$A4)*(Supply[Month]='Monthly Constraints'!D$2)*(Supply[Hour Ending]='Monthly Constraints'!D$3),0)) -> 206.2131 | E4: =INDEX(Supply[Supply],MATCH(1,(Supply[Unit Category]='Monthly Constraints'!$A4)*(Supply[Month]='Monthly Constraints'!E$2)*(Supply[Hour Ending]='Monthly Constraints'!E$3),0)) -> 202.403616 | F4: =INDEX(Supply[Supply],MATCH(1,(Supply[Unit Category]='Monthly Constraints'!$A4)*(Supply[Month]='Monthly Constraints'!F$2)*(Supply[Hour Ending]='Monthly Constraints'!F$3),0)) -> 206.801388 | G4: =INDEX(Supply[Supply],MATCH(1,(Supply[Unit Category]='Monthly Constraints'!$A4)*(Supply[Month]='Monthly Constraints'!G$2)*(Supply[Hour Ending]='Monthly Constraints'!G$3),0)) -> 205.766317 | H4: =INDEX(Supply[Supply],MATCH(1,(Supply[Unit Category]='Monthly Constraints'!$A4)*(Supply[Month]='Monthly Constraints'!H$2)*(Supply[Hour Ending]='Monthly Constraints'!H$3),0)) -> 203.676641 | I4: =INDEX(Supply[Supply],MATCH(1,(Supply[Unit Category]='Monthly Constraints'!$A4)*(Supply[Month]='Monthly Constraints'!I$2)*(Supply[Hour Ending]='Monthly Constraints'!I$3),0)) -> 201.706094 | J4: =INDEX(Supply[Supply],MATCH(1,(Supply[Unit Category]='Monthly Constraints'!$A4)*(Supply[Month]='Monthly Constraints'!J$2)*(Supply[Hour Ending]='Monthly Constraints'!J$3),0)) -> 201.69007 | K4: =INDEX(Supply[Supply],MATCH(1,(Supply[Unit Category]='Monthly Constraints'!$A4)*(Supply[Month]='Monthly Constraints'!K$2)*(Supply[Hour Ending]='Monthly Constraints'!K$3),0)) -> 197.4247 | L4: =INDEX(Supply[Supply],MATCH(1,(Supply[Unit Category]='Monthly Constraints'!$A4)*(Supply[Month]='Monthly Constraints'!L$2)*(Supply[Hour Ending]='Monthly Constraints'!L$3),0)) -> 200.358794 | M4: =INDEX(Supply[Supply],MATCH(1,(Supply[Unit Category]='Monthly Constraints'!$A4)*(Supply[Month]='Monthly Constraints'!M$2)*(Supply[Hour Ending]='Monthly Constraints'!M$3),0)) -> 216.816954
A5: Biomass/Wood | B5: =INDEX(Supply[Supply],MATCH(1,(Supply[Unit Category]='Monthly Constraints'!$A5)*(Supply[Month]='Monthly Constraints'!B$2)*(Supply[Hour Ending]='Monthly Constraints'!B$3),0)) -> 409.010026 | C5: =INDEX(Supply[Supply],MATCH(1,(Supply[Unit Category]='Monthly Constraints'!$A5)*(Supply[Month]='Monthly Constraints'!C$2)*(Supply[Hour Ending]='Monthly Constraints'!C$3),0)) -> 397.786736 | D5: =INDEX(Supply[Supply],MATCH(1,(Supply[Unit Category]='Monthly Constraints'!$A5)*(Supply[Month]='Monthly Constraints'!D$2)*(Supply[Hour Ending]='Monthly Constraints'!D$3),0)) -> 387.562165 | E5: =INDEX(Supply[Supply],MATCH(1,(Supply[Unit Category]='Monthly Constraints'!$A5)*(Supply[Month]='Monthly Constraints'!E$2)*(Supply[Hour Ending]='Monthly Constraints'!E$3),0)) -> 377.545644 | F5: =INDEX(Supply[Supply],MATCH(1,(Supply[Unit Category]='Monthly Constraints'!$A5)*(Supply[Month]='Monthly Constraints'!F$2)*(Supply[Hour Ending]='Monthly Constraints'!F$3),0)) -> 385.404685 | G5: =INDEX(Supply[Supply],MATCH(1,(Supply[Unit Category]='Monthly Constraints'!$A5)*(Supply[Month]='Monthly Constraints'!G$2)*(Supply[Hour Ending]='Monthly Constraints'!G$3),0)) -> 425.545307 | H5: =INDEX(Supply[Supply],MATCH(1,(Supply[Unit Category]='Monthly Constraints'!$A5)*(Supply[Month]='Monthly Constraints'!H$2)*(Supply[Hour Ending]='Monthly Constraints'!H$3),0)) -> 419.868485 | I5: =INDEX(Supply[Supply],MATCH(1,(Supply[Unit Category]='Monthly Constraints'!$A5)*(Supply[Month]='Monthly Constraints'!I$2)*(Supply[Hour Ending]='Monthly Constraints'!I$3),0)) -> 409.84238 | J5: =INDEX(Supply[Supply],MATCH(1,(Supply[Unit Category]='Monthly Constraints'!$A5)*(Supply[Month]='Monthly Constraints'!J$2)*(Supply[Hour Ending]='Monthly Constraints'!J$3),0)) -> 410.565134 | K5: =INDEX(Supply[Supply],MATCH(1,(Supply[Unit Category]='Monthly Constraints'!$A5)*(Supply[Month]='Monthly Constraints'!K$2)*(Supply[Hour Ending]='Monthly Constraints'!K$3),0)) -> 395.737 | L5: =INDEX(Supply[Supply],MATCH(1,(Supply[Unit Category]='Monthly Constraints'!$A5)*(Supply[Month]='Monthly Constraints'!L$2)*(Supply[Hour Ending]='Monthly Constraints'!L$3),0)) -> 378.136671 | M5: =INDEX(Supply[Supply],MATCH(1,(Supply[Unit Category]='Monthly Constraints'!$A5)*(Supply[Month]='Monthly Constraints'!M$2)*(Supply[Hour Ending]='Monthly Constraints'!M$3),0)) -> 387.295377
A6: CC | B6: =INDEX(Supply[Supply],MATCH(1,(Supply[Unit Category]='Monthly Constraints'!$A6)*(Supply[Month]='Monthly Constraints'!B$2)*(Supply[Hour Ending]='Monthly Constraints'!B$3),0)) -> 17255.4 | C6: =INDEX(Supply[Supply],MATCH(1,(Supply[Unit Category]='Monthly Constraints'!$A6)*(Supply[Month]='Monthly Constraints'!C$2)*(Supply[Hour Ending]='Monthly Constraints'!C$3),0)) -> 17257.4 | D6: =INDEX(Supply[Supply],MATCH(1,(Supply[Unit Category]='Monthly Constraints'!$A6)*(Supply[Month]='Monthly Constraints'!D$2)*(Supply[Hour Ending]='Monthly Constraints'!D$3),0)) -> 17249.93 | E6: =INDEX(Supply[Supply],MATCH(1,(Supply[Unit Category]='Monthly Constraints'!$A6)*(Supply[Month]='Monthly Constraints'!E$2)*(Supply[Hour Ending]='Monthly Constraints'!E$3),0)) -> 17217.45 | F6: =INDEX(Supply[Supply],MATCH(1,(Supply[Unit Category]='Monthly Constraints'!$A6)*(Supply[Month]='Monthly Constraints'!F$2)*(Supply[Hour Ending]='Monthly Constraints'!F$3),0)) -> 17175.15 | G6: =INDEX(Supply[Supply],MATCH(1,(Supply[Unit Category]='Monthly Constraints'!$A6)*(Supply[Month]='Monthly Constraints'!G$2)*(Supply[Hour Ending]='Monthly Constraints'!G$3),0)) -> 17138.45 | H6: =INDEX(Supply[Supply],MATCH(1,(Supply[Unit Category]='Monthly Constraints'!$A6)*(Supply[Month]='Monthly Constraints'!H$2)*(Supply[Hour Ending]='Monthly Constraints'!H$3),0)) -> 17109.85 | I6: =INDEX(Supply[Supply],MATCH(1,(Supply[Unit Category]='Monthly Constraints'!$A6)*(Supply[Month]='Monthly Constraints'!I$2)*(Supply[Hour Ending]='Monthly Constraints'!I$3),0)) -> 17112.85 | J6: =INDEX(Supply[Supply],MATCH(1,(Supply[Unit Category]='Monthly Constraints'!$A6)*(Supply[Month]='Monthly Constraints'!J$2)*(Supply[Hour Ending]='Monthly Constraints'!J$3),0)) -> 17129.35 | K6: =INDEX(Supply[Supply],MATCH(1,(Supply[Unit Category]='Monthly Constraints'!$A6)*(Supply[Month]='Monthly Constraints'!K$2)*(Supply[Hour Ending]='Monthly Constraints'!K$3),0)) -> 17187.85 | L6: =INDEX(Supply[Supply],MATCH(1,(Supply[Unit Category]='Monthly Constraints'!$A6)*(Supply[Month]='Monthly Constraints'!L$2)*(Supply[Hour Ending]='Monthly Constraints'!L$3),0)) -> 17239.4 | M6: =INDEX(Supply[Supply],MATCH(1,(Supply[Unit Category]='Monthly Constraints'!$A6)*(Supply[Month]='Monthly Constraints'!M$2)*(Supply[Hour Ending]='Monthly Constraints'!M$3),0)) -> 17252.4
A7: Coal | B7: =INDEX(Supply[Supply],MATCH(1,(Supply[Unit Category]='Monthly Constraints'!$A7)*(Supply[Month]='Monthly Constraints'!B$2)*(Supply[Hour Ending]='Monthly Constraints'!B$3),0)) -> 0 | C7: =INDEX(Supply[Supply],MATCH(1,(Supply[Unit Category]='Monthly Constraints'!$A7)*(Supply[Month]='Monthly Constraints'!C$2)*(Supply[Hour Ending]='Monthly Constraints'!C$3),0)) -> 0 | D7: =INDEX(Supply[Supply],MATCH(1,(Supply[Unit Category]='Monthly Constraints'!$A7)*(Supply[Month]='Monthly Constraints'!D$2)*(Supply[Hour Ending]='Monthly Constraints'!D$3),0)) -> 0 | E7: =INDEX(Supply[Supply],MATCH(1,(Supply[Unit Category]='Monthly Constraints'!$A7)*(Supply[Month]='Monthly Constraints'!E$2)*(Supply[Hour Ending]='Monthly Constraints'!E$3),0)) -> 0 | F7: =INDEX(Supply[Supply],MATCH(1,(Supply[Unit Category]='Monthly Constraints'!$A7)*(Supply[Month]='Monthly Constraints'!F$2)*(Supply[Hour Ending]='Monthly Constraints'!F$3),0)) -> 0 | G7: =INDEX(Supply[Supply],MATCH(1,(Supply[Unit Category]='Monthly Constraints'!$A7)*(Supply[Month]='Monthly Constraints'!G$2)*(Supply[Hour Ending]='Monthly Constraints'!G$3),0)) -> 0 | H7: =INDEX(Supply[Supply],MATCH(1,(Supply[Unit Category]='Monthly Constraints'!$A7)*(Supply[Month]='Monthly Constraints'!H$2)*(Supply[Hour Ending]='Monthly Constraints'!H$3),0)) -> 0 | I7: =INDEX(Supply[Supply],MATCH(1,(Supply[Unit Category]='Monthly Constraints'!$A7)*(Supply[Month]='Monthly Constraints'!I$2)*(Supply[Hour Ending]='Monthly Constraints'!I$3),0)) -> 0 | J7: =INDEX(Supply[Supply],MATCH(1,(Supply[Unit Category]='Monthly Constraints'!$A7)*(Supply[Month]='Monthly Constraints'!J$2)*(Supply[Hour Ending]='Monthly Constraints'!J$3),0)) -> 0 | K7: =INDEX(Supply[Supply],MATCH(1,(Supply[Unit Category]='Monthly Constraints'!$A7)*(Supply[Month]='Monthly Constraints'!K$2)*(Supply[Hour Ending]='Monthly Constraints'!K$3),0)) -> 0 | L7: =INDEX(Supply[Supply],MATCH(1,(Supply[Unit Category]='Monthly Constraints'!$A7)*(Supply[Month]='Monthly Constraints'!L$2)*(Supply[Hour Ending]='Monthly Constraints'!L$3),0)) -> 0 | M7: =INDEX(Supply[Supply],MATCH(1,(Supply[Unit Category]='Monthly Constraints'!$A7)*(Supply[Month]='Monthly Constraints'!M$2)*(Supply[Hour Ending]='Monthly Constraints'!M$3),0)) -> 0
A8: Cogen | B8: =INDEX(Supply[Supply],MATCH(1,(Supply[Unit Category]='Monthly Constraints'!$A8)*(Supply[Month]='Monthly Constraints'!B$2)*(Supply[Hour Ending]='Monthly Constraints'!B$3),0)) -> 1902.751824 | C8: =INDEX(Supply[Supply],MATCH(1,(Supply[Unit Category]='Monthly Constraints'!$A8)*(Supply[Month]='Monthly Constraints'!C$2)*(Supply[Hour Ending]='Monthly Constraints'!C$3),0)) -> 1878.00332 | D8: =INDEX(Supply[Supply],MATCH(1,(Supply[Unit Category]='Monthly Constraints'!$A8)*(Supply[Month]='Monthly Constraints'!D$2)*(Supply[Hour Ending]='Monthly Constraints'!D$3),0)) -> 1807.620977 | E8: =INDEX(Supply[Supply],MATCH(1,(Supply[Unit Category]='Monthly Constraints'!$A8)*(Supply[Month]='Monthly Constraints'!E$2)*(Supply[Hour Ending]='Monthly Constraints'!E$3),0)) -> 1843.237919 | F8: =INDEX(Supply[Supply],MATCH(1,(Supply[Unit Category]='Monthly Constraints'!$A8)*(Supply[Month]='Monthly Constraints'!F$2)*(Supply[Hour Ending]='Monthly Constraints'!F$3),0)) -> 1855.018987 | G8: =INDEX(Supply[Supply],MATCH(1,(Supply[Unit Category]='Monthly Constraints'!$A8)*(Supply[Month]='Monthly Constraints'!G$2)*(Supply[Hour Ending]='Monthly Constraints'!G$3),0)) -> 1877.637089 | H8: =INDEX(Supply[Supply],MATCH(1,(Supply[Unit Category]='Monthly Constraints'!$A8)*(Supply[Month]='Monthly Constraints'!H$2)*(Supply[Hour Ending]='Monthly Constraints'!H$3),0)) -> 1875.448994 | I8: =INDEX(Supply[Supply],MATCH(1,(Supply[Unit Category]='Monthly Constraints'!$A8)*(Supply[Month]='Monthly Constraints'!I$2)*(Supply[Hour Ending]='Monthly Constraints'!I$3),0)) -> 1912.678937 | J8: =INDEX(Supply[Supply],MATCH(1,(Supply[Unit Category]='Monthly Constraints'!$A8)*(Supply[Month]='Monthly Constraints'!J$2)*(Supply[Hour Ending]='Monthly Constraints'!J$3),0)) -> 1886.063009 | K8: =INDEX(Supply[Supply],MATCH(1,(Supply[Unit Category]='Monthly Constraints'!$A8)*(Supply[Month]='Monthly Constraints'!K$2)*(Supply[Hour Ending]='Monthly Constraints'!K$3),0)) -> 1908.027 | L8: =INDEX(Supply[Supply],MATCH(1,(Supply[Unit Category]='Monthly Constraints'!$A8)*(Supply[Month]='Monthly Constraints'!L$2)*(Supply[Hour Ending]='Monthly Constraints'!L$3),0)) -> 1857.453622 | M8: =INDEX(Supply[Supply],MATCH(1,(Supply[Unit Category]='Monthly Constraints'!$A8)*(Supply[Month]='Monthly Constraints'!M$2)*(Supply[Hour Ending]='Monthly Constraints'!M$3),0)) -> 1867.586346
A9: CT | B9: =INDEX(Supply[Supply],MATCH(1,(Supply[Unit Category]='Monthly Constraints'!$A9)*(Supply[Month]='Monthly Constraints'!B$2)*(Supply[Hour Ending]='Monthly Constraints'!B$3),0)) -> 8046.13 | C9: =INDEX(Supply[Supply],MATCH(1,(Supply[Unit Category]='Monthly Constraints'!$A9)*(Supply[Month]='Monthly Constraints'!C$2)*(Supply[Hour Ending]='Monthly Constraints'!C$3),0)) -> 8047.61 | D9: =INDEX(Supply[Supply],MATCH(1,(Supply[Unit Category]='Monthly Constraints'!$A9)*(Supply[Month]='Monthly Constraints'!D$2)*(Supply[Hour Ending]='Monthly Constraints'!D$3),0)) -> 8033.21 | E9: =INDEX(Supply[Supply],MATCH(1,(Supply[Unit Category]='Monthly Constraints'!$A9)*(Supply[Month]='Monthly Constraints'!E$2)*(Supply[Hour Ending]='Monthly Constraints'!E$3),0)) -> 8017.33 | F9: =INDEX(Supply[Supply],MATCH(1,(Supply[Unit Category]='Monthly Constraints'!$A9)*(Supply[Month]='Monthly Constraints'!F$2)*(Supply[Hour Ending]='Monthly Constraints'!F$3),0)) -> 8008.02 | G9: =INDEX(Supply[Supply],MATCH(1,(Supply[Unit Category]='Monthly Constraints'!$A9)*(Supply[Month]='Monthly Constraints'!G$2)*(Supply[Hour Ending]='Monthly Constraints'!G$3),0)) -> 8011.91 | H9: =INDEX(Supply[Supply],MATCH(1,(Supply[Unit Category]='Monthly Constraints'!$A9)*(Supply[Month]='Monthly Constraints'!H$2)*(Supply[Hour Ending]='Monthly Constraints'!H$3),0)) -> 8024.86 | I9: =INDEX(Supply[Supply],MATCH(1,(Supply[Unit Category]='Monthly Constraints'!$A9)*(Supply[Month]='Monthly Constraints'!I$2)*(Supply[Hour Ending]='Monthly Constraints'!I$3),0)) -> 8022.84 | J9: =INDEX(Supply[Supply],MATCH(1,(Supply[Unit Category]='Monthly Constraints'!$A9)*(Supply[Month]='Monthly Constraints'!J$2)*(Supply[Hour Ending]='Monthly Constraints'!J$3),0)) -> 8031.14 | K9: =INDEX(Supply[Supply],MATCH(1,(Supply[Unit Category]='Monthly Constraints'!$A9)*(Supply[Month]='Monthly Constraints'!K$2)*(Supply[Hour Ending]='Monthly Constraints'!K$3),0)) -> 8036.51 | L9: =INDEX(Supply[Supply],MATCH(1,(Supply[Unit Category]='Monthly Constraints'!$A9)*(Supply[Month]='Monthly Constraints'!L$2)*(Supply[Hour Ending]='Monthly Constraints'!L$3),0)) -> 8042.92 | M9: =INDEX(Supply[Supply],MATCH(1,(Supply[Unit Category]='Monthly Constraints'!$A9)*(Supply[Month]='Monthly Constraints'!M$2)*(Supply[Hour Ending]='Monthly Constraints'!M$3),0)) -> 8058.13
A10: DR | B10: =INDEX(Supply[Supply],MATCH(1,(Supply[Unit Category]='Monthly Constraints'!$A10)*(Supply[Month]='Monthly Constraints'!B$2)*(Supply[Hour Ending]='Monthly Constraints'!B$3),0)) -> 1111.066765 | C10: =INDEX(Supply[Supply],MATCH(1,(Supply[Unit Category]='Monthly Constraints'!$A10)*(Supply[Month]='Monthly Constraints'!C$2)*(Supply[Hour Ending]='Monthly Constraints'!C$3),0)) -> 1093.824439 | D10: =INDEX(Supply[Supply],MATCH(1,(Supply[Unit Category]='Monthly Constraints'!$A10)*(Supply[Month]='Monthly Constraints'!D$2)*(Supply[Hour Ending]='Monthly Constraints'!D$3),0)) -> 1258.18496 | E10: =INDEX(Supply[Supply],MATCH(1,(Supply[Unit Category]='Monthly Constraints'!$A10)*(Supply[Month]='Monthly Constraints'!E$2)*(Supply[Hour Ending]='Monthly Constraints'!E$3),0)) -> 2061.948711 | F10: =INDEX(Supply[Supply],MATCH(1,(Supply[Unit Category]='Monthly Constraints'!$A10)*(Supply[Month]='Monthly Constraints'!F$2)*(Supply[Hour Ending]='Monthly Constraints'!F$3),0)) -> 2457.54683 | G10: =INDEX(Supply[Supply],MATCH(1,(Supply[Unit Category]='Monthly Constraints'!$A10)*(Supply[Month]='Monthly Constraints'!G$2)*(Supply[Hour Ending]='Monthly Constraints'!G$3),0)) -> 2376.71 | H10: =INDEX(Supply[Supply],MATCH(1,(Supply[Unit Category]='Monthly Constraints'!$A10)*(Supply[Month]='Monthly Constraints'!H$2)*(Supply[Hour Ending]='Monthly Constraints'!H$3),0)) -> 2376.71 | I10: =INDEX(Supply[Supply],MATCH(1,(Supply[Unit Category]='Monthly Constraints'!$A10)*(Supply[Month]='Monthly Constraints'!I$2)*(Supply[Hour Ending]='Monthly Constraints'!I$3),0)) -> 2376.71 | J10: =INDEX(Supply[Supply],MATCH(1,(Supply[Unit Category]='Monthly Constraints'!$A10)*(Supply[Month]='Monthly Constraints'!J$2)*(Supply[Hour Ending]='Monthly Constraints'!J$3),0)) -> 2498.474763 | K10: =INDEX(Supply[Supply],MATCH(1,(Supply[Unit Category]='Monthly Constraints'!$A10)*(Supply[Month]='Monthly Constraints'!K$2)*(Supply[Hour Ending]='Monthly Constraints'!K$3),0)) -> 2498.474763 | L10: =INDEX(Supply[Supply],MATCH(1,(Supply[Unit Category]='Monthly Constraints'!$A10)*(Supply[Month]='Monthly Constraints'!L$2)*(Supply[Hour Ending]='Monthly Constraints'!L$3),0)) -> 1833.05759 | M10: =INDEX(Supply[Supply],MATCH(1,(Supply[Unit Category]='Monthly Constraints'!$A10)*(Supply[Month]='Monthly Constraints'!M$2)*(Supply[Hour Ending]='Monthly Constraints'!M$3),0)) -> 193.7082613
A11: ICE | B11: =INDEX(Supply[Supply],MATCH(1,(Supply[Unit Category]='Monthly Constraints'!$A11)*(Supply[Month]='Monthly Constraints'!B$2)*(Supply[Hour Ending]='Monthly Constraints'!B$3),0)) -> 254.7 | C11: =INDEX(Supply[Supply],MATCH(1,(Supply[Unit Category]='Monthly Constraints'!$A11)*(Supply[Month]='Monthly Constraints'!C$2)*(Supply[Hour Ending]='Monthly Constraints'!C$3),0)) -> 254.7 | D11: =INDEX(Supply[Supply],MATCH(1,(Supply[Unit Category]='Monthly Constraints'!$A11)*(Supply[Month]='Monthly Constraints'!D$2)*(Supply[Hour Ending]='Monthly Constraints'!D$3),0)) -> 254.7 | E11: =INDEX(Supply[Supply],MATCH(1,(Supply[Unit Category]='Monthly Constraints'!$A11)*(Supply[Month]='Monthly Constraints'!E$2)*(Supply[Hour Ending]='Monthly Constraints'!E$3),0)) -> 254.7 | F11: =INDEX(Supply[Supply],MATCH(1,(Supply[Unit Category]='Monthly Constraints'!$A11)*(Supply[Month]='Monthly Constraints'!F$2)*(Supply[Hour Ending]='Monthly Constraints'!F$3),0)) -> 254.7 | G11: =INDEX(Supply[Supply],MATCH(1,(Supply[Unit Category]='Monthly Constraints'!$A11)*(Supply[Month]='Monthly Constraints'!G$2)*(Supply[Hour Ending]='Monthly Constraints'!G$3),0)) -> 254.7 | H11: =INDEX(Supply[Supply],MATCH(1,(Supply[Unit Category]='Monthly Constraints'!$A11)*(Supply[Month]='Monthly Constraints'!H$2)*(Supply[Hour Ending]='Monthly Constraints'!H$3),0)) -> 254.7 | I11: =INDEX(Supply[Supply],MATCH(1,(Supply[Unit Category]='Monthly Constraints'!$A11)*(Supply[Month]='Monthly Constraints'!I$2)*(Supply[Hour Ending]='Monthly Constraints'!I$3),0)) -> 254.7 | J11: =INDEX(Supply[Supply],MATCH(1,(Supply[Unit Category]='Monthly Constraints'!$A11)*(Supply[Month]='Monthly Constraints'!J$2)*(Supply[Hour Ending]='Monthly Constraints'!J$3),0)) -> 254.7 | K11: =INDEX(Supply[Supply],MATCH(1,(Supply[Unit Category]='Monthly Constraints'!$A11)*(Supply[Month]='Monthly Constraints'!K$2)*(Supply[Hour Ending]='Monthly Constraints'!K$3),0)) -> 254.7 | L11: =INDEX(Supply[Supply],MATCH(1,(Supply[Unit Category]='Monthly Constraints'!$A11)*(Supply[Month]='Monthly Constraints'!L$2)*(Supply[Hour Ending]='Monthly Constraints'!L$3),0)) -> 254.7 | M11: =INDEX(Supply[Supply],MATCH(1,(Supply[Unit Category]='Monthly Constraints'!$A11)*(Supply[Month]='Monthly Constraints'!M$2)*(Supply[Hour Ending]='Monthly Constraints'!M$3),0)) -> 254.7
A12: Geothermal | B12: =INDEX(Supply[Supply],MATCH(1,(Supply[Unit Category]='Monthly Constraints'!$A12)*(Supply[Month]='Monthly Constraints'!B$2)*(Supply[Hour Ending]='Monthly Constraints'!B$3),0)) -> 1326.740454 | C12: =INDEX(Supply[Supply],MATCH(1,(Supply[Unit Category]='Monthly Constraints'!$A12)*(Supply[Month]='Monthly Constraints'!C$2)*(Supply[Hour Ending]='Monthly Constraints'!C$3),0)) -> 1318.886512 | D12: =INDEX(Supply[Supply],MATCH(1,(Supply[Unit Category]='Monthly Constraints'!$A12)*(Supply[Month]='Monthly Constraints'!D$2)*(Supply[Hour Ending]='Monthly Constraints'!D$3),0)) -> 1312.632762 | E12: =INDEX(Supply[Supply],MATCH(1,(Supply[Unit Category]='Monthly Constraints'!$A12)*(Supply[Month]='Monthly Constraints'!E$2)*(Supply[Hour Ending]='Monthly Constraints'!E$3),0)) -> 1242.209004 | F12: =INDEX(Supply[Supply],MATCH(1,(Supply[Unit Category]='Monthly Constraints'!$A12)*(Supply[Month]='Monthly Constraints'!F$2)*(Supply[Hour Ending]='Monthly Constraints'!F$3),0)) -> 1253.359699 | G12: =INDEX(Supply[Supply],MATCH(1,(Supply[Unit Category]='Monthly Constraints'!$A12)*(Supply[Month]='Monthly Constraints'!G$2)*(Supply[Hour Ending]='Monthly Constraints'!G$3),0)) -> 1276.458425 | H12: =INDEX(Supply[Supply],MATCH(1,(Supply[Unit Category]='Monthly Constraints'!$A12)*(Supply[Month]='Monthly Constraints'!H$2)*(Supply[Hour Ending]='Monthly Constraints'!H$3),0)) -> 1301.788757 | I12: =INDEX(Supply[Supply],MATCH(1,(Supply[Unit Category]='Monthly Constraints'!$A12)*(Supply[Month]='Monthly Constraints'!I$2)*(Supply[Hour Ending]='Monthly Constraints'!I$3),0)) -> 1296.84934 | J12: =INDEX(Supply[Supply],MATCH(1,(Supply[Unit Category]='Monthly Constraints'!$A12)*(Supply[Month]='Monthly Constraints'!J$2)*(Supply[Hour Ending]='Monthly Constraints'!J$3),0)) -> 1296.76276 | K12: =INDEX(Supply[Supply],MATCH(1,(Supply[Unit Category]='Monthly Constraints'!$A12)*(Supply[Month]='Monthly Constraints'!K$2)*(Supply[Hour Ending]='Monthly Constraints'!K$3),0)) -> 1247.468 | L12: =INDEX(Supply[Supply],MATCH(1,(Supply[Unit Category]='Monthly Constraints'!$A12)*(Supply[Month]='Monthly Constraints'!L$2)*(Supply[Hour Ending]='Monthly Constraints'!L$3),0)) -> 1324.035351 | M12: =INDEX(Supply[Supply],MATCH(1,(Supply[Unit Category]='Monthly Constraints'!$A12)*(Supply[Month]='Monthly Constraints'!M$2)*(Supply[Hour Ending]='Monthly Constraints'!M$3),0)) -> 1323.479115
A13: Hydro | B13: =INDEX(Supply[Supply],MATCH(1,(Supply[Unit Category]='Monthly Constraints'!$A13)*(Supply[Month]='Monthly Constraints'!B$2)*(Supply[Hour Ending]='Monthly Constraints'!B$3),0)) -> 896.51219 | C13: =INDEX(Supply[Supply],MATCH(1,(Supply[Unit Category]='Monthly Constraints'!$A13)*(Supply[Month]='Monthly Constraints'!C$2)*(Supply[Hour Ending]='Monthly Constraints'!C$3),0)) -> 1765.3744 | D13: =INDEX(Supply[Supply],MATCH(1,(Supply[Unit Category]='Monthly Constraints'!$A13)*(Supply[Month]='Monthly Constraints'!D$2)*(Supply[Hour Ending]='Monthly Constraints'!D$3),0)) -> 1347.4077 | E13: =INDEX(Supply[Supply],MATCH(1,(Supply[Unit Category]='Monthly Constraints'!$A13)*(Supply[Month]='Monthly Constraints'!E$2)*(Supply[Hour Ending]='Monthly Constraints'!E$3),0)) -> 2888.8655 | F13: =INDEX(Supply[Supply],MATCH(1,(Supply[Unit Category]='Monthly Constraints'!$A13)*(Supply[Month]='Monthly Constraints'!F$2)*(Supply[Hour Ending]='Monthly Constraints'!F$3),0)) -> 2162.1665 | G13: =INDEX(Supply[Supply],MATCH(1,(Supply[Unit Category]='Monthly Constraints'!$A13)*(Supply[Month]='Monthly Constraints'!G$2)*(Supply[Hour Ending]='Monthly Constraints'!G$3),0)) -> 3081.9221 | H13: =INDEX(Supply[Supply],MATCH(1,(Supply[Unit Category]='Monthly Constraints'!$A13)*(Supply[Month]='Monthly Constraints'!H$2)*(Supply[Hour Ending]='Monthly Constraints'!H$3),0)) -> 3313.0495 | I13: =INDEX(Supply[Supply],MATCH(1,(Supply[Unit Category]='Monthly Constraints'!$A13)*(Supply[Month]='Monthly Constraints'!I$2)*(Supply[Hour Ending]='Monthly Constraints'!I$3),0)) -> 3117.6249 | J13: =INDEX(Supply[Supply],MATCH(1,(Supply[Unit Category]='Monthly Constraints'!$A13)*(Supply[Month]='Monthly Constraints'!J$2)*(Supply[Hour Ending]='Monthly Constraints'!J$3),0)) -> 2905.0399 | K13: =INDEX(Supply[Supply],MATCH(1,(Supply[Unit Category]='Monthly Constraints'!$A13)*(Supply[Month]='Monthly Constraints'!K$2)*(Supply[Hour Ending]='Monthly Constraints'!K$3),0)) -> 2190.417 | L13: =INDEX(Supply[Supply],MATCH(1,(Supply[Unit Category]='Monthly Constraints'!$A13)*(Supply[Month]='Monthly Constraints'!L$2)*(Supply[Hour Ending]='Monthly Constraints'!L$3),0)) -> 2321.6023 | M13: =INDEX(Supply[Supply],MATCH(1,(Supply[Unit Category]='Monthly Constraints'!$A13)*(Supply[Month]='Monthly Constraints'!M$2)*(Supply[Hour Ending]='Monthly Constraints'!M$3),0)) -> 1789.0122
A14: Interchange | B14: =INDEX(Supply[Supply],MATCH(1,(Supply[Unit Category]='Monthly Constraints'!$A14)*(Supply[Month]='Monthly Constraints'!B$2)*(Supply[Hour Ending]='Monthly Constraints'!B$3),0)) -> 2500 | C14: =INDEX(Supply[Supply],MATCH(1,(Supply[Unit Category]='Monthly Constraints'!$A14)*(Supply[Month]='Monthly Constraints'!C$2)*(Supply[Hour Ending]='Monthly Constraints'!C$3),0)) -> 2500 | D14: =INDEX(Supply[Supply],MATCH(1,(Supply[Unit Category]='Monthly Constraints'!$A14)*(Supply[Month]='Monthly Constraints'!D$2)*(Supply[Hour Ending]='Monthly Constraints'!D$3),0)) -> 2500 | E14: =INDEX(Supply[Supply],MATCH(1,(Supply[Unit Category]='Monthly Constraints'!$A14)*(Supply[Month]='Monthly Constraints'!E$2)*(Supply[Hour Ending]='Monthly Constraints'!E$3),0)) -> 2500 | F14: =INDEX(Supply[Supply],MATCH(1,(Supply[Unit Category]='Monthly Constraints'!$A14)*(Supply[Month]='Monthly Constraints'!F$2)*(Supply[Hour Ending]='Monthly Constraints'!F$3),0)) -> 2500 | G14: =INDEX(Supply[Supply],MATCH(1,(Supply[Unit Category]='Monthly Constraints'!$A14)*(Supply[Month]='Monthly Constraints'!G$2)*(Supply[Hour Ending]='Monthly Constraints'!G$3),0)) -> 2500 | H14: =INDEX(Supply[Supply],MATCH(1,(Supply[Unit Category]='Monthly Constraints'!$A14)*(Supply[Month]='Monthly Constraints'!H$2)*(Supply[Hour Ending]='Monthly Constraints'!H$3),0)) -> 2500 | I14: =INDEX(Supply[Supply],MATCH(1,(Supply[Unit Category]='Monthly Constraints'!$A14)*(Supply[Month]='Monthly Constraints'!I$2)*(Supply[Hour Ending]='Monthly Constraints'!I$3),0)) -> 2500 | J14: =INDEX(Supply[Supply],MATCH(1,(Supply[Unit Category]='Monthly Constraints'!$A14)*(Supply[Month]='Monthly Constraints'!J$2)*(Supply[Hour Ending]='Monthly Constraints'!J$3),0)) -> 2500 | K14: =INDEX(Supply[Supply],MATCH(1,(Supply[Unit Category]='Monthly Constraints'!$A14)*(Supply[Month]='Monthly Constraints'!K$2)*(Supply[Hour Ending]='Monthly Constraints'!K$3),0)) -> 2500 | L14: =INDEX(Supply[Supply],MATCH(1,(Supply[Unit Category]='Monthly Constraints'!$A14)*(Supply[Month]='Monthly Constraints'!L$2)*(Supply[Hour Ending]='Monthly Constraints'!L$3),0)) -> 2500 | M14: =INDEX(Supply[Supply],MATCH(1,(Supply[Unit Category]='Monthly Constraints'!$A14)*(Supply[Month]='Monthly Constraints'!M$2)*(Supply[Hour Ending]='Monthly Constraints'!M$3),0)) -> 2500
A15: Nuclear | B15: =INDEX(Supply[Supply],MATCH(1,(Supply[Unit Category]='Monthly Constraints'!$A15)*(Supply[Month]='Monthly Constraints'!B$2)*(Supply[Hour Ending]='Monthly Constraints'!B$3),0)) -> 2280 | C15: =INDEX(Supply[Supply],MATCH(1,(Supply[Unit Category]='Monthly Constraints'!$A15)*(Supply[Month]='Monthly Constraints'!C$2)*(Supply[Hour Ending]='Monthly Constraints'!C$3),0)) -> 2280 | D15: =INDEX(Supply[Supply],MATCH(1,(Supply[Unit Category]='Monthly Constraints'!$A15)*(Supply[Month]='Monthly Constraints'!D$2)*(Supply[Hour Ending]='Monthly Constraints'!D$3),0)) -> 2280 | E15: =INDEX(Supply[Supply],MATCH(1,(Supply[Unit Category]='Monthly Constraints'!$A15)*(Supply[Month]='Monthly Constraints'!E$2)*(Supply[Hour Ending]='Monthly Constraints'!E$3),0)) -> 2280 | F15: =INDEX(Supply[Supply],MATCH(1,(Supply[Unit Category]='Monthly Constraints'!$A15)*(Supply[Month]='Monthly Constraints'!F$2)*(Supply[Hour Ending]='Monthly Constraints'!F$3),0)) -> 2280 | G15: =INDEX(Supply[Supply],MATCH(1,(Supply[Unit Category]='Monthly Constraints'!$A15)*(Supply[Month]='Monthly Constraints'!G$2)*(Supply[Hour Ending]='Monthly Constraints'!G$3),0)) -> 2280 | H15: =INDEX(Supply[Supply],MATCH(1,(Supply[Unit Category]='Monthly Constraints'!$A15)*(Supply[Month]='Monthly Constraints'!H$2)*(Supply[Hour Ending]='Monthly Constraints'!H$3),0)) -> 2280 | I15: =INDEX(Supply[Supply],MATCH(1,(Supply[Unit Category]='Monthly Constraints'!$A15)*(Supply[Month]='Monthly Constraints'!I$2)*(Supply[Hour Ending]='Monthly Constraints'!I$3),0)) -> 2280 | J15: =INDEX(Supply[Supply],MATCH(1,(Supply[Unit Category]='Monthly Constraints'!$A15)*(Supply[Month]='Monthly Constraints'!J$2)*(Supply[Hour Ending]='Monthly Constraints'!J$3),0)) -> 2280 | K15: =INDEX(Supply[Supply],MATCH(1,(Supply[Unit Category]='Monthly Constraints'!$A15)*(Supply[Month]='Monthly Constraints'!K$2)*(Supply[Hour Ending]='Monthly Constraints'!K$3),0)) -> 2280 | L15: =INDEX(Supply[Supply],MATCH(1,(Supply[Unit Category]='Monthly Constraints'!$A15)*(Supply[Month]='Monthly Constraints'!L$2)*(Supply[Hour Ending]='Monthly Constraints'!L$3),0)) -> 2280 | M15: =INDEX(Supply[Supply],MATCH(1,(Supply[Unit Category]='Monthly Constraints'!$A15)*(Supply[Month]='Monthly Constraints'!M$2)*(Supply[Hour Ending]='Monthly Constraints'!M$3),0)) -> 2280
A16: PSH | B16: =INDEX(Supply[Supply],MATCH(1,(Supply[Unit Category]='Monthly Constraints'!$A16)*(Supply[Month]='Monthly Constraints'!B$2)*(Supply[Hour Ending]='Monthly Constraints'!B$3),0)) -> 1457 | C16: =INDEX(Supply[Supply],MATCH(1,(Supply[Unit Category]='Monthly Constraints'!$A16)*(Supply[Month]='Monthly Constraints'!C$2)*(Supply[Hour Ending]='Monthly Constraints'!C$3),0)) -> 1457.16 | D16: =INDEX(Supply[Supply],MATCH(1,(Supply[Unit Category]='Monthly Constraints'!$A16)*(Supply[Month]='Monthly Constraints'!D$2)*(Supply[Hour Ending]='Monthly Constraints'!D$3),0)) -> 1457.07 | E16: =INDEX(Supply[Supply],MATCH(1,(Supply[Unit Category]='Monthly Constraints'!$A16)*(Supply[Month]='Monthly Constraints'!E$2)*(Supply[Hour Ending]='Monthly Constraints'!E$3),0)) -> 1457.08 | F16: =INDEX(Supply[Supply],MATCH(1,(Supply[Unit Category]='Monthly Constraints'!$A16)*(Supply[Month]='Monthly Constraints'!F$2)*(Supply[Hour Ending]='Monthly Constraints'!F$3),0)) -> 1469.32 | G16: =INDEX(Supply[Supply],MATCH(1,(Supply[Unit Category]='Monthly Constraints'!$A16)*(Supply[Month]='Monthly Constraints'!G$2)*(Supply[Hour Ending]='Monthly Constraints'!G$3),0)) -> 1458.57 | H16: =INDEX(Supply[Supply],MATCH(1,(Supply[Unit Category]='Monthly Constraints'!$A16)*(Supply[Month]='Monthly Constraints'!H$2)*(Supply[Hour Ending]='Monthly Constraints'!H$3),0)) -> 1458.44 | I16: =INDEX(Supply[Supply],MATCH(1,(Supply[Unit Category]='Monthly Constraints'!$A16)*(Supply[Month]='Monthly Constraints'!I$2)*(Supply[Hour Ending]='Monthly Constraints'!I$3),0)) -> 1457.55 | J16: =INDEX(Supply[Supply],MATCH(1,(Supply[Unit Category]='Monthly Constraints'!$A16)*(Supply[Month]='Monthly Constraints'!J$2)*(Supply[Hour Ending]='Monthly Constraints'!J$3),0)) -> 1457.03 | K16: =INDEX(Supply[Supply],MATCH(1,(Supply[Unit Category]='Monthly Constraints'!$A16)*(Supply[Month]='Monthly Constraints'!K$2)*(Supply[Hour Ending]='Monthly Constraints'!K$3),0)) -> 1458 | L16: =INDEX(Supply[Supply],MATCH(1,(Supply[Unit Category]='Monthly Constraints'!$A16)*(Supply[Month]='Monthly Constraints'!L$2)*(Supply[Hour Ending]='Monthly Constraints'!L$3),0)) -> 1457.13 | M16: =INDEX(Supply[Supply],MATCH(1,(Supply[Unit Category]='Monthly Constraints'!$A16)*(Supply[Month]='Monthly Constraints'!M$2)*(Supply[Hour Ending]='Monthly Constraints'!M$3),0)) -> 1457
A17: Storage | B17: =INDEX(StorageAllocation[Storage (MW)],MATCH(1,(StorageAllocation[Month]='Monthly Constraints'!B$2)*(StorageAllocation[Hour Ending]='Monthly Constraints'!B$3),0)) -> 7194.668062 | C17: =INDEX(StorageAllocation[Storage (MW)],MATCH(1,(StorageAllocation[Month]='Monthly Constraints'!C$2)*(StorageAllocation[Hour Ending]='Monthly Constraints'!C$3),0)) -> 7684.820212 | D17: =INDEX(StorageAllocation[Storage (MW)],MATCH(1,(StorageAllocation[Month]='Monthly Constraints'!D$2)*(StorageAllocation[Hour Ending]='Monthly Constraints'!D$3),0)) -> 8435.480736 | E17: =INDEX(StorageAllocation[Storage (MW)],MATCH(1,(StorageAllocation[Month]='Monthly Constraints'!E$2)*(StorageAllocation[Hour Ending]='Monthly Constraints'!E$3),0)) -> 9858.910433 | F17: =INDEX(StorageAllocation[Storage (MW)],MATCH(1,(StorageAllocation[Month]='Monthly Constraints'!F$2)*(StorageAllocation[Hour Ending]='Monthly Constraints'!F$3),0)) -> 10648.30322 | G17: =INDEX(StorageAllocation[Storage (MW)],MATCH(1,(StorageAllocation[Month]='Monthly Constraints'!G$2)*(StorageAllocation[Hour Ending]='Monthly Constraints'!G$3),0)) -> 12142.73435 | H17: =INDEX(StorageAllocation[Storage (MW)],MATCH(1,(StorageAllocation[Month]='Monthly Constraints'!H$2)*(StorageAllocation[Hour Ending]='Monthly Constraints'!H$3),0)) -> 12941.16267 | I17: =INDEX(StorageAllocation[Storage (MW)],MATCH(1,(StorageAllocation[Month]='Monthly Constraints'!I$2)*(StorageAllocation[Hour Ending]='Monthly Constraints'!I$3),0)) -> 13417.39647 | J17: =INDEX(StorageAllocation[Storage (MW)],MATCH(1,(StorageAllocation[Month]='Monthly Constraints'!J$2)*(StorageAllocation[Hour Ending]='Monthly Constraints'!J$3),0)) -> 13231.55175 | K17: =INDEX(StorageAllocation[Storage (MW)],MATCH(1,(StorageAllocation[Month]='Monthly Constraints'!K$2)*(StorageAllocation[Hour Ending]='Monthly Constraints'!K$3),0)) -> 11859.27523 | L17: =INDEX(StorageAllocation[Storage (MW)],MATCH(1,(StorageAllocation[Month]='Monthly Constraints'!L$2)*(StorageAllocation[Hour Ending]='Monthly Constraints'!L$3),0)) -> 8738.253784 | M17: =INDEX(StorageAllocation[Storage (MW)],MATCH(1,(StorageAllocation[Month]='Monthly Constraints'!M$2)*(StorageAllocation[Hour Ending]='Monthly Constraints'!M$3),0)) -> 6095.948168
A18: Solar Fixed_Norcal | B18: =INDEX(Supply[Supply],MATCH(1,(Supply[Unit Category]='Monthly Constraints'!$A18)*(Supply[Month]='Monthly Constraints'!B$2)*(Supply[Hour Ending]='Monthly Constraints'!B$3),0)) -> 0 | C18: =INDEX(Supply[Supply],MATCH(1,(Supply[Unit Category]='Monthly Constraints'!$A18)*(Supply[Month]='Monthly Constraints'!C$2)*(Supply[Hour Ending]='Monthly Constraints'!C$3),0)) -> 0 | D18: =INDEX(Supply[Supply],MATCH(1,(Supply[Unit Category]='Monthly Constraints'!$A18)*(Supply[Month]='Monthly Constraints'!D$2)*(Supply[Hour Ending]='Monthly Constraints'!D$3),0)) -> 0 | E18: =INDEX(Supply[Supply],MATCH(1,(Supply[Unit Category]='Monthly Constraints'!$A18)*(Supply[Month]='Monthly Constraints'!E$2)*(Supply[Hour Ending]='Monthly Constraints'!E$3),0)) -> 27.28623045 | F18: =INDEX(Supply[Supply],MATCH(1,(Supply[Unit Category]='Monthly Constraints'!$A18)*(Supply[Month]='Monthly Constraints'!F$2)*(Supply[Hour Ending]='Monthly Constraints'!F$3),0)) -> 0.1776288588 | G18: =INDEX(Supply[Supply],MATCH(1,(Supply[Unit Category]='Monthly Constraints'!$A18)*(Supply[Month]='Monthly Constraints'!G$2)*(Supply[Hour Ending]='Monthly Constraints'!G$3),0)) -> 211.208175 | H18: =INDEX(Supply[Supply],MATCH(1,(Supply[Unit Category]='Monthly Constraints'!$A18)*(Supply[Month]='Monthly Constraints'!H$2)*(Supply[Hour Ending]='Monthly Constraints'!H$3),0)) -> 166.7407028 | I18: =INDEX(Supply[Supply],MATCH(1,(Supply[Unit Category]='Monthly Constraints'!$A18)*(Supply[Month]='Monthly Constraints'!I$2)*(Supply[Hour Ending]='Monthly Constraints'!I$3),0)) -> 24.5943355 | J18: =INDEX(Supply[Supply],MATCH(1,(Supply[Unit Category]='Monthly Constraints'!$A18)*(Supply[Month]='Monthly Constraints'!J$2)*(Supply[Hour Ending]='Monthly Constraints'!J$3),0)) -> 176.1935038 | K18: =INDEX(Supply[Supply],MATCH(1,(Supply[Unit Category]='Monthly Constraints'!$A18)*(Supply[Month]='Monthly Constraints'!K$2)*(Supply[Hour Ending]='Monthly Constraints'!K$3),0)) -> 13.19643735 | L18: =INDEX(Supply[Supply],MATCH(1,(Supply[Unit Category]='Monthly Constraints'!$A18)*(Supply[Month]='Monthly Constraints'!L$2)*(Supply[Hour Ending]='Monthly Constraints'!L$3),0)) -> 0 | M18: =INDEX(Supply[Supply],MATCH(1,(Supply[Unit Category]='Monthly Constraints'!$A18)*(Supply[Month]='Monthly Constraints'!M$2)*(Supply[Hour Ending]='Monthly Constraints'!M$3),0)) -> 0
A19: Solar Fixed_Socal | B19: =INDEX(Supply[Supply],MATCH(1,(Supply[Unit Category]='Monthly Constraints'!$A19)*(Supply[Month]='Monthly Constraints'!B$2)*(Supply[Hour Ending]='Monthly Constraints'!B$3),0)) -> 0.01727626936 | C19: =INDEX(Supply[Supply],MATCH(1,(Supply[Unit Category]='Monthly Constraints'!$A19)*(Supply[Month]='Monthly Constraints'!C$2)*(Supply[Hour Ending]='Monthly Constraints'!C$3),0)) -> 0.0175771147 | D19: =INDEX(Supply[Supply],MATCH(1,(Supply[Unit Category]='Monthly Constraints'!$A19)*(Supply[Month]='Monthly Constraints'!D$2)*(Supply[Hour Ending]='Monthly Constraints'!D$3),0)) -> 0.01669455039 | E19: =INDEX(Supply[Supply],MATCH(1,(Supply[Unit Category]='Monthly Constraints'!$A19)*(Supply[Month]='Monthly Constraints'!E$2)*(Supply[Hour Ending]='Monthly Constraints'!E$3),0)) -> 12.43794874 | F19: =INDEX(Supply[Supply],MATCH(1,(Supply[Unit Category]='Monthly Constraints'!$A19)*(Supply[Month]='Monthly Constraints'!F$2)*(Supply[Hour Ending]='Monthly Constraints'!F$3),0)) -> 0.232583992 | G19: =INDEX(Supply[Supply],MATCH(1,(Supply[Unit Category]='Monthly Constraints'!$A19)*(Supply[Month]='Monthly Constraints'!G$2)*(Supply[Hour Ending]='Monthly Constraints'!G$3),0)) -> 145.8481932 | H19: =INDEX(Supply[Supply],MATCH(1,(Supply[Unit Category]='Monthly Constraints'!$A19)*(Supply[Month]='Monthly Constraints'!H$2)*(Supply[Hour Ending]='Monthly Constraints'!H$3),0)) -> 115.5937379 | I19: =INDEX(Supply[Supply],MATCH(1,(Supply[Unit Category]='Monthly Constraints'!$A19)*(Supply[Month]='Monthly Constraints'!I$2)*(Supply[Hour Ending]='Monthly Constraints'!I$3),0)) -> 16.30984694 | J19: =INDEX(Supply[Supply],MATCH(1,(Supply[Unit Category]='Monthly Constraints'!$A19)*(Supply[Month]='Monthly Constraints'!J$2)*(Supply[Hour Ending]='Monthly Constraints'!J$3),0)) -> 119.8199756 | K19: =INDEX(Supply[Supply],MATCH(1,(Supply[Unit Category]='Monthly Constraints'!$A19)*(Supply[Month]='Monthly Constraints'!K$2)*(Supply[Hour Ending]='Monthly Constraints'!K$3),0)) -> 6.571936911 | L19: =INDEX(Supply[Supply],MATCH(1,(Supply[Unit Category]='Monthly Constraints'!$A19)*(Supply[Month]='Monthly Constraints'!L$2)*(Supply[Hour Ending]='Monthly Constraints'!L$3),0)) -> 0.03206782346 | M19: =INDEX(Supply[Supply],MATCH(1,(Supply[Unit Category]='Monthly Constraints'!$A19)*(Supply[Month]='Monthly Constraints'!M$2)*(Supply[Hour Ending]='Monthly Constraints'!M$3),0)) -> 0.02179594545
A20: Solar Thermal_Norcal | B20: =INDEX(Supply[Supply],MATCH(1,(Supply[Unit Category]='Monthly Constraints'!$A20)*(Supply[Month]='Monthly Constraints'!B$2)*(Supply[Hour Ending]='Monthly Constraints'!B$3),0)) -> 0 | C20: =INDEX(Supply[Supply],MATCH(1,(Supply[Unit Category]='Monthly Constraints'!$A20)*(Supply[Month]='Monthly Constraints'!C$2)*(Supply[Hour Ending]='Monthly Constraints'!C$3),0)) -> 0 | D20: =INDEX(Supply[Supply],MATCH(1,(Supply[Unit Category]='Monthly Constraints'!$A20)*(Supply[Month]='Monthly Constraints'!D$2)*(Supply[Hour Ending]='Monthly Constraints'!D$3),0)) -> 0 | E20: =INDEX(Supply[Supply],MATCH(1,(Supply[Unit Category]='Monthly Constraints'!$A20)*(Supply[Month]='Monthly Constraints'!E$2)*(Supply[Hour Ending]='Monthly Constraints'!E$3),0)) -> 0 | F20: =INDEX(Supply[Supply],MATCH(1,(Supply[Unit Category]='Monthly Constraints'!$A20)*(Supply[Month]='Monthly Constraints'!F$2)*(Supply[Hour Ending]='Monthly Constraints'!F$3),0)) -> 0 | G20: =INDEX(Supply[Supply],MATCH(1,(Supply[Unit Category]='Monthly Constraints'!$A20)*(Supply[Month]='Monthly Constraints'!G$2)*(Supply[Hour Ending]='Monthly Constraints'!G$3),0)) -> 0 | H20: =INDEX(Supply[Supply],MATCH(1,(Supply[Unit Category]='Monthly Constraints'!$A20)*(Supply[Month]='Monthly Constraints'!H$2)*(Supply[Hour Ending]='Monthly Constraints'!H$3),0)) -> 0 | I20: =INDEX(Supply[Supply],MATCH(1,(Supply[Unit Category]='Monthly Constraints'!$A20)*(Supply[Month]='Monthly Constraints'!I$2)*(Supply[Hour Ending]='Monthly Constraints'!I$3),0)) -> 0 | J20: =INDEX(Supply[Supply],MATCH(1,(Supply[Unit Category]='Monthly Constraints'!$A20)*(Supply[Month]='Monthly Constraints'!J$2)*(Supply[Hour Ending]='Monthly Constraints'!J$3),0)) -> 0 | K20: =INDEX(Supply[Supply],MATCH(1,(Supply[Unit Category]='Monthly Constraints'!$A20)*(Supply[Month]='Monthly Constraints'!K$2)*(Supply[Hour Ending]='Monthly Constraints'!K$3),0)) -> 0 | L20: =INDEX(Supply[Supply],MATCH(1,(Supply[Unit Category]='Monthly Constraints'!$A20)*(Supply[Month]='Monthly Constraints'!L$2)*(Supply[Hour Ending]='Monthly Constraints'!L$3),0)) -> 0 | M20: =INDEX(Supply[Supply],MATCH(1,(Supply[Unit Category]='Monthly Constraints'!$A20)*(Supply[Month]='Monthly Constraints'!M$2)*(Supply[Hour Ending]='Monthly Constraints'!M$3),0)) -> 0
A21: Solar Thermal_Socal | B21: =INDEX(Supply[Supply],MATCH(1,(Supply[Unit Category]='Monthly Constraints'!$A21)*(Supply[Month]='Monthly Constraints'!B$2)*(Supply[Hour Ending]='Monthly Constraints'!B$3),0)) -> 0 | C21: =INDEX(Supply[Supply],MATCH(1,(Supply[Unit Category]='Monthly Constraints'!$A21)*(Supply[Month]='Monthly Constraints'!C$2)*(Supply[Hour Ending]='Monthly Constraints'!C$3),0)) -> 0 | D21: =INDEX(Supply[Supply],MATCH(1,(Supply[Unit Category]='Monthly Constraints'!$A21)*(Supply[Month]='Monthly Constraints'!D$2)*(Supply[Hour Ending]='Monthly Constraints'!D$3),0)) -> 0 | E21: =INDEX(Supply[Supply],MATCH(1,(Supply[Unit Category]='Monthly Constraints'!$A21)*(Supply[Month]='Monthly Constraints'!E$2)*(Supply[Hour Ending]='Monthly Constraints'!E$3),0)) -> 34.1840759 | F21: =INDEX(Supply[Supply],MATCH(1,(Supply[Unit Category]='Monthly Constraints'!$A21)*(Supply[Month]='Monthly Constraints'!F$2)*(Supply[Hour Ending]='Monthly Constraints'!F$3),0)) -> 0 | G21: =INDEX(Supply[Supply],MATCH(1,(Supply[Unit Category]='Monthly Constraints'!$A21)*(Supply[Month]='Monthly Constraints'!G$2)*(Supply[Hour Ending]='Monthly Constraints'!G$3),0)) -> 143.5807325 | H21: =INDEX(Supply[Supply],MATCH(1,(Supply[Unit Category]='Monthly Constraints'!$A21)*(Supply[Month]='Monthly Constraints'!H$2)*(Supply[Hour Ending]='Monthly Constraints'!H$3),0)) -> 114.5652913 | I21: =INDEX(Supply[Supply],MATCH(1,(Supply[Unit Category]='Monthly Constraints'!$A21)*(Supply[Month]='Monthly Constraints'!I$2)*(Supply[Hour Ending]='Monthly Constraints'!I$3),0)) -> 43.33262746 | J21: =INDEX(Supply[Supply],MATCH(1,(Supply[Unit Category]='Monthly Constraints'!$A21)*(Supply[Month]='Monthly Constraints'!J$2)*(Supply[Hour Ending]='Monthly Constraints'!J$3),0)) -> 100.2301607 | K21: =INDEX(Supply[Supply],MATCH(1,(Supply[Unit Category]='Monthly Constraints'!$A21)*(Supply[Month]='Monthly Constraints'!K$2)*(Supply[Hour Ending]='Monthly Constraints'!K$3),0)) -> 21.19332857 | L21: =INDEX(Supply[Supply],MATCH(1,(Supply[Unit Category]='Monthly Constraints'!$A21)*(Supply[Month]='Monthly Constraints'!L$2)*(Supply[Hour Ending]='Monthly Constraints'!L$3),0)) -> 0 | M21: =INDEX(Supply[Supply],MATCH(1,(Supply[Unit Category]='Monthly Constraints'!$A21)*(Supply[Month]='Monthly Constraints'!M$2)*(Supply[Hour Ending]='Monthly Constraints'!M$3),0)) -> 0
A22: Solar Tracking_Norcal | B22: =INDEX(Supply[Supply],MATCH(1,(Supply[Unit Category]='Monthly Constraints'!$A22)*(Supply[Month]='Monthly Constraints'!B$2)*(Supply[Hour Ending]='Monthly Constraints'!B$3),0)) -> 0 | C22: =INDEX(Supply[Supply],MATCH(1,(Supply[Unit Category]='Monthly Constraints'!$A22)*(Supply[Month]='Monthly Constraints'!C$2)*(Supply[Hour Ending]='Monthly Constraints'!C$3),0)) -> 0 | D22: =INDEX(Supply[Supply],MATCH(1,(Supply[Unit Category]='Monthly Constraints'!$A22)*(Supply[Month]='Monthly Constraints'!D$2)*(Supply[Hour Ending]='Monthly Constraints'!D$3),0)) -> 0 | E22: =INDEX(Supply[Supply],MATCH(1,(Supply[Unit Category]='Monthly Constraints'!$A22)*(Supply[Month]='Monthly Constraints'!E$2)*(Supply[Hour Ending]='Monthly Constraints'!E$3),0)) -> 69.63190341 | F22: =INDEX(Supply[Supply],MATCH(1,(Supply[Unit Category]='Monthly Constraints'!$A22)*(Supply[Month]='Monthly Constraints'!F$2)*(Supply[Hour Ending]='Monthly Constraints'!F$3),0)) -> 0.1439053022 | G22: =INDEX(Supply[Supply],MATCH(1,(Supply[Unit Category]='Monthly Constraints'!$A22)*(Supply[Month]='Monthly Constraints'!G$2)*(Supply[Hour Ending]='Monthly Constraints'!G$3),0)) -> 817.4260913 | H22: =INDEX(Supply[Supply],MATCH(1,(Supply[Unit Category]='Monthly Constraints'!$A22)*(Supply[Month]='Monthly Constraints'!H$2)*(Supply[Hour Ending]='Monthly Constraints'!H$3),0)) -> 615.4346703 | I22: =INDEX(Supply[Supply],MATCH(1,(Supply[Unit Category]='Monthly Constraints'!$A22)*(Supply[Month]='Monthly Constraints'!I$2)*(Supply[Hour Ending]='Monthly Constraints'!I$3),0)) -> 75.53545903 | J22: =INDEX(Supply[Supply],MATCH(1,(Supply[Unit Category]='Monthly Constraints'!$A22)*(Supply[Month]='Monthly Constraints'!J$2)*(Supply[Hour Ending]='Monthly Constraints'!J$3),0)) -> 477.3993971 | K22: =INDEX(Supply[Supply],MATCH(1,(Supply[Unit Category]='Monthly Constraints'!$A22)*(Supply[Month]='Monthly Constraints'!K$2)*(Supply[Hour Ending]='Monthly Constraints'!K$3),0)) -> 19.29793533 | L22: =INDEX(Supply[Supply],MATCH(1,(Supply[Unit Category]='Monthly Constraints'!$A22)*(Supply[Month]='Monthly Constraints'!L$2)*(Supply[Hour Ending]='Monthly Constraints'!L$3),0)) -> 0 | M22: =INDEX(Supply[Supply],MATCH(1,(Supply[Unit Category]='Monthly Constraints'!$A22)*(Supply[Month]='Monthly Constraints'!M$2)*(Supply[Hour Ending]='Monthly Constraints'!M$3),0)) -> 0
A23: Solar Tracking_Socal | B23: =INDEX(Supply[Supply],MATCH(1,(Supply[Unit Category]='Monthly Constraints'!$A23)*(Supply[Month]='Monthly Constraints'!B$2)*(Supply[Hour Ending]='Monthly Constraints'!B$3),0)) -> 0 | C23: =INDEX(Supply[Supply],MATCH(1,(Supply[Unit Category]='Monthly Constraints'!$A23)*(Supply[Month]='Monthly Constraints'!C$2)*(Supply[Hour Ending]='Monthly Constraints'!C$3),0)) -> 0 | D23: =INDEX(Supply[Supply],MATCH(1,(Supply[Unit Category]='Monthly Constraints'!$A23)*(Supply[Month]='Monthly Constraints'!D$2)*(Supply[Hour Ending]='Monthly Constraints'!D$3),0)) -> 0 | E23: =INDEX(Supply[Supply],MATCH(1,(Supply[Unit Category]='Monthly Constraints'!$A23)*(Supply[Month]='Monthly Constraints'!E$2)*(Supply[Hour Ending]='Monthly Constraints'!E$3),0)) -> 51.65519816 | F23: =INDEX(Supply[Supply],MATCH(1,(Supply[Unit Category]='Monthly Constraints'!$A23)*(Supply[Month]='Monthly Constraints'!F$2)*(Supply[Hour Ending]='Monthly Constraints'!F$3),0)) -> 0.008546749396 | G23: =INDEX(Supply[Supply],MATCH(1,(Supply[Unit Category]='Monthly Constraints'!$A23)*(Supply[Month]='Monthly Constraints'!G$2)*(Supply[Hour Ending]='Monthly Constraints'!G$3),0)) -> 789.8582268 | H23: =INDEX(Supply[Supply],MATCH(1,(Supply[Unit Category]='Monthly Constraints'!$A23)*(Supply[Month]='Monthly Constraints'!H$2)*(Supply[Hour Ending]='Monthly Constraints'!H$3),0)) -> 672.7172418 | I23: =INDEX(Supply[Supply],MATCH(1,(Supply[Unit Category]='Monthly Constraints'!$A23)*(Supply[Month]='Monthly Constraints'!I$2)*(Supply[Hour Ending]='Monthly Constraints'!I$3),0)) -> 67.44106513 | J23: =INDEX(Supply[Supply],MATCH(1,(Supply[Unit Category]='Monthly Constraints'!$A23)*(Supply[Month]='Monthly Constraints'!J$2)*(Supply[Hour Ending]='Monthly Constraints'!J$3),0)) -> 507.0936788 | K23: =INDEX(Supply[Supply],MATCH(1,(Supply[Unit Category]='Monthly Constraints'!$A23)*(Supply[Month]='Monthly Constraints'!K$2)*(Supply[Hour Ending]='Monthly Constraints'!K$3),0)) -> 19.0927069 | L23: =INDEX(Supply[Supply],MATCH(1,(Supply[Unit Category]='Monthly Constraints'!$A23)*(Supply[Month]='Monthly Constraints'!L$2)*(Supply[Hour Ending]='Monthly Constraints'!L$3),0)) -> 0.001259387783 | M23: =INDEX(Supply[Supply],MATCH(1,(Supply[Unit Category]='Monthly Constraints'!$A23)*(Supply[Month]='Monthly Constraints'!M$2)*(Supply[Hour Ending]='Monthly Constraints'!M$3),0)) -> 0
A24: Wind_Norcal | B24: =INDEX(Supply[Supply],MATCH(1,(Supply[Unit Category]='Monthly Constraints'!$A24)*(Supply[Month]='Monthly Constraints'!B$2)*(Supply[Hour Ending]='Monthly Constraints'!B$3),0)) -> 108.8789626 | C24: =INDEX(Supply[Supply],MATCH(1,(Supply[Unit Category]='Monthly Constraints'!$A24)*(Supply[Month]='Monthly Constraints'!C$2)*(Supply[Hour Ending]='Monthly Constraints'!C$3),0)) -> 162.8809827 | D24: =INDEX(Supply[Supply],MATCH(1,(Supply[Unit Category]='Monthly Constraints'!$A24)*(Supply[Month]='Monthly Constraints'!D$2)*(Supply[Hour Ending]='Monthly Constraints'!D$3),0)) -> 359.6434822 | E24: =INDEX(Supply[Supply],MATCH(1,(Supply[Unit Category]='Monthly Constraints'!$A24)*(Supply[Month]='Monthly Constraints'!E$2)*(Supply[Hour Ending]='Monthly Constraints'!E$3),0)) -> 673.7812422 | F24: =INDEX(Supply[Supply],MATCH(1,(Supply[Unit Category]='Monthly Constraints'!$A24)*(Supply[Month]='Monthly Constraints'!F$2)*(Supply[Hour Ending]='Monthly Constraints'!F$3),0)) -> 918.7069889 | G24: =INDEX(Supply[Supply],MATCH(1,(Supply[Unit Category]='Monthly Constraints'!$A24)*(Supply[Month]='Monthly Constraints'!G$2)*(Supply[Hour Ending]='Monthly Constraints'!G$3),0)) -> 843.2569169 | H24: =INDEX(Supply[Supply],MATCH(1,(Supply[Unit Category]='Monthly Constraints'!$A24)*(Supply[Month]='Monthly Constraints'!H$2)*(Supply[Hour Ending]='Monthly Constraints'!H$3),0)) -> 967.8508634 | I24: =INDEX(Supply[Supply],MATCH(1,(Supply[Unit Category]='Monthly Constraints'!$A24)*(Supply[Month]='Monthly Constraints'!I$2)*(Supply[Hour Ending]='Monthly Constraints'!I$3),0)) -> 775.7879752 | J24: =INDEX(Supply[Supply],MATCH(1,(Supply[Unit Category]='Monthly Constraints'!$A24)*(Supply[Month]='Monthly Constraints'!J$2)*(Supply[Hour Ending]='Monthly Constraints'!J$3),0)) -> 569.8607879 | K24: =INDEX(Supply[Supply],MATCH(1,(Supply[Unit Category]='Monthly Constraints'!$A24)*(Supply[Month]='Monthly Constraints'!K$2)*(Supply[Hour Ending]='Monthly Constraints'!K$3),0)) -> 209.6962341 | L24: =INDEX(Supply[Supply],MATCH(1,(Supply[Unit Category]='Monthly Constraints'!$A24)*(Supply[Month]='Monthly Constraints'!L$2)*(Supply[Hour Ending]='Monthly Constraints'!L$3),0)) -> 77.24093474 | M24: =INDEX(Supply[Supply],MATCH(1,(Supply[Unit Category]='Monthly Constraints'!$A24)*(Supply[Month]='Monthly Constraints'!M$2)*(Supply[Hour Ending]='Monthly Constraints'!M$3),0)) -> 143.1408768
A25: Wind_Socal | B25: =INDEX(Supply[Supply],MATCH(1,(Supply[Unit Category]='Monthly Constraints'!$A25)*(Supply[Month]='Monthly Constraints'!B$2)*(Supply[Hour Ending]='Monthly Constraints'!B$3),0)) -> 488.2397909 | C25: =INDEX(Supply[Supply],MATCH(1,(Supply[Unit Category]='Monthly Constraints'!$A25)*(Supply[Month]='Monthly Constraints'!C$2)*(Supply[Hour Ending]='Monthly Constraints'!C$3),0)) -> 1178.556615 | D25: =INDEX(Supply[Supply],MATCH(1,(Supply[Unit Category]='Monthly Constraints'!$A25)*(Supply[Month]='Monthly Constraints'!D$2)*(Supply[Hour Ending]='Monthly Constraints'!D$3),0)) -> 1304.089756 | E25: =INDEX(Supply[Supply],MATCH(1,(Supply[Unit Category]='Monthly Constraints'!$A25)*(Supply[Month]='Monthly Constraints'!E$2)*(Supply[Hour Ending]='Monthly Constraints'!E$3),0)) -> 2163.254787 | F25: =INDEX(Supply[Supply],MATCH(1,(Supply[Unit Category]='Monthly Constraints'!$A25)*(Supply[Month]='Monthly Constraints'!F$2)*(Supply[Hour Ending]='Monthly Constraints'!F$3),0)) -> 2397.120168 | G25: =INDEX(Supply[Supply],MATCH(1,(Supply[Unit Category]='Monthly Constraints'!$A25)*(Supply[Month]='Monthly Constraints'!G$2)*(Supply[Hour Ending]='Monthly Constraints'!G$3),0)) -> 2426.53847 | H25: =INDEX(Supply[Supply],MATCH(1,(Supply[Unit Category]='Monthly Constraints'!$A25)*(Supply[Month]='Monthly Constraints'!H$2)*(Supply[Hour Ending]='Monthly Constraints'!H$3),0)) -> 2683.775679 | I25: =INDEX(Supply[Supply],MATCH(1,(Supply[Unit Category]='Monthly Constraints'!$A25)*(Supply[Month]='Monthly Constraints'!I$2)*(Supply[Hour Ending]='Monthly Constraints'!I$3),0)) -> 2277.047003 | J25: =INDEX(Supply[Supply],MATCH(1,(Supply[Unit Category]='Monthly Constraints'!$A25)*(Supply[Month]='Monthly Constraints'!J$2)*(Supply[Hour Ending]='Monthly Constraints'!J$3),0)) -> 1457.479621 | K25: =INDEX(Supply[Supply],MATCH(1,(Supply[Unit Category]='Monthly Constraints'!$A25)*(Supply[Month]='Monthly Constraints'!K$2)*(Supply[Hour Ending]='Monthly Constraints'!K$3),0)) -> 660.8895483 | L25: =INDEX(Supply[Supply],MATCH(1,(Supply[Unit Category]='Monthly Constraints'!$A25)*(Supply[Month]='Monthly Constraints'!L$2)*(Supply[Hour Ending]='Monthly Constraints'!L$3),0)) -> 383.675103 | M25: =INDEX(Supply[Supply],MATCH(1,(Supply[Unit Category]='Monthly Constraints'!$A25)*(Supply[Month]='Monthly Constraints'!M$2)*(Supply[Hour Ending]='Monthly Constraints'!M$3),0)) -> 441.9730785
A26: Total Supply | B26: =SUM(B4:B25) -> 45437.54563 | C26: =SUM(C4:C25) -> 47484.83951 | D26: 48193.76233 | E26: 53233.91221 | F26: 53972.18113 | G26: 58408.1204 | H26: 59396.23323 | I26: 57640.79644 | J26: 57490.44451 | K26: 52963.82183 | L26: 48887.99748 | M26: 44261.21217
A27: Managed Load + NOU | B27: =INDEX(ManagedLoad[Total],MATCH(1,(ManagedLoad[Month]='Monthly Constraints'!B$2)*(ManagedLoad[Hour Ending]='Monthly Constraints'!B$3),0)) -> 35923 | C27: =INDEX(ManagedLoad[Total],MATCH(1,(ManagedLoad[Month]='Monthly Constraints'!C$2)*(ManagedLoad[Hour Ending]='Monthly Constraints'!C$3),0)) -> 37539 | D27: =INDEX(ManagedLoad[Total],MATCH(1,(ManagedLoad[Month]='Monthly Constraints'!D$2)*(ManagedLoad[Hour Ending]='Monthly Constraints'!D$3),0)) -> 38102 | E27: =INDEX(ManagedLoad[Total],MATCH(1,(ManagedLoad[Month]='Monthly Constraints'!E$2)*(ManagedLoad[Hour Ending]='Monthly Constraints'!E$3),0)) -> 42088 | F27: =INDEX(ManagedLoad[Total],MATCH(1,(ManagedLoad[Month]='Monthly Constraints'!F$2)*(ManagedLoad[Hour Ending]='Monthly Constraints'!F$3),0)) -> 42667 | G27: =INDEX(ManagedLoad[Total],MATCH(1,(ManagedLoad[Month]='Monthly Constraints'!G$2)*(ManagedLoad[Hour Ending]='Monthly Constraints'!G$3),0)) -> 47296 | H27: =INDEX(ManagedLoad[Total],MATCH(1,(ManagedLoad[Month]='Monthly Constraints'!H$2)*(ManagedLoad[Hour Ending]='Monthly Constraints'!H$3),0)) -> 48078 | I27: =INDEX(ManagedLoad[Total],MATCH(1,(ManagedLoad[Month]='Monthly Constraints'!I$2)*(ManagedLoad[Hour Ending]='Monthly Constraints'!I$3),0)) -> 46665 | J27: =INDEX(ManagedLoad[Total],MATCH(1,(ManagedLoad[Month]='Monthly Constraints'!J$2)*(ManagedLoad[Hour Ending]='Monthly Constraints'!J$3),0)) -> 46525 | K27: =INDEX(ManagedLoad[Total],MATCH(1,(ManagedLoad[Month]='Monthly Constraints'!K$2)*(ManagedLoad[Hour Ending]='Monthly Constraints'!K$3),0)) -> 42890 | L27: =INDEX(ManagedLoad[Total],MATCH(1,(ManagedLoad[Month]='Monthly Constraints'!L$2)*(ManagedLoad[Hour Ending]='Monthly Constraints'!L$3),0)) -> 39595 | M27: =INDEX(ManagedLoad[Total],MATCH(1,(ManagedLoad[Month]='Monthly Constraints'!M$2)*(ManagedLoad[Hour Ending]='Monthly Constraints'!M$3),0)) -> 35825
A28: PRM | B28: =INDEX(PRM[Planning Reserve Margin],'Monthly Constraints'!B$2) -> 0.2648594392 | C28: =INDEX(PRM[Planning Reserve Margin],'Monthly Constraints'!C$2) -> 0.2649468422 | D28: =INDEX(PRM[Planning Reserve Margin],'Monthly Constraints'!D$2) -> 0.2648617483 | E28: =INDEX(PRM[Planning Reserve Margin],'Monthly Constraints'!E$2) -> 0.2648239929 | F28: =INDEX(PRM[Planning Reserve Margin],'Monthly Constraints'!F$2) -> 0.2649631128 | G28: =INDEX(PRM[Planning Reserve Margin],'Monthly Constraints'!G$2) -> 0.2349484184 | H28: =INDEX(PRM[Planning Reserve Margin],'Monthly Constraints'!H$2) -> 0.2354139779 | I28: =INDEX(PRM[Planning Reserve Margin],'Monthly Constraints'!I$2) -> 0.235204038 | J28: =INDEX(PRM[Planning Reserve Margin],'Monthly Constraints'!J$2) -> 0.2356892963 | K28: =INDEX(PRM[Planning Reserve Margin],'Monthly Constraints'!K$2) -> 0.2348757712 | L28: =INDEX(PRM[Planning Reserve Margin],'Monthly Constraints'!L$2) -> 0.2347012875 | M28: =INDEX(PRM[Planning Reserve Margin],'Monthly Constraints'!M$2) -> 0.2354839406
A29: Requirement | B29: =B$27*(1+B$28) -> 45437.54563 | C29: =C$27*(1+C$28) -> 47484.83951 | D29: 48193.76233 | E29: 53233.91221 | F29: 53972.18113 | G29: 58408.1204 | H29: 59396.23323 | I29: 57640.79644 | J29: 57490.44451 | K29: 52963.82183 | L29: 48887.99748 | M29: 44261.21217

Sheet PRM Setting
A1: Month | B1: Charging Energy (MWh) | C1: Charging Requirement (MWh) | D1: Excess Energy Check (MWh) | E1: Daily Energy Check (MWh) | F1: Minimum SOC Check (MWh) | G1: Maximum Capacity Check (MW) | H1: Planning Reserve Margin | I1: Constraining Hour Ending | J1: Managed Load (MW) | K1: NOU | L1: Supply (MW) | N1: Month | O1: Hour Ending | P1: Managed Load + NOU (MW) | Q1: Total Load with PRM (MW) | R1: Supply Without Storage (MW) | S1: Excess Capacity (MW) | T1: Storage (MW) | U1: Storage SOC Day 1 (MWh) | V1: Storage SOC Day 2 (MWh) | W1: Adjusted Supply (MW) | X1: Reserve Margin
A2: 1 | B2: =SUMIFS(StorageAllocation[Excess Capacity (MW)],StorageAllocation[Month],PRM[[#This Row],[Month]],StorageAllocation[Excess Capacity (MW)],">0") -> 72162.61987 | C2: =SUMIFS(StorageAllocation[Storage (MW)],StorageAllocation[Month],PRM[[#This Row],[Month]])/0.85 -> 62917.41176 | D2: =PRM[[#This Row],[Charging Energy (MWh)]]-PRM[[#This Row],[Charging Requirement (MWh)]] -> 9245.208109 | E2: =4*INDEX(NQC[NQC MW],MATCH(1,(NQC[Month]=PRM[[#This Row],[Month]])*(NQC[Unit Category]="Storage"),0))-SUMIFS(StorageAllocation[Storage (MW)],StorageAllocation[Month],PRM[[#This Row],[Month]]) -> 0 | F2: =_xlfn.MINIFS(StorageAllocation[Storage SOC Day 2 (MWh)],StorageAllocation[Month],PRM[[#This Row],[Month]]) -> 9232.9592 | G2: =INDEX(NQC[NQC MW],MATCH(1,(NQC[Month]=PRM[[#This Row],[Month]])*(NQC[Unit Category]="Storage"),0))-_xlfn.MAXIFS(StorageAllocation[Storage (MW)],StorageAllocation[Month],PRM[[#This Row],[Month]]) -> 6175.281938 | H2: 0.2648594392 | I2: =MATCH(1,(StorageAllocation[Month]=PRM[[#This Row],[Month]])*(_xlfn.MINIFS(StorageAllocation[Excess Capacity (MW)],StorageAllocation[Month],PRM[[#This Row],[Month]])=StorageAllocation[Excess Capacity (MW)]),0)-24*(PRM[[#This Row],[Month]]-1) -> 19 | J2: =INDEX(ManagedLoad[Managed Load],MATCH(1,(ManagedLoad[Month]=PRM[[#This Row],[Month]])*(ManagedLoad[Hour Ending]=PRM[[#This Row],[Constraining Hour Ending]]),0)) -> 30003 | K2: =INDEX(NOU[NOU MW],MATCH(PRM[[#This Row],[Month]],NOU[Month],0)) -> 5920 | L2: =INDEX(StorageAllocation[Adjusted Supply (MW)],MATCH(1,(StorageAllocation[Month]=PRM[[#This Row],[Month]])*(StorageAllocation[Hour Ending]=PRM[[#This Row],[Constraining Hour Ending]]),0)) -> 45437.54563 | N2: 1 | O2: 1 | P2: =INDEX(ManagedLoad[Total],MATCH(1,(ManagedLoad[Month]=StorageAllocation[[#This Row],[Month]])*(ManagedLoad[Hour Ending]=StorageAllocation[[#This Row],[Hour Ending]]),0)) -> 30603 | Q2: =StorageAllocation[[#This Row],[Managed Load + NOU (MW)]]*(1+_xlfn.XLOOKUP(StorageAllocation[[#This Row],[Month]],PRM[Month],PRM[Planning Reserve Margin],0,0)) -> 38708.49342 | R2: =SUM(_xlfn._xlws.FILTER(Supply[Supply],(Supply[Month]=StorageAllocation[[#This Row],[Month]])*(Supply[Unit Category]<>"Storage")*(Supply[Hour Ending]=StorageAllocation[[#This Row],[Hour Ending]])=1,0)) -> 37207.76263 | S2: =StorageAllocation[[#This Row],[Supply Without Storage (MW)]]-StorageAllocation[[#This Row],[Total Load with PRM (MW)]] -> -1500.73079 | T2: =MAX(-StorageAllocation[[#This Row],[Excess Capacity (MW)]],0) -> 1500.73079 | U2: =_xlfn.IFS( StorageAllocation[[#This Row],[Hour Ending]]=1, 4*INDEX(NQC[NQC MW],MATCH(1,(NQC[Month]=StorageAllocation[[#This Row],[Month]])*(NQC[Unit Category]="Storage"),0))-StorageAllocation[[#This Row],[Storage (MW)]], StorageAllocation[[#This Row],[Storage (MW)]]>0, OFFSET(StorageAllocation[[#This Row],[Storage SOC Day 1 (MWh)]],-1,0)-StorageAllocation[[#This Row],[Storage (MW)]], TRUE, MIN( OFFSET(StorageAllocation[[#This Row],[Storage SOC Day 1 (MWh)]],-1,0)+0.85*INDEX(NQC[NQC MW],MATCH(1,(NQC[Month]=StorageAllocation[[#This Row],[Month]])*(NQC[Unit Category]="Storage"),0)), 4*INDEX(NQC[NQC MW],MATCH(1,(NQC[Month]=StorageAllocation[[#This Row],[Month]])*(NQC[Unit Category]="Storage"),0)) ) ) -> 51979.06921 | V2: =_xlfn.IFS( StorageAllocation[[#This Row],[Hour Ending]]=1, OFFSET(StorageAllocation[[#This Row],[Storage SOC Day 1 (MWh)]],23,0)-StorageAllocation[[#This Row],[Storage (MW)]], StorageAllocation[[#This Row],[Storage (MW)]]>0, OFFSET(StorageAllocation[[#This Row],[Storage SOC Day 2 (MWh)]],-1,0)-StorageAllocation[[#This Row],[Storage (MW)]], TRUE, MIN( OFFSET(StorageAllocation[[#This Row],[Storage SOC Day 2 (MWh)]],-1,0)+0.85*INDEX(NQC[NQC MW],MATCH(1,(NQC[Month]=StorageAllocation[[#This Row],[Month]])*(NQC[Unit Category]="Storage"),0)), 4*INDEX(NQC[NQC MW],MATCH(1,(NQC[Month]=StorageAllocation[[#This Row],[Month]])*(NQC[Unit Category]="Storage"),0)) ) ) -> 9269.012033 | W2: =StorageAllocation[[#This Row],[Supply Without Storage (MW)]]+StorageAllocation[[#This Row],[Storage (MW)]] -> 38708.49342 | X2: =StorageAllocation[[#This Row],[Adjusted Supply (MW)]]/StorageAllocation[[#This Row],[Managed Load + NOU (MW)]]-1 -> 0.2648594392
A3: 2 | B3: =SUMIFS(StorageAllocation[Excess Capacity (MW)],StorageAllocation[Month],PRM[[#This Row],[Month]],StorageAllocation[Excess Capacity (MW)],">0") -> 112596.1979 | C3: =SUMIFS(StorageAllocation[Storage (MW)],StorageAllocation[Month],PRM[[#This Row],[Month]])/0.85 -> 63708 | D3: =PRM[[#This Row],[Charging Energy (MWh)]]-PRM[[#This Row],[Charging Requirement (MWh)]] -> 48888.19786 | E3: =4*INDEX(NQC[NQC MW],MATCH(1,(NQC[Month]=PRM[[#This Row],[Month]])*(NQC[Unit Category]="Storage"),0))-SUMIFS(StorageAllocation[Storage (MW)],StorageAllocation[Month],PRM[[#This Row],[Month]]) -> 0 | F3: =_xlfn.MINIFS(StorageAllocation[Storage SOC Day 2 (MWh)],StorageAllocation[Month],PRM[[#This Row],[Month]]) -> 8587.247042 | G3: =INDEX(NQC[NQC MW],MATCH(1,(NQC[Month]=PRM[[#This Row],[Month]])*(NQC[Unit Category]="Storage"),0))-_xlfn.MAXIFS(StorageAllocation[Storage (MW)],StorageAllocation[Month],PRM[[#This Row],[Month]]) -> 5853.129788 | H3: 0.2649468422 | I3: =MATCH(1,(StorageAllocation[Month]=PRM[[#This Row],[Month]])*(_xlfn.MINIFS(StorageAllocation[Excess Capacity (MW)],StorageAllocation[Month],PRM[[#This Row],[Month]])=StorageAllocation[Excess Capacity (MW)]),0)-24*(PRM[[#This Row],[Month]]-1) -> 19 | J3: =INDEX(ManagedLoad[Managed Load],MATCH(1,(ManagedLoad[Month]=PRM[[#This Row],[Month]])*(ManagedLoad[Hour Ending]=PRM[[#This Row],[Constraining Hour Ending]]),0)) -> 29419 | K3: =INDEX(NOU[NOU MW],MATCH(PRM[[#This Row],[Month]],NOU[Month],0)) -> 8120 | L3: =INDEX(StorageAllocation[Adjusted Supply (MW)],MATCH(1,(StorageAllocation[Month]=PRM[[#This Row],[Month]])*(StorageAllocation[Hour Ending]=PRM[[#This Row],[Constraining Hour Ending]]),0)) -> 47484.83951 | N3: 1 | O3: 2 | P3: =INDEX(ManagedLoad[Total],MATCH(1,(ManagedLoad[Month]=StorageAllocation[[#This Row],[Month]])*(ManagedLoad[Hour Ending]=StorageAllocation[[#This Row],[Hour Ending]]),0)) -> 29470 | Q3: =StorageAllocation[[#This Row],[Managed Load + NOU (MW)]]*(1+_xlfn.XLOOKUP(StorageAllocation[[#This Row],[Month]],PRM[Month],PRM[Planning Reserve Margin],0,0)) -> 37275.40767 | R3: =SUM(_xlfn._xlws.FILTER(Supply[Supply],(Supply[Month]=StorageAllocation[[#This Row],[Month]])*(Supply[Unit Category]<>"Storage")*(Supply[Hour Ending]=StorageAllocation[[#This Row],[Hour Ending]])=1,0)) -> 37239.35484 | S3: =StorageAllocation[[#This Row],[Supply Without Storage (MW)]]-StorageAllocation[[#This Row],[Total Load with PRM (MW)]] -> -36.0528325 | T3: =MAX(-StorageAllocation[[#This Row],[Excess Capacity (MW)]],0) -> 36.0528325 | U3: =_xlfn.IFS( StorageAllocation[[#This Row],[Hour Ending]]=1, 4*INDEX(NQC[NQC MW],MATCH(1,(NQC[Month]=StorageAllocation[[#This Row],[Month]])*(NQC[Unit Category]="Storage"),0))-StorageAllocation[[#This Row],[Storage (MW)]], StorageAllocation[[#This Row],[Storage (MW)]]>0, OFFSET(StorageAllocation[[#This Row],[Storage SOC Day 1 (MWh)]],-1,0)-StorageAllocation[[#This Row],[Storage (MW)]], TRUE, MIN( OFFSET(StorageAllocation[[#This Row],[Storage SOC Day 1 (MWh)]],-1,0)+0.85*INDEX(NQC[NQC MW],MATCH(1,(NQC[Month]=StorageAllocation[[#This Row],[Month]])*(NQC[Unit Category]="Storage"),0)), 4*INDEX(NQC[NQC MW],MATCH(1,(NQC[Month]=StorageAllocation[[#This Row],[Month]])*(NQC[Unit Category]="Storage"),0)) ) ) -> 51943.01638 | V3: =_xlfn.IFS( StorageAllocation[[#This Row],[Hour Ending]]=1, OFFSET(StorageAllocation[[#This Row],[Storage SOC Day 1 (MWh)]],23,0)-StorageAllocation[[#This Row],[Storage (MW)]], StorageAllocation[[#This Row],[Storage (MW)]]>0, OFFSET(StorageAllocation[[#This Row],[Storage SOC Day 2 (MWh)]],-1,0)-StorageAllocation[[#This Row],[Storage (MW)]], TRUE, MIN( OFFSET(StorageAllocation[[#This Row],[Storage SOC Day 2 (MWh)]],-1,0)+0.85*INDEX(NQC[NQC MW],MATCH(1,(NQC[Month]=StorageAllocation[[#This Row],[Month]])*(NQC[Unit Category]="Storage"),0)), 4*INDEX(NQC[NQC MW],MATCH(1,(NQC[Month]=StorageAllocation[[#This Row],[Month]])*(NQC[Unit Category]="Storage"),0)) ) ) -> 9232.9592 | W3: =StorageAllocation[[#This Row],[Supply Without Storage (MW)]]+StorageAllocation[[#This Row],[Storage (MW)]] -> 37275.40767 | X3: =StorageAllocation[[#This Row],[Adjusted Supply (MW)]]/StorageAllocation[[#This Row],[Managed Load + NOU (MW)]]-1 -> 0.2648594392
A4: 3 | B4: =SUMIFS(StorageAllocation[Excess Capacity (MW)],StorageAllocation[Month],PRM[[#This Row],[Month]],StorageAllocation[Excess Capacity (MW)],">0") -> 113615.5718 | C4: =SUMIFS(StorageAllocation[Storage (MW)],StorageAllocation[Month],PRM[[#This Row],[Month]])/0.85 -> 63724.14118 | D4: =PRM[[#This Row],[Charging Energy (MWh)]]-PRM[[#This Row],[Charging Requirement (MWh)]] -> 49891.4306 | E4: =4*INDEX(NQC[NQC MW],MATCH(1,(NQC[Month]=PRM[[#This Row],[Month]])*(NQC[Unit Category]="Storage"),0))-SUMIFS(StorageAllocation[Storage (MW)],StorageAllocation[Month],PRM[[#This Row],[Month]]) -> 0 | F4: =_xlfn.MINIFS(StorageAllocation[Storage SOC Day 2 (MWh)],StorageAllocation[Month],PRM[[#This Row],[Month]]) -> 7846.690124 | G4: =INDEX(NQC[NQC MW],MATCH(1,(NQC[Month]=PRM[[#This Row],[Month]])*(NQC[Unit Category]="Storage"),0))-_xlfn.MAXIFS(StorageAllocation[Storage (MW)],StorageAllocation[Month],PRM[[#This Row],[Month]]) -> 5105.899264 | H4: 0.2648617483 | I4: =MATCH(1,(StorageAllocation[Month]=PRM[[#This Row],[Month]])*(_xlfn.MINIFS(StorageAllocation[Excess Capacity (MW)],StorageAllocation[Month],PRM[[#This Row],[Month]])=StorageAllocation[Excess Capacity (MW)]),0)-24*(PRM[[#This Row],[Month]]-1) -> 20 | J4: =INDEX(ManagedLoad[Managed Load],MATCH(1,(ManagedLoad[Month]=PRM[[#This Row],[Month]])*(ManagedLoad[Hour Ending]=PRM[[#This Row],[Constraining Hour Ending]]),0)) -> 29412 | K4: =INDEX(NOU[NOU MW],MATCH(PRM[[#This Row],[Month]],NOU[Month],0)) -> 8690 | L4: =INDEX(StorageAllocation[Adjusted Supply (MW)],MATCH(1,(StorageAllocation[Month]=PRM[[#This Row],[Month]])*(StorageAllocation[Hour Ending]=PRM[[#This Row],[Constraining Hour Ending]]),0)) -> 48193.76233 | N4: 1 | O4: 3 | P4: =INDEX(ManagedLoad[Total],MATCH(1,(ManagedLoad[Month]=StorageAllocation[[#This Row],[Month]])*(ManagedLoad[Hour Ending]=StorageAllocation[[#This Row],[Hour Ending]]),0)) -> 28478 | Q4: =StorageAllocation[[#This Row],[Managed Load + NOU (MW)]]*(1+_xlfn.XLOOKUP(StorageAllocation[[#This Row],[Month]],PRM[Month],PRM[Planning Reserve Margin],0,0)) -> 36020.66711 | R4: =SUM(_xlfn._xlws.FILTER(Supply[Supply],(Supply[Month]=StorageAllocation[[#This Row],[Month]])*(Supply[Unit Category]<>"Storage")*(Supply[Hour Ending]=StorageAllocation[[#This Row],[Hour Ending]])=1,0)) -> 37294.14737 | S4: =StorageAllocation[[#This Row],[Supply Without Storage (MW)]]-StorageAllocation[[#This Row],[Total Load with PRM (MW)]] -> 1273.480259 | T4: =MAX(-StorageAllocation[[#This Row],[Excess Capacity (MW)]],0) -> 0 | U4: =_xlfn.IFS( StorageAllocation[[#This Row],[Hour Ending]]=1, 4*INDEX(NQC[NQC MW],MATCH(1,(NQC[Month]=StorageAllocation[[#This Row],[Month]])*(NQC[Unit Category]="Storage"),0))-StorageAllocation[[#This Row],[Storage (MW)]], StorageAllocation[[#This Row],[Storage (MW)]]>0, OFFSET(StorageAllocation[[#This Row],[Storage SOC Day 1 (MWh)]],-1,0)-StorageAllocation[[#This Row],[Storage (MW)]], TRUE, MIN( OFFSET(StorageAllocation[[#This Row],[Storage SOC Day 1 (MWh)]],-1,0)+0.85*INDEX(NQC[NQC MW],MATCH(1,(NQC[Month]=StorageAllocation[[#This Row],[Month]])*(NQC[Unit Category]="Storage"),0)), 4*INDEX(NQC[NQC MW],MATCH(1,(NQC[Month]=StorageAllocation[[#This Row],[Month]])*(NQC[Unit Category]="Storage"),0)) ) ) -> 53479.8 | V4: =_xlfn.IFS( StorageAllocation[[#This Row],[Hour Ending]]=1, OFFSET(StorageAllocation[[#This Row],[Storage SOC Day 1 (MWh)]],23,0)-StorageAllocation[[#This Row],[Storage (MW)]], StorageAllocation[[#This Row],[Storage (MW)]]>0, OFFSET(StorageAllocation[[#This Row],[Storage SOC Day 2 (MWh)]],-1,0)-StorageAllocation[[#This Row],[Storage (MW)]], TRUE, MIN( OFFSET(StorageAllocation[[#This Row],[Storage SOC Day 2 (MWh)]],-1,0)+0.85*INDEX(NQC[NQC MW],MATCH(1,(NQC[Month]=StorageAllocation[[#This Row],[Month]])*(NQC[Unit Category]="Storage"),0)), 4*INDEX(NQC[NQC MW],MATCH(1,(NQC[Month]=StorageAllocation[[#This Row],[Month]])*(NQC[Unit Category]="Storage"),0)) ) ) -> 20597.4167 | W4: =StorageAllocation[[#This Row],[Supply Without Storage (MW)]]+StorageAllocation[[#This Row],[Storage (MW)]] -> 37294.14737 | X4: =StorageAllocation[[#This Row],[Adjusted Supply (MW)]]/StorageAllocation[[#This Row],[Managed Load + NOU (MW)]]-1 -> 0.3095774762
A5: 4 | B5: =SUMIFS(StorageAllocation[Excess Capacity (MW)],StorageAllocation[Month],PRM[[#This Row],[Month]],StorageAllocation[Excess Capacity (MW)],">0") -> 151130.7931 | C5: =SUMIFS(StorageAllocation[Storage (MW)],StorageAllocation[Month],PRM[[#This Row],[Month]])/0.85 -> 64027.62353 | D5: =PRM[[#This Row],[Charging Energy (MWh)]]-PRM[[#This Row],[Charging Requirement (MWh)]] -> 87103.16962 | E5: =4*INDEX(NQC[NQC MW],MATCH(1,(NQC[Month]=PRM[[#This Row],[Month]])*(NQC[Unit Category]="Storage"),0))-SUMIFS(StorageAllocation[Storage (MW)],StorageAllocation[Month],PRM[[#This Row],[Month]]) -> 0 | F5: =_xlfn.MINIFS(StorageAllocation[Storage SOC Day 2 (MWh)],StorageAllocation[Month],PRM[[#This Row],[Month]]) -> 3164.450461 | G5: =INDEX(NQC[NQC MW],MATCH(1,(NQC[Month]=PRM[[#This Row],[Month]])*(NQC[Unit Category]="Storage"),0))-_xlfn.MAXIFS(StorageAllocation[Storage (MW)],StorageAllocation[Month],PRM[[#This Row],[Month]]) -> 3746.959567 | H5: 0.2648239929 | I5: =MATCH(1,(StorageAllocation[Month]=PRM[[#This Row],[Month]])*(_xlfn.MINIFS(StorageAllocation[Excess Capacity (MW)],StorageAllocation[Month],PRM[[#This Row],[Month]])=StorageAllocation[Excess Capacity (MW)]),0)-24*(PRM[[#This Row],[Month]]-1) -> 19 | J5: =INDEX(ManagedLoad[Managed Load],MATCH(1,(ManagedLoad[Month]=PRM[[#This Row],[Month]])*(ManagedLoad[Hour Ending]=PRM[[#This Row],[Constraining Hour Ending]]),0)) -> 31688 | K5: =INDEX(NOU[NOU MW],MATCH(PRM[[#This Row],[Month]],NOU[Month],0)) -> 10400 | L5: =INDEX(StorageAllocation[Adjusted Supply (MW)],MATCH(1,(StorageAllocation[Month]=PRM[[#This Row],[Month]])*(StorageAllocation[Hour Ending]=PRM[[#This Row],[Constraining Hour Ending]]),0)) -> 53233.91221 | N5: 1 | O5: 4 | P5: =INDEX(ManagedLoad[Total],MATCH(1,(ManagedLoad[Month]=StorageAllocation[[#This Row],[Month]])*(ManagedLoad[Hour Ending]=StorageAllocation[[#This Row],[Hour Ending]]),0)) -> 28018 | Q5: =StorageAllocation[[#This Row],[Managed Load + NOU (MW)]]*(1+_xlfn.XLOOKUP(StorageAllocation[[#This Row],[Month]],PRM[Month],PRM[Planning Reserve Margin],0,0)) -> 35438.83177 | R5: =SUM(_xlfn._xlws.FILTER(Supply[Supply],(Supply[Month]=StorageAllocation[[#This Row],[Month]])*(Supply[Unit Category]<>"Storage")*(Supply[Hour Ending]=StorageAllocation[[#This Row],[Hour Ending]])=1,0)) -> 37259.00594 | S5: =StorageAllocation[[#This Row],[Supply Without Storage (MW)]]-StorageAllocation[[#This Row],[Total Load with PRM (MW)]] -> 1820.174171 | T5: =MAX(-StorageAllocation[[#This Row],[Excess Capacity (MW)]],0) -> 0 | U5: =_xlfn.IFS( StorageAllocation[[#This Row],[Hour Ending]]=1, 4*INDEX(NQC[NQC MW],MATCH(1,(NQC[Month]=StorageAllocation[[#This Row],[Month]])*(NQC[Unit Category]="Storage"),0))-StorageAllocation[[#This Row],[Storage (MW)]], StorageAllocation[[#This Row],[Storage (MW)]]>0, OFFSET(StorageAllocation[[#This Row],[Storage SOC Day 1 (MWh)]],-1,0)-StorageAllocation[[#This Row],[Storage (MW)]], TRUE, MIN( OFFSET(StorageAllocation[[#This Row],[Storage SOC Day 1 (MWh)]],-1,0)+0.85*INDEX(NQC[NQC MW],MATCH(1,(NQC[Month]=StorageAllocation[[#This Row],[Month]])*(NQC[Unit Category]="Storage"),0)), 4*INDEX(NQC[NQC MW],MATCH(1,(NQC[Month]=StorageAllocation[[#This Row],[Month]])*(NQC[Unit Category]="Storage"),0)) ) ) -> 53479.8 | V5: =_xlfn.IFS( StorageAllocation[[#This Row],[Hour Ending]]=1, OFFSET(StorageAllocation[[#This Row],[Storage SOC Day 1 (MWh)]],23,0)-StorageAllocation[[#This Row],[Storage (MW)]], StorageAllocation[[#This Row],[Storage (MW)]]>0, OFFSET(StorageAllocation[[#This Row],[Storage SOC Day 2 (MWh)]],-1,0)-StorageAllocation[[#This Row],[Storage (MW)]], TRUE, MIN( OFFSET(StorageAllocation[[#This Row],[Storage SOC Day 2 (MWh)]],-1,0)+0.85*INDEX(NQC[NQC MW],MATCH(1,(NQC[Month]=StorageAllocation[[#This Row],[Month]])*(NQC[Unit Category]="Storage"),0)), 4*INDEX(NQC[NQC MW],MATCH(1,(NQC[Month]=StorageAllocation[[#This Row],[Month]])*(NQC[Unit Category]="Storage"),0)) ) ) -> 31961.8742 | W5: =StorageAllocation[[#This Row],[Supply Without Storage (MW)]]+StorageAllocation[[#This Row],[Storage (MW)]] -> 37259.00594 | X5: =StorageAllocation[[#This Row],[Adjusted Supply (MW)]]/StorageAllocation[[#This Row],[Managed Load + NOU (MW)]]-1 -> 0.3298238967
A6: 5 | B6: =SUMIFS(StorageAllocation[Excess Capacity (MW)],StorageAllocation[Month],PRM[[#This Row],[Month]],StorageAllocation[Excess Capacity (MW)],">0") -> 141806.4611 | C6: =SUMIFS(StorageAllocation[Storage (MW)],StorageAllocation[Month],PRM[[#This Row],[Month]])/0.85 -> 64256.84706 | D6: =PRM[[#This Row],[Charging Energy (MWh)]]-PRM[[#This Row],[Charging Requirement (MWh)]] -> 77549.61403 | E6: =4*INDEX(NQC[NQC MW],MATCH(1,(NQC[Month]=PRM[[#This Row],[Month]])*(NQC[Unit Category]="Storage"),0))-SUMIFS(StorageAllocation[Storage (MW)],StorageAllocation[Month],PRM[[#This Row],[Month]]) -> 0 | F6: =_xlfn.MINIFS(StorageAllocation[Storage SOC Day 2 (MWh)],StorageAllocation[Month],PRM[[#This Row],[Month]]) -> 555.0438807 | G6: =INDEX(NQC[NQC MW],MATCH(1,(NQC[Month]=PRM[[#This Row],[Month]])*(NQC[Unit Category]="Storage"),0))-_xlfn.MAXIFS(StorageAllocation[Storage (MW)],StorageAllocation[Month],PRM[[#This Row],[Month]]) -> 3006.276779 | H6: 0.2649631128 | I6: =MATCH(1,(StorageAllocation[Month]=PRM[[#This Row],[Month]])*(_xlfn.MINIFS(StorageAllocation[Excess Capacity (MW)],StorageAllocation[Month],PRM[[#This Row],[Month]])=StorageAllocation[Excess Capacity (MW)]),0)-24*(PRM[[#This Row],[Month]]-1) -> 20 | J6: =INDEX(ManagedLoad[Managed Load],MATCH(1,(ManagedLoad[Month]=PRM[[#This Row],[Month]])*(ManagedLoad[Hour Ending]=PRM[[#This Row],[Constraining Hour Ending]]),0)) -> 33897 | K6: =INDEX(NOU[NOU MW],MATCH(PRM[[#This Row],[Month]],NOU[Month],0)) -> 8770 | L6: =INDEX(StorageAllocation[Adjusted Supply (MW)],MATCH(1,(StorageAllocation[Month]=PRM[[#This Row],[Month]])*(StorageAllocation[Hour Ending]=PRM[[#This Row],[Constraining Hour Ending]]),0)) -> 53972.18113 | N6: 1 | O6: 5 | P6: =INDEX(ManagedLoad[Total],MATCH(1,(ManagedLoad[Month]=StorageAllocation[[#This Row],[Month]])*(ManagedLoad[Hour Ending]=StorageAllocation[[#This Row],[Hour Ending]]),0)) -> 28465 | Q6: =StorageAllocation[[#This Row],[Managed Load + NOU (MW)]]*(1+_xlfn.XLOOKUP(StorageAllocation[[#This Row],[Month]],PRM[Month],PRM[Planning Reserve Margin],0,0)) -> 36004.22394 | R6: =SUM(_xlfn._xlws.FILTER(Supply[Supply],(Supply[Month]=StorageAllocation[[#This Row],[Month]])*(Supply[Unit Category]<>"Storage")*(Supply[Hour Ending]=StorageAllocation[[#This Row],[Hour Ending]])=1,0)) -> 37249.53557 | S6: =StorageAllocation[[#This Row],[Supply Without Storage (MW)]]-StorageAllocation[[#This Row],[Total Load with PRM (MW)]] -> 1245.311637 | T6: =MAX(-StorageAllocation[[#This Row],[Excess Capacity (MW)]],0) -> 0 | U6: =_xlfn.IFS( StorageAllocation[[#This Row],[Hour Ending]]=1, 4*INDEX(NQC[NQC MW],MATCH(1,(NQC[Month]=StorageAllocation[[#This Row],[Month]])*(NQC[Unit Category]="Storage"),0))-StorageAllocation[[#This Row],[Storage (MW)]], StorageAllocation[[#This Row],[Storage (MW)]]>0, OFFSET(StorageAllocation[[#This Row],[Storage SOC Day 1 (MWh)]],-1,0)-StorageAllocation[[#This Row],[Storage (MW)]], TRUE, MIN( OFFSET(StorageAllocation[[#This Row],[Storage SOC Day 1 (MWh)]],-1,0)+0.85*INDEX(NQC[NQC MW],MATCH(1,(NQC[Month]=StorageAllocation[[#This Row],[Month]])*(NQC[Unit Category]="Storage"),0)), 4*INDEX(NQC[NQC MW],MATCH(1,(NQC[Month]=StorageAllocation[[#This Row],[Month]])*(NQC[Unit Category]="Storage"),0)) ) ) -> 53479.8 | V6: =_xlfn.IFS( StorageAllocation[[#This Row],[Hour Ending]]=1, OFFSET(StorageAllocation[[#This Row],[Storage SOC Day 1 (MWh)]],23,0)-StorageAllocation[[#This Row],[Storage (MW)]], StorageAllocation[[#This Row],[Storage (MW)]]>0, OFFSET(StorageAllocation[[#This Row],[Storage SOC Day 2 (MWh)]],-1,0)-StorageAllocation[[#This Row],[Storage (MW)]], TRUE, MIN( OFFSET(StorageAllocation[[#This Row],[Storage SOC Day 2 (MWh)]],-1,0)+0.85*INDEX(NQC[NQC MW],MATCH(1,(NQC[Month]=StorageAllocation[[#This Row],[Month]])*(NQC[Unit Category]="Storage"),0)), 4*INDEX(NQC[NQC MW],MATCH(1,(NQC[Month]=StorageAllocation[[#This Row],[Month]])*(NQC[Unit Category]="Storage"),0)) ) ) -> 43326.3317 | W6: =StorageAllocation[[#This Row],[Supply Without Storage (MW)]]+StorageAllocation[[#This Row],[Storage (MW)]] -> 37249.53557 | X6: =StorageAllocation[[#This Row],[Adjusted Supply (MW)]]/StorageAllocation[[#This Row],[Managed Load + NOU (MW)]]-1 -> 0.308608311
A7: 6 | B7: =SUMIFS(StorageAllocation[Excess Capacity (MW)],StorageAllocation[Month],PRM[[#This Row],[Month]],StorageAllocation[Excess Capacity (MW)],">0") -> 136697.7275 | C7: =SUMIFS(StorageAllocation[Storage (MW)],StorageAllocation[Month],PRM[[#This Row],[Month]])/0.85 -> 65096.14118 | D7: =PRM[[#This Row],[Charging Energy (MWh)]]-PRM[[#This Row],[Charging Requirement (MWh)]] -> 71601.58631 | E7: =4*INDEX(NQC[NQC MW],MATCH(1,(NQC[Month]=PRM[[#This Row],[Month]])*(NQC[Unit Category]="Storage"),0))-SUMIFS(StorageAllocation[Storage (MW)],StorageAllocation[Month],PRM[[#This Row],[Month]]) -> 0 | F7: =_xlfn.MINIFS(StorageAllocation[Storage SOC Day 2 (MWh)],StorageAllocation[Month],PRM[[#This Row],[Month]]) -> -1.455191523e-11 | G7: =INDEX(NQC[NQC MW],MATCH(1,(NQC[Month]=PRM[[#This Row],[Month]])*(NQC[Unit Category]="Storage"),0))-_xlfn.MAXIFS(StorageAllocation[Storage (MW)],StorageAllocation[Month],PRM[[#This Row],[Month]]) -> 1690.195647 | H7: 0.2349484184 | I7: =MATCH(1,(StorageAllocation[Month]=PRM[[#This Row],[Month]])*(_xlfn.MINIFS(StorageAllocation[Excess Capacity (MW)],StorageAllocation[Month],PRM[[#This Row],[Month]])=StorageAllocation[Excess Capacity (MW)]),0)-24*(PRM[[#This Row],[Month]]-1) -> 19 | J7: =INDEX(ManagedLoad[Managed Load],MATCH(1,(ManagedLoad[Month]=PRM[[#This Row],[Month]])*(ManagedLoad[Hour Ending]=PRM[[#This Row],[Constraining Hour Ending]]),0)) -> 41906 | K7: =INDEX(NOU[NOU MW],MATCH(PRM[[#This Row],[Month]],NOU[Month],0)) -> 5390 | L7: =INDEX(StorageAllocation[Adjusted Supply (MW)],MATCH(1,(StorageAllocation[Month]=PRM[[#This Row],[Month]])*(StorageAllocation[Hour Ending]=PRM[[#This Row],[Constraining Hour Ending]]),0)) -> 58408.1204 | N7: 1 | O7: 6 | P7: =INDEX(ManagedLoad[Total],MATCH(1,(ManagedLoad[Month]=StorageAllocation[[#This Row],[Month]])*(ManagedLoad[Hour Ending]=StorageAllocation[[#This Row],[Hour Ending]]),0)) -> 29970 | Q7: =StorageAllocation[[#This Row],[Managed Load + NOU (MW)]]*(1+_xlfn.XLOOKUP(StorageAllocation[[#This Row],[Month]],PRM[Month],PRM[Planning Reserve Margin],0,0)) -> 37907.83739 | R7: =SUM(_xlfn._xlws.FILTER(Supply[Supply],(Supply[Month]=StorageAllocation[[#This Row],[Month]])*(Supply[Unit Category]<>"Storage")*(Supply[Hour Ending]=StorageAllocation[[#This Row],[Hour Ending]])=1,0)) -> 37208.87185 | S7: =StorageAllocation[[#This Row],[Supply Without Storage (MW)]]-StorageAllocation[[#This Row],[Total Load with PRM (MW)]] -> -698.9655427 | T7: =MAX(-StorageAllocation[[#This Row],[Excess Capacity (MW)]],0) -> 698.9655427 | U7: =_xlfn.IFS( StorageAllocation[[#This Row],[Hour Ending]]=1, 4*INDEX(NQC[NQC MW],MATCH(1,(NQC[Month]=StorageAllocation[[#This Row],[Month]])*(NQC[Unit Category]="Storage"),0))-StorageAllocation[[#This Row],[Storage (MW)]], StorageAllocation[[#This Row],[Storage (MW)]]>0, OFFSET(StorageAllocation[[#This Row],[Storage SOC Day 1 (MWh)]],-1,0)-StorageAllocation[[#This Row],[Storage (MW)]], TRUE, MIN( OFFSET(StorageAllocation[[#This Row],[Storage SOC Day 1 (MWh)]],-1,0)+0.85*INDEX(NQC[NQC MW],MATCH(1,(NQC[Month]=StorageAllocation[[#This Row],[Month]])*(NQC[Unit Category]="Storage"),0)), 4*INDEX(NQC[NQC MW],MATCH(1,(NQC[Month]=StorageAllocation[[#This Row],[Month]])*(NQC[Unit Category]="Storage"),0)) ) ) -> 52780.83446 | V7: =_xlfn.IFS( StorageAllocation[[#This Row],[Hour Ending]]=1, OFFSET(StorageAllocation[[#This Row],[Storage SOC Day 1 (MWh)]],23,0)-StorageAllocation[[#This Row],[Storage (MW)]], StorageAllocation[[#This Row],[Storage (MW)]]>0, OFFSET(StorageAllocation[[#This Row],[Storage SOC Day 2 (MWh)]],-1,0)-StorageAllocation[[#This Row],[Storage (MW)]], TRUE, MIN( OFFSET(StorageAllocation[[#This Row],[Storage SOC Day 2 (MWh)]],-1,0)+0.85*INDEX(NQC[NQC MW],MATCH(1,(NQC[Month]=StorageAllocation[[#This Row],[Month]])*(NQC[Unit Category]="Storage"),0)), 4*INDEX(NQC[NQC MW],MATCH(1,(NQC[Month]=StorageAllocation[[#This Row],[Month]])*(NQC[Unit Category]="Storage"),0)) ) ) -> 42627.36616 | W7: =StorageAllocation[[#This Row],[Supply Without Storage (MW)]]+StorageAllocation[[#This Row],[Storage (MW)]] -> 37907.83739 | X7: =StorageAllocation[[#This Row],[Adjusted Supply (MW)]]/StorageAllocation[[#This Row],[Managed Load + NOU (MW)]]-1 -> 0.2648594392
A8: 7 | B8: =SUMIFS(StorageAllocation[Excess Capacity (MW)],StorageAllocation[Month],PRM[[#This Row],[Month]],StorageAllocation[Excess Capacity (MW)],">0") -> 120970.007 | C8: =SUMIFS(StorageAllocation[Storage (MW)],StorageAllocation[Month],PRM[[#This Row],[Month]])/0.85 -> 65189.64706 | D8: =PRM[[#This Row],[Charging Energy (MWh)]]-PRM[[#This Row],[Charging Requirement (MWh)]] -> 55780.35998 | E8: =4*INDEX(NQC[NQC MW],MATCH(1,(NQC[Month]=PRM[[#This Row],[Month]])*(NQC[Unit Category]="Storage"),0))-SUMIFS(StorageAllocation[Storage (MW)],StorageAllocation[Month],PRM[[#This Row],[Month]]) -> 0 | F8: =_xlfn.MINIFS(StorageAllocation[Storage SOC Day 2 (MWh)],StorageAllocation[Month],PRM[[#This Row],[Month]]) -> 5.09317033e-11 | G8: =INDEX(NQC[NQC MW],MATCH(1,(NQC[Month]=PRM[[#This Row],[Month]])*(NQC[Unit Category]="Storage"),0))-_xlfn.MAXIFS(StorageAllocation[Storage (MW)],StorageAllocation[Month],PRM[[#This Row],[Month]]) -> 911.6373315 | H8: 0.2354139779 | I8: =MATCH(1,(StorageAllocation[Month]=PRM[[#This Row],[Month]])*(_xlfn.MINIFS(StorageAllocation[Excess Capacity (MW)],StorageAllocation[Month],PRM[[#This Row],[Month]])=StorageAllocation[Excess Capacity (MW)]),0)-24*(PRM[[#This Row],[Month]]-1) -> 19 | J8: =INDEX(ManagedLoad[Managed Load],MATCH(1,(ManagedLoad[Month]=PRM[[#This Row],[Month]])*(ManagedLoad[Hour Ending]=PRM[[#This Row],[Constraining Hour Ending]]),0)) -> 45588 | K8: =INDEX(NOU[NOU MW],MATCH(PRM[[#This Row],[Month]],NOU[Month],0)) -> 2490 | L8: =INDEX(StorageAllocation[Adjusted Supply (MW)],MATCH(1,(StorageAllocation[Month]=PRM[[#This Row],[Month]])*(StorageAllocation[Hour Ending]=PRM[[#This Row],[Constraining Hour Ending]]),0)) -> 59396.23323 | N8: 1 | O8: 7 | P8: =INDEX(ManagedLoad[Total],MATCH(1,(ManagedLoad[Month]=StorageAllocation[[#This Row],[Month]])*(ManagedLoad[Hour Ending]=StorageAllocation[[#This Row],[Hour Ending]]),0)) -> 32652 | Q8: =StorageAllocation[[#This Row],[Managed Load + NOU (MW)]]*(1+_xlfn.XLOOKUP(StorageAllocation[[#This Row],[Month]],PRM[Month],PRM[Planning Reserve Margin],0,0)) -> 41300.19041 | R8: =SUM(_xlfn._xlws.FILTER(Supply[Supply],(Supply[Month]=StorageAllocation[[#This Row],[Month]])*(Supply[Unit Category]<>"Storage")*(Supply[Hour Ending]=StorageAllocation[[#This Row],[Hour Ending]])=1,0)) -> 37123.11362 | S8: =StorageAllocation[[#This Row],[Supply Without Storage (MW)]]-StorageAllocation[[#This Row],[Total Load with PRM (MW)]] -> -4177.076788 | T8: =MAX(-StorageAllocation[[#This Row],[Excess Capacity (MW)]],0) -> 4177.076788 | U8: =_xlfn.IFS( StorageAllocation[[#This Row],[Hour Ending]]=1, 4*INDEX(NQC[NQC MW],MATCH(1,(NQC[Month]=StorageAllocation[[#This Row],[Month]])*(NQC[Unit Category]="Storage"),0))-StorageAllocation[[#This Row],[Storage (MW)]], StorageAllocation[[#This Row],[Storage (MW)]]>0, OFFSET(StorageAllocation[[#This Row],[Storage SOC Day 1 (MWh)]],-1,0)-StorageAllocation[[#This Row],[Storage (MW)]], TRUE, MIN( OFFSET(StorageAllocation[[#This Row],[Storage SOC Day 1 (MWh)]],-1,0)+0.85*INDEX(NQC[NQC MW],MATCH(1,(NQC[Month]=StorageAllocation[[#This Row],[Month]])*(NQC[Unit Category]="Storage"),0)), 4*INDEX(NQC[NQC MW],MATCH(1,(NQC[Month]=StorageAllocation[[#This Row],[Month]])*(NQC[Unit Category]="Storage"),0)) ) ) -> 48603.75767 | V8: =_xlfn.IFS( StorageAllocation[[#This Row],[Hour Ending]]=1, OFFSET(StorageAllocation[[#This Row],[Storage SOC Day 1 (MWh)]],23,0)-StorageAllocation[[#This Row],[Storage (MW)]], StorageAllocation[[#This Row],[Storage (MW)]]>0, OFFSET(StorageAllocation[[#This Row],[Storage SOC Day 2 (MWh)]],-1,0)-StorageAllocation[[#This Row],[Storage (MW)]], TRUE, MIN( OFFSET(StorageAllocation[[#This Row],[Storage SOC Day 2 (MWh)]],-1,0)+0.85*INDEX(NQC[NQC MW],MATCH(1,(NQC[Month]=StorageAllocation[[#This Row],[Month]])*(NQC[Unit Category]="Storage"),0)), 4*INDEX(NQC[NQC MW],MATCH(1,(NQC[Month]=StorageAllocation[[#This Row],[Month]])*(NQC[Unit Category]="Storage"),0)) ) ) -> 38450.28937 | W8: =StorageAllocation[[#This Row],[Supply Without Storage (MW)]]+StorageAllocation[[#This Row],[Storage (MW)]] -> 41300.19041 | X8: =StorageAllocation[[#This Row],[Adjusted Supply (MW)]]/StorageAllocation[[#This Row],[Managed Load + NOU (MW)]]-1 -> 0.2648594392
A9: 8 | B9: =SUMIFS(StorageAllocation[Excess Capacity (MW)],StorageAllocation[Month],PRM[[#This Row],[Month]],StorageAllocation[Excess Capacity (MW)],">0") -> 125449.4815 | C9: =SUMIFS(StorageAllocation[Storage (MW)],StorageAllocation[Month],PRM[[#This Row],[Month]])/0.85 -> 64881.92941 | D9: =PRM[[#This Row],[Charging Energy (MWh)]]-PRM[[#This Row],[Charging Requirement (MWh)]] -> 60567.55212 | E9: =4*INDEX(NQC[NQC MW],MATCH(1,(NQC[Month]=PRM[[#This Row],[Month]])*(NQC[Unit Category]="Storage"),0))-SUMIFS(StorageAllocation[Storage (MW)],StorageAllocation[Month],PRM[[#This Row],[Month]]) -> 0 | F9: =_xlfn.MINIFS(StorageAllocation[Storage SOC Day 2 (MWh)],StorageAllocation[Month],PRM[[#This Row],[Month]]) -> 0 | G9: =INDEX(NQC[NQC MW],MATCH(1,(NQC[Month]=PRM[[#This Row],[Month]])*(NQC[Unit Category]="Storage"),0))-_xlfn.MAXIFS(StorageAllocation[Storage (MW)],StorageAllocation[Month],PRM[[#This Row],[Month]]) -> 370.0135276 | H9: 0.235204038 | I9: =MATCH(1,(StorageAllocation[Month]=PRM[[#This Row],[Month]])*(_xlfn.MINIFS(StorageAllocation[Excess Capacity (MW)],StorageAllocation[Month],PRM[[#This Row],[Month]])=StorageAllocation[Excess Capacity (MW)]),0)-24*(PRM[[#This Row],[Month]]-1) -> 19 | J9: =INDEX(ManagedLoad[Managed Load],MATCH(1,(ManagedLoad[Month]=PRM[[#This Row],[Month]])*(ManagedLoad[Hour Ending]=PRM[[#This Row],[Constraining Hour Ending]]),0)) -> 44125 | K9: =INDEX(NOU[NOU MW],MATCH(PRM[[#This Row],[Month]],NOU[Month],0)) -> 2540 | L9: =INDEX(StorageAllocation[Adjusted Supply (MW)],MATCH(1,(StorageAllocation[Month]=PRM[[#This Row],[Month]])*(StorageAllocation[Hour Ending]=PRM[[#This Row],[Constraining Hour Ending]]),0)) -> 57640.79644 | N9: 1 | O9: 8 | P9: =INDEX(ManagedLoad[Total],MATCH(1,(ManagedLoad[Month]=StorageAllocation[[#This Row],[Month]])*(ManagedLoad[Hour Ending]=StorageAllocation[[#This Row],[Hour Ending]]),0)) -> 34228 | Q9: =StorageAllocation[[#This Row],[Managed Load + NOU (MW)]]*(1+_xlfn.XLOOKUP(StorageAllocation[[#This Row],[Month]],PRM[Month],PRM[Planning Reserve Margin],0,0)) -> 43293.60888 | R9: =SUM(_xlfn._xlws.FILTER(Supply[Supply],(Supply[Month]=StorageAllocation[[#This Row],[Month]])*(Supply[Unit Category]<>"Storage")*(Supply[Hour Ending]=StorageAllocation[[#This Row],[Hour Ending]])=1,0)) -> 38936.69202 | S9: =StorageAllocation[[#This Row],[Supply Without Storage (MW)]]-StorageAllocation[[#This Row],[Total Load with PRM (MW)]] -> -4356.91687 | T9: =MAX(-StorageAllocation[[#This Row],[Excess Capacity (MW)]],0) -> 4356.91687 | U9: =_xlfn.IFS( StorageAllocation[[#This Row],[Hour Ending]]=1, 4*INDEX(NQC[NQC MW],MATCH(1,(NQC[Month]=StorageAllocation[[#This Row],[Month]])*(NQC[Unit Category]="Storage"),0))-StorageAllocation[[#This Row],[Storage (MW)]], StorageAllocation[[#This Row],[Storage (MW)]]>0, OFFSET(StorageAllocation[[#This Row],[Storage SOC Day 1 (MWh)]],-1,0)-StorageAllocation[[#This Row],[Storage (MW)]], TRUE, MIN( OFFSET(StorageAllocation[[#This Row],[Storage SOC Day 1 (MWh)]],-1,0)+0.85*INDEX(NQC[NQC MW],MATCH(1,(NQC[Month]=StorageAllocation[[#This Row],[Month]])*(NQC[Unit Category]="Storage"),0)), 4*INDEX(NQC[NQC MW],MATCH(1,(NQC[Month]=StorageAllocation[[#This Row],[Month]])*(NQC[Unit Category]="Storage"),0)) ) ) -> 44246.8408 | V9: =_xlfn.IFS( StorageAllocation[[#This Row],[Hour Ending]]=1, OFFSET(StorageAllocation[[#This Row],[Storage SOC Day 1 (MWh)]],23,0)-StorageAllocation[[#This Row],[Storage (MW)]], StorageAllocation[[#This Row],[Storage (MW)]]>0, OFFSET(StorageAllocation[[#This Row],[Storage SOC Day 2 (MWh)]],-1,0)-StorageAllocation[[#This Row],[Storage (MW)]], TRUE, MIN( OFFSET(StorageAllocation[[#This Row],[Storage SOC Day 2 (MWh)]],-1,0)+0.85*INDEX(NQC[NQC MW],MATCH(1,(NQC[Month]=StorageAllocation[[#This Row],[Month]])*(NQC[Unit Category]="Storage"),0)), 4*INDEX(NQC[NQC MW],MATCH(1,(NQC[Month]=StorageAllocation[[#This Row],[Month]])*(NQC[Unit Category]="Storage"),0)) ) ) -> 34093.3725 | W9: =StorageAllocation[[#This Row],[Supply Without Storage (MW)]]+StorageAllocation[[#This Row],[Storage (MW)]] -> 43293.60888 | X9: =StorageAllocation[[#This Row],[Adjusted Supply (MW)]]/StorageAllocation[[#This Row],[Managed Load + NOU (MW)]]-1 -> 0.2648594392
A10: 9 | B10: =SUMIFS(StorageAllocation[Excess Capacity (MW)],StorageAllocation[Month],PRM[[#This Row],[Month]],StorageAllocation[Excess Capacity (MW)],">0") -> 145977.5158 | C10: =SUMIFS(StorageAllocation[Storage (MW)],StorageAllocation[Month],PRM[[#This Row],[Month]])/0.85 -> 65047.43529 | D10: =PRM[[#This Row],[Charging Energy (MWh)]]-PRM[[#This Row],[Charging Requirement (MWh)]] -> 80930.0805 | E10: =4*INDEX(NQC[NQC MW],MATCH(1,(NQC[Month]=PRM[[#This Row],[Month]])*(NQC[Unit Category]="Storage"),0))-SUMIFS(StorageAllocation[Storage (MW)],StorageAllocation[Month],PRM[[#This Row],[Month]]) -> 0 | F10: =_xlfn.MINIFS(StorageAllocation[Storage SOC Day 2 (MWh)],StorageAllocation[Month],PRM[[#This Row],[Month]]) -> -2.182787284e-11 | G10: =INDEX(NQC[NQC MW],MATCH(1,(NQC[Month]=PRM[[#This Row],[Month]])*(NQC[Unit Category]="Storage"),0))-_xlfn.MAXIFS(StorageAllocation[Storage (MW)],StorageAllocation[Month],PRM[[#This Row],[Month]]) -> 591.0282513 | H10: 0.2356892963 | I10: =MATCH(1,(StorageAllocation[Month]=PRM[[#This Row],[Month]])*(_xlfn.MINIFS(StorageAllocation[Excess Capacity (MW)],StorageAllocation[Month],PRM[[#This Row],[Month]])=StorageAllocation[Excess Capacity (MW)]),0)-24*(PRM[[#This Row],[Month]]-1) -> 18 | J10: =INDEX(ManagedLoad[Managed Load],MATCH(1,(ManagedLoad[Month]=PRM[[#This Row],[Month]])*(ManagedLoad[Hour Ending]=PRM[[#This Row],[Constraining Hour Ending]]),0)) -> 46395 | K10: =INDEX(NOU[NOU MW],MATCH(PRM[[#This Row],[Month]],NOU[Month],0)) -> 130 | L10: =INDEX(StorageAllocation[Adjusted Supply (MW)],MATCH(1,(StorageAllocation[Month]=PRM[[#This Row],[Month]])*(StorageAllocation[Hour Ending]=PRM[[#This Row],[Constraining Hour Ending]]),0)) -> 57490.44451 | N10: 1 | O10: 9 | P10: =INDEX(ManagedLoad[Total],MATCH(1,(ManagedLoad[Month]=StorageAllocation[[#This Row],[Month]])*(ManagedLoad[Hour Ending]=StorageAllocation[[#This Row],[Hour Ending]]),0)) -> 33964 | Q10: =StorageAllocation[[#This Row],[Managed Load + NOU (MW)]]*(1+_xlfn.XLOOKUP(StorageAllocation[[#This Row],[Month]],PRM[Month],PRM[Planning Reserve Margin],0,0)) -> 42959.68599 | R10: =SUM(_xlfn._xlws.FILTER(Supply[Supply],(Supply[Month]=StorageAllocation[[#This Row],[Month]])*(Supply[Unit Category]<>"Storage")*(Supply[Hour Ending]=StorageAllocation[[#This Row],[Hour Ending]])=1,0)) -> 44552.28063 | S10: =StorageAllocation[[#This Row],[Supply Without Storage (MW)]]-StorageAllocation[[#This Row],[Total Load with PRM (MW)]] -> 1592.59464 | T10: =MAX(-StorageAllocation[[#This Row],[Excess Capacity (MW)]],0) -> 0 | U10: =_xlfn.IFS( StorageAllocation[[#This Row],[Hour Ending]]=1, 4*INDEX(NQC[NQC MW],MATCH(1,(NQC[Month]=StorageAllocation[[#This Row],[Month]])*(NQC[Unit Category]="Storage"),0))-StorageAllocation[[#This Row],[Storage (MW)]], StorageAllocation[[#This Row],[Storage (MW)]]>0, OFFSET(StorageAllocation[[#This Row],[Storage SOC Day 1 (MWh)]],-1,0)-StorageAllocation[[#This Row],[Storage (MW)]], TRUE, MIN( OFFSET(StorageAllocation[[#This Row],[Storage SOC Day 1 (MWh)]],-1,0)+0.85*INDEX(NQC[NQC MW],MATCH(1,(NQC[Month]=StorageAllocation[[#This Row],[Month]])*(NQC[Unit Category]="Storage"),0)), 4*INDEX(NQC[NQC MW],MATCH(1,(NQC[Month]=StorageAllocation[[#This Row],[Month]])*(NQC[Unit Category]="Storage"),0)) ) ) -> 53479.8 | V10: =_xlfn.IFS( StorageAllocation[[#This Row],[Hour Ending]]=1, OFFSET(StorageAllocation[[#This Row],[Storage SOC Day 1 (MWh)]],23,0)-StorageAllocation[[#This Row],[Storage (MW)]], StorageAllocation[[#This Row],[Storage (MW)]]>0, OFFSET(StorageAllocation[[#This Row],[Storage SOC Day 2 (MWh)]],-1,0)-StorageAllocation[[#This Row],[Storage (MW)]], TRUE, MIN( OFFSET(StorageAllocation[[#This Row],[Storage SOC Day 2 (MWh)]],-1,0)+0.85*INDEX(NQC[NQC MW],MATCH(1,(NQC[Month]=StorageAllocation[[#This Row],[Month]])*(NQC[Unit Category]="Storage"),0)), 4*INDEX(NQC[NQC MW],MATCH(1,(NQC[Month]=StorageAllocation[[#This Row],[Month]])*(NQC[Unit Category]="Storage"),0)) ) ) -> 45457.83 | W10: =StorageAllocation[[#This Row],[Supply Without Storage (MW)]]+StorageAllocation[[#This Row],[Storage (MW)]] -> 44552.28063 | X10: =StorageAllocation[[#This Row],[Adjusted Supply (MW)]]/StorageAllocation[[#This Row],[Managed Load + NOU (MW)]]-1 -> 0.311750107
A11: 10 | B11: =SUMIFS(StorageAllocation[Excess Capacity (MW)],StorageAllocation[Month],PRM[[#This Row],[Month]],StorageAllocation[Excess Capacity (MW)],">0") -> 119941.3137 | C11: =SUMIFS(StorageAllocation[Storage (MW)],StorageAllocation[Month],PRM[[#This Row],[Month]])/0.85 -> 64212.51765 | D11: =PRM[[#This Row],[Charging Energy (MWh)]]-PRM[[#This Row],[Charging Requirement (MWh)]] -> 55728.79609 | E11: =4*INDEX(NQC[NQC MW],MATCH(1,(NQC[Month]=PRM[[#This Row],[Month]])*(NQC[Unit Category]="Storage"),0))-SUMIFS(StorageAllocation[Storage (MW)],StorageAllocation[Month],PRM[[#This Row],[Month]]) -> 0 | F11: =_xlfn.MINIFS(StorageAllocation[Storage SOC Day 2 (MWh)],StorageAllocation[Month],PRM[[#This Row],[Month]]) -> 0 | G11: =INDEX(NQC[NQC MW],MATCH(1,(NQC[Month]=PRM[[#This Row],[Month]])*(NQC[Unit Category]="Storage"),0))-_xlfn.MAXIFS(StorageAllocation[Storage (MW)],StorageAllocation[Month],PRM[[#This Row],[Month]]) -> 1785.884765 | H11: 0.2348757712 | I11: =MATCH(1,(StorageAllocation[Month]=PRM[[#This Row],[Month]])*(_xlfn.MINIFS(StorageAllocation[Excess Capacity (MW)],StorageAllocation[Month],PRM[[#This Row],[Month]])=StorageAllocation[Excess Capacity (MW)]),0)-24*(PRM[[#This Row],[Month]]-1) -> 18 | J11: =INDEX(ManagedLoad[Managed Load],MATCH(1,(ManagedLoad[Month]=PRM[[#This Row],[Month]])*(ManagedLoad[Hour Ending]=PRM[[#This Row],[Constraining Hour Ending]]),0)) -> 37720 | K11: =INDEX(NOU[NOU MW],MATCH(PRM[[#This Row],[Month]],NOU[Month],0)) -> 5170 | L11: =INDEX(StorageAllocation[Adjusted Supply (MW)],MATCH(1,(StorageAllocation[Month]=PRM[[#This Row],[Month]])*(StorageAllocation[Hour Ending]=PRM[[#This Row],[Constraining Hour Ending]]),0)) -> 52963.82183 | N11: 1 | O11: 10 | P11: =INDEX(ManagedLoad[Total],MATCH(1,(ManagedLoad[Month]=StorageAllocation[[#This Row],[Month]])*(ManagedLoad[Hour Ending]=StorageAllocation[[#This Row],[Hour Ending]]),0)) -> 32530 | Q11: =StorageAllocation[[#This Row],[Managed Load + NOU (MW)]]*(1+_xlfn.XLOOKUP(StorageAllocation[[#This Row],[Month]],PRM[Month],PRM[Planning Reserve Margin],0,0)) -> 41145.87756 | R11: =SUM(_xlfn._xlws.FILTER(Supply[Supply],(Supply[Month]=StorageAllocation[[#This Row],[Month]])*(Supply[Unit Category]<>"Storage")*(Supply[Hour Ending]=StorageAllocation[[#This Row],[Hour Ending]])=1,0)) -> 47749.21234 | S11: =StorageAllocation[[#This Row],[Supply Without Storage (MW)]]-StorageAllocation[[#This Row],[Total Load with PRM (MW)]] -> 6603.33478 | T11: =MAX(-StorageAllocation[[#This Row],[Excess Capacity (MW)]],0) -> 0 | U11: =_xlfn.IFS( StorageAllocation[[#This Row],[Hour Ending]]=1, 4*INDEX(NQC[NQC MW],MATCH(1,(NQC[Month]=StorageAllocation[[#This Row],[Month]])*(NQC[Unit Category]="Storage"),0))-StorageAllocation[[#This Row],[Storage (MW)]], StorageAllocation[[#This Row],[Storage (MW)]]>0, OFFSET(StorageAllocation[[#This Row],[Storage SOC Day 1 (MWh)]],-1,0)-StorageAllocation[[#This Row],[Storage (MW)]], TRUE, MIN( OFFSET(StorageAllocation[[#This Row],[Storage SOC Day 1 (MWh)]],-1,0)+0.85*INDEX(NQC[NQC MW],MATCH(1,(NQC[Month]=StorageAllocation[[#This Row],[Month]])*(NQC[Unit Category]="Storage"),0)), 4*INDEX(NQC[NQC MW],MATCH(1,(NQC[Month]=StorageAllocation[[#This Row],[Month]])*(NQC[Unit Category]="Storage"),0)) ) ) -> 53479.8 | V11: =_xlfn.IFS( StorageAllocation[[#This Row],[Hour Ending]]=1, OFFSET(StorageAllocation[[#This Row],[Storage SOC Day 1 (MWh)]],23,0)-StorageAllocation[[#This Row],[Storage (MW)]], StorageAllocation[[#This Row],[Storage (MW)]]>0, OFFSET(StorageAllocation[[#This Row],[Storage SOC Day 2 (MWh)]],-1,0)-StorageAllocation[[#This Row],[Storage (MW)]], TRUE, MIN( OFFSET(StorageAllocation[[#This Row],[Storage SOC Day 2 (MWh)]],-1,0)+0.85*INDEX(NQC[NQC MW],MATCH(1,(NQC[Month]=StorageAllocation[[#This Row],[Month]])*(NQC[Unit Category]="Storage"),0)), 4*INDEX(NQC[NQC MW],MATCH(1,(NQC[Month]=StorageAllocation[[#This Row],[Month]])*(NQC[Unit Category]="Storage"),0)) ) ) -> 53479.8 | W11: =StorageAllocation[[#This Row],[Supply Without Storage (MW)]]+StorageAllocation[[#This Row],[Storage (MW)]] -> 47749.21234 | X11: =StorageAllocation[[#This Row],[Adjusted Supply (MW)]]/StorageAllocation[[#This Row],[Managed Load + NOU (MW)]]-1 -> 0.4678515935
A12: 11 | B12: =SUMIFS(StorageAllocation[Excess Capacity (MW)],StorageAllocation[Month],PRM[[#This Row],[Month]],StorageAllocation[Excess Capacity (MW)],">0") -> 99853.03393 | C12: =SUMIFS(StorageAllocation[Storage (MW)],StorageAllocation[Month],PRM[[#This Row],[Month]])/0.85 -> 63957.41176 | D12: =PRM[[#This Row],[Charging Energy (MWh)]]-PRM[[#This Row],[Charging Requirement (MWh)]] -> 35895.62216 | E12: =4*INDEX(NQC[NQC MW],MATCH(1,(NQC[Month]=PRM[[#This Row],[Month]])*(NQC[Unit Category]="Storage"),0))-SUMIFS(StorageAllocation[Storage (MW)],StorageAllocation[Month],PRM[[#This Row],[Month]]) -> 0 | F12: =_xlfn.MINIFS(StorageAllocation[Storage SOC Day 2 (MWh)],StorageAllocation[Month],PRM[[#This Row],[Month]]) -> 2771.466938 | G12: =INDEX(NQC[NQC MW],MATCH(1,(NQC[Month]=PRM[[#This Row],[Month]])*(NQC[Unit Category]="Storage"),0))-_xlfn.MAXIFS(StorageAllocation[Storage (MW)],StorageAllocation[Month],PRM[[#This Row],[Month]]) -> 4852.696216 | H12: 0.2347012875 | I12: =MATCH(1,(StorageAllocation[Month]=PRM[[#This Row],[Month]])*(_xlfn.MINIFS(StorageAllocation[Excess Capacity (MW)],StorageAllocation[Month],PRM[[#This Row],[Month]])=StorageAllocation[Excess Capacity (MW)]),0)-24*(PRM[[#This Row],[Month]]-1) -> 18 | J12: =INDEX(ManagedLoad[Managed Load],MATCH(1,(ManagedLoad[Month]=PRM[[#This Row],[Month]])*(ManagedLoad[Hour Ending]=PRM[[#This Row],[Constraining Hour Ending]]),0)) -> 31645 | K12: =INDEX(NOU[NOU MW],MATCH(PRM[[#This Row],[Month]],NOU[Month],0)) -> 7950 | L12: =INDEX(StorageAllocation[Adjusted Supply (MW)],MATCH(1,(StorageAllocation[Month]=PRM[[#This Row],[Month]])*(StorageAllocation[Hour Ending]=PRM[[#This Row],[Constraining Hour Ending]]),0)) -> 48887.99748 | N12: 1 | O12: 11 | P12: =INDEX(ManagedLoad[Total],MATCH(1,(ManagedLoad[Month]=StorageAllocation[[#This Row],[Month]])*(ManagedLoad[Hour Ending]=StorageAllocation[[#This Row],[Hour Ending]]),0)) -> 30952 | Q12: =StorageAllocation[[#This Row],[Managed Load + NOU (MW)]]*(1+_xlfn.XLOOKUP(StorageAllocation[[#This Row],[Month]],PRM[Month],PRM[Planning Reserve Margin],0,0)) -> 39149.92936 | R12: =SUM(_xlfn._xlws.FILTER(Supply[Supply],(Supply[Month]=StorageAllocation[[#This Row],[Month]])*(Supply[Unit Category]<>"Storage")*(Supply[Hour Ending]=StorageAllocation[[#This Row],[Hour Ending]])=1,0)) -> 48829.18512 | S12: =StorageAllocation[[#This Row],[Supply Without Storage (MW)]]-StorageAllocation[[#This Row],[Total Load with PRM (MW)]] -> 9679.255755 | T12: =MAX(-StorageAllocation[[#This Row],[Excess Capacity (MW)]],0) -> 0 | U12: =_xlfn.IFS( StorageAllocation[[#This Row],[Hour Ending]]=1, 4*INDEX(NQC[NQC MW],MATCH(1,(NQC[Month]=StorageAllocation[[#This Row],[Month]])*(NQC[Unit Category]="Storage"),0))-StorageAllocation[[#This Row],[Storage (MW)]], StorageAllocation[[#This Row],[Storage (MW)]]>0, OFFSET(StorageAllocation[[#This Row],[Storage SOC Day 1 (MWh)]],-1,0)-StorageAllocation[[#This Row],[Storage (MW)]], TRUE, MIN( OFFSET(StorageAllocation[[#This Row],[Storage SOC Day 1 (MWh)]],-1,0)+0.85*INDEX(NQC[NQC MW],MATCH(1,(NQC[Month]=StorageAllocation[[#This Row],[Month]])*(NQC[Unit Category]="Storage"),0)), 4*INDEX(NQC[NQC MW],MATCH(1,(NQC[Month]=StorageAllocation[[#This Row],[Month]])*(NQC[Unit Category]="Storage"),0)) ) ) -> 53479.8 | V12: =_xlfn.IFS( StorageAllocation[[#This Row],[Hour Ending]]=1, OFFSET(StorageAllocation[[#This Row],[Storage SOC Day 1 (MWh)]],23,0)-StorageAllocation[[#This Row],[Storage (MW)]], StorageAllocation[[#This Row],[Storage (MW)]]>0, OFFSET(StorageAllocation[[#This Row],[Storage SOC Day 2 (MWh)]],-1,0)-StorageAllocation[[#This Row],[Storage (MW)]], TRUE, MIN( OFFSET(StorageAllocation[[#This Row],[Storage SOC Day 2 (MWh)]],-1,0)+0.85*INDEX(NQC[NQC MW],MATCH(1,(NQC[Month]=StorageAllocation[[#This Row],[Month]])*(NQC[Unit Category]="Storage"),0)), 4*INDEX(NQC[NQC MW],MATCH(1,(NQC[Month]=StorageAllocation[[#This Row],[Month]])*(NQC[Unit Category]="Storage"),0)) ) ) -> 53479.8 | W12: =StorageAllocation[[#This Row],[Supply Without Storage (MW)]]+StorageAllocation[[#This Row],[Storage (MW)]] -> 48829.18512 | X12: =StorageAllocation[[#This Row],[Adjusted Supply (MW)]]/StorageAllocation[[#This Row],[Managed Load + NOU (MW)]]-1 -> 0.5775777048
A13: 12 | B13: =SUMIFS(StorageAllocation[Excess Capacity (MW)],StorageAllocation[Month],PRM[[#This Row],[Month]],StorageAllocation[Excess Capacity (MW)],">0") -> 61730.3665 | C13: =SUMIFS(StorageAllocation[Storage (MW)],StorageAllocation[Month],PRM[[#This Row],[Month]])/0.85 -> 61730.3665 | D13: =PRM[[#This Row],[Charging Energy (MWh)]]-PRM[[#This Row],[Charging Requirement (MWh)]] -> -1.964508556e-10 | E13: =4*INDEX(NQC[NQC MW],MATCH(1,(NQC[Month]=PRM[[#This Row],[Month]])*(NQC[Unit Category]="Storage"),0))-SUMIFS(StorageAllocation[Storage (MW)],StorageAllocation[Month],PRM[[#This Row],[Month]]) -> 1892.828474 | F13: =_xlfn.MINIFS(StorageAllocation[Storage SOC Day 2 (MWh)],StorageAllocation[Month],PRM[[#This Row],[Month]]) -> 11379.32552 | G13: =INDEX(NQC[NQC MW],MATCH(1,(NQC[Month]=PRM[[#This Row],[Month]])*(NQC[Unit Category]="Storage"),0))-_xlfn.MAXIFS(StorageAllocation[Storage (MW)],StorageAllocation[Month],PRM[[#This Row],[Month]]) -> 7494.961832 | H13: 0.2354839406 | I13: =MATCH(1,(StorageAllocation[Month]=PRM[[#This Row],[Month]])*(_xlfn.MINIFS(StorageAllocation[Excess Capacity (MW)],StorageAllocation[Month],PRM[[#This Row],[Month]])=StorageAllocation[Excess Capacity (MW)]),0)-24*(PRM[[#This Row],[Month]]-1) -> 22 | J13: =INDEX(ManagedLoad[Managed Load],MATCH(1,(ManagedLoad[Month]=PRM[[#This Row],[Month]])*(ManagedLoad[Hour Ending]=PRM[[#This Row],[Constraining Hour Ending]]),0)) -> 28855 | K13: =INDEX(NOU[NOU MW],MATCH(PRM[[#This Row],[Month]],NOU[Month],0)) -> 6970 | L13: =INDEX(StorageAllocation[Adjusted Supply (MW)],MATCH(1,(StorageAllocation[Month]=PRM[[#This Row],[Month]])*(StorageAllocation[Hour Ending]=PRM[[#This Row],[Constraining Hour Ending]]),0)) -> 44261.21217 | N13: 1 | O13: 12 | P13: =INDEX(ManagedLoad[Total],MATCH(1,(ManagedLoad[Month]=StorageAllocation[[#This Row],[Month]])*(ManagedLoad[Hour Ending]=StorageAllocation[[#This Row],[Hour Ending]]),0)) -> 29355 | Q13: =StorageAllocation[[#This Row],[Managed Load + NOU (MW)]]*(1+_xlfn.XLOOKUP(StorageAllocation[[#This Row],[Month]],PRM[Month],PRM[Planning Reserve Margin],0,0)) -> 37129.94884 | R13: =SUM(_xlfn._xlws.FILTER(Supply[Supply],(Supply[Month]=StorageAllocation[[#This Row],[Month]])*(Supply[Unit Category]<>"Storage")*(Supply[Hour Ending]=StorageAllocation[[#This Row],[Hour Ending]])=1,0)) -> 49365.93657 | S13: =StorageAllocation[[#This Row],[Supply Without Storage (MW)]]-StorageAllocation[[#This Row],[Total Load with PRM (MW)]] -> 12235.98773 | T13: =MAX(-StorageAllocation[[#This Row],[Excess Capacity (MW)]],0) -> 0 | U13: =_xlfn.IFS( StorageAllocation[[#This Row],[Hour Ending]]=1, 4*INDEX(NQC[NQC MW],MATCH(1,(NQC[Month]=StorageAllocation[[#This Row],[Month]])*(NQC[Unit Category]="Storage"),0))-StorageAllocation[[#This Row],[Storage (MW)]], StorageAllocation[[#This Row],[Storage (MW)]]>0, OFFSET(StorageAllocation[[#This Row],[Storage SOC Day 1 (MWh)]],-1,0)-StorageAllocation[[#This Row],[Storage (MW)]], TRUE, MIN( OFFSET(StorageAllocation[[#This Row],[Storage SOC Day 1 (MWh)]],-1,0)+0.85*INDEX(NQC[NQC MW],MATCH(1,(NQC[Month]=StorageAllocation[[#This Row],[Month]])*(NQC[Unit Category]="Storage"),0)), 4*INDEX(NQC[NQC MW],MATCH(1,(NQC[Month]=StorageAllocation[[#This Row],[Month]])*(NQC[Unit Category]="Storage"),0)) ) ) -> 53479.8 | V13: =_xlfn.IFS( StorageAllocation[[#This Row],[Hour Ending]]=1, OFFSET(StorageAllocation[[#This Row],[Storage SOC Day 1 (MWh)]],23,0)-StorageAllocation[[#This Row],[Storage (MW)]], StorageAllocation[[#This Row],[Storage (MW)]]>0, OFFSET(StorageAllocation[[#This Row],[Storage SOC Day 2 (MWh)]],-1,0)-StorageAllocation[[#This Row],[Storage (MW)]], TRUE, MIN( OFFSET(StorageAllocation[[#This Row],[Storage SOC Day 2 (MWh)]],-1,0)+0.85*INDEX(NQC[NQC MW],MATCH(1,(NQC[Month]=StorageAllocation[[#This Row],[Month]])*(NQC[Unit Category]="Storage"),0)), 4*INDEX(NQC[NQC MW],MATCH(1,(NQC[Month]=StorageAllocation[[#This Row],[Month]])*(NQC[Unit Category]="Storage"),0)) ) ) -> 53479.8 | W13: =StorageAllocation[[#This Row],[Supply Without Storage (MW)]]+StorageAllocation[[#This Row],[Storage (MW)]] -> 49365.93657 | X13: =StorageAllocation[[#This Row],[Adjusted Supply (MW)]]/StorageAllocation[[#This Row],[Managed Load + NOU (MW)]]-1 -> 0.6816875003
H14: =SUM(PRM[Planning Reserve Margin]) -> 2.970771865 | N14: 1 | O14: 13 | P14: =INDEX(ManagedLoad[Total],MATCH(1,(ManagedLoad[Month]=StorageAllocation[[#This Row],[Month]])*(ManagedLoad[Hour Ending]=StorageAllocation[[#This Row],[Hour Ending]]),0)) -> 28903 | Q14: =StorageAllocation[[#This Row],[Managed Load + NOU (MW)]]*(1+_xlfn.XLOOKUP(StorageAllocation[[#This Row],[Month]],PRM[Month],PRM[Planning Reserve Margin],0,0)) -> 36558.23237 | R14: =SUM(_xlfn._xlws.FILTER(Supply[Supply],(Supply[Month]=StorageAllocation[[#This Row],[Month]])*(Supply[Unit Category]<>"Storage")*(Supply[Hour Ending]=StorageAllocation[[#This Row],[Hour Ending]])=1,0)) -> 49199.99128 | S14: =StorageAllocation[[#This Row],[Supply Without Storage (MW)]]-StorageAllocation[[#This Row],[Total Load with PRM (MW)]] -> 12641.75891 | T14: =MAX(-StorageAllocation[[#This Row],[Excess Capacity (MW)]],0) -> 0 | U14: =_xlfn.IFS( StorageAllocation[[#This Row],[Hour Ending]]=1, 4*INDEX(NQC[NQC MW],MATCH(1,(NQC[Month]=StorageAllocation[[#This Row],[Month]])*(NQC[Unit Category]="Storage"),0))-StorageAllocation[[#This Row],[Storage (MW)]], StorageAllocation[[#This Row],[Storage (MW)]]>0, OFFSET(StorageAllocation[[#This Row],[Storage SOC Day 1 (MWh)]],-1,0)-StorageAllocation[[#This Row],[Storage (MW)]], TRUE, MIN( OFFSET(StorageAllocation[[#This Row],[Storage SOC Day 1 (MWh)]],-1,0)+0.85*INDEX(NQC[NQC MW],MATCH(1,(NQC[Month]=StorageAllocation[[#This Row],[Month]])*(NQC[Unit Category]="Storage"),0)), 4*INDEX(NQC[NQC MW],MATCH(1,(NQC[Month]=StorageAllocation[[#This Row],[Month]])*(NQC[Unit Category]="Storage"),0)) ) ) -> 53479.8 | V14: =_xlfn.IFS( StorageAllocation[[#This Row],[Hour Ending]]=1, OFFSET(StorageAllocation[[#This Row],[Storage SOC Day 1 (MWh)]],23,0)-StorageAllocation[[#This Row],[Storage (MW)]], StorageAllocation[[#This Row],[Storage (MW)]]>0, OFFSET(StorageAllocation[[#This Row],[Storage SOC Day 2 (MWh)]],-1,0)-StorageAllocation[[#This Row],[Storage (MW)]], TRUE, MIN( OFFSET(StorageAllocation[[#This Row],[Storage SOC Day 2 (MWh)]],-1,0)+0.85*INDEX(NQC[NQC MW],MATCH(1,(NQC[Month]=StorageAllocation[[#This Row],[Month]])*(NQC[Unit Category]="Storage"),0)), 4*INDEX(NQC[NQC MW],MATCH(1,(NQC[Month]=StorageAllocation[[#This Row],[Month]])*(NQC[Unit Category]="Storage"),0)) ) ) -> 53479.8 | W14: =StorageAllocation[[#This Row],[Supply Without Storage (MW)]]+StorageAllocation[[#This Row],[Storage (MW)]] -> 49199.99128 | X14: =StorageAllocation[[#This Row],[Adjusted Supply (MW)]]/StorageAllocation[[#This Row],[Managed Load + NOU (MW)]]-1 -> 0.7022451401
N15: 1 | O15: 14 | P15: =INDEX(ManagedLoad[Total],MATCH(1,(ManagedLoad[Month]=StorageAllocation[[#This Row],[Month]])*(ManagedLoad[Hour Ending]=StorageAllocation[[#This Row],[Hour Ending]]),0)) -> 29125 | Q15: =StorageAllocation[[#This Row],[Managed Load + NOU (MW)]]*(1+_xlfn.XLOOKUP(StorageAllocation[[#This Row],[Month]],PRM[Month],PRM[Planning Reserve Margin],0,0)) -> 36839.03117 | R15: =SUM(_xlfn._xlws.FILTER(Supply[Supply],(Supply[Month]=StorageAllocation[[#This Row],[Month]])*(Supply[Unit Category]<>"Storage")*(Supply[Hour Ending]=StorageAllocation[[#This Row],[Hour Ending]])=1,0)) -> 48604.85144 | S15: =StorageAllocation[[#This Row],[Supply Without Storage (MW)]]-StorageAllocation[[#This Row],[Total Load with PRM (MW)]] -> 11765.82027 | T15: =MAX(-StorageAllocation[[#This Row],[Excess Capacity (MW)]],0) -> 0 | U15: =_xlfn.IFS( StorageAllocation[[#This Row],[Hour Ending]]=1, 4*INDEX(NQC[NQC MW],MATCH(1,(NQC[Month]=StorageAllocation[[#This Row],[Month]])*(NQC[Unit Category]="Storage"),0))-StorageAllocation[[#This Row],[Storage (MW)]], StorageAllocation[[#This Row],[Storage (MW)]]>0, OFFSET(StorageAllocation[[#This Row],[Storage SOC Day 1 (MWh)]],-1,0)-StorageAllocation[[#This Row],[Storage (MW)]], TRUE, MIN( OFFSET(StorageAllocation[[#This Row],[Storage SOC Day 1 (MWh)]],-1,0)+0.85*INDEX(NQC[NQC MW],MATCH(1,(NQC[Month]=StorageAllocation[[#This Row],[Month]])*(NQC[Unit Category]="Storage"),0)), 4*INDEX(NQC[NQC MW],MATCH(1,(NQC[Month]=StorageAllocation[[#This Row],[Month]])*(NQC[Unit Category]="Storage"),0)) ) ) -> 53479.8 | V15: =_xlfn.IFS( StorageAllocation[[#This Row],[Hour Ending]]=1, OFFSET(StorageAllocation[[#This Row],[Storage SOC Day 1 (MWh)]],23,0)-StorageAllocation[[#This Row],[Storage (MW)]], StorageAllocation[[#This Row],[Storage (MW)]]>0, OFFSET(StorageAllocation[[#This Row],[Storage SOC Day 2 (MWh)]],-1,0)-StorageAllocation[[#This Row],[Storage (MW)]], TRUE, MIN( OFFSET(StorageAllocation[[#This Row],[Storage SOC Day 2 (MWh)]],-1,0)+0.85*INDEX(NQC[NQC MW],MATCH(1,(NQC[Month]=StorageAllocation[[#This Row],[Month]])*(NQC[Unit Category]="Storage"),0)), 4*INDEX(NQC[NQC MW],MATCH(1,(NQC[Month]=StorageAllocation[[#This Row],[Month]])*(NQC[Unit Category]="Storage"),0)) ) ) -> 53479.8 | W15: =StorageAllocation[[#This Row],[Supply Without Storage (MW)]]+StorageAllocation[[#This Row],[Storage (MW)]] -> 48604.85144 | X15: =StorageAllocation[[#This Row],[Adjusted Supply (MW)]]/StorageAllocation[[#This Row],[Managed Load + NOU (MW)]]-1 -> 0.6688361009
N16: 1 | O16: 15 | P16: =INDEX(ManagedLoad[Total],MATCH(1,(ManagedLoad[Month]=StorageAllocation[[#This Row],[Month]])*(ManagedLoad[Hour Ending]=StorageAllocation[[#This Row],[Hour Ending]]),0)) -> 30026 | Q16: =StorageAllocation[[#This Row],[Managed Load + NOU (MW)]]*(1+_xlfn.XLOOKUP(StorageAllocation[[#This Row],[Month]],PRM[Month],PRM[Planning Reserve Margin],0,0)) -> 37978.66952 | R16: =SUM(_xlfn._xlws.FILTER(Supply[Supply],(Supply[Month]=StorageAllocation[[#This Row],[Month]])*(Supply[Unit Category]<>"Storage")*(Supply[Hour Ending]=StorageAllocation[[#This Row],[Hour Ending]])=1,0)) -> 47530.5455 | S16: =StorageAllocation[[#This Row],[Supply Without Storage (MW)]]-StorageAllocation[[#This Row],[Total Load with PRM (MW)]] -> 9551.875977 | T16: =MAX(-StorageAllocation[[#This Row],[Excess Capacity (MW)]],0) -> 0 | U16: =_xlfn.IFS( StorageAllocation[[#This Row],[Hour Ending]]=1, 4*INDEX(NQC[NQC MW],MATCH(1,(NQC[Month]=StorageAllocation[[#This Row],[Month]])*(NQC[Unit Category]="Storage"),0))-StorageAllocation[[#This Row],[Storage (MW)]], StorageAllocation[[#This Row],[Storage (MW)]]>0, OFFSET(StorageAllocation[[#This Row],[Storage SOC Day 1 (MWh)]],-1,0)-StorageAllocation[[#This Row],[Storage (MW)]], TRUE, MIN( OFFSET(StorageAllocation[[#This Row],[Storage SOC Day 1 (MWh)]],-1,0)+0.85*INDEX(NQC[NQC MW],MATCH(1,(NQC[Month]=StorageAllocation[[#This Row],[Month]])*(NQC[Unit Category]="Storage"),0)), 4*INDEX(NQC[NQC MW],MATCH(1,(NQC[Month]=StorageAllocation[[#This Row],[Month]])*(NQC[Unit Category]="Storage"),0)) ) ) -> 53479.8 | V16: =_xlfn.IFS( StorageAllocation[[#This Row],[Hour Ending]]=1, OFFSET(StorageAllocation[[#This Row],[Storage SOC Day 1 (MWh)]],23,0)-StorageAllocation[[#This Row],[Storage (MW)]], StorageAllocation[[#This Row],[Storage (MW)]]>0, OFFSET(StorageAllocation[[#This Row],[Storage SOC Day 2 (MWh)]],-1,0)-StorageAllocation[[#This Row],[Storage (MW)]], TRUE, MIN( OFFSET(StorageAllocation[[#This Row],[Storage SOC Day 2 (MWh)]],-1,0)+0.85*INDEX(NQC[NQC MW],MATCH(1,(NQC[Month]=StorageAllocation[[#This Row],[Month]])*(NQC[Unit Category]="Storage"),0)), 4*INDEX(NQC[NQC MW],MATCH(1,(NQC[Month]=StorageAllocation[[#This Row],[Month]])*(NQC[Unit Category]="Storage"),0)) ) ) -> 53479.8 | W16: =StorageAllocation[[#This Row],[Supply Without Storage (MW)]]+StorageAllocation[[#This Row],[Storage (MW)]] -> 47530.5455 | X16: =StorageAllocation[[#This Row],[Adjusted Supply (MW)]]/StorageAllocation[[#This Row],[Managed Load + NOU (MW)]]-1 -> 0.582979601
N17: 1 | O17: 16 | P17: =INDEX(ManagedLoad[Total],MATCH(1,(ManagedLoad[Month]=StorageAllocation[[#This Row],[Month]])*(ManagedLoad[Hour Ending]=StorageAllocation[[#This Row],[Hour Ending]]),0)) -> 31610 | Q17: =StorageAllocation[[#This Row],[Managed Load + NOU (MW)]]*(1+_xlfn.XLOOKUP(StorageAllocation[[#This Row],[Month]],PRM[Month],PRM[Planning Reserve Margin],0,0)) -> 39982.20687 | R17: =SUM(_xlfn._xlws.FILTER(Supply[Supply],(Supply[Month]=StorageAllocation[[#This Row],[Month]])*(Supply[Unit Category]<>"Storage")*(Supply[Hour Ending]=StorageAllocation[[#This Row],[Hour Ending]])=1,0)) -> 43735.23261 | S17: =StorageAllocation[[#This Row],[Supply Without Storage (MW)]]-StorageAllocation[[#This Row],[Total Load with PRM (MW)]] -> 3753.025735 | T17: =MAX(-StorageAllocation[[#This Row],[Excess Capacity (MW)]],0) -> 0 | U17: =_xlfn.IFS( StorageAllocation[[#This Row],[Hour Ending]]=1, 4*INDEX(NQC[NQC MW],MATCH(1,(NQC[Month]=StorageAllocation[[#This Row],[Month]])*(NQC[Unit Category]="Storage"),0))-StorageAllocation[[#This Row],[Storage (MW)]], StorageAllocation[[#This Row],[Storage (MW)]]>0, OFFSET(StorageAllocation[[#This Row],[Storage SOC Day 1 (MWh)]],-1,0)-StorageAllocation[[#This Row],[Storage (MW)]], TRUE, MIN( OFFSET(StorageAllocation[[#This Row],[Storage SOC Day 1 (MWh)]],-1,0)+0.85*INDEX(NQC[NQC MW],MATCH(1,(NQC[Month]=StorageAllocation[[#This Row],[Month]])*(NQC[Unit Category]="Storage"),0)), 4*INDEX(NQC[NQC MW],MATCH(1,(NQC[Month]=StorageAllocation[[#This Row],[Month]])*(NQC[Unit Category]="Storage"),0)) ) ) -> 53479.8 | V17: =_xlfn.IFS( StorageAllocation[[#This Row],[Hour Ending]]=1, OFFSET(StorageAllocation[[#This Row],[Storage SOC Day 1 (MWh)]],23,0)-StorageAllocation[[#This Row],[Storage (MW)]], StorageAllocation[[#This Row],[Storage (MW)]]>0, OFFSET(StorageAllocation[[#This Row],[Storage SOC Day 2 (MWh)]],-1,0)-StorageAllocation[[#This Row],[Storage (MW)]], TRUE, MIN( OFFSET(StorageAllocation[[#This Row],[Storage SOC Day 2 (MWh)]],-1,0)+0.85*INDEX(NQC[NQC MW],MATCH(1,(NQC[Month]=StorageAllocation[[#This Row],[Month]])*(NQC[Unit Category]="Storage"),0)), 4*INDEX(NQC[NQC MW],MATCH(1,(NQC[Month]=StorageAllocation[[#This Row],[Month]])*(NQC[Unit Category]="Storage"),0)) ) ) -> 53479.8 | W17: =StorageAllocation[[#This Row],[Supply Without Storage (MW)]]+StorageAllocation[[#This Row],[Storage (MW)]] -> 43735.23261 | X17: =StorageAllocation[[#This Row],[Adjusted Supply (MW)]]/StorageAllocation[[#This Row],[Managed Load + NOU (MW)]]-1 -> 0.3835885039
N18: 1 | O18: 17 | P18: =INDEX(ManagedLoad[Total],MATCH(1,(ManagedLoad[Month]=StorageAllocation[[#This Row],[Month]])*(ManagedLoad[Hour Ending]=StorageAllocation[[#This Row],[Hour Ending]]),0)) -> 33374 | Q18: =StorageAllocation[[#This Row],[Managed Load + NOU (MW)]]*(1+_xlfn.XLOOKUP(StorageAllocation[[#This Row],[Month]],PRM[Month],PRM[Planning Reserve Margin],0,0)) -> 42213.41892 | R18: =SUM(_xlfn._xlws.FILTER(Supply[Supply],(Supply[Month]=StorageAllocation[[#This Row],[Month]])*(Supply[Unit Category]<>"Storage")*(Supply[Hour Ending]=StorageAllocation[[#This Row],[Hour Ending]])=1,0)) -> 40078.01299 | S18: =StorageAllocation[[#This Row],[Supply Without Storage (MW)]]-StorageAllocation[[#This Row],[Total Load with PRM (MW)]] -> -2135.405937 | T18: =MAX(-StorageAllocation[[#This Row],[Excess Capacity (MW)]],0) -> 2135.405937 | U18: =_xlfn.IFS( StorageAllocation[[#This Row],[Hour Ending]]=1, 4*INDEX(NQC[NQC MW],MATCH(1,(NQC[Month]=StorageAllocation[[#This Row],[Month]])*(NQC[Unit Category]="Storage"),0))-StorageAllocation[[#This Row],[Storage (MW)]], StorageAllocation[[#This Row],[Storage (MW)]]>0, OFFSET(StorageAllocation[[#This Row],[Storage SOC Day 1 (MWh)]],-1,0)-StorageAllocation[[#This Row],[Storage (MW)]], TRUE, MIN( OFFSET(StorageAllocation[[#This Row],[Storage SOC Day 1 (MWh)]],-1,0)+0.85*INDEX(NQC[NQC MW],MATCH(1,(NQC[Month]=StorageAllocation[[#This Row],[Month]])*(NQC[Unit Category]="Storage"),0)), 4*INDEX(NQC[NQC MW],MATCH(1,(NQC[Month]=StorageAllocation[[#This Row],[Month]])*(NQC[Unit Category]="Storage"),0)) ) ) -> 51344.39406 | V18: =_xlfn.IFS( StorageAllocation[[#This Row],[Hour Ending]]=1, OFFSET(StorageAllocation[[#This Row],[Storage SOC Day 1 (MWh)]],23,0)-StorageAllocation[[#This Row],[Storage (MW)]], StorageAllocation[[#This Row],[Storage (MW)]]>0, OFFSET(StorageAllocation[[#This Row],[Storage SOC Day 2 (MWh)]],-1,0)-StorageAllocation[[#This Row],[Storage (MW)]], TRUE, MIN( OFFSET(StorageAllocation[[#This Row],[Storage SOC Day 2 (MWh)]],-1,0)+0.85*INDEX(NQC[NQC MW],MATCH(1,(NQC[Month]=StorageAllocation[[#This Row],[Month]])*(NQC[Unit Category]="Storage"),0)), 4*INDEX(NQC[NQC MW],MATCH(1,(NQC[Month]=StorageAllocation[[#This Row],[Month]])*(NQC[Unit Category]="Storage"),0)) ) ) -> 51344.39406 | W18: =StorageAllocation[[#This Row],[Supply Without Storage (MW)]]+StorageAllocation[[#This Row],[Storage (MW)]] -> 42213.41892 | X18: =StorageAllocation[[#This Row],[Adjusted Supply (MW)]]/StorageAllocation[[#This Row],[Managed Load + NOU (MW)]]-1 -> 0.2648594392
N19: 1 | O19: 18 | P19: =INDEX(ManagedLoad[Total],MATCH(1,(ManagedLoad[Month]=StorageAllocation[[#This Row],[Month]])*(ManagedLoad[Hour Ending]=StorageAllocation[[#This Row],[Hour Ending]]),0)) -> 35442 | Q19: =StorageAllocation[[#This Row],[Managed Load + NOU (MW)]]*(1+_xlfn.XLOOKUP(StorageAllocation[[#This Row],[Month]],PRM[Month],PRM[Planning Reserve Margin],0,0)) -> 44829.14824 | R19: =SUM(_xlfn._xlws.FILTER(Supply[Supply],(Supply[Month]=StorageAllocation[[#This Row],[Month]])*(Supply[Unit Category]<>"Storage")*(Supply[Hour Ending]=StorageAllocation[[#This Row],[Hour Ending]])=1,0)) -> 38620.44337 | S19: =StorageAllocation[[#This Row],[Supply Without Storage (MW)]]-StorageAllocation[[#This Row],[Total Load with PRM (MW)]] -> -6208.704871 | T19: =MAX(-StorageAllocation[[#This Row],[Excess Capacity (MW)]],0) -> 6208.704871 | U19: =_xlfn.IFS( StorageAllocation[[#This Row],[Hour Ending]]=1, 4*INDEX(NQC[NQC MW],MATCH(1,(NQC[Month]=StorageAllocation[[#This Row],[Month]])*(NQC[Unit Category]="Storage"),0))-StorageAllocation[[#This Row],[Storage (MW)]], StorageAllocation[[#This Row],[Storage (MW)]]>0, OFFSET(StorageAllocation[[#This Row],[Storage SOC Day 1 (MWh)]],-1,0)-StorageAllocation[[#This Row],[Storage (MW)]], TRUE, MIN( OFFSET(StorageAllocation[[#This Row],[Storage SOC Day 1 (MWh)]],-1,0)+0.85*INDEX(NQC[NQC MW],MATCH(1,(NQC[Month]=StorageAllocation[[#This Row],[Month]])*(NQC[Unit Category]="Storage"),0)), 4*INDEX(NQC[NQC MW],MATCH(1,(NQC[Month]=StorageAllocation[[#This Row],[Month]])*(NQC[Unit Category]="Storage"),0)) ) ) -> 45135.68919 | V19: =_xlfn.IFS( StorageAllocation[[#This Row],[Hour Ending]]=1, OFFSET(StorageAllocation[[#This Row],[Storage SOC Day 1 (MWh)]],23,0)-StorageAllocation[[#This Row],[Storage (MW)]], StorageAllocation[[#This Row],[Storage (MW)]]>0, OFFSET(StorageAllocation[[#This Row],[Storage SOC Day 2 (MWh)]],-1,0)-StorageAllocation[[#This Row],[Storage (MW)]], TRUE, MIN( OFFSET(StorageAllocation[[#This Row],[Storage SOC Day 2 (MWh)]],-1,0)+0.85*INDEX(NQC[NQC MW],MATCH(1,(NQC[Month]=StorageAllocation[[#This Row],[Month]])*(NQC[Unit Category]="Storage"),0)), 4*INDEX(NQC[NQC MW],MATCH(1,(NQC[Month]=StorageAllocation[[#This Row],[Month]])*(NQC[Unit Category]="Storage"),0)) ) ) -> 45135.68919 | W19: =StorageAllocation[[#This Row],[Supply Without Storage (MW)]]+StorageAllocation[[#This Row],[Storage (MW)]] -> 44829.14824 | X19: =StorageAllocation[[#This Row],[Adjusted Supply (MW)]]/StorageAllocation[[#This Row],[Managed Load + NOU (MW)]]-1 -> 0.2648594392
N20: 1 | O20: 19 | P20: =INDEX(ManagedLoad[Total],MATCH(1,(ManagedLoad[Month]=StorageAllocation[[#This Row],[Month]])*(ManagedLoad[Hour Ending]=StorageAllocation[[#This Row],[Hour Ending]]),0)) -> 35923 | Q20: =StorageAllocation[[#This Row],[Managed Load + NOU (MW)]]*(1+_xlfn.XLOOKUP(StorageAllocation[[#This Row],[Month]],PRM[Month],PRM[Planning Reserve Margin],0,0)) -> 45437.54563 | R20: =SUM(_xlfn._xlws.FILTER(Supply[Supply],(Supply[Month]=StorageAllocation[[#This Row],[Month]])*(Supply[Unit Category]<>"Storage")*(Supply[Hour Ending]=StorageAllocation[[#This Row],[Hour Ending]])=1,0)) -> 38242.87757 | S20: =StorageAllocation[[#This Row],[Supply Without Storage (MW)]]-StorageAllocation[[#This Row],[Total Load with PRM (MW)]] -> -7194.668062 | T20: =MAX(-StorageAllocation[[#This Row],[Excess Capacity (MW)]],0) -> 7194.668062 | U20: =_xlfn.IFS( StorageAllocation[[#This Row],[Hour Ending]]=1, 4*INDEX(NQC[NQC MW],MATCH(1,(NQC[Month]=StorageAllocation[[#This Row],[Month]])*(NQC[Unit Category]="Storage"),0))-StorageAllocation[[#This Row],[Storage (MW)]], StorageAllocation[[#This Row],[Storage (MW)]]>0, OFFSET(StorageAllocation[[#This Row],[Storage SOC Day 1 (MWh)]],-1,0)-StorageAllocation[[#This Row],[Storage (MW)]], TRUE, MIN( OFFSET(StorageAllocation[[#This Row],[Storage SOC Day 1 (MWh)]],-1,0)+0.85*INDEX(NQC[NQC MW],MATCH(1,(NQC[Month]=StorageAllocation[[#This Row],[Month]])*(NQC[Unit Category]="Storage"),0)), 4*INDEX(NQC[NQC MW],MATCH(1,(NQC[Month]=StorageAllocation[[#This Row],[Month]])*(NQC[Unit Category]="Storage"),0)) ) ) -> 37941.02113 | V20: =_xlfn.IFS( StorageAllocation[[#This Row],[Hour Ending]]=1, OFFSET(StorageAllocation[[#This Row],[Storage SOC Day 1 (MWh)]],23,0)-StorageAllocation[[#This Row],[Storage (MW)]], StorageAllocation[[#This Row],[Storage (MW)]]>0, OFFSET(StorageAllocation[[#This Row],[Storage SOC Day 2 (MWh)]],-1,0)-StorageAllocation[[#This Row],[Storage (MW)]], TRUE, MIN( OFFSET(StorageAllocation[[#This Row],[Storage SOC Day 2 (MWh)]],-1,0)+0.85*INDEX(NQC[NQC MW],MATCH(1,(NQC[Month]=StorageAllocation[[#This Row],[Month]])*(NQC[Unit Category]="Storage"),0)), 4*INDEX(NQC[NQC MW],MATCH(1,(NQC[Month]=StorageAllocation[[#This Row],[Month]])*(NQC[Unit Category]="Storage"),0)) ) ) -> 37941.02113 | W20: =StorageAllocation[[#This Row],[Supply Without Storage (MW)]]+StorageAllocation[[#This Row],[Storage (MW)]] -> 45437.54563 | X20: =StorageAllocation[[#This Row],[Adjusted Supply (MW)]]/StorageAllocation[[#This Row],[Managed Load + NOU (MW)]]-1 -> 0.2648594392
N21: 1 | O21: 20 | P21: =INDEX(ManagedLoad[Total],MATCH(1,(ManagedLoad[Month]=StorageAllocation[[#This Row],[Month]])*(ManagedLoad[Hour Ending]=StorageAllocation[[#This Row],[Hour Ending]]),0)) -> 35865 | Q21: =StorageAllocation[[#This Row],[Managed Load + NOU (MW)]]*(1+_xlfn.XLOOKUP(StorageAllocation[[#This Row],[Month]],PRM[Month],PRM[Planning Reserve Margin],0,0)) -> 45364.18379 | R21: =SUM(_xlfn._xlws.FILTER(Supply[Supply],(Supply[Month]=StorageAllocation[[#This Row],[Month]])*(Supply[Unit Category]<>"Storage")*(Supply[Hour Ending]=StorageAllocation[[#This Row],[Hour Ending]])=1,0)) -> 38251.02637 | S21: =StorageAllocation[[#This Row],[Supply Without Storage (MW)]]-StorageAllocation[[#This Row],[Total Load with PRM (MW)]] -> -7113.157415 | T21: =MAX(-StorageAllocation[[#This Row],[Excess Capacity (MW)]],0) -> 7113.157415 | U21: =_xlfn.IFS( StorageAllocation[[#This Row],[Hour Ending]]=1, 4*INDEX(NQC[NQC MW],MATCH(1,(NQC[Month]=StorageAllocation[[#This Row],[Month]])*(NQC[Unit Category]="Storage"),0))-StorageAllocation[[#This Row],[Storage (MW)]], StorageAllocation[[#This Row],[Storage (MW)]]>0, OFFSET(StorageAllocation[[#This Row],[Storage SOC Day 1 (MWh)]],-1,0)-StorageAllocation[[#This Row],[Storage (MW)]], TRUE, MIN( OFFSET(StorageAllocation[[#This Row],[Storage SOC Day 1 (MWh)]],-1,0)+0.85*INDEX(NQC[NQC MW],MATCH(1,(NQC[Month]=StorageAllocation[[#This Row],[Month]])*(NQC[Unit Category]="Storage"),0)), 4*INDEX(NQC[NQC MW],MATCH(1,(NQC[Month]=StorageAllocation[[#This Row],[Month]])*(NQC[Unit Category]="Storage"),0)) ) ) -> 30827.86371 | V21: =_xlfn.IFS( StorageAllocation[[#This Row],[Hour Ending]]=1, OFFSET(StorageAllocation[[#This Row],[Storage SOC Day 1 (MWh)]],23,0)-StorageAllocation[[#This Row],[Storage (MW)]], StorageAllocation[[#This Row],[Storage (MW)]]>0, OFFSET(StorageAllocation[[#This Row],[Storage SOC Day 2 (MWh)]],-1,0)-StorageAllocation[[#This Row],[Storage (MW)]], TRUE, MIN( OFFSET(StorageAllocation[[#This Row],[Storage SOC Day 2 (MWh)]],-1,0)+0.85*INDEX(NQC[NQC MW],MATCH(1,(NQC[Month]=StorageAllocation[[#This Row],[Month]])*(NQC[Unit Category]="Storage"),0)), 4*INDEX(NQC[NQC MW],MATCH(1,(NQC[Month]=StorageAllocation[[#This Row],[Month]])*(NQC[Unit Category]="Storage"),0)) ) ) -> 30827.86371 | W21: =StorageAllocation[[#This Row],[Supply Without Storage (MW)]]+StorageAllocation[[#This Row],[Storage (MW)]] -> 45364.18379 | X21: =StorageAllocation[[#This Row],[Adjusted Supply (MW)]]/StorageAllocation[[#This Row],[Managed Load + NOU (MW)]]-1 -> 0.2648594392
N22: 1 | O22: 21 | P22: =INDEX(ManagedLoad[Total],MATCH(1,(ManagedLoad[Month]=StorageAllocation[[#This Row],[Month]])*(ManagedLoad[Hour Ending]=StorageAllocation[[#This Row],[Hour Ending]]),0)) -> 35125 | Q22: =StorageAllocation[[#This Row],[Managed Load + NOU (MW)]]*(1+_xlfn.XLOOKUP(StorageAllocation[[#This Row],[Month]],PRM[Month],PRM[Planning Reserve Margin],0,0)) -> 44428.1878 | R22: =SUM(_xlfn._xlws.FILTER(Supply[Supply],(Supply[Month]=StorageAllocation[[#This Row],[Month]])*(Supply[Unit Category]<>"Storage")*(Supply[Hour Ending]=StorageAllocation[[#This Row],[Hour Ending]])=1,0)) -> 38120.84174 | S22: =StorageAllocation[[#This Row],[Supply Without Storage (MW)]]-StorageAllocation[[#This Row],[Total Load with PRM (MW)]] -> -6307.34606 | T22: =MAX(-StorageAllocation[[#This Row],[Excess Capacity (MW)]],0) -> 6307.34606 | U22: =_xlfn.IFS( StorageAllocation[[#This Row],[Hour Ending]]=1, 4*INDEX(NQC[NQC MW],MATCH(1,(NQC[Month]=StorageAllocation[[#This Row],[Month]])*(NQC[Unit Category]="Storage"),0))-StorageAllocation[[#This Row],[Storage (MW)]], StorageAllocation[[#This Row],[Storage (MW)]]>0, OFFSET(StorageAllocation[[#This Row],[Storage SOC Day 1 (MWh)]],-1,0)-StorageAllocation[[#This Row],[Storage (MW)]], TRUE, MIN( OFFSET(StorageAllocation[[#This Row],[Storage SOC Day 1 (MWh)]],-1,0)+0.85*INDEX(NQC[NQC MW],MATCH(1,(NQC[Month]=StorageAllocation[[#This Row],[Month]])*(NQC[Unit Category]="Storage"),0)), 4*INDEX(NQC[NQC MW],MATCH(1,(NQC[Month]=StorageAllocation[[#This Row],[Month]])*(NQC[Unit Category]="Storage"),0)) ) ) -> 24520.51765 | V22: =_xlfn.IFS( StorageAllocation[[#This Row],[Hour Ending]]=1, OFFSET(StorageAllocation[[#This Row],[Storage SOC Day 1 (MWh)]],23,0)-StorageAllocation[[#This Row],[Storage (MW)]], StorageAllocation[[#This Row],[Storage (MW)]]>0, OFFSET(StorageAllocation[[#This Row],[Storage SOC Day 2 (MWh)]],-1,0)-StorageAllocation[[#This Row],[Storage (MW)]], TRUE, MIN( OFFSET(StorageAllocation[[#This Row],[Storage SOC Day 2 (MWh)]],-1,0)+0.85*INDEX(NQC[NQC MW],MATCH(1,(NQC[Month]=StorageAllocation[[#This Row],[Month]])*(NQC[Unit Category]="Storage"),0)), 4*INDEX(NQC[NQC MW],MATCH(1,(NQC[Month]=StorageAllocation[[#This Row],[Month]])*(NQC[Unit Category]="Storage"),0)) ) ) -> 24520.51765 | W22: =StorageAllocation[[#This Row],[Supply Without Storage (MW)]]+StorageAllocation[[#This Row],[Storage (MW)]] -> 44428.1878 | X22: =StorageAllocation[[#This Row],[Adjusted Supply (MW)]]/StorageAllocation[[#This Row],[Managed Load + NOU (MW)]]-1 -> 0.2648594392
N23: 1 | O23: 22 | P23: =INDEX(ManagedLoad[Total],MATCH(1,(ManagedLoad[Month]=StorageAllocation[[#This Row],[Month]])*(ManagedLoad[Hour Ending]=StorageAllocation[[#This Row],[Hour Ending]]),0)) -> 34254 | Q23: =StorageAllocation[[#This Row],[Managed Load + NOU (MW)]]*(1+_xlfn.XLOOKUP(StorageAllocation[[#This Row],[Month]],PRM[Month],PRM[Planning Reserve Margin],0,0)) -> 43326.49523 | R23: =SUM(_xlfn._xlws.FILTER(Supply[Supply],(Supply[Month]=StorageAllocation[[#This Row],[Month]])*(Supply[Unit Category]<>"Storage")*(Supply[Hour Ending]=StorageAllocation[[#This Row],[Hour Ending]])=1,0)) -> 37147.44828 | S23: =StorageAllocation[[#This Row],[Supply Without Storage (MW)]]-StorageAllocation[[#This Row],[Total Load with PRM (MW)]] -> -6179.046945 | T23: =MAX(-StorageAllocation[[#This Row],[Excess Capacity (MW)]],0) -> 6179.046945 | U23: =_xlfn.IFS( StorageAllocation[[#This Row],[Hour Ending]]=1, 4*INDEX(NQC[NQC MW],MATCH(1,(NQC[Month]=StorageAllocation[[#This Row],[Month]])*(NQC[Unit Category]="Storage"),0))-StorageAllocation[[#This Row],[Storage (MW)]], StorageAllocation[[#This Row],[Storage (MW)]]>0, OFFSET(StorageAllocation[[#This Row],[Storage SOC Day 1 (MWh)]],-1,0)-StorageAllocation[[#This Row],[Storage (MW)]], TRUE, MIN( OFFSET(StorageAllocation[[#This Row],[Storage SOC Day 1 (MWh)]],-1,0)+0.85*INDEX(NQC[NQC MW],MATCH(1,(NQC[Month]=StorageAllocation[[#This Row],[Month]])*(NQC[Unit Category]="Storage"),0)), 4*INDEX(NQC[NQC MW],MATCH(1,(NQC[Month]=StorageAllocation[[#This Row],[Month]])*(NQC[Unit Category]="Storage"),0)) ) ) -> 18341.47071 | V23: =_xlfn.IFS( StorageAllocation[[#This Row],[Hour Ending]]=1, OFFSET(StorageAllocation[[#This Row],[Storage SOC Day 1 (MWh)]],23,0)-StorageAllocation[[#This Row],[Storage (MW)]], StorageAllocation[[#This Row],[Storage (MW)]]>0, OFFSET(StorageAllocation[[#This Row],[Storage SOC Day 2 (MWh)]],-1,0)-StorageAllocation[[#This Row],[Storage (MW)]], TRUE, MIN( OFFSET(StorageAllocation[[#This Row],[Storage SOC Day 2 (MWh)]],-1,0)+0.85*INDEX(NQC[NQC MW],MATCH(1,(NQC[Month]=StorageAllocation[[#This Row],[Month]])*(NQC[Unit Category]="Storage"),0)), 4*INDEX(NQC[NQC MW],MATCH(1,(NQC[Month]=StorageAllocation[[#This Row],[Month]])*(NQC[Unit Category]="Storage"),0)) ) ) -> 18341.47071 | W23: =StorageAllocation[[#This Row],[Supply Without Storage (MW)]]+StorageAllocation[[#This Row],[Storage (MW)]] -> 43326.49523 | X23: =StorageAllocation[[#This Row],[Adjusted Supply (MW)]]/StorageAllocation[[#This Row],[Managed Load + NOU (MW)]]-1 -> 0.2648594392
